Workbook

Sheet BD_2023 (hidden)
A1: Nº | B1: ENTIDADE | C1: NOME CRECHE | D1: CNPJ | E1: ENDEREÇO | F1: BAIRRO | G1: MUNICÍPIO | H1: CEP | I1: TELEFONE | J1: E-MAIL INSTITUCIONAL | K1: E-MAIL (@emeb) | L1: Nº PROCESSO PARCERIA | M1: Nº PROCESSO PAGAMENTO | N1: Nº PROCESSO PREST. CONTAS | O1: TERMO DE COLABORAÇÃO Nº | P1: DATA ASSINATURA TC | Q1: TERMO ADITAMENTO Nº | R1: DATA ASSINATURA TA | S1: SEQUÊNCIA TA | T1: VALOR TA | U1: BERÇÁRIO I ALUNOS | V1: BERÇÁRIO I TURMAS | W1: INFANTIL I E II ALUNOS | X1: INFANTIL I E II TURMAS | Y1: TOTAL ALUNOS | Z1: TOTAL TURMAS | AA1: VPC BERÇÁRIO | AB1: VPC INFANTIL | AC1: TOTAL PER CAPITA | AD1: TOTAL PER CAPITA ANUAL | AF1: DESPESAS DE PESSOAL | AG1: EPIs E EXAMES PERIÓDICOS | AH1: DESPESAS DE CONSUMO | AI1: ESTUDO DO MEIO | AJ1: MATERIAIS PEDAGÓGICO | AK1: CUSTEIO ADMINISTRATIVO | AL1: CONS. E LIMPEZA DO IMÓVEL | AM1: MANUT. BP | AN1: CONTABILIDADE | AO1: COMBUSTÍVEL PARA DESLICAMENTOS À SE | AP1: LOCAÇÃO DO IMÓVEL | AQ1: PROGRAMA ESCOLA LINDA | AR1: EDUCAÇÃO MAKER - CUSTEIO | AS1: EDUCAÇÃO MAKER - CAPITAL | AT1: BENS PERMANENTES | AU1: TOTAL PLANO DE TRABALHO | AV1: Valores por mês => | AW1: DESPESAS DE PESSOAL | AX1: EPIs E EXAMES PERIÓDICOS | AY1: DESPESAS DE CONSUMO | AZ1: ESTUDO DO MEIO | BA1: MATERIAIS PEDAGÓGICO | BB1: CUSTEIO ADMINISTRATIVO | BC1: CONS. E LIMPEZA DO IMÓVEL | BD1: MANUT. BP | BE1: CONTABILIDADE | BF1: COMBUSTÍVEL PARA DESLICAMENTOS À SE | BG1: LOCAÇÃO DO IMÓVEL | BH1: PROGRAMA ESCOLA LINDA | BI1: EDUCAÇÃO MAKER - CUSTEIO | BJ1: EDUCAÇÃO MAKER - CAPITAL | BK1: BENS PERMANENTES | BL1: CUSTEIO JANEIRO | BM1: CAPITAL JANEIRO | BN1: TOTAL JANEIRO | BO1: DESPESAS DE PESSOAL | BP1: EPIs E EXAMES PERIÓDICOS | BQ1: DESPESAS DE CONSUMO | BR1: ESTUDO DO MEIO | BS1: MATERIAIS PEDAGÓGICO | BT1: CUSTEIO ADMINISTRATIVO | BU1: CONS. E LIMPEZA DO IMÓVEL | BV1: MANUT. BP | BW1: CONTABILIDADE | BX1: COMBUSTÍVEL PARA DESLICAMENTOS À SE | BY1: LOCAÇÃO DO IMÓVEL | BZ1: PROGRAMA ESCOLA LINDA | CA1: EDUCAÇÃO MAKER - CUSTEIO | CB1: EDUCAÇÃO MAKER - CAPITAL | CC1: BENS PERMANENTES | CD1: CUSTEIO FEVEREIRO | CE1: CAPITAL FEVEREIRO | CF1: TOTAL FEVEREIRO | CG1: DESPESAS DE PESSOAL | CH1: EPIs E EXAMES PERIÓDICOS | CI1: DESPESAS DE CONSUMO | CJ1: ESTUDO DO MEIO | CK1: MATERIAIS PEDAGÓGICO | CL1: CUSTEIO ADMINISTRATIVO | CM1: CONS. E LIMPEZA DO IMÓVEL | CN1: MANUT. BP | CO1: CONTABILIDADE | CP1: COMBUSTÍVEL PARA DESLICAMENTOS À SE | CQ1: LOCAÇÃO DO IMÓVEL | CR1: PROGRAMA ESCOLA LINDA | CS1: EDUCAÇÃO MAKER - CUSTEIO | CT1: EDUCAÇÃO MAKER - CAPITAL | CU1: BENS PERMANENTES | CV1: CUSTEIO MARÇO | CW1: CAPITAL MARÇO | CX1: TOTAL MARÇO | CY1: DESPESAS DE PESSOAL | CZ1: EPIs E EXAMES PERIÓDICOS | DA1: DESPESAS DE CONSUMO | DB1: ESTUDO DO MEIO | DC1: MATERIAIS PEDAGÓGICO | DD1: CUSTEIO ADMINISTRATIVO | DE1: CONS. E LIMPEZA DO IMÓVEL | DF1: MANUT. BP | DG1: CONTABILIDADE | DH1: COMBUSTÍVEL PARA DESLICAMENTOS À SE | DI1: LOCAÇÃO DO IMÓVEL | DJ1: PROGRAMA ESCOLA LINDA | DK1: EDUCAÇÃO MAKER - CUSTEIO | DL1: EDUCAÇÃO MAKER - CAPITAL | DM1: BENS PERMANENTES | DN1: CUSTEIO ABRIL | DO1: CAPITAL ABRIL | DP1: TOTAL ABRIL | DQ1: DESPESAS DE PESSOAL | DR1: EPIs E EXAMES PERIÓDICOS | DS1: DESPESAS DE CONSUMO | DT1: ESTUDO DO MEIO | DU1: MATERIAIS PEDAGÓGICO | DV1: CUSTEIO ADMINISTRATIVO | DW1: CONS. E LIMPEZA DO IMÓVEL | DX1: MANUT. BP | DY1: CONTABILIDADE | DZ1: COMBUSTÍVEL PARA DESLICAMENTOS À SE | EA1: LOCAÇÃO DO IMÓVEL | EB1: PROGRAMA ESCOLA LINDA | EC1: EDUCAÇÃO MAKER - CUSTEIO | ED1: EDUCAÇÃO MAKER - CAPITAL | EE1: BENS PERMANENTES | EF1: CUSTEIO MAIO | EG1: CAPITAL MAIO | EH1: TOTAL MAIO | EI1: DESPESAS DE PESSOAL | EJ1: EPIs E EXAMES PERIÓDICOS | EK1: DESPESAS DE CONSUMO | EL1: ESTUDO DO MEIO | EM1: MATERIAIS PEDAGÓGICO | EN1: CUSTEIO ADMINISTRATIVO | EO1: CONS. E LIMPEZA DO IMÓVEL | EP1: MANUT. BP | EQ1: CONTABILIDADE | ER1: COMBUSTÍVEL PARA DESLICAMENTOS À SE | ES1: LOCAÇÃO DO IMÓVEL | ET1: PROGRAMA ESCOLA LINDA | EU1: EDUCAÇÃO MAKER - CUSTEIO | EV1: EDUCAÇÃO MAKER - CAPITAL | EW1: BENS PERMANENTES | EX1: CUSTEIO JUNHO | EY1: CAPITAL JUNHO | EZ1: TOTAL JUNHO | FA1: DESPESAS DE PESSOAL | FB1: EPIs E EXAMES PERIÓDICOS | FC1: DESPESAS DE CONSUMO | FD1: ESTUDO DO MEIO | FE1: MATERIAIS PEDAGÓGICO | FF1: CUSTEIO ADMINISTRATIVO | FG1: CONS. E LIMPEZA DO IMÓVEL | FH1: MANUT. BP | FI1: CONTABILIDADE | FJ1: COMBUSTÍVEL PARA DESLICAMENTOS À SE | FK1: LOCAÇÃO DO IMÓVEL | FL1: PROGRAMA ESCOLA LINDA | FM1: EDUCAÇÃO MAKER - CUSTEIO | FN1: EDUCAÇÃO MAKER - CAPITAL | FO1: BENS PERMANENTES | FP1: CUSTEIO JULHO | FQ1: CAPITAL JULHO | FR1: TOTAL JULHO | FS1: DESPESAS DE PESSOAL | FT1: EPIs E EXAMES PERIÓDICOS | FU1: DESPESAS DE CONSUMO | FV1: ESTUDO DO MEIO | FW1: MATERIAIS PEDAGÓGICO | FX1: CUSTEIO ADMINISTRATIVO | FY1: CONS. E LIMPEZA DO IMÓVEL | FZ1: MANUT. BP | GA1: CONTABILIDADE | GB1: COMBUSTÍVEL PARA DESLICAMENTOS À SE | GC1: LOCAÇÃO DO IMÓVEL | GD1: PROGRAMA ESCOLA LINDA | GE1: EDUCAÇÃO MAKER - CUSTEIO | GF1: EDUCAÇÃO MAKER - CAPITAL | GG1: BENS PERMANENTES | GH1: CUSTEIO AGOSTO | GI1: CAPITAL AGOSTO | GJ1: TOTAL AGOSTO | GK1: DESPESAS DE PESSOAL | GL1: EPIs E EXAMES PERIÓDICOS | GM1: DESPESAS DE CONSUMO | GN1: ESTUDO DO MEIO | GO1: MATERIAIS PEDAGÓGICO | GP1: CUSTEIO ADMINISTRATIVO | GQ1: CONS. E LIMPEZA DO IMÓVEL | GR1: MANUT. BP | GS1: CONTABILIDADE | GT1: COMBUSTÍVEL PARA DESLICAMENTOS À SE | GU1: LOCAÇÃO DO IMÓVEL | GV1: PROGRAMA ESCOLA LINDA | GW1: EDUCAÇÃO MAKER - CUSTEIO | GX1: EDUCAÇÃO MAKER - CAPITAL | GY1: BENS PERMANENTES | GZ1: CUSTEIO SETEMBRO | HA1: CAPITAL SETEMBRO | HB1: TOTAL SETEMBRO | HC1: DESPESAS DE PESSOAL | HD1: EPIs E EXAMES PERIÓDICOS | HE1: DESPESAS DE CONSUMO | HF1: ESTUDO DO MEIO | HG1: MATERIAIS PEDAGÓGICO | HH1: CUSTEIO ADMINISTRATIVO | HI1: CONS. E LIMPEZA DO IMÓVEL | HJ1: MANUT. BP | HK1: CONTABILIDADE | HL1: COMBUSTÍVEL PARA DESLICAMENTOS À SE | HM1: LOCAÇÃO DO IMÓVEL | HN1: PROGRAMA ESCOLA LINDA | HO1: EDUCAÇÃO MAKER - CUSTEIO | HP1: EDUCAÇÃO MAKER - CAPITAL | HQ1: BENS PERMANENTES | HR1: CUSTEIO OUTUBRO | HS1: CAPITAL OUTUBRO | HT1: TOTAL OUTUBRO | HU1: DESPESAS DE PESSOAL | HV1: EPIs E EXAMES PERIÓDICOS | HW1: DESPESAS DE CONSUMO | HX1: ESTUDO DO MEIO | HY1: MATERIAIS PEDAGÓGICO | HZ1: CUSTEIO ADMINISTRATIVO | IA1: CONS. E LIMPEZA DO IMÓVEL | IB1: MANUT. BP | IC1: CONTABILIDADE | ID1: COMBUSTÍVEL PARA DESLICAMENTOS À SE | IE1: LOCAÇÃO DO IMÓVEL | IF1: PROGRAMA ESCOLA LINDA | IG1: EDUCAÇÃO MAKER - CUSTEIO | IH1: EDUCAÇÃO MAKER - CAPITAL | II1: BENS PERMANENTES | IJ1: CUSTEIO NOVEMBRO | IK1: CAPITAL NOVEMBRO | IL1: TOTAL NOVEMBRO | IM1: DESPESAS DE PESSOAL | IN1: EPIs E EXAMES PERIÓDICOS | IO1: DESPESAS DE CONSUMO | IP1: ESTUDO DO MEIO | IQ1: MATERIAIS PEDAGÓGICO | IR1: CUSTEIO ADMINISTRATIVO | IS1: CONS. E LIMPEZA DO IMÓVEL | IT1: MANUT. BP | IU1: CONTABILIDADE | IV1: COMBUSTÍVEL PARA DESLICAMENTOS À SE | IW1: LOCAÇÃO DO IMÓVEL | IX1: PROGRAMA ESCOLA LINDA | IY1: EDUCAÇÃO MAKER - CUSTEIO | IZ1: EDUCAÇÃO MAKER - CAPITAL | JA1: BENS PERMANENTES | JB1: CUSTEIO DEZEMBRO | JC1: CAPITAL DEZEMBRO | JD1: TOTAL DEZEMBRO | JF1: TOTAL CUSTEIO | JG1: TOTAL CAPITAL | JH1: VALOR PLANO DE TRABALHO | JJ1: Termo nº | JK1: Data início TC | JL1: Data vigência TC | JM1: Valor TC | JN1: TA nº Primeiro | JO1: Sequência Primeiro | JP1: Data início Primeiro | JQ1: Data vigência Primeiro | JR1: Valor Primeiro | JS1: TA nº Segundo | JT1: Sequência Segundo | JU1: Data início Segundo | JV1: Data vigência Segundo | JW1: Valor Segundo | JX1: TA nº Terceiro | JY1: Sequência Terceiro | JZ1: Data início Terceiro | KA1: Data vigência Terceiro | KB1: Valor Terceiro | KC1: TA nº Quarto | KD1: Sequência Quarto | KE1: Data início Quarto | KF1: Data vigência Quarto | KG1: Valor Quarto | KH1: TA nº Quinto | KI1: Sequência Quinto | KJ1: Data início Quinto | KK1: Data vigência Quinto | KL1: Valor Quinto | KM1: TA nº Sexto | KN1: Sequência Sexto | KO1: Data início Sexto | KP1: Data vigência Sexto | KQ1: Valor Sexto | KR1: TA nº Sétimo | KS1: Sequência Sétimo | KT1: Data início Sétimo | KU1: Data vigência Sétimo | KV1: Valor Sétimo | KW1: TA nº Oitavo | KX1: Sequência Oitavo | KY1: Data início Oitavo | KZ1: Data vigência Oitavo | LA1: Valor Oitavo | LB1: TA nº Nono | LC1: Sequência Nono | LD1: Data início Nono | LE1: Data vigência Nono | LF1: Valor Nono | LG1: TA nº Décimo | LH1: Sequência Décimo | LI1: Data início Décimo | LJ1: Data vigência Décimo | LK1: Valor Décimo
A2: 1 | B2: ABASC - Associação Brasileira de Ação Social Cristã | C2: ABASC | D2: 02.653.857/0009-93 | E2: Rua José de Castro, 153 | F2: Jd. Las Palmas | G2: S.B.Campo | H2: 09854-050 | I2: 4336-3416 / 98616-0306 | J2: administrativo@abasc.com.br/ centrodeapoiomaoamiga@gmail.com | K2: creche.abasc@emeb.saobernardo.sp.gov.br | L2: SB.098964/2021-97 | M2: SB.099269/2021-69 | O2: 1/2022-SE | Q2: =VLOOKUP(B2,'[1]BD MALA_DIRETA'!$B:$R,14,0) -> 271/2023-SE | R2: =VLOOKUP(B2,'[1]BD MALA_DIRETA'!$B:$R,17,0) -> 2023-07-27 | S2: =VLOOKUP(B2,'[1]BD MALA_DIRETA'!$B:$R,15,0) -> Quarto | T2: =AU2 -> 2569095.72 | AF2: =SUM(AW2,BO2,CG2,CY2,DQ2,EI2,FA2,FS2,GK2,HC2,HU2,IM2) -> 2051762.48 | AG2: 4800 | AH2: 30000 | AI2: 11400 | AJ2: 28097.4 | AK2: 13200 | AL2: 159601.08 | AM2: 15326.76 | AN2: 47808 | AO2: 1800 | AP2: 118800 | AQ2: 68000 | AR2: 6000 | AS2: 6000 | AT2: 6500 | AU2: =SUM(AF2:AT2) -> 2569095.72 | AW2: 159027.94 | AX2: 400 | AY2: 2400 | AZ2: 0 | BA2: 2100 | BB2: 1100 | BC2: 800.09 | BD2: 1177.23 | BE2: 3984 | BF2: 150 | BG2: 9900 | BH2: 34000 | BI2: 0 | BJ2: 0 | BK2: 6500 | BL2: 215039.26 | BM2: 6500 | BN2: 221539.26 | BO2: 159027.94 | BP2: 400 | BQ2: 2400 | BR2: 0 | BS2: 2100 | BT2: 1100 | BU2: 800.09 | BV2: 1177.23 | BW2: 3984 | BX2: 150 | BY2: 9900 | BZ2: 34000 | CA2: 0 | CB2: 0 | CC2: 0 | CD2: 215039.26 | CE2: 0 | CF2: 215039.26 | CG2: 159027.94 | CH2: 400 | CI2: 2400 | CJ2: 11400 | CK2: 2100 | CL2: 1100 | CM2: 800.09 | CN2: 1177.23 | CO2: 3984 | CP2: 150 | CQ2: 9900 | CR2: 0 | CS2: 0 | CT2: 0 | CU2: 0 | CV2: 192439.26 | CW2: 0 | CX2: 192439.26 | CY2: 159027.94 | CZ2: 400 | DA2: 2400 | DB2: 0 | DC2: 2100 | DD2: 1100 | DE2: 800.09 | DF2: 1177.23 | DG2: 3984 | DH2: 150 | DI2: 9900 | DJ2: 0 | DK2: 0 | DL2: 0 | DM2: 0 | DN2: 181039.26 | DO2: 0 | DP2: 181039.26 | DQ2: 202056.1 | DR2: 400 | DS2: 2900 | DT2: 0 | DU2: 3307.25 | DV2: 1100 | DW2: 14800.09 | DX2: 1677.23 | DY2: 3984 | DZ2: 150 | EA2: 9900 | EB2: 0 | EC2: 6000 | ED2: 6000 | EE2: 0 | EF2: =SUM(DQ2:EC2) -> 246274.67 | EG2: =SUM(ED2:EE2) -> 6000 | EH2: =SUM(EF2:EG2) -> 252274.67 | EI2: 173370.66 | EJ2: 400 | EK2: 2500 | EL2: 0 | EM2: 2341.45 | EN2: 1100 | EO2: 14800.09 | EP2: 1277.23 | EQ2: 3984 | ER2: 150 | ES2: 9900 | ET2: 0 | EU2: 0 | EV2: 0 | EW2: 0 | EX2: =SUM(EI2:EU2) -> 209823.43 | EY2: =SUM(EV2:EW2) -> 0 | EZ2: =SUM(EX2:EY2) -> 209823.43 | FA2: 173370.66 | FB2: 400 | FC2: 2500 | FD2: 0 | FE2: 2341.45 | FF2: 1100 | FG2: 32800.09 | FH2: 1277.23 | FI2: 3984 | FJ2: 150 | FK2: 9900 | FL2: 0 | FM2: 0 | FN2: 0 | FO2: 0 | FP2: =SUM(FA2:FM2) -> 227823.43 | FQ2: =SUM(FN2:FO2) -> 0 | FR2: =SUM(FP2:FQ2) -> 227823.43 | FS2: 173370.66 | FT2: 400 | FU2: 2500 | FV2: 0 | FW2: 2341.45 | FX2: 1100 | FY2: 18800.09 | FZ2: 1277.23 | GA2: 3984 | GB2: 150 | GC2: 9900 | GD2: 0 | GE2: 0 | GF2: 0 | GG2: 0 | GH2: =SUM(FS2:GE2) -> 213823.43 | GI2: =SUM(GF2:GG2) -> 0 | GJ2: =SUM(GH2:GI2) -> 213823.43 | GK2: 173370.66 | GL2: 400 | GM2: 2500 | GN2: 0 | GO2: 2341.45 | GP2: 1100 | GQ2: 18800.09 | GR2: 1277.23 | GS2: 3984 | GT2: 150 | GU2: 9900 | GV2: 0 | GW2: 0 | GX2: 0 | GY2: 0 | GZ2: =SUM(GK2:GW2) -> 213823.43 | HA2: =SUM(GX2:GY2) -> 0 | HB2: =SUM(GZ2:HA2) -> 213823.43 | HC2: 173370.66 | HD2: 400 | HE2: 2500 | HF2: 0 | HG2: 2341.45 | HH2: 1100 | HI2: 18800.09 | HJ2: 1277.23 | HK2: 3984 | HL2: 150 | HM2: 9900 | HN2: 0 | HO2: 0 | HP2: 0 | HQ2: 0 | HR2: =SUM(HC2:HO2) -> 213823.43 | HS2: =SUM(HP2:HQ2) -> 0 | HT2: =SUM(HR2:HS2) -> 213823.43 | HU2: 173370.66 | HV2: 400 | HW2: 2500 | HX2: 0 | HY2: 2341.45 | HZ2: 1100 | IA2: 18800.09 | IB2: 1277.23 | IC2: 3984 | ID2: 150 | IE2: 9900 | IF2: 0 | IG2: 0 | IH2: 0 | II2: 0 | IJ2: =SUM(HU2:IG2) -> 213823.43 | IK2: =SUM(IH2:II2) -> 0 | IL2: =SUM(IJ2:IK2) -> 213823.43 | IM2: 173370.66 | IN2: 400 | IO2: 2500 | IP2: 0 | IQ2: 2341.45 | IR2: 1100 | IS2: 18800.09 | IT2: 1277.23 | IU2: 3984 | IV2: 150 | IW2: 9900 | IX2: 0 | IY2: 0 | IZ2: 0 | JA2: 0 | JB2: =SUM(IM2:IY2) -> 213823.43 | JC2: =SUM(IZ2:JA2) -> 0 | JD2: =SUM(JB2:JC2) -> 213823.43 | JF2: =SUM(AF2:AR2) -> 2556595.72 | JG2: =SUM(AS2:AT2) -> 12500 | JH2: =SUM(JF2:JG2) -> 2569095.72 | JJ2: =O2 -> 1/2022-SE | JK2: 2022-01-01 | JL2: 2022-12-31 | JM2: 919560.08 | JN2: 9/2022-SE | JO2: Primeiro | JP2: 2022-10-19 | JQ2: 2022-12-31 | JR2: 34667.9 | JS2: 186/2023-SE | JT2: Segundo | JU2: 2023-01-01 | JV2: 2023-12-31 | JW2: 2270371.12 | JX2: 225/2023-SE | JY2: Terceiro | JZ2: 2023-06-15 | KA2: 2023-12-31 | KB2: 190724.6 | KC2: =VLOOKUP($B2,'[1]BD MALA_DIRETA'!$B:$R,14,0) -> 271/2023-SE | KD2: =VLOOKUP($B2,'[1]BD MALA_DIRETA'!$B:$R,15,0) -> Quarto | KE2: =VLOOKUP($B2,'[1]BD MALA_DIRETA'!$B:$R,17,0) -> 2023-07-27 | KF2: 2023-12-31 | KG2: 108000
A3: 2 | B3: ABEF - Associação Beneficente Fidelidade | D3: 31.719.643/0001-13 | E3: Rua dos Vianas, 3184 | F3: Baeta Neves | G3: S.B.Campo | H3: 09761-000 | I3: 11 965777295 / 971302462 / 98994-4739 | J3: abefidelidade@gmail.com / izatera@msn.com | K3: creche.fidelidade@emeb.saobernardo.sp.gov.br | L3: SB.098977/2021-06 | M3: SB.099275/2021-51 | O3: 2/2022-SE | Q3: =VLOOKUP(B3,'[1]BD MALA_DIRETA'!$B:$R,14,0) -> 226/2023-SE | R3: =VLOOKUP(B3,'[1]BD MALA_DIRETA'!$B:$R,17,0) -> 2023-07-27 | S3: =VLOOKUP(B3,'[1]BD MALA_DIRETA'!$B:$R,15,0) -> Terceiro | T3: =AU3 -> 1472368.26 | AF3: =SUM(AW3,BO3,CG3,CY3,DQ3,EI3,FA3,FS3,GK3,HC3,HU3,IM3) -> 1135690.9 | AG3: 24000 | AH3: 31200 | AI3: 5960.64 | AJ3: 11921.28 | AK3: 4800 | AL3: 77400 | AM3: 3324.24 | AN3: 25200 | AO3: 1800 | AP3: 107821.2 | AQ3: 34000 | AR3: 3000 | AS3: 3000 | AT3: 3250 | AU3: =SUM(AF3:AT3) -> 1472368.26 | AW3: 90250.9 | AX3: 2000 | AY3: 2600 | AZ3: 0 | BA3: 993.44 | BB3: 400 | BC3: 200 | BD3: 277.02 | BE3: 2100 | BF3: 150 | BG3: 8985.1 | BH3: 17000 | BI3: 0 | BJ3: 0 | BK3: 3250 | BL3: 124956.46 | BM3: 3250 | BN3: 128206.46 | BO3: 90250.9 | BP3: 2000 | BQ3: 2600 | BR3: 0 | BS3: 993.44 | BT3: 400 | BU3: 200 | BV3: 277.02 | BW3: 2100 | BX3: 150 | BY3: 8985.1 | BZ3: 17000 | CA3: 0 | CB3: 0 | CC3: 0 | CD3: 124956.46 | CE3: 0 | CF3: 124956.46 | CG3: 90250.9 | CH3: 2000 | CI3: 2600 | CJ3: 5960.64 | CK3: 993.44 | CL3: 400 | CM3: 200 | CN3: 277.02 | CO3: 2100 | CP3: 150 | CQ3: 8985.1 | CR3: 0 | CS3: 0 | CT3: 0 | CU3: 0 | CV3: 113917.1 | CW3: 0 | CX3: 113917.1 | CY3: 90250.9 | CZ3: 2000 | DA3: 2600 | DB3: 0 | DC3: 993.44 | DD3: 400 | DE3: 200 | DF3: 277.02 | DG3: 2100 | DH3: 150 | DI3: 8985.1 | DJ3: 0 | DK3: 0 | DL3: 0 | DM3: 0 | DN3: 107956.46 | DO3: 0 | DP3: 107956.46 | DQ3: 90250.9 | DR3: 2000 | DS3: 2600 | DT3: 0 | DU3: 993.44 | DV3: 400 | DW3: 200 | DX3: 277.02 | DY3: 2100 | DZ3: 150 | EA3: 8985.1 | EB3: 0 | EC3: 3000 | ED3: 3000 | EE3: 0 | EF3: 110956.46 | EG3: 3000 | EH3: 113956.46 | EI3: 90250.9 | EJ3: 2000 | EK3: 2600 | EL3: 0 | EM3: 993.44 | EN3: 400 | EO3: 200 | EP3: 277.02 | EQ3: 2100 | ER3: 150 | ES3: 8985.1 | ET3: 0 | EU3: 0 | EV3: 0 | EW3: 0 | EX3: 107956.46 | EY3: 0 | EZ3: 107956.46 | FA3: 116590.95 | FB3: 2000 | FC3: 2600 | FD3: 0 | FE3: 993.44 | FF3: 400 | FG3: 30200 | FH3: 277.02 | FI3: 2100 | FJ3: 150 | FK3: 8985.1 | FL3: 0 | FM3: 0 | FN3: 0 | FO3: 0 | FP3: =SUM(FA3:FM3) -> 164296.51 | FQ3: =SUM(FN3:FO3) -> 0 | FR3: =SUM(FP3:FQ3) -> 164296.51 | FS3: 95518.91 | FT3: 2000 | FU3: 2600 | FV3: 0 | FW3: 993.44 | FX3: 400 | FY3: 9200 | FZ3: 277.02 | GA3: 2100 | GB3: 150 | GC3: 8985.1 | GD3: 0 | GE3: 0 | GF3: 0 | GG3: 0 | GH3: =SUM(FS3:GE3) -> 122224.47 | GI3: =SUM(GF3:GG3) -> 0 | GJ3: =SUM(GH3:GI3) -> 122224.47 | GK3: 95518.91 | GL3: 2000 | GM3: 2600 | GN3: 0 | GO3: 993.44 | GP3: 400 | GQ3: 9200 | GR3: 277.02 | GS3: 2100 | GT3: 150 | GU3: 8985.1 | GV3: 0 | GW3: 0 | GX3: 0 | GY3: 0 | GZ3: =SUM(GK3:GW3) -> 122224.47 | HA3: =SUM(GX3:GY3) -> 0 | HB3: =SUM(GZ3:HA3) -> 122224.47 | HC3: 95518.91 | HD3: 2000 | HE3: 2600 | HF3: 0 | HG3: 993.44 | HH3: 400 | HI3: 9200 | HJ3: 277.02 | HK3: 2100 | HL3: 150 | HM3: 8985.1 | HN3: 0 | HO3: 0 | HP3: 0 | HQ3: 0 | HR3: =SUM(HC3:HO3) -> 122224.47 | HS3: =SUM(HP3:HQ3) -> 0 | HT3: =SUM(HR3:HS3) -> 122224.47 | HU3: 95518.91 | HV3: 2000 | HW3: 2600 | HX3: 0 | HY3: 993.44 | HZ3: 400 | IA3: 9200 | IB3: 277.02 | IC3: 2100 | ID3: 150 | IE3: 8985.1 | IF3: 0 | IG3: 0 | IH3: 0 | II3: 0 | IJ3: =SUM(HU3:IG3) -> 122224.47 | IK3: =SUM(IH3:II3) -> 0 | IL3: =SUM(IJ3:IK3) -> 122224.47 | IM3: 95518.91 | IN3: 2000 | IO3: 2600 | IP3: 0 | IQ3: 993.44 | IR3: 400 | IS3: 9200 | IT3: 277.02 | IU3: 2100 | IV3: 150 | IW3: 8985.1 | IX3: 0 | IY3: 0 | IZ3: 0 | JA3: 0 | JB3: =SUM(IM3:IY3) -> 122224.47 | JC3: =SUM(IZ3:JA3) -> 0 | JD3: =SUM(JB3:JC3) -> 122224.47 | JF3: =SUM(AF3:AR3) -> 1466118.26 | JG3: =SUM(AS3:AT3) -> 6250 | JH3: =SUM(JF3:JG3) -> 1472368.26 | JJ3: 2/2022-SE | JK3: 2022-01-01 | JL3: 2022-12-31 | JM3: 1013189.66 | JN3: 10/2022-SE | JO3: Primeiro | JP3: 2022-09-26 | JQ3: 2022-12-31 | JR3: 38834.4 | JS3: 187/2023-SE | JT3: Segundo | JU3: 2023-01-01 | JV3: 2023-12-31 | JW3: 1344688.16 | JX3: =VLOOKUP($B3,'[1]BD MALA_DIRETA'!$B:$R,14,0) -> 226/2023-SE | JY3: =VLOOKUP($B3,'[1]BD MALA_DIRETA'!$B:$R,15,0) -> Terceiro | JZ3: =VLOOKUP($B3,'[1]BD MALA_DIRETA'!$B:$R,17,0) -> 2023-07-27 | KA3: 2023-12-31 | KB3: 127680.1
A4: 3 | B4: Aldeias Infantis SOS Brasil | C4: Creche Hermann Gmeiner | D4: 35.797.364/0019-58 | E4: Estrada Ernesto Zabeu, nº 200 | F4: Bairro Tatetos - Riacho Grande | G4: S.B.Campo | H4: 09837-150 | I4: 4354-0272 | J4: maria.tracatto@aldeiasinfantis.org.br | K4: creche.hermann@emeb.saobernardo.sp.gov.br | L4: SB.075426/2021-00 | M4: SB.075534/2021-31 | O4: 3/2022-SE | Q4: =VLOOKUP(B4,'[1]BD MALA_DIRETA'!$B:$R,14,0) -> 227/2023-SE | S4: =VLOOKUP(B4,'[1]BD MALA_DIRETA'!$B:$R,15,0) -> Terceiro | T4: 2081322.68 | AF4: 1813099.24 | AG4: 6000 | AH4: 30414 | AI4: 10992 | AJ4: 31200 | AK4: 20287.44 | AL4: 85800 | AM4: 4800 | AN4: 29880 | AO4: 1800 | AP4: 0 | AQ4: 34000 | AR4: 3000 | AS4: 3000 | AT4: 7050 | AU4: 2081322.68 | AW4: 144070.22 | AX4: 500 | AY4: 2500 | AZ4: 0 | BA4: 2600 | BB4: 1690.62 | BC4: 900 | BD4: 400 | BE4: 2490 | BF4: 150 | BG4: 0 | BH4: 17000 | BI4: 0 | BJ4: 0 | BK4: 5950 | BL4: 172300.84 | BM4: 5950 | BN4: 178250.84 | BO4: 144070.22 | BP4: 500 | BQ4: 2500 | BR4: 0 | BS4: 2600 | BT4: 1690.62 | BU4: 900 | BV4: 400 | BW4: 2490 | BX4: 150 | BY4: 0 | BZ4: 17000 | CA4: 0 | CB4: 0 | CC4: 100 | CD4: 172300.84 | CE4: 100 | CF4: 172400.84 | CG4: 144070.22 | CH4: 500 | CI4: 2500 | CJ4: 10992 | CK4: 2600 | CL4: 1690.62 | CM4: 900 | CN4: 400 | CO4: 2490 | CP4: 150 | CQ4: 0 | CR4: 0 | CS4: 0 | CT4: 0 | CU4: 100 | CV4: 166292.84 | CW4: 100 | CX4: 166392.84 | CY4: 144070.22 | CZ4: 500 | DA4: 2500 | DB4: 0 | DC4: 2600 | DD4: 1690.62 | DE4: 900 | DF4: 400 | DG4: 2490 | DH4: 150 | DI4: 0 | DJ4: 0 | DK4: 0 | DL4: 0 | DM4: 100 | DN4: 155300.84 | DO4: 100 | DP4: 155400.84 | DQ4: 144070.22 | DR4: 500 | DS4: 2500 | DT4: 0 | DU4: 2600 | DV4: 1690.62 | DW4: 900 | DX4: 400 | DY4: 2490 | DZ4: 150 | EA4: 0 | EB4: 0 | EC4: 3000 | ED4: 3000 | EE4: 100 | EF4: 158300.84 | EG4: 3100 | EH4: 161400.84 | EI4: 144070.22 | EJ4: 500 | EK4: 2500 | EL4: 0 | EM4: 2600 | EN4: 1690.62 | EO4: 900 | EP4: 400 | EQ4: 2490 | ER4: 150 | ES4: 0 | ET4: 0 | EU4: 0 | EV4: 0 | EW4: 100 | EX4: 155300.84 | EY4: 100 | EZ4: 155400.84 | FA4: 186198.52 | FB4: 500 | FC4: 2569 | FD4: 0 | FE4: 2600 | FF4: 1690.62 | FG4: 30900 | FH4: 400 | FI4: 2490 | FJ4: 150 | FK4: 0 | FL4: 0 | FM4: 0 | FN4: 0 | FO4: 100 | FP4: 227498.14 | FQ4: 100 | FR4: 227598.14 | FS4: 152495.88 | FT4: 500 | FU4: 2569 | FV4: 0 | FW4: 2600 | FX4: 1690.62 | FY4: 9900 | FZ4: 400 | GA4: 2490 | GB4: 150 | GC4: 0 | GD4: 0 | GE4: 0 | GF4: 0 | GG4: 100 | GH4: 172795.5 | GI4: 100 | GJ4: 172895.5 | GK4: 152495.88 | GL4: 500 | GM4: 2569 | GN4: 0 | GO4: 2600 | GP4: 1690.62 | GQ4: 9900 | GR4: 400 | GS4: 2490 | GT4: 150 | GU4: 0 | GV4: 0 | GW4: 0 | GX4: 0 | GY4: 100 | GZ4: 172795.5 | HA4: 100 | HB4: 172895.5 | HC4: 152495.88 | HD4: 500 | HE4: 2569 | HF4: 0 | HG4: 2600 | HH4: 1690.62 | HI4: 9900 | HJ4: 400 | HK4: 2490 | HL4: 150 | HM4: 0 | HN4: 0 | HO4: 0 | HP4: 0 | HQ4: 100 | HR4: 172795.5 | HS4: 100 | HT4: 172895.5 | HU4: 152495.88 | HV4: 500 | HW4: 2569 | HX4: 0 | HY4: 2600 | HZ4: 1690.62 | IA4: 9900 | IB4: 400 | IC4: 2490 | ID4: 150 | IE4: 0 | IF4: 0 | IG4: 0 | IH4: 0 | II4: 100 | IJ4: 172795.5 | IK4: =SUM(IH4:II4) -> 100 | IL4: 172895.5 | IM4: 152495.88 | IN4: 500 | IO4: 2569 | IP4: 0 | IQ4: 2600 | IR4: 1690.62 | IS4: 9900 | IT4: 400 | IU4: 2490 | IV4: 150 | IW4: 0 | IX4: 0 | IY4: 0 | IZ4: 0 | JA4: 100 | JB4: 172795.5 | JC4: 100 | JD4: 172895.5 | JF4: 2071272.68 | JG4: 10050 | JH4: 2081322.68 | JJ4: 3/2022-SE | JK4: 2022-01-01 | JL4: 2022-12-31 | JM4: 1426731.4 | JN4: 11/2022-SE | JO4: Primeiro | JP4: 2022-09-26 | JQ4: 2022-12-31 | JR4: 61469.1 | JS4: 188/2023-SE | JT4: Segundo | JU4: 2023-01-01 | JV4: 2023-12-31 | JW4: 1921652.08 | JX4: =VLOOKUP($B4,'[1]BD MALA_DIRETA'!$B:$R,14,0) -> 227/2023-SE | JY4: =VLOOKUP($B4,'[1]BD MALA_DIRETA'!$B:$R,15,0) -> Terceiro | KA4: 2023-12-31 | KB4: 159670.6
A5: 4 | B5: Assistência Social Beneficente de Resgate ao Amparo à Criança I | C5: ASSISBRAC I - Assistência Social Beneficente de Resgate ao Amparo à Criança | D5: 00.513.882/0001-99 | E5: Rua dos Macucos, nº 14 | F5: Parque dos Pássaros | G5: S.B.Campo | H5: 09861-350 | I5: 4392-7492 | J5: assisbrac@assisbrac.org.br | K5: creche.assisbrac1@emeb.saobernardo.sp.gov.br | L5: SB.075429/2021-83 | M5: SB.075540/2021-23 | O5: 4/2022-SE | Q5: =VLOOKUP(B5,'[1]BD MALA_DIRETA'!$B:$R,14,0) -> 228/2023-SE | R5: =VLOOKUP(B5,'[1]BD MALA_DIRETA'!$B:$R,17,0) -> 2023-07-27 | S5: =VLOOKUP(B5,'[1]BD MALA_DIRETA'!$B:$R,15,0) -> Terceiro | T5: 4021927.86 | AF5: 3046460.96 | AG5: 2520 | AH5: 92119.38 | AI5: 20400 | AJ5: 39507.12 | AK5: 14400 | AL5: 174669.48 | AM5: 0 | AN5: 55680 | AO5: 3600 | AP5: 475570.92 | AQ5: 68000 | AR5: 6000 | AS5: 6000 | AT5: 17000 | AU5: 4021927.86 | AW5: 240558.47 | AX5: 210 | AY5: 7649.02 | AZ5: 0 | BA5: 3292.26 | BB5: 1200 | BC5: 2055.79 | BD5: 0 | BE5: 4640 | BF5: 300 | BG5: 39630.91 | BH5: 34000 | BI5: 0 | BJ5: 0 | BK5: 10950 | BL5: 333536.45 | BM5: 10950 | BN5: 344486.45 | BO5: 240558.47 | BP5: 210 | BQ5: 7649.02 | BR5: 0 | BS5: 3292.26 | BT5: 1200 | BU5: 2055.79 | BV5: 0 | BW5: 4640 | BX5: 300 | BY5: 39630.91 | BZ5: 34000 | CA5: 0 | CB5: 0 | CC5: 550 | CD5: 333536.45 | CE5: 550 | CF5: 334086.45 | CG5: 240558.47 | CH5: 210 | CI5: 7649.02 | CJ5: 20400 | CK5: 3292.26 | CL5: 1200 | CM5: 2055.79 | CN5: 0 | CO5: 4640 | CP5: 300 | CQ5: 39630.91 | CR5: 0 | CS5: 0 | CT5: 0 | CU5: 550 | CV5: 319936.45 | CW5: 550 | CX5: 320486.45 | CY5: 240558.47 | CZ5: 210 | DA5: 7649.02 | DB5: 0 | DC5: 3292.26 | DD5: 1200 | DE5: 2055.79 | DF5: 0 | DG5: 4640 | DH5: 300 | DI5: 39630.91 | DJ5: 0 | DK5: 0 | DL5: 0 | DM5: 550 | DN5: 299536.45 | DO5: 550 | DP5: 300086.45 | DQ5: 240558.47 | DR5: 210 | DS5: 7649.02 | DT5: 0 | DU5: 3292.26 | DV5: 1200 | DW5: 2055.79 | DX5: 0 | DY5: 4640 | DZ5: 300 | EA5: 39630.91 | EB5: 0 | EC5: 6000 | ED5: 6000 | EE5: 550 | EF5: 305536.45 | EG5: 6550 | EH5: 312086.45 | EI5: 240558.47 | EJ5: 210 | EK5: 7649.02 | EL5: 0 | EM5: 3292.26 | EN5: 1200 | EO5: 2055.79 | EP5: 0 | EQ5: 4640 | ER5: 300 | ES5: 39630.91 | ET5: 0 | EU5: 0 | EV5: 0 | EW5: 550 | EX5: 299536.45 | EY5: 550 | EZ5: 300086.45 | FA5: 314261.79 | FB5: 210 | FC5: 7704.21 | FD5: 0 | FE5: 3292.26 | FF5: 1200 | FG5: 62055.79 | FH5: 0 | FI5: 4640 | FJ5: 300 | FK5: 39630.91 | FL5: 0 | FM5: 0 | FN5: 0 | FO5: 550 | FP5: 433294.96 | FQ5: 550 | FR5: 433844.96 | FS5: 257769.67 | FT5: 210 | FU5: 7704.21 | FV5: 0 | FW5: 3292.26 | FX5: 1200 | FY5: 20055.79 | FZ5: 0 | GA5: 4640 | GB5: 300 | GC5: 39630.91 | GD5: 0 | GE5: 0 | GF5: 0 | GG5: 550 | GH5: 334802.84 | GI5: 550 | GJ5: 335352.84 | GK5: 257769.67 | GL5: 210 | GM5: 7704.21 | GN5: 0 | GO5: 3292.26 | GP5: 1200 | GQ5: 20055.79 | GR5: 0 | GS5: 4640 | GT5: 300 | GU5: 39630.91 | GV5: 0 | GW5: 0 | GX5: 0 | GY5: 550 | GZ5: 334802.84 | HA5: 550 | HB5: 335352.84 | HC5: 257769.67 | HD5: 210 | HE5: 7704.21 | HF5: 0 | HG5: 3292.26 | HH5: 1200 | HI5: 20055.79 | HJ5: 0 | HK5: 4640 | HL5: 300 | HM5: 39630.91 | HN5: 0 | HO5: 0 | HP5: 0 | HQ5: 550 | HR5: 334802.84 | HS5: 550 | HT5: 335352.84 | HU5: 257769.67 | HV5: 210 | HW5: 7704.21 | HX5: 0 | HY5: 3292.26 | HZ5: 1200 | IA5: 20055.79 | IB5: 0 | IC5: 4640 | ID5: 300 | IE5: 39630.91 | IF5: 0 | IG5: 0 | IH5: 0 | II5: 550 | IJ5: 334802.84 | IK5: 550 | IL5: 335352.84 | IM5: 257769.67 | IN5: 210 | IO5: 7704.21 | IP5: 0 | IQ5: 3292.26 | IR5: 1200 | IS5: 20055.79 | IT5: 0 | IU5: 4640 | IV5: 300 | IW5: 39630.91 | IX5: 0 | IY5: 0 | IZ5: 0 | JA5: 550 | JB5: 334802.84 | JC5: 550 | JD5: 335352.84 | JF5: 3998927.86 | JG5: 23000 | JH5: 4021927.86 | JJ5: 4/2022-SE | JK5: 2022-01-01 | JL5: 2022-12-31 | JM5: 1157362.8 | JN5: 12/2022-SE | JO5: Primeiro | JP5: 2022-09-26 | JQ5: 2022-12-31 | JR5: 37943.5 | JS5: 189/2023-SE | JT5: Segundo | JU5: 2023-01-01 | JV5: 2023-12-31 | JW5: 3711837.4 | JX5: =VLOOKUP($B5,'[1]BD MALA_DIRETA'!$B:$R,14,0) -> 228/2023-SE | JY5: =VLOOKUP($B5,'[1]BD MALA_DIRETA'!$B:$R,15,0) -> Terceiro | JZ5: =VLOOKUP($B5,'[1]BD MALA_DIRETA'!$B:$R,17,0) -> 2023-07-27 | KA5: 2023-12-31 | KB5: 310090.46
A6: 5 | B6: Assistência Social Beneficente de Resgate ao Amparo à Criança II | C6: ASSISBRAC II - Assistência Social Beneficente de Resgate ao Amparo à Criança | D6: 00.513.882/0002-70 | E6: Rua Josefina Leonora Lotto Bueno, 80 | F6: Jardim Selecta | G6: S.B.Campo | H6: 09791-510 | I6: 4109-4421 | J6: assisbrac@assisbrac.org.br | K6: creche.assisbrac2@emeb.saobernardo.sp.gov.br | L6: SB.098981/2021-76 | M6: SB.099294/2021-52 | O6: 5/2022-SE | Q6: =VLOOKUP(B6,'[1]BD MALA_DIRETA'!$B:$R,14,0) -> 229/2023-SE | R6: =VLOOKUP(B6,'[1]BD MALA_DIRETA'!$B:$R,17,0) -> 2023-07-27 | S6: =VLOOKUP(B6,'[1]BD MALA_DIRETA'!$B:$R,15,0) -> Terceiro | T6: 1777219.66 | AF6: 1348723.42 | AG6: 660 | AH6: 34800 | AI6: 9600 | AJ6: 18000 | AK6: 9600 | AL6: 91086.24 | AM6: 0 | AN6: 26400 | AO6: 1800 | AP6: 192000 | AQ6: 34000 | AR6: 3000 | AS6: 3000 | AT6: 4550 | AU6: 1777219.66 | AW6: 107154.21 | AX6: 55 | AY6: 2900 | AZ6: 0 | BA6: 1500 | BB6: 800 | BC6: 1340.52 | BD6: 0 | BE6: 2200 | BF6: 150 | BG6: 16000 | BH6: 17000 | BI6: 0 | BJ6: 0 | BK6: 4550 | BL6: 149099.73 | BM6: 4550 | BN6: 153649.73 | BO6: 107154.21 | BP6: 55 | BQ6: 2900 | BR6: 0 | BS6: 1500 | BT6: 800 | BU6: 1340.52 | BV6: 0 | BW6: 2200 | BX6: 150 | BY6: 16000 | BZ6: 17000 | CA6: 0 | CB6: 0 | CC6: 0 | CD6: 149099.73 | CE6: 0 | CF6: 149099.73 | CG6: 107154.21 | CH6: 55 | CI6: 2900 | CJ6: 9600 | CK6: 1500 | CL6: 800 | CM6: 1340.52 | CN6: 0 | CO6: 2200 | CP6: 150 | CQ6: 16000 | CR6: 0 | CS6: 0 | CT6: 0 | CU6: 0 | CV6: 141699.73 | CW6: 0 | CX6: 141699.73 | CY6: 107154.21 | CZ6: 55 | DA6: 2900 | DB6: 0 | DC6: 1500 | DD6: 800 | DE6: 1340.52 | DF6: 0 | DG6: 2200 | DH6: 150 | DI6: 16000 | DJ6: 0 | DK6: 0 | DL6: 0 | DM6: 0 | DN6: 132099.73 | DO6: 0 | DP6: 132099.73 | DQ6: 107154.21 | DR6: 55 | DS6: 2900 | DT6: 0 | DU6: 1500 | DV6: 800 | DW6: 1340.52 | DX6: 0 | DY6: 2200 | DZ6: 150 | EA6: 16000 | EB6: 0 | EC6: 3000 | ED6: 3000 | EE6: 0 | EF6: 135099.73 | EG6: 3000 | EH6: 138099.73 | EI6: 107154.21 | EJ6: 55 | EK6: 2900 | EL6: 0 | EM6: 1500 | EN6: 800 | EO6: 1340.52 | EP6: 0 | EQ6: 2200 | ER6: 150 | ES6: 16000 | ET6: 0 | EU6: 0 | EV6: 0 | EW6: 0 | EX6: 132099.73 | EY6: 0 | EZ6: 132099.73 | FA6: 138590.66 | FB6: 55 | FC6: 2900 | FD6: 0 | FE6: 1500 | FF6: 800 | FG6: 31340.52 | FH6: 0 | FI6: 2200 | FJ6: 150 | FK6: 16000 | FL6: 0 | FM6: 0 | FN6: 0 | FO6: 0 | FP6: 193536.18 | FQ6: 0 | FR6: 193536.18 | FS6: 113441.5 | FT6: 55 | FU6: 2900 | FV6: 0 | FW6: 1500 | FX6: 800 | FY6: 10340.52 | FZ6: 0 | GA6: 2200 | GB6: 150 | GC6: 16000 | GD6: 0 | GE6: 0 | GF6: 0 | GG6: 0 | GH6: 147387.02 | GI6: 0 | GJ6: 147387.02 | GK6: 113441.5 | GL6: 55 | GM6: 2900 | GN6: 0 | GO6: 1500 | GP6: 800 | GQ6: 10340.52 | GR6: 0 | GS6: 2200 | GT6: 150 | GU6: 16000 | GV6: 0 | GW6: 0 | GX6: 0 | GY6: 0 | GZ6: 147387.02 | HA6: 0 | HB6: 147387.02 | HC6: 113441.5 | HD6: 55 | HE6: 2900 | HF6: 0 | HG6: 1500 | HH6: 800 | HI6: 10340.52 | HJ6: 0 | HK6: 2200 | HL6: 150 | HM6: 16000 | HN6: 0 | HO6: 0 | HP6: 0 | HQ6: 0 | HR6: 147387.02 | HS6: 0 | HT6: 147387.02 | HU6: 113441.5 | HV6: 55 | HW6: 2900 | HX6: 0 | HY6: 1500 | HZ6: 800 | IA6: 10340.52 | IB6: 0 | IC6: 2200 | ID6: 150 | IE6: 16000 | IF6: 0 | IG6: 0 | IH6: 0 | II6: 0 | IJ6: 147387.02 | IK6: 0 | IL6: 147387.02 | IM6: 113441.5 | IN6: 55 | IO6: 2900 | IP6: 0 | IQ6: 1500 | IR6: 800 | IS6: 10340.52 | IT6: 0 | IU6: 2200 | IV6: 150 | IW6: 16000 | IX6: 0 | IY6: 0 | IZ6: 0 | JA6: 0 | JB6: 147387.02 | JC6: 0 | JD6: 147387.02 | JF6: 1769669.66 | JG6: 7550 | JH6: 1777219.66 | JJ6: 5/2022-SE | JK6: 2022-01-01 | JL6: 2022-12-31 | JM6: 1199972.5 | JN6: 13/2022-SE | JO6: Primeiro | JP6: 2022-09-26 | JQ6: 2022-12-31 | JR6: 33294.4 | JS6: 190/2023-SE | JT6: Segundo | JU6: 2023-01-01 | JV6: 2023-12-31 | JW6: 1639346.76 | JX6: =VLOOKUP($B6,'[1]BD MALA_DIRETA'!$B:$R,14,0) -> 229/2023-SE | JY6: =VLOOKUP($B6,'[1]BD MALA_DIRETA'!$B:$R,15,0) -> Terceiro | JZ6: =VLOOKUP($B6,'[1]BD MALA_DIRETA'!$B:$R,17,0) -> 2023-07-27 | KA6: 2023-12-31 | KB6: 137872.9
A7: 6 | B7: Associação a Palavra de Deus | C7: CEI FUTURO FELIZ | D7: 45.878.840/0005-13 | E7: Rua Duarte Murtinho, 56 | F7: Ferrazópolis | G7: S.B.Campo | H7: 09.791-040 | I7: (11) 2217-8526 / (11) 95958-8022 (Alex) | J7: ceifuturofeliz20@gmail.com / associacao.apd@gmail.com | K7: creche.futurofeliz@emeb.saobernardo.sp.gov.br | L7: SB.098984/2021-59 | M7: SB.099300/2021-61 | O7: 6/2022-SE | Q7: =VLOOKUP(B7,'[1]BD MALA_DIRETA'!$B:$R,14,0) -> 230/2023-SE | S7: =VLOOKUP(B7,'[1]BD MALA_DIRETA'!$B:$R,15,0) -> Quarto | T7: 8256319.14 | AF7: 6661369.72 | AG7: 146700 | AH7: 125580 | AI7: 35022.72 | AJ7: 71940.12 | AK7: 22380 | AL7: 294053.56 | AM7: 23032.8 | AN7: 107010 | AO7: 4440 | AP7: 520230.96 | AQ7: 136000 | AR7: 12000 | AS7: 12000 | AT7: 84559.26 | AU7: 8256319.14 | AW7: 400790.01 | AX7: 10500 | AY7: 8100 | AZ7: 0 | BA7: 4670.01 | BB7: 1500 | BC7: 1328.63 | BD7: 1474.65 | BE7: 6960 | BF7: 310 | BG7: 27929.4 | BH7: 51000 | BI7: 0 | BJ7: 0 | BK7: 18639.71 | BL7: 514562.7 | BM7: 18639.71 | BN7: 533202.41 | BO7: 400790.01 | BP7: 10500 | BQ7: 8100 | BR7: 0 | BS7: 4670.01 | BT7: 1500 | BU7: 1328.63 | BV7: 1474.65 | BW7: 6960 | BX7: 310 | BY7: 27929.4 | BZ7: 51000 | CA7: 0 | CB7: 0 | CC7: 3689.71 | CD7: 514562.7 | CE7: 3689.71 | CF7: 518252.41 | CG7: 400790.01 | CH7: 10500 | CI7: 8100 | CJ7: 27687.72 | CK7: 4670.01 | CL7: 1500 | CM7: 1328.63 | CN7: 1474.65 | CO7: 6960 | CP7: 310 | CQ7: 27929.4 | CR7: 0 | CS7: 0 | CT7: 0 | CU7: 3689.71 | CV7: 491250.42 | CW7: 3689.71 | CX7: 494940.13 | CY7: 566113.4 | CZ7: 12800 | DA7: 11300 | DB7: 7335 | DC7: 6470.01 | DD7: 2000 | DE7: 17128.63 | DF7: 2074.65 | DG7: 9570 | DH7: 390 | DI7: 48493.64 | DJ7: 34000 | DK7: 0 | DL7: 0 | DM7: 25615.57 | DN7: =SUM(CY7:DK7) -> 717675.33 | DO7: =SUM(DL7:DM7) -> 25615.57 | DP7: =SUM(DN7:DO7) -> 743290.9 | DQ7: 566113.4 | DR7: 12800 | DS7: 11300 | DT7: 0 | DU7: 6470.01 | DV7: 2000 | DW7: 2128.63 | DX7: 2074.65 | DY7: 9570 | DZ7: 390 | EA7: 48493.64 | EB7: 0 | EC7: 12000 | ED7: 12000 | EE7: 4115.57 | EF7: =SUM(DQ7:EC7) -> 673340.33 | EG7: =SUM(ED7:EE7) -> 16115.57 | EH7: =SUM(EF7:EG7) -> 689455.9 | EI7: 566113.4 | EJ7: 12800 | EK7: 11300 | EL7: 0 | EM7: 6470.01 | EN7: 2000 | EO7: 2128.63 | EP7: 2074.65 | EQ7: 9570 | ER7: 390 | ES7: 48493.64 | ET7: 0 | EU7: 0 | EV7: 0 | EW7: 4115.57 | EX7: =SUM(EI7:EU7) -> 661340.33 | EY7: =SUM(EV7:EW7) -> 4115.57 | EZ7: =SUM(EX7:EY7) -> 665455.9 | FA7: 728825.39 | FB7: 12800 | FC7: 11230 | FD7: 0 | FE7: 6420.01 | FF7: 1980 | FG7: 114113.63 | FH7: 2064.15 | FI7: 9570 | FJ7: 390 | FK7: 48493.64 | FL7: 0 | FM7: 0 | FN7: 0 | FO7: 4115.57 | FP7: 935886.82 | FQ7: 4115.57 | FR7: 940002.39 | FS7: 606366.82 | FT7: 12800 | FU7: 11230 | FV7: 0 | FW7: 6420.01 | FX7: 1980 | FY7: 30913.63 | FZ7: 2064.15 | GA7: 9570 | GB7: 390 | GC7: 48493.64 | GD7: 0 | GE7: 0 | GF7: 0 | GG7: 4115.57 | GH7: 730228.25 | GI7: 4115.57 | GJ7: 734343.82 | GK7: 606366.82 | GL7: 12800 | GM7: 11230 | GN7: 0 | GO7: 6420.01 | GP7: 1980 | GQ7: 30913.63 | GR7: 2064.15 | GS7: 9570 | GT7: 390 | GU7: 48493.64 | GV7: 0 | GW7: 0 | GX7: 0 | GY7: 4115.57 | GZ7: 730228.25 | HA7: 4115.57 | HB7: 734343.82 | HC7: 606366.82 | HD7: 12800 | HE7: 11230 | HF7: 0 | HG7: 6420.01 | HH7: 1980 | HI7: 30913.63 | HJ7: 2064.15 | HK7: 9570 | HL7: 390 | HM7: 48493.64 | HN7: 0 | HO7: 0 | HP7: 0 | HQ7: 4115.57 | HR7: 730228.25 | HS7: 4115.57 | HT7: 734343.82 | HU7: 606366.82 | HV7: 12800 | HW7: 11230 | HX7: 0 | HY7: 6420.01 | HZ7: 1980 | IA7: 30913.63 | IB7: 2064.15 | IC7: 9570 | ID7: 390 | IE7: 48493.64 | IF7: 0 | IG7: 0 | IH7: 0 | II7: 4115.57 | IJ7: 730228.25 | IK7: 4115.57 | IL7: 734343.82 | IM7: 606366.82 | IN7: 12800 | IO7: 11230 | IP7: 0 | IQ7: 6420.01 | IR7: 1980 | IS7: 30913.63 | IT7: 2064.15 | IU7: 9570 | IV7: 390 | IW7: 48493.64 | IX7: 0 | IY7: 0 | IZ7: 0 | JA7: 4115.57 | JB7: 730228.25 | JC7: =SUM(IZ7:JA7) -> 4115.57 | JD7: 734343.82 | JF7: 8159759.88 | JG7: 96559.26 | JH7: 8256319.14 | JJ7: 6/2022-SE | JK7: 2022-01-01 | JL7: 2022-12-31 | JM7: 1486164.86 | JN7: 7/2022-SE | JO7: Primeiro | JP7: 2022-09-27 | JQ7: 2022-12-31 | JR7: 638708.65 | JS7: 191/2023-SE | JT7: Segundo | JU7: 2023-01-01 | JV7: 2023-12-31 | JW7: 5769666.64 | JX7: =VLOOKUP($B7,'[1]BD MALA_DIRETA'!$B:$R,10,0) -> 222/2023-SE | JY7: =VLOOKUP($B7,'[1]BD MALA_DIRETA'!$B:$R,11,0) -> Terceiro | JZ7: 2023-03-17 | KA7: 2023-12-31 | KB7: 1867666.41 | KC7: =VLOOKUP($B7,'[1]BD MALA_DIRETA'!$B:$R,14,0) -> 230/2023-SE | KD7: =VLOOKUP($B7,'[1]BD MALA_DIRETA'!$B:$R,15,0) -> Quarto | KF7: 2023-12-31 | KG7: =VLOOKUP($B7,'[1]BD MALA_DIRETA'!$B:$GW,196,0) -> 618986.09
A8: 7 | B8: Associação Assistencial Edificando Vidas I | C8: Centro Educacional El Elion | D8: 30.329.974/0001-84 | E8: Rua Ministro Edgard Costa, 201 | F8: Bairro dos Casa | G8: S.B.Campo | H8: 09840-530 | I8: 2356-2000 / 97442-5159/ 95921-5353 | J8: crecheeducacionalelelion@gmail.com | K8: edificando.vidas@emeb.saobernardo.sp.gov.br | L8: SB.098989/2021-54 | M8: SB.099302/2021-83 | O8: 7/2022-SE | Q8: =VLOOKUP(B8,'[1]BD MALA_DIRETA'!$B:$R,14,0) -> 231/2023-SE | R8: =VLOOKUP(B8,'[1]BD MALA_DIRETA'!$B:$R,17,0) -> 2023-07-27 | S8: =VLOOKUP(B8,'[1]BD MALA_DIRETA'!$B:$R,15,0) -> Terceiro | T8: 2079807.94 | AF8: 1611704.26 | AG8: 24000 | AH8: 36000 | AI8: 9219.24 | AJ8: 15365.52 | AK8: 4060.2 | AL8: 79060.2 | AM8: 4060.2 | AN8: 26280 | AO8: 1800 | AP8: 219648 | AQ8: 34000 | AR8: 3000 | AS8: 3000 | AT8: 8610.32 | AU8: 2079807.94 | AW8: 126154.13 | AX8: 2000 | AY8: 3000 | AZ8: 0 | BA8: 1280.46 | BB8: 338.35 | BC8: 338.35 | BD8: 338.35 | BE8: 2190 | BF8: 150 | BG8: 18304 | BH8: 17000 | BI8: 0 | BJ8: 0 | BK8: 4888.36 | BL8: 171093.64 | BM8: 4888.36 | BN8: 175982 | BO8: 126154.13 | BP8: 2000 | BQ8: 3000 | BR8: 0 | BS8: 1280.46 | BT8: 338.35 | BU8: 338.35 | BV8: 338.35 | BW8: 2190 | BX8: 150 | BY8: 18304 | BZ8: 17000 | CA8: 0 | CB8: 0 | CC8: 338.36 | CD8: 171093.64 | CE8: 338.36 | CF8: 171432 | CG8: 126154.13 | CH8: 2000 | CI8: 3000 | CJ8: 9219.24 | CK8: 1280.46 | CL8: 338.35 | CM8: 338.35 | CN8: 338.35 | CO8: 2190 | CP8: 150 | CQ8: 18304 | CR8: 0 | CS8: 0 | CT8: 0 | CU8: 338.36 | CV8: 163312.88 | CW8: 338.36 | CX8: 163651.24 | CY8: 126154.13 | CZ8: 2000 | DA8: 3000 | DB8: 0 | DC8: 1280.46 | DD8: 338.35 | DE8: 338.35 | DF8: 338.35 | DG8: 2190 | DH8: 150 | DI8: 18304 | DJ8: 0 | DK8: 0 | DL8: 0 | DM8: 338.36 | DN8: 154093.64 | DO8: 338.36 | DP8: 154432 | DQ8: 126154.13 | DR8: 2000 | DS8: 3000 | DT8: 0 | DU8: 1280.46 | DV8: 338.35 | DW8: 338.35 | DX8: 338.35 | DY8: 2190 | DZ8: 150 | EA8: 18304 | EB8: 0 | EC8: 3000 | ED8: 3000 | EE8: 338.36 | EF8: 157093.64 | EG8: 3338.36 | EH8: 160432 | EI8: 126154.13 | EJ8: 2000 | EK8: 3000 | EL8: 0 | EM8: 1280.46 | EN8: 338.35 | EO8: 338.35 | EP8: 338.35 | EQ8: 2190 | ER8: 150 | ES8: 18304 | ET8: 0 | EU8: 0 | EV8: 0 | EW8: 338.36 | EX8: 154093.64 | EY8: 338.36 | EZ8: 154432 | FA8: 175081.48 | FB8: 2000 | FC8: 3000 | FD8: 0 | FE8: 1280.46 | FF8: 338.35 | FG8: 30338.35 | FH8: 338.35 | FI8: 2190 | FJ8: 150 | FK8: 18304 | FL8: 0 | FM8: 0 | FN8: 0 | FO8: 338.36 | FP8: 233020.99 | FQ8: 338.36 | FR8: 233359.35 | FS8: 135939.6 | FT8: 2000 | FU8: 3000 | FV8: 0 | FW8: 1280.46 | FX8: 338.35 | FY8: 9338.35 | FZ8: 338.35 | GA8: 2190 | GB8: 150 | GC8: 18304 | GD8: 0 | GE8: 0 | GF8: 0 | GG8: 338.36 | GH8: 172879.11 | GI8: 338.36 | GJ8: 173217.47 | GK8: 135939.6 | GL8: 2000 | GM8: 3000 | GN8: 0 | GO8: 1280.46 | GP8: 338.35 | GQ8: 9338.35 | GR8: 338.35 | GS8: 2190 | GT8: 150 | GU8: 18304 | GV8: 0 | GW8: 0 | GX8: 0 | GY8: 338.36 | GZ8: 172879.11 | HA8: 338.36 | HB8: 173217.47 | HC8: 135939.6 | HD8: 2000 | HE8: 3000 | HF8: 0 | HG8: 1280.46 | HH8: 338.35 | HI8: 9338.35 | HJ8: 338.35 | HK8: 2190 | HL8: 150 | HM8: 18304 | HN8: 0 | HO8: 0 | HP8: 0 | HQ8: 338.36 | HR8: 172879.11 | HS8: 338.36 | HT8: 173217.47 | HU8: 135939.6 | HV8: 2000 | HW8: 3000 | HX8: 0 | HY8: 1280.46 | HZ8: 338.35 | IA8: 9338.35 | IB8: 338.35 | IC8: 2190 | ID8: 150 | IE8: 18304 | IF8: 0 | IG8: 0 | IH8: 0 | II8: 338.36 | IJ8: 172879.11 | IK8: 338.36 | IL8: 173217.47 | IM8: 135939.6 | IN8: 2000 | IO8: 3000 | IP8: 0 | IQ8: 1280.46 | IR8: 338.35 | IS8: 9338.35 | IT8: 338.35 | IU8: 2190 | IV8: 150 | IW8: 18304 | IX8: 0 | IY8: 0 | IZ8: 0 | JA8: 338.36 | JB8: 172879.11 | JC8: 338.36 | JD8: 173217.47 | JF8: 2068197.62 | JG8: 11610.32 | JH8: 2079807.94 | JJ8: 7/2022-SE | JK8: 2022-01-01 | JL8: 2022-12-31 | JM8: 1240787.2 | JN8: 14/2022-SE | JO8: Primeiro | JP8: 2022-09-26 | JQ8: 2022-12-31 | JR8: 44593.6 | JS8: 192/2023-SE | JT8: Segundo | JU8: 2023-01-01 | JV8: 2023-12-31 | JW8: 1906953.24 | JX8: =VLOOKUP($B8,'[1]BD MALA_DIRETA'!$B:$R,14,0) -> 231/2023-SE | JY8: =VLOOKUP($B8,'[1]BD MALA_DIRETA'!$B:$R,15,0) -> Terceiro | JZ8: =VLOOKUP($B8,'[1]BD MALA_DIRETA'!$B:$R,17,0) -> 2023-07-27 | KA8: 2023-12-31 | KB8: 172854.7
A9: 8 | B9: Associação Assistencial Edificando Vidas II | D9: 30.329.974/0002-65 | E9: Rua Guarapuava, 20 | F9: Jardim Represa | G9: S.B.Campo | H9: 09843-350 | I9: 4355-5066/97065-7291/97442-5159 | L9: SB.122203/2021-98 | M9: SB.001497/2022-53 | O9: 8/2022-SE | Q9: =VLOOKUP(B9,'[1]BD MALA_DIRETA'!$B:$R,14,0) -> 232/2023-SE | R9: =VLOOKUP(B9,'[1]BD MALA_DIRETA'!$B:$R,17,0) -> 2023-07-27 | S9: =VLOOKUP(B9,'[1]BD MALA_DIRETA'!$B:$R,15,0) -> Quarto | T9: 3141546.22 | AF9: 2585755.98 | AG9: 28800 | AH9: 38400 | AI9: 16848.96 | AJ9: 28081.68 | AK9: 12000 | AL9: 93000 | AM9: 15077.28 | AN9: 33840 | AO9: 1800 | AP9: 228142.32 | AQ9: 34000 | AR9: 3000 | AS9: 3000 | AT9: 19800 | AU9: 3141546.22 | AW9: 196334.34 | AX9: 2400 | AY9: 3200 | AZ9: 0 | BA9: 2340.14 | BB9: 1000 | BC9: 1500 | BD9: 1256.44 | BE9: 2820 | BF9: 150 | BG9: 19011.86 | BH9: 17000 | BI9: 0 | BJ9: 0 | BK9: 8800 | BL9: 247012.78 | BM9: 8800 | BN9: 255812.78 | BO9: 196334.34 | BP9: 2400 | BQ9: 3200 | BR9: 0 | BS9: 2340.14 | BT9: 1000 | BU9: 1500 | BV9: 1256.44 | BW9: 2820 | BX9: 150 | BY9: 19011.86 | BZ9: 17000 | CA9: 0 | CB9: 0 | CC9: 1000 | CD9: 247012.78 | CE9: 1000 | CF9: 248012.78 | CG9: 196334.34 | CH9: 2400 | CI9: 3200 | CJ9: 16848.96 | CK9: 2340.14 | CL9: 1000 | CM9: 1500 | CN9: 1256.44 | CO9: 2820 | CP9: 150 | CQ9: 19011.86 | CR9: 0 | CS9: 0 | CT9: 0 | CU9: 1000 | CV9: 246861.74 | CW9: 1000 | CX9: 247861.74 | CY9: 196334.34 | CZ9: 2400 | DA9: 3200 | DB9: 0 | DC9: 2340.14 | DD9: 1000 | DE9: 1500 | DF9: 1256.44 | DG9: 2820 | DH9: 150 | DI9: 19011.86 | DJ9: 0 | DK9: 0 | DL9: 0 | DM9: 1000 | DN9: 230012.78 | DO9: 1000 | DP9: 231012.78 | DQ9: 196334.34 | DR9: 2400 | DS9: 3200 | DT9: 0 | DU9: 2340.14 | DV9: 1000 | DW9: 1500 | DX9: 1256.44 | DY9: 2820 | DZ9: 150 | EA9: 19011.86 | EB9: 0 | EC9: 3000 | ED9: 3000 | EE9: 1000 | EF9: 233012.78 | EG9: 4000 | EH9: 237012.78 | EI9: 196334.34 | EJ9: 2400 | EK9: 3200 | EL9: 0 | EM9: 2340.14 | EN9: 1000 | EO9: 1500 | EP9: 1256.44 | EQ9: 2820 | ER9: 150 | ES9: 19011.86 | ET9: 0 | EU9: 0 | EV9: 0 | EW9: 1000 | EX9: 230012.78 | EY9: 1000 | EZ9: 231012.78 | FA9: 311206.29 | FB9: 2400 | FC9: 3200 | FD9: 0 | FE9: 2340.14 | FF9: 1000 | FG9: 31500 | FH9: 1256.44 | FI9: 2820 | FJ9: 150 | FK9: 19011.86 | FL9: 0 | FM9: 0 | FN9: 0 | FO9: 1000 | FP9: 374884.73 | FQ9: 1000 | FR9: 375884.73 | FS9: 219308.73 | FT9: 2400 | FU9: 3200 | FV9: 0 | FW9: 2340.14 | FX9: 1000 | FY9: 10500 | FZ9: 1256.44 | GA9: 2820 | GB9: 150 | GC9: 19011.86 | GD9: 0 | GE9: 0 | GF9: 0 | GG9: 1000 | GH9: 261987.17 | GI9: 1000 | GJ9: 262987.17 | GK9: 219308.73 | GL9: 2400 | GM9: 3200 | GN9: 0 | GO9: 2340.14 | GP9: 1000 | GQ9: 10500 | GR9: 1256.44 | GS9: 2820 | GT9: 150 | GU9: 19011.86 | GV9: 0 | GW9: 0 | GX9: 0 | GY9: 1000 | GZ9: 261987.17 | HA9: 1000 | HB9: 262987.17 | HC9: 219308.73 | HD9: 2400 | HE9: 3200 | HF9: 0 | HG9: 2340.14 | HH9: 1000 | HI9: 10500 | HJ9: 1256.44 | HK9: 2820 | HL9: 150 | HM9: 19011.86 | HN9: 0 | HO9: 0 | HP9: 0 | HQ9: 1000 | HR9: 261987.17 | HS9: 1000 | HT9: 262987.17 | HU9: 219308.73 | HV9: 2400 | HW9: 3200 | HX9: 0 | HY9: 2340.14 | HZ9: 1000 | IA9: 10500 | IB9: 1256.44 | IC9: 2820 | ID9: 150 | IE9: 19011.86 | IF9: 0 | IG9: 0 | IH9: 0 | II9: 1000 | IJ9: 261987.17 | IK9: 1000 | IL9: 262987.17 | IM9: 219308.73 | IN9: 2400 | IO9: 3200 | IP9: 0 | IQ9: 2340.14 | IR9: 1000 | IS9: 10500 | IT9: 1256.44 | IU9: 2820 | IV9: 150 | IW9: 19011.86 | IX9: 0 | IY9: 0 | IZ9: 0 | JA9: 1000 | JB9: 261987.17 | JC9: 1000 | JD9: 262987.17 | JF9: 3118746.22 | JG9: 22800 | JH9: 3141546.22 | JJ9: 8/2022-SE | JK9: 2022-01-01 | JL9: 2022-12-31 | JM9: 1932442.6 | JN9: 3/2022-SE | JO9: Primeiro | JP9: 2022-05-16 | JQ9: 2022-12-31 | JR9: 67975 | JS9: 15/2022-SE | JT9: Segundo | JU9: 2022-09-26 | JV9: 2022-12-31 | JW9: 73743.3 | JX9: 193/2023-SE | JY9: Terceiro | JZ9: 2023-01-01 | KA9: 2023-12-31 | KB9: 2836802.32 | KC9: =VLOOKUP(B9,'[1]BD MALA_DIRETA'!$B:$R,14,0) -> 232/2023-SE | KD9: =VLOOKUP($B9,'[1]BD MALA_DIRETA'!$B:$R,15,0) -> Quarto | KE9: =VLOOKUP($B9,'[1]BD MALA_DIRETA'!$B:$R,17,0) -> 2023-07-27 | KF9: 2023-12-31 | KG9: =VLOOKUP($B9,'[1]BD MALA_DIRETA'!$B:$GW,196,0) -> 304743.9
A10: 9 | B10: Associação Belenzinho de Assistência Social | C10: Associação Belenzinho de Assistência Social - ABAS | D10: 06.022.136/0002-60 | E10: Avenida Luiz Pequini, nº 1834 | F10: Parque São Bernardo - Vila Baeta Neves | G10: S.B.Campo | H10: 09780-250 | I10: 4121-5470 | J10: abasbelenzinho@gmail.com | K10: creche.belenzinho@emeb.saobernardo.sp.gov.br | L10: SB.075430/2021-70 | M10: SB.075543/2021-06 | O10: 9/2022-SE | Q10: =VLOOKUP(B10,'[1]BD MALA_DIRETA'!$B:$R,14,0) -> 233/2023-SE | R10: =VLOOKUP(B10,'[1]BD MALA_DIRETA'!$B:$R,17,0) -> 2023-07-27 | S10: =VLOOKUP(B10,'[1]BD MALA_DIRETA'!$B:$R,15,0) -> Terceiro | T10: 1900119.44 | AF10: 1670591.72 | AG10: 4200 | AH10: 29997.72 | AI10: 8700 | AJ10: 18000 | AK10: 4200 | AL10: 80400 | AM10: 4200 | AN10: 19080 | AO10: 600 | AP10: 0 | AQ10: 34000 | AR10: 3000 | AS10: 3000 | AT10: =SUM(BK10,CC10,CU10,DM10,EE10,EW10,FO10,GG10,GY10,HQ10,II10,JA10) -> 20150 | AU10: 1900119.44 | AW10: 127362.48 | AX10: 350 | AY10: 2499.81 | AZ10: 0 | BA10: 1500 | BB10: 350 | BC10: 450 | BD10: 350 | BE10: 1590 | BF10: 50 | BG10: 0 | BH10: 17000 | BI10: 0 | BJ10: 0 | BK10: 5850 | BL10: 151502.29 | BM10: 5850 | BN10: 157352.29 | BO10: 127362.48 | BP10: 350 | BQ10: 2499.81 | BR10: 0 | BS10: 1500 | BT10: 350 | BU10: 450 | BV10: 350 | BW10: 1590 | BX10: 50 | BY10: 0 | BZ10: 17000 | CA10: 0 | CB10: 0 | CC10: 1300 | CD10: 151502.29 | CE10: 1300 | CF10: 152802.29 | CG10: 195452.84 | CH10: 350 | CI10: 2499.81 | CJ10: 8700 | CK10: 1500 | CL10: 350 | CM10: 450 | CN10: 350 | CO10: 1590 | CP10: 50 | CQ10: 0 | CR10: 0 | CS10: 0 | CT10: 0 | CU10: 1300 | CV10: 211292.65 | CW10: 1300 | CX10: 212592.65 | CY10: 127362.48 | CZ10: 350 | DA10: 2499.81 | DB10: 0 | DC10: 1500 | DD10: 350 | DE10: 450 | DF10: 350 | DG10: 1590 | DH10: 50 | DI10: 0 | DJ10: 0 | DK10: 0 | DL10: 0 | DM10: 1300 | DN10: 134502.29 | DO10: 1300 | DP10: 135802.29 | DQ10: 127362.48 | DR10: 350 | DS10: 2499.81 | DT10: 0 | DU10: 1500 | DV10: 350 | DW10: 450 | DX10: 350 | DY10: 1590 | DZ10: 50 | EA10: 0 | EB10: 0 | EC10: 3000 | ED10: 3000 | EE10: 1300 | EF10: 137502.29 | EG10: 4300 | EH10: 141802.29 | EI10: 127362.48 | EJ10: 350 | EK10: 2499.81 | EL10: 0 | EM10: 1500 | EN10: 350 | EO10: 450 | EP10: 350 | EQ10: 1590 | ER10: 50 | ES10: 0 | ET10: 0 | EU10: 0 | EV10: 0 | EW10: 1300 | EX10: 134502.29 | EY10: 1300 | EZ10: 135802.29 | FA10: 164438.28 | FB10: 350 | FC10: 2499.81 | FD10: 0 | FE10: 1500 | FF10: 350 | FG10: 30450 | FH10: 350 | FI10: 1590 | FJ10: 50 | FK10: 0 | FL10: 0 | FM10: 0 | FN10: 0 | FO10: 1300 | FP10: 201578.09 | FQ10: 1300 | FR10: 202878.09 | FS10: 134777.64 | FT10: 350 | FU10: 2499.81 | FV10: 0 | FW10: 1500 | FX10: 350 | FY10: 9450 | FZ10: 350 | GA10: 1590 | GB10: 50 | GC10: 0 | GD10: 0 | GE10: 0 | GF10: 0 | GG10: 1300 | GH10: 150917.45 | GI10: 1300 | GJ10: 152217.45 | GK10: 134777.64 | GL10: 350 | GM10: 2499.81 | GN10: 0 | GO10: 1500 | GP10: 350 | GQ10: 9450 | GR10: 350 | GS10: 1590 | GT10: 50 | GU10: 0 | GV10: 0 | GW10: 0 | GX10: 0 | GY10: 1300 | GZ10: 150917.45 | HA10: 1300 | HB10: 152217.45 | HC10: 134777.64 | HD10: 350 | HE10: 2499.81 | HF10: 0 | HG10: 1500 | HH10: 350 | HI10: 9450 | HJ10: 350 | HK10: 1590 | HL10: 50 | HM10: 0 | HN10: 0 | HO10: 0 | HP10: 0 | HQ10: 1300 | HR10: 150917.45 | HS10: 1300 | HT10: 152217.45 | HU10: 134777.64 | HV10: 350 | HW10: 2499.81 | HX10: 0 | HY10: 1500 | HZ10: 350 | IA10: 9450 | IB10: 350 | IC10: 1590 | ID10: 50 | IE10: 0 | IF10: 0 | IG10: 0 | IH10: 0 | II10: 1300 | IJ10: 150917.45 | IK10: 1300 | IL10: 152217.45 | IM10: 134777.64 | IN10: 350 | IO10: 2499.81 | IP10: 0 | IQ10: 1500 | IR10: 350 | IS10: 9450 | IT10: 350 | IU10: 1590 | IV10: 50 | IW10: 0 | IX10: 0 | IY10: 0 | IZ10: 0 | JA10: 1300 | JB10: 150917.45 | JC10: 1300 | JD10: 152217.45 | JF10: 1876969.44 | JG10: 23150 | JH10: 1900119.44 | JJ10: 9/2022-SE | JK10: 2022-01-01 | JL10: 2022-12-31 | JM10: 1276896.32 | JN10: 6/2022-SE | JO10: Primeiro | JP10: 2022-09-26 | JQ10: 2022-12-31 | JR10: 54852.5 | JS10: 194/2023-SE | JT10: Segundo | JU10: 2023-01-01 | JV10: 2023-12-31 | JW10: 1750967.84 | JX10: =VLOOKUP($B10,'[1]BD MALA_DIRETA'!$B:$R,14,0) -> 233/2023-SE | JY10: =VLOOKUP($B10,'[1]BD MALA_DIRETA'!$B:$R,15,0) -> Terceiro | JZ10: =VLOOKUP($B10,'[1]BD MALA_DIRETA'!$B:$R,17,0) -> 2023-07-27 | KA10: 2023-12-31 | KB10: 149151.6
A11: 10 | B11: Associação Beneficente Shekinah I | C11: Creche Pequeninos do Futuro I | D11: 69.253.813/0001-90 | E11: Avenida Taboão, 3972 | F11: Taboão | G11: S.B.Campo | H11: 09657-000 | I11: 4361-1569 e 2758-0779 | J11: ab-shekinah@ab-shekinah.org.br | K11: creche.shekinah1@emeb.saobernardo.sp.gov.br | L11: SB.098991/2021-02 | M11: SB.099303/2021-44 | O11: 10/2022-SE | Q11: =VLOOKUP(B11,'[1]BD MALA_DIRETA'!$B:$R,14,0) -> 234/2023-SE | S11: =VLOOKUP(B11,'[1]BD MALA_DIRETA'!$B:$R,15,0) -> Terceiro | T11: 1199701.3 | AF11: 1009802.62 | AG11: 3000 | AH11: 26400 | AI11: 5166 | AJ11: 10332 | AK11: 2214 | AL11: 79860 | AM11: 2686.68 | AN11: 15840 | AO11: 1800 | AP11: 0 | AQ11: 34000 | AR11: 3000 | AS11: 3000 | AT11: 2600 | AU11: 1199701.3 | AW11: 80239.41 | AX11: 250 | AY11: 2200 | AZ11: 0 | BA11: 861 | BB11: 184.5 | BC11: 405 | BD11: 223.89 | BE11: 1320 | BF11: 150 | BG11: 0 | BH11: 17000 | BI11: 0 | BJ11: 0 | BK11: 2600 | BL11: 102833.8 | BM11: 2600 | BN11: 105433.8 | BO11: 80239.41 | BP11: 250 | BQ11: 2200 | BR11: 0 | BS11: 861 | BT11: 184.5 | BU11: 405 | BV11: 223.89 | BW11: 1320 | BX11: 150 | BY11: 0 | BZ11: 17000 | CA11: 0 | CB11: 0 | CC11: 0 | CD11: 102833.8 | CE11: 0 | CF11: 102833.8 | CG11: 80239.41 | CH11: 250 | CI11: 2200 | CJ11: 5166 | CK11: 861 | CL11: 184.5 | CM11: 405 | CN11: 223.89 | CO11: 1320 | CP11: 150 | CQ11: 0 | CR11: 0 | CS11: 0 | CT11: 0 | CU11: 0 | CV11: 90999.8 | CW11: 0 | CX11: 90999.8 | CY11: 80239.41 | CZ11: 250 | DA11: 2200 | DB11: 0 | DC11: 861 | DD11: 184.5 | DE11: 405 | DF11: 223.89 | DG11: 1320 | DH11: 150 | DI11: 0 | DJ11: 0 | DK11: 0 | DL11: 0 | DM11: 0 | DN11: 85833.8 | DO11: 0 | DP11: 85833.8 | DQ11: 80239.41 | DR11: 250 | DS11: 2200 | DT11: 0 | DU11: 861 | DV11: 184.5 | DW11: 405 | DX11: 223.89 | DY11: 1320 | DZ11: 150 | EA11: 0 | EB11: 0 | EC11: 3000 | ED11: 3000 | EE11: 0 | EF11: 88833.8 | EG11: 3000 | EH11: 91833.8 | EI11: 80239.41 | EJ11: 250 | EK11: 2200 | EL11: 0 | EM11: 861 | EN11: 184.5 | EO11: 405 | EP11: 223.89 | EQ11: 1320 | ER11: 150 | ES11: 0 | ET11: 0 | EU11: 0 | EV11: 0 | EW11: 0 | EX11: 85833.8 | EY11: 0 | EZ11: 85833.8 | FA11: 103704.26 | FB11: 250 | FC11: 2200 | FD11: 0 | FE11: 861 | FF11: 184.5 | FG11: 30405 | FH11: 223.89 | FI11: 1320 | FJ11: 150 | FK11: 0 | FL11: 0 | FM11: 0 | FN11: 0 | FO11: 0 | FP11: 139298.65 | FQ11: 0 | FR11: 139298.65 | FS11: 84932.38 | FT11: 250 | FU11: 2200 | FV11: 0 | FW11: 861 | FX11: 184.5 | FY11: 9405 | FZ11: 223.89 | GA11: 1320 | GB11: 150 | GC11: 0 | GD11: 0 | GE11: 0 | GF11: 0 | GG11: 0 | GH11: 99526.77 | GI11: 0 | GJ11: 99526.77 | GK11: 84932.38 | GL11: 250 | GM11: 2200 | GN11: 0 | GO11: 861 | GP11: 184.5 | GQ11: 9405 | GR11: 223.89 | GS11: 1320 | GT11: 150 | GU11: 0 | GV11: 0 | GW11: 0 | GX11: 0 | GY11: 0 | GZ11: 99526.77 | HA11: 0 | HB11: 99526.77 | HC11: 84932.38 | HD11: 250 | HE11: 2200 | HF11: 0 | HG11: 861 | HH11: 184.5 | HI11: 9405 | HJ11: 223.89 | HK11: 1320 | HL11: 150 | HM11: 0 | HN11: 0 | HO11: 0 | HP11: 0 | HQ11: 0 | HR11: 99526.77 | HS11: 0 | HT11: 99526.77 | HU11: 84932.38 | HV11: 250 | HW11: 2200 | HX11: 0 | HY11: 861 | HZ11: 184.5 | IA11: 9405 | IB11: 223.89 | IC11: 1320 | ID11: 150 | IE11: 0 | IF11: 0 | IG11: 0 | IH11: 0 | II11: 0 | IJ11: 99526.77 | IK11: 0 | IL11: 99526.77 | IM11: 84932.38 | IN11: 250 | IO11: 2200 | IP11: 0 | IQ11: 861 | IR11: 184.5 | IS11: 9405 | IT11: 223.89 | IU11: 1320 | IV11: 150 | IW11: 0 | IX11: 0 | IY11: 0 | IZ11: 0 | JA11: 0 | JB11: 99526.77 | JC11: 0 | JD11: 99526.77 | JF11: 1194101.3 | JG11: 5600 | JH11: 1199701.3 | JJ11: 10/2022-SE | JK11: 2022-01-01 | JL11: 2022-12-31 | JM11: 849104.1 | JN11: 16/2022-SE | JO11: Primeiro | JP11: 2022-09-26 | JQ11: 2022-12-31 | JR11: 36454.8 | JS11: 195/2023-SE | JT11: Segundo | JU11: 2023-01-01 | JV11: 2023-12-31 | JW11: 1077771.6 | JX11: =VLOOKUP($B11,'[1]BD MALA_DIRETA'!$B:$R,14,0) -> 234/2023-SE | JY11: =VLOOKUP($B11,'[1]BD MALA_DIRETA'!$B:$R,15,0) -> Terceiro | KA11: 2023-12-31 | KB11: 121929.7
A12: 11 | B12: Associação Beneficente Shekinah II | C12: Creche Pequeninos do Futuro II | D12: 69.253.813/0003-51 | E12: Rua Fábio da Silva Prado, nº 115 | F12: Vila Flórida | G12: S.B.Campo | H12: 09661-000 | I12: 4361-1569 | J12: ab-shekinah@ab-shekinah.org.br | K12: creche.shekinah2@emeb.saobernardo.sp.gov.br | L12: SB.075431/2021-31 | M12: SB.075544/2021-67 | O12: 11/2022-SE | Q12: =VLOOKUP(B12,'[1]BD MALA_DIRETA'!$B:$R,14,0) -> 235/2023-SE | R12: =VLOOKUP(B12,'[1]BD MALA_DIRETA'!$B:$R,17,0) -> 2023-07-27 | S12: =VLOOKUP(B12,'[1]BD MALA_DIRETA'!$B:$R,15,0) -> Terceiro | T12: 1168046.26 | AF12: 933908.86 | AG12: 3000 | AH12: 21600 | AI12: 3977.4 | AJ12: 9360 | AK12: 1440 | AL12: 76200 | AM12: 1200 | AN12: 0 | AO12: 1800 | AP12: 72000 | AQ12: 34000 | AR12: 3000 | AS12: 3000 | AT12: 3560 | AU12: 1168046.26 | AW12: 74203.13 | AX12: 250 | AY12: 1800 | AZ12: 0 | BA12: 780 | BB12: 120 | BC12: 100 | BD12: 100 | BE12: 0 | BF12: 150 | BG12: 6000 | BH12: 17000 | BI12: 0 | BJ12: 0 | BK12: 2680 | BL12: 100503.13 | BM12: 2680 | BN12: 103183.13 | BO12: 74203.13 | BP12: 250 | BQ12: 1800 | BR12: 0 | BS12: 780 | BT12: 120 | BU12: 100 | BV12: 100 | BW12: 0 | BX12: 150 | BY12: 6000 | BZ12: 17000 | CA12: 0 | CB12: 0 | CC12: 80 | CD12: 100503.13 | CE12: 80 | CF12: 100583.13 | CG12: 74203.13 | CH12: 250 | CI12: 1800 | CJ12: 3977.4 | CK12: 780 | CL12: 120 | CM12: 100 | CN12: 100 | CO12: 0 | CP12: 150 | CQ12: 6000 | CR12: 0 | CS12: 0 | CT12: 0 | CU12: 80 | CV12: 87480.53 | CW12: 80 | CX12: 87560.53 | CY12: 74203.13 | CZ12: 250 | DA12: 1800 | DB12: 0 | DC12: 780 | DD12: 120 | DE12: 100 | DF12: 100 | DG12: 0 | DH12: 150 | DI12: 6000 | DJ12: 0 | DK12: 0 | DL12: 0 | DM12: 80 | DN12: 83503.13 | DO12: 80 | DP12: 83583.13 | DQ12: 74203.13 | DR12: 250 | DS12: 1800 | DT12: 0 | DU12: 780 | DV12: 120 | DW12: 100 | DX12: 100 | DY12: 0 | DZ12: 150 | EA12: 6000 | EB12: 0 | EC12: 3000 | ED12: 3000 | EE12: 80 | EF12: 86503.13 | EG12: 3080 | EH12: 89583.13 | EI12: 74203.13 | EJ12: 250 | EK12: 1800 | EL12: 0 | EM12: 780 | EN12: 120 | EO12: 100 | EP12: 100 | EQ12: 0 | ER12: 150 | ES12: 6000 | ET12: 0 | EU12: 0 | EV12: 0 | EW12: 80 | EX12: 83503.13 | EY12: 80 | EZ12: 83583.13 | FA12: 95938.78 | FB12: 250 | FC12: 1800 | FD12: 0 | FE12: 780 | FF12: 120 | FG12: 30100 | FH12: 100 | FI12: 0 | FJ12: 150 | FK12: 6000 | FL12: 0 | FM12: 0 | FN12: 0 | FO12: 80 | FP12: 135238.78 | FQ12: 80 | FR12: 135318.78 | FS12: 78550.26 | FT12: 250 | FU12: 1800 | FV12: 0 | FW12: 780 | FX12: 120 | FY12: 9100 | FZ12: 100 | GA12: 0 | GB12: 150 | GC12: 6000 | GD12: 0 | GE12: 0 | GF12: 0 | GG12: 80 | GH12: 96850.26 | GI12: 80 | GJ12: 96930.26 | GK12: 78550.26 | GL12: 250 | GM12: 1800 | GN12: 0 | GO12: 780 | GP12: 120 | GQ12: 9100 | GR12: 100 | GS12: 0 | GT12: 150 | GU12: 6000 | GV12: 0 | GW12: 0 | GX12: 0 | GY12: 80 | GZ12: 96850.26 | HA12: 80 | HB12: 96930.26 | HC12: 78550.26 | HD12: 250 | HE12: 1800 | HF12: 0 | HG12: 780 | HH12: 120 | HI12: 9100 | HJ12: 100 | HK12: 0 | HL12: 150 | HM12: 6000 | HN12: 0 | HO12: 0 | HP12: 0 | HQ12: 80 | HR12: 96850.26 | HS12: 80 | HT12: 96930.26 | HU12: 78550.26 | HV12: 250 | HW12: 1800 | HX12: 0 | HY12: 780 | HZ12: 120 | IA12: 9100 | IB12: 100 | IC12: 0 | ID12: 150 | IE12: 6000 | IF12: 0 | IG12: 0 | IH12: 0 | II12: 80 | IJ12: 96850.26 | IK12: 80 | IL12: 96930.26 | IM12: 78550.26 | IN12: 250 | IO12: 1800 | IP12: 0 | IQ12: 780 | IR12: 120 | IS12: 9100 | IT12: 100 | IU12: 0 | IV12: 150 | IW12: 6000 | IX12: 0 | IY12: 0 | IZ12: 0 | JA12: 80 | JB12: 96850.26 | JC12: 80 | JD12: 96930.26 | JF12: 1161486.26 | JG12: 6560 | JH12: 1168046.26 | JJ12: 11/2022-SE | JK12: 2022-01-01 | JL12: 2022-12-31 | JM12: 811125.3 | JN12: 17/2022-SE | JO12: Primeiro | JP12: 2022-09-26 | JQ12: 2022-12-31 | JR12: 32048.8 | JS12: 196/2023-SE | JT12: Segundo | JU12: 2023-01-01 | JV12: 2023-12-31 | JW12: 1049574.96 | JX12: =VLOOKUP($B12,'[1]BD MALA_DIRETA'!$B:$R,14,0) -> 235/2023-SE | JY12: =VLOOKUP($B12,'[1]BD MALA_DIRETA'!$B:$R,15,0) -> Terceiro | JZ12: =VLOOKUP($B12,'[1]BD MALA_DIRETA'!$B:$R,17,0) -> 2023-07-27 | KA12: 2023-12-31 | KB12: 118471.3
A13: 12 | B13: Associação de Promoção Humana e Resgate da Cidadania | C13: Creche Margarida | D13: 04.422.261/0001-50 | E13: Rua Padre Leo Commissari, 261 | F13: Jardim Silvina | G13: S.B.Campo | H13: 09791-030 | I13: (11) 4941-3552 / 4334-1142 | J13: crechemargarida@outlook.com | K13: creche.margarida@emeb.saobernardo.sp.gov.br | L13: SB.075433/2021-53 | M13: SB.075547/2021-40 | O13: 12/2022-SE | Q13: =VLOOKUP(B13,'[1]BD MALA_DIRETA'!$B:$R,14,0) -> 236/2023-SE | R13: =VLOOKUP(B13,'[1]BD MALA_DIRETA'!$B:$R,17,0) -> 2023-07-27 | S13: =VLOOKUP(B13,'[1]BD MALA_DIRETA'!$B:$R,15,0) -> Terceiro | T13: 1435080.9 | AF13: 1168694.86 | AG13: 7200 | AH13: 18000 | AI13: 5244 | AJ13: 11412.96 | AK13: 3000 | AL13: 78600 | AM13: 600 | AN13: 21600 | AO13: 1800 | AP13: 65215.08 | AQ13: 34000 | AR13: 3000 | AS13: 3000 | AT13: 13714 | AU13: 1435080.9 | AW13: 91086.23 | AX13: 600 | AY13: 1500 | AZ13: 0 | BA13: 951.08 | BB13: 250 | BC13: 300 | BD13: 50 | BE13: 1800 | BF13: 150 | BG13: 5434.59 | BH13: 17000 | BI13: 0 | BJ13: 0 | BK13: 4122 | BL13: 119121.9 | BM13: 4122 | BN13: 123243.9 | BO13: 91086.23 | BP13: 600 | BQ13: 1500 | BR13: 0 | BS13: 951.08 | BT13: 250 | BU13: 300 | BV13: 50 | BW13: 1800 | BX13: 150 | BY13: 5434.59 | BZ13: 17000 | CA13: 0 | CB13: 0 | CC13: 872 | CD13: 119121.9 | CE13: 872 | CF13: 119993.9 | CG13: 91086.23 | CH13: 600 | CI13: 1500 | CJ13: 5244 | CK13: 951.08 | CL13: 250 | CM13: 300 | CN13: 50 | CO13: 1800 | CP13: 150 | CQ13: 5434.59 | CR13: 0 | CS13: 0 | CT13: 0 | CU13: 872 | CV13: 107365.9 | CW13: 872 | CX13: 108237.9 | CY13: 91086.23 | CZ13: 600 | DA13: 1500 | DB13: 0 | DC13: 951.08 | DD13: 250 | DE13: 300 | DF13: 50 | DG13: 1800 | DH13: 150 | DI13: 5434.59 | DJ13: 0 | DK13: 0 | DL13: 0 | DM13: 872 | DN13: 102121.9 | DO13: 872 | DP13: 102993.9 | DQ13: 91086.23 | DR13: 600 | DS13: 1500 | DT13: 0 | DU13: 951.08 | DV13: 250 | DW13: 300 | DX13: 50 | DY13: 1800 | DZ13: 150 | EA13: 5434.59 | EB13: 0 | EC13: 3000 | ED13: 3000 | EE13: 872 | EF13: 105121.9 | EG13: 3872 | EH13: 108993.9 | EI13: 91086.23 | EJ13: 600 | EK13: 1500 | EL13: 0 | EM13: 951.08 | EN13: 250 | EO13: 300 | EP13: 50 | EQ13: 1800 | ER13: 150 | ES13: 5434.59 | ET13: 0 | EU13: 0 | EV13: 0 | EW13: 872 | EX13: 102121.9 | EY13: 872 | EZ13: 102993.9 | FA13: 128916.28 | FB13: 600 | FC13: 1500 | FD13: 0 | FE13: 951.08 | FF13: 250 | FG13: 30300 | FH13: 50 | FI13: 1800 | FJ13: 150 | FK13: 5434.59 | FL13: 0 | FM13: 0 | FN13: 0 | FO13: 872 | FP13: 169951.95 | FQ13: 872 | FR13: 170823.95 | FS13: 98652.24 | FT13: 600 | FU13: 1500 | FV13: 0 | FW13: 951.08 | FX13: 250 | FY13: 9300 | FZ13: 50 | GA13: 1800 | GB13: 150 | GC13: 5434.59 | GD13: 0 | GE13: 0 | GF13: 0 | GG13: 872 | GH13: 118687.91 | GI13: 872 | GJ13: 119559.91 | GK13: 98652.24 | GL13: 600 | GM13: 1500 | GN13: 0 | GO13: 951.08 | GP13: 250 | GQ13: 9300 | GR13: 50 | GS13: 1800 | GT13: 150 | GU13: 5434.59 | GV13: 0 | GW13: 0 | GX13: 0 | GY13: 872 | GZ13: 118687.91 | HA13: 872 | HB13: 119559.91 | HC13: 98652.24 | HD13: 600 | HE13: 1500 | HF13: 0 | HG13: 951.08 | HH13: 250 | HI13: 9300 | HJ13: 50 | HK13: 1800 | HL13: 150 | HM13: 5434.59 | HN13: 0 | HO13: 0 | HP13: 0 | HQ13: 872 | HR13: 118687.91 | HS13: 872 | HT13: 119559.91 | HU13: 98652.24 | HV13: 600 | HW13: 1500 | HX13: 0 | HY13: 951.08 | HZ13: 250 | IA13: 9300 | IB13: 50 | IC13: 1800 | ID13: 150 | IE13: 5434.59 | IF13: 0 | IG13: 0 | IH13: 0 | II13: 872 | IJ13: 118687.91 | IK13: 872 | IL13: 119559.91 | IM13: 98652.24 | IN13: 600 | IO13: 1500 | IP13: 0 | IQ13: 951.08 | IR13: 250 | IS13: 9300 | IT13: 50 | IU13: 1800 | IV13: 150 | IW13: 5434.59 | IX13: 0 | IY13: 0 | IZ13: 0 | JA13: 872 | JB13: 118687.91 | JC13: 872 | JD13: 119559.91 | JF13: 1418366.9 | JG13: 16714 | JH13: 1435080.9 | JJ13: 12/2022-SE | JK13: 2022-01-01 | JL13: 2022-12-31 | JM13: 896361.84 | JN13: 18/2022-SE | JO13: Primeiro | JP13: 2022-11-16 | JQ13: 2022-12-31 | JR13: 126861.1 | JS13: 197/2023-SE | JT13: Segundo | JU13: 2023-01-01 | JV13: 2023-12-31 | JW13: 1284420.8 | JX13: =VLOOKUP($B13,'[1]BD MALA_DIRETA'!$B:$R,14,0) -> 236/2023-SE | JY13: =VLOOKUP($B13,'[1]BD MALA_DIRETA'!$B:$R,15,0) -> Terceiro | JZ13: =VLOOKUP($B13,'[1]BD MALA_DIRETA'!$B:$R,17,0) -> 2023-07-27 | KA13: 2023-12-31 | KB13: 150660.1
A14: 13 | B14: Associação Dehoniana Brasil Meridional | C14: Creche Pe Dehon - Núcleo Marisa | D14: 04.730.949/0013-31 | E14: Estrada do Cocaia, nº 1238 | F14: Riacho Grande | G14: S.B.Campo | H14: 09832-100 | I14: 4101-7857 / 984338609 | J14: administracao@imsjt.org.br | K14: creche.dehon@emeb.saobernardo.sp.gov.br | L14: SB.075435/2021-75 | M14: SB.075548/2021-01 | O14: 13/2022-SE | Q14: =VLOOKUP(B14,'[1]BD MALA_DIRETA'!$B:$R,14,0) -> 237/2023-SE | R14: =VLOOKUP(B14,'[1]BD MALA_DIRETA'!$B:$R,17,0) -> 2023-07-27 | S14: =VLOOKUP(B14,'[1]BD MALA_DIRETA'!$B:$R,15,0) -> Terceiro | T14: 1172651.08 | AF14: 936993.4 | AG14: 9600 | AH14: 24000 | AI14: 6487.68 | AJ14: 9272.64 | AK14: 4200 | AL14: 76200 | AM14: 1200 | AN14: 23184 | AO14: 1800 | AP14: 37113.36 | AQ14: 34000 | AR14: 3000 | AS14: 3000 | AT14: 2600 | AU14: 1172651.08 | AW14: 74429.45 | AX14: 800 | AY14: 2000 | AZ14: 0 | BA14: 772.72 | BB14: 350 | BC14: 100 | BD14: 100 | BE14: 1932 | BF14: 150 | BG14: 3092.78 | BH14: 17000 | BI14: 0 | BJ14: 0 | BK14: 2600 | BL14: 100726.95 | BM14: 2600 | BN14: 103326.95 | BO14: 74429.45 | BP14: 800 | BQ14: 2000 | BR14: 0 | BS14: 772.72 | BT14: 350 | BU14: 100 | BV14: 100 | BW14: 1932 | BX14: 150 | BY14: 3092.78 | BZ14: 17000 | CA14: 0 | CB14: 0 | CC14: 0 | CD14: 100726.95 | CE14: 0 | CF14: 100726.95 | CG14: 74429.45 | CH14: 800 | CI14: 2000 | CJ14: 6487.68 | CK14: 772.72 | CL14: 350 | CM14: 100 | CN14: 100 | CO14: 1932 | CP14: 150 | CQ14: 3092.78 | CR14: 0 | CS14: 0 | CT14: 0 | CU14: 0 | CV14: 90214.63 | CW14: 0 | CX14: 90214.63 | CY14: 74429.45 | CZ14: 800 | DA14: 2000 | DB14: 0 | DC14: 772.72 | DD14: 350 | DE14: 100 | DF14: 100 | DG14: 1932 | DH14: 150 | DI14: 3092.78 | DJ14: 0 | DK14: 0 | DL14: 0 | DM14: 0 | DN14: 83726.95 | DO14: 0 | DP14: 83726.95 | DQ14: 74429.45 | DR14: 800 | DS14: 2000 | DT14: 0 | DU14: 772.72 | DV14: 350 | DW14: 100 | DX14: 100 | DY14: 1932 | DZ14: 150 | EA14: 3092.78 | EB14: 0 | EC14: 3000 | ED14: 3000 | EE14: 0 | EF14: 86726.95 | EG14: 3000 | EH14: 89726.95 | EI14: 74429.45 | EJ14: 800 | EK14: 2000 | EL14: 0 | EM14: 772.72 | EN14: 350 | EO14: 100 | EP14: 100 | EQ14: 1932 | ER14: 150 | ES14: 3092.78 | ET14: 0 | EU14: 0 | EV14: 0 | EW14: 0 | EX14: 83726.95 | EY14: 0 | EZ14: 83726.95 | FA14: 96349.45 | FB14: 800 | FC14: 2000 | FD14: 0 | FE14: 772.72 | FF14: 350 | FG14: 30100 | FH14: 100 | FI14: 1932 | FJ14: 150 | FK14: 3092.78 | FL14: 0 | FM14: 0 | FN14: 0 | FO14: 0 | FP14: 135646.95 | FQ14: 0 | FR14: 135646.95 | FS14: 78813.45 | FT14: 800 | FU14: 2000 | FV14: 0 | FW14: 772.72 | FX14: 350 | FY14: 9100 | FZ14: 100 | GA14: 1932 | GB14: 150 | GC14: 3092.78 | GD14: 0 | GE14: 0 | GF14: 0 | GG14: 0 | GH14: 97110.95 | GI14: 0 | GJ14: 97110.95 | GK14: 78813.45 | GL14: 800 | GM14: 2000 | GN14: 0 | GO14: 772.72 | GP14: 350 | GQ14: 9100 | GR14: 100 | GS14: 1932 | GT14: 150 | GU14: 3092.78 | GV14: 0 | GW14: 0 | GX14: 0 | GY14: 0 | GZ14: 97110.95 | HA14: 0 | HB14: 97110.95 | HC14: 78813.45 | HD14: 800 | HE14: 2000 | HF14: 0 | HG14: 772.72 | HH14: 350 | HI14: 9100 | HJ14: 100 | HK14: 1932 | HL14: 150 | HM14: 3092.78 | HN14: 0 | HO14: 0 | HP14: 0 | HQ14: 0 | HR14: 97110.95 | HS14: 0 | HT14: 97110.95 | HU14: 78813.45 | HV14: 800 | HW14: 2000 | HX14: 0 | HY14: 772.72 | HZ14: 350 | IA14: 9100 | IB14: 100 | IC14: 1932 | ID14: 150 | IE14: 3092.78 | IF14: 0 | IG14: 0 | IH14: 0 | II14: 0 | IJ14: 97110.95 | IK14: 0 | IL14: 97110.95 | IM14: 78813.45 | IN14: 800 | IO14: 2000 | IP14: 0 | IQ14: 772.72 | IR14: 350 | IS14: 9100 | IT14: 100 | IU14: 1932 | IV14: 150 | IW14: 3092.78 | IX14: 0 | IY14: 0 | IZ14: 0 | JA14: 0 | JB14: 97110.95 | JC14: 0 | JD14: 97110.95 | JF14: 1167051.08 | JG14: 5600 | JH14: 1172651.08 | JJ14: 13/2022-SE | JK14: 2022-01-01 | JL14: 2022-12-31 | JM14: 775244.92 | JN14: 19/2022-SE | JO14: Primeiro | JP14: 2022-10-19 | JQ14: 2022-12-31 | JR14: 31586.7 | JS14: 198/2023-SE | JT14: Segundo | JU14: 2023-01-01 | JV14: 2023-12-31 | JW14: 1053811.08 | JX14: =VLOOKUP($B14,'[1]BD MALA_DIRETA'!$B:$R,14,0) -> 237/2023-SE | JY14: =VLOOKUP($B14,'[1]BD MALA_DIRETA'!$B:$R,15,0) -> Terceiro | JZ14: =VLOOKUP($B14,'[1]BD MALA_DIRETA'!$B:$R,17,0) -> 2023-07-27 | KA14: 2023-12-31 | KB14: 118840
A15: 14 | B15: Associação Educativa Madre Vincenza | C15: Associação Educativa Madre Vincenza | D15: 44.352.870/0001-03 | E15: Rua Angatuba, nº 87 | F15: Baeta Neves | G15: S.B.Campo | H15: 09751-190 | I15: 4125-6381 | J15: admmv@yahoo.com | K15: madre.vicenza@emeb.saobernardo.sp.gov.br | L15: SB.075438/2021-58 | M15: SB.075550/2021-59 | O15: 14/2022-SE | Q15: =VLOOKUP(B15,'[1]BD MALA_DIRETA'!$B:$R,14,0) -> 238/2023-SE | R15: =VLOOKUP(B15,'[1]BD MALA_DIRETA'!$B:$R,17,0) -> 2023-07-27 | S15: =VLOOKUP(B15,'[1]BD MALA_DIRETA'!$B:$R,15,0) -> Terceiro | T15: 1413709.94 | AF15: 1192140.66 | AG15: 9600 | AH15: 42000 | AI15: 6225.6 | AJ15: 12454.56 | AK15: 600 | AL15: 75471.12 | AM15: 504 | AN15: 24264 | AO15: 1800 | AP15: 0 | AQ15: 39400 | AR15: 3000 | AS15: 3000 | AT15: 3250 | AU15: 1413709.94 | AW15: 94739.18 | AX15: 800 | AY15: 3500 | AZ15: 0 | BA15: 1037.88 | BB15: 50 | BC15: 39.26 | BD15: 42 | BE15: 2022 | BF15: 150 | BG15: 0 | BH15: 19700 | BI15: 0 | BJ15: 0 | BK15: 3250 | BL15: 122080.32 | BM15: 3250 | BN15: 125330.32 | BO15: 94739.18 | BP15: 800 | BQ15: 3500 | BR15: 0 | BS15: 1037.88 | BT15: 50 | BU15: 39.26 | BV15: 42 | BW15: 2022 | BX15: 150 | BY15: 0 | BZ15: 19700 | CA15: 0 | CB15: 0 | CC15: 0 | CD15: 122080.32 | CE15: 0 | CF15: 122080.32 | CG15: 94739.18 | CH15: 800 | CI15: 3500 | CJ15: 6225.6 | CK15: 1037.88 | CL15: 50 | CM15: 39.26 | CN15: 42 | CO15: 2022 | CP15: 150 | CQ15: 0 | CR15: 0 | CS15: 0 | CT15: 0 | CU15: 0 | CV15: 108605.92 | CW15: 0 | CX15: 108605.92 | CY15: 94739.18 | CZ15: 800 | DA15: 3500 | DB15: 0 | DC15: 1037.88 | DD15: 50 | DE15: 39.26 | DF15: 42 | DG15: 2022 | DH15: 150 | DI15: 0 | DJ15: 0 | DK15: 0 | DL15: 0 | DM15: 0 | DN15: 102380.32 | DO15: 0 | DP15: 102380.32 | DQ15: 94739.18 | DR15: 800 | DS15: 3500 | DT15: 0 | DU15: 1037.88 | DV15: 50 | DW15: 39.26 | DX15: 42 | DY15: 2022 | DZ15: 150 | EA15: 0 | EB15: 0 | EC15: 3000 | ED15: 3000 | EE15: 0 | EF15: 105380.32 | EG15: 3000 | EH15: 108380.32 | EI15: 94739.18 | EJ15: 800 | EK15: 3500 | EL15: 0 | EM15: 1037.88 | EN15: 50 | EO15: 39.26 | EP15: 42 | EQ15: 2022 | ER15: 150 | ES15: 0 | ET15: 0 | EU15: 0 | EV15: 0 | EW15: 0 | EX15: 102380.32 | EY15: 0 | EZ15: 102380.32 | FA15: 122374.43 | FB15: 800 | FC15: 3500 | FD15: 0 | FE15: 1037.88 | FF15: 50 | FG15: 30039.26 | FH15: 42 | FI15: 2022 | FJ15: 150 | FK15: 0 | FL15: 0 | FM15: 0 | FN15: 0 | FO15: 0 | FP15: 160015.57 | FQ15: 0 | FR15: 160015.57 | FS15: 100266.23 | FT15: 800 | FU15: 3500 | FV15: 0 | FW15: 1037.88 | FX15: 50 | FY15: 9039.26 | FZ15: 42 | GA15: 2022 | GB15: 150 | GC15: 0 | GD15: 0 | GE15: 0 | GF15: 0 | GG15: 0 | GH15: 116907.37 | GI15: 0 | GJ15: 116907.37 | GK15: 100266.23 | GL15: 800 | GM15: 3500 | GN15: 0 | GO15: 1037.88 | GP15: 50 | GQ15: 9039.26 | GR15: 42 | GS15: 2022 | GT15: 150 | GU15: 0 | GV15: 0 | GW15: 0 | GX15: 0 | GY15: 0 | GZ15: 116907.37 | HA15: 0 | HB15: 116907.37 | HC15: 100266.23 | HD15: 800 | HE15: 3500 | HF15: 0 | HG15: 1037.88 | HH15: 50 | HI15: 9039.26 | HJ15: 42 | HK15: 2022 | HL15: 150 | HM15: 0 | HN15: 0 | HO15: 0 | HP15: 0 | HQ15: 0 | HR15: 116907.37 | HS15: 0 | HT15: 116907.37 | HU15: 100266.23 | HV15: 800 | HW15: 3500 | HX15: 0 | HY15: 1037.88 | HZ15: 50 | IA15: 9039.26 | IB15: 42 | IC15: 2022 | ID15: 150 | IE15: 0 | IF15: 0 | IG15: 0 | IH15: 0 | II15: 0 | IJ15: 116907.37 | IK15: 0 | IL15: 116907.37 | IM15: 100266.23 | IN15: 800 | IO15: 3500 | IP15: 0 | IQ15: 1037.88 | IR15: 50 | IS15: 9039.26 | IT15: 42 | IU15: 2022 | IV15: 150 | IW15: 0 | IX15: 0 | IY15: 0 | IZ15: 0 | JA15: 0 | JB15: 116907.37 | JC15: 0 | JD15: 116907.37 | JF15: 1407459.94 | JG15: 6250 | JH15: 1413709.94 | JJ15: 14/2022-SE | JK15: 2022-01-01 | JL15: 2022-12-31 | JM15: 948839.48 | JN15: 20/2022-SE | JO15: Primeiro | JP15: 2022-09-26 | JQ15: 2022-12-31 | JR15: 40608.7 | JS15: 199/2023-SE | JT15: Segundo | JU15: 2023-01-01 | JV15: 2023-12-31 | JW15: 1283439.44 | JX15: =VLOOKUP($B15,'[1]BD MALA_DIRETA'!$B:$R,14,0) -> 238/2023-SE | JY15: =VLOOKUP($B15,'[1]BD MALA_DIRETA'!$B:$R,15,0) -> Terceiro | JZ15: =VLOOKUP($B15,'[1]BD MALA_DIRETA'!$B:$R,17,0) -> 2023-07-27 | KA15: 2023-12-31 | KB15: 130270.5
A16: 15 | B16: Associação Lapidar | D16: 33.237.048/0001-77 | E16: Estrada Galvão Bueno, 4643 | F16: Batistini | G16: S.B.Campo | H16: 09842-080 | I16: 4396-5656 | J16: organizacaolapidar@gmail.com | K16: creche.lapidar@emeb.saobernardo.sp.gov.br | L16: SB.099019/2021-75 | M16: SB.099304/2021-05 | O16: 15/2022-SE | Q16: =VLOOKUP(B16,'[1]BD MALA_DIRETA'!$B:$R,14,0) -> 239/2023-SE | R16: =VLOOKUP(B16,'[1]BD MALA_DIRETA'!$B:$R,17,0) -> 2023-07-27 | S16: =VLOOKUP(B16,'[1]BD MALA_DIRETA'!$B:$R,15,0) -> Terceiro | T16: 1600536.3 | AF16: 1310219.68 | AG16: 8400 | AH16: 22344.3 | AI16: 6000 | AJ16: 11664 | AK16: 2400 | AL16: 79200 | AM16: 1200 | AN16: 25440 | AO16: 1800 | AP16: 79800 | AQ16: 34000 | AR16: 3000 | AS16: 3000 | AT16: 12068.32 | AU16: 1600536.3 | AW16: 104711.99 | AX16: 700 | AY16: 2000 | AZ16: 0 | BA16: 972 | BB16: 200 | BC16: 350 | BD16: 100 | BE16: 2120 | BF16: 150 | BG16: 6650 | BH16: 17000 | BI16: 0 | BJ16: 0 | BK16: 3984.86 | BL16: 134953.99 | BM16: 3984.86 | BN16: 138938.85 | BO16: 104711.99 | BP16: 700 | BQ16: 2000 | BR16: 0 | BS16: 972 | BT16: 200 | BU16: 350 | BV16: 100 | BW16: 2120 | BX16: 150 | BY16: 6650 | BZ16: 17000 | CA16: 0 | CB16: 0 | CC16: 734.86 | CD16: 134953.99 | CE16: 734.86 | CF16: 135688.85 | CG16: 104711.99 | CH16: 700 | CI16: 2000 | CJ16: 6000 | CK16: 972 | CL16: 200 | CM16: 350 | CN16: 100 | CO16: 2120 | CP16: 150 | CQ16: 6650 | CR16: 0 | CS16: 0 | CT16: 0 | CU16: 734.86 | CV16: 123953.99 | CW16: 734.86 | CX16: 124688.85 | CY16: 104711.99 | CZ16: 700 | DA16: 2000 | DB16: 0 | DC16: 972 | DD16: 200 | DE16: 350 | DF16: 100 | DG16: 2120 | DH16: 150 | DI16: 6650 | DJ16: 0 | DK16: 0 | DL16: 0 | DM16: 734.86 | DN16: 117953.99 | DO16: 734.86 | DP16: 118688.85 | DQ16: 104711.99 | DR16: 700 | DS16: 2000 | DT16: 0 | DU16: 972 | DV16: 200 | DW16: 350 | DX16: 100 | DY16: 2120 | DZ16: 150 | EA16: 6650 | EB16: 0 | EC16: 3000 | ED16: 3000 | EE16: 734.86 | EF16: 120953.99 | EG16: 3734.86 | EH16: 124688.85 | EI16: 104711.99 | EJ16: 700 | EK16: 2000 | EL16: 0 | EM16: 972 | EN16: 200 | EO16: 350 | EP16: 100 | EQ16: 2120 | ER16: 150 | ES16: 6650 | ET16: 0 | EU16: 0 | EV16: 0 | EW16: 734.86 | EX16: 117953.99 | EY16: 734.86 | EZ16: 118688.85 | FA16: 131549.89 | FB16: 700 | FC16: 1724.05 | FD16: 0 | FE16: 972 | FF16: 200 | FG16: 30350 | FH16: 100 | FI16: 2120 | FJ16: 150 | FK16: 6650 | FL16: 0 | FM16: 0 | FN16: 0 | FO16: 734.86 | FP16: 174515.94 | FQ16: 734.86 | FR16: 175250.8 | FS16: 110079.57 | FT16: 700 | FU16: 1724.05 | FV16: 0 | FW16: 972 | FX16: 200 | FY16: 9350 | FZ16: 100 | GA16: 2120 | GB16: 150 | GC16: 6650 | GD16: 0 | GE16: 0 | GF16: 0 | GG16: 734.86 | GH16: 132045.62 | GI16: 734.86 | GJ16: 132780.48 | GK16: 110079.57 | GL16: 700 | GM16: 1724.05 | GN16: 0 | GO16: 972 | GP16: 200 | GQ16: 9350 | GR16: 100 | GS16: 2120 | GT16: 150 | GU16: 6650 | GV16: 0 | GW16: 0 | GX16: 0 | GY16: 734.86 | GZ16: 132045.62 | HA16: 734.86 | HB16: 132780.48 | HC16: 110079.57 | HD16: 700 | HE16: 1724.05 | HF16: 0 | HG16: 972 | HH16: 200 | HI16: 9350 | HJ16: 100 | HK16: 2120 | HL16: 150 | HM16: 6650 | HN16: 0 | HO16: 0 | HP16: 0 | HQ16: 734.86 | HR16: 132045.62 | HS16: 734.86 | HT16: 132780.48 | HU16: 110079.57 | HV16: 700 | HW16: 1724.05 | HX16: 0 | HY16: 972 | HZ16: 200 | IA16: 9350 | IB16: 100 | IC16: 2120 | ID16: 150 | IE16: 6650 | IF16: 0 | IG16: 0 | IH16: 0 | II16: 734.86 | IJ16: 132045.62 | IK16: 734.86 | IL16: 132780.48 | IM16: 110079.57 | IN16: 700 | IO16: 1724.05 | IP16: 0 | IQ16: 972 | IR16: 200 | IS16: 9350 | IT16: 100 | IU16: 2120 | IV16: 150 | IW16: 6650 | IX16: 0 | IY16: 0 | IZ16: 0 | JA16: 734.86 | JB16: 132045.62 | JC16: 734.86 | JD16: 132780.48 | JF16: 1585467.98 | JG16: 15068.32 | JH16: 1600536.3 | JJ16: 15/2022-SE | JK16: 2022-01-01 | JL16: 2022-12-31 | JM16: 1031669.36 | JN16: 21/2022-SE | JO16: Primeiro | JP16: 2022-09-28 | JQ16: 2022-12-31 | JR16: 39374.6 | JS16: 200/2023-SE | JT16: Segundo | JU16: 2023-01-01 | JV16: 2023-12-31 | JW16: 1473516.2 | JX16: =VLOOKUP($B16,'[1]BD MALA_DIRETA'!$B:$R,14,0) -> 239/2023-SE | JY16: =VLOOKUP($B16,'[1]BD MALA_DIRETA'!$B:$R,15,0) -> Terceiro | JZ16: =VLOOKUP($B16,'[1]BD MALA_DIRETA'!$B:$R,17,0) -> 2023-07-27 | KA16: 2023-12-31 | KB16: 127020.1
A17: 16 | B17: Associação Presbiteriana de Assistência Social | C17: Creche Betel | D17: 47.282.991/0001-06 | E17: Rua Marques de Barbacena, nº 40 | F17: Jardim Silvina | G17: S.B.Campo | H17: 09791-120 | I17: 4335-5791 / 4335-8956 - 4127-0502 | J17: aspas.betel@uol.com.br | K17: creche.betel@emeb.saobernardo.sp.gov.br | L17: SB.075439/2021-19 | M17: SB.075551/2021-10 | O17: 16/2022-SE | Q17: =VLOOKUP(B17,'[1]BD MALA_DIRETA'!$B:$R,14,0) -> 240/2023-SE | R17: =VLOOKUP(B17,'[1]BD MALA_DIRETA'!$B:$R,17,0) -> 2023-07-27 | S17: =VLOOKUP(B17,'[1]BD MALA_DIRETA'!$B:$R,15,0) -> Terceiro | T17: 1845890.08 | AF17: 1598049.28 | AG17: 9600 | AH17: 49200 | AI17: 8941.08 | AJ17: 17882.16 | AK17: 6000 | AL17: 81787.56 | AM17: 600 | AN17: 28080 | AO17: 1200 | AP17: 0 | AQ17: 34000 | AR17: 3000 | AS17: 3000 | AT17: 4550 | AU17: 1845890.08 | AW17: 126971.84 | AX17: 800 | AY17: 4100 | AZ17: 0 | BA17: 1490.18 | BB17: 500 | BC17: 565.63 | BD17: 50 | BE17: 2340 | BF17: 100 | BG17: 0 | BH17: 17000 | BI17: 0 | BJ17: 0 | BK17: 4550 | BL17: 153917.65 | BM17: 4550 | BN17: 158467.65 | BO17: 126971.84 | BP17: 800 | BQ17: 4100 | BR17: 0 | BS17: 1490.18 | BT17: 500 | BU17: 565.63 | BV17: 50 | BW17: 2340 | BX17: 100 | BY17: 0 | BZ17: 17000 | CA17: 0 | CB17: 0 | CC17: 0 | CD17: 153917.65 | CE17: 0 | CF17: 153917.65 | CG17: 126971.84 | CH17: 800 | CI17: 4100 | CJ17: 8941.08 | CK17: 1490.18 | CL17: 500 | CM17: 565.63 | CN17: 50 | CO17: 2340 | CP17: 100 | CQ17: 0 | CR17: 0 | CS17: 0 | CT17: 0 | CU17: 0 | CV17: 145858.73 | CW17: 0 | CX17: 145858.73 | CY17: 126971.84 | CZ17: 800 | DA17: 4100 | DB17: 0 | DC17: 1490.18 | DD17: 500 | DE17: 565.63 | DF17: 50 | DG17: 2340 | DH17: 100 | DI17: 0 | DJ17: 0 | DK17: 0 | DL17: 0 | DM17: 0 | DN17: 136917.65 | DO17: 0 | DP17: 136917.65 | DQ17: 126971.84 | DR17: 800 | DS17: 4100 | DT17: 0 | DU17: 1490.18 | DV17: 500 | DW17: 565.63 | DX17: 50 | DY17: 2340 | DZ17: 100 | EA17: 0 | EB17: 0 | EC17: 3000 | ED17: 3000 | EE17: 0 | EF17: 139917.65 | EG17: 3000 | EH17: 142917.65 | EI17: 126971.84 | EJ17: 800 | EK17: 4100 | EL17: 0 | EM17: 1490.18 | EN17: 500 | EO17: 565.63 | EP17: 50 | EQ17: 2340 | ER17: 100 | ES17: 0 | ET17: 0 | EU17: 0 | EV17: 0 | EW17: 0 | EX17: 136917.65 | EY17: 0 | EZ17: 136917.65 | FA17: 164165.44 | FB17: 800 | FC17: 4100 | FD17: 0 | FE17: 1490.18 | FF17: 500 | FG17: 30565.63 | FH17: 50 | FI17: 2340 | FJ17: 100 | FK17: 0 | FL17: 0 | FM17: 0 | FN17: 0 | FO17: 0 | FP17: 204111.25 | FQ17: 0 | FR17: 204111.25 | FS17: 134410.56 | FT17: 800 | FU17: 4100 | FV17: 0 | FW17: 1490.18 | FX17: 500 | FY17: 9565.63 | FZ17: 50 | GA17: 2340 | GB17: 100 | GC17: 0 | GD17: 0 | GE17: 0 | GF17: 0 | GG17: 0 | GH17: 153356.37 | GI17: 0 | GJ17: 153356.37 | GK17: 134410.56 | GL17: 800 | GM17: 4100 | GN17: 0 | GO17: 1490.18 | GP17: 500 | GQ17: 9565.63 | GR17: 50 | GS17: 2340 | GT17: 100 | GU17: 0 | GV17: 0 | GW17: 0 | GX17: 0 | GY17: 0 | GZ17: 153356.37 | HA17: 0 | HB17: 153356.37 | HC17: 134410.56 | HD17: 800 | HE17: 4100 | HF17: 0 | HG17: 1490.18 | HH17: 500 | HI17: 9565.63 | HJ17: 50 | HK17: 2340 | HL17: 100 | HM17: 0 | HN17: 0 | HO17: 0 | HP17: 0 | HQ17: 0 | HR17: 153356.37 | HS17: 0 | HT17: 153356.37 | HU17: 134410.56 | HV17: 800 | HW17: 4100 | HX17: 0 | HY17: 1490.18 | HZ17: 500 | IA17: 9565.63 | IB17: 50 | IC17: 2340 | ID17: 100 | IE17: 0 | IF17: 0 | IG17: 0 | IH17: 0 | II17: 0 | IJ17: 153356.37 | IK17: 0 | IL17: 153356.37 | IM17: 134410.56 | IN17: 800 | IO17: 4100 | IP17: 0 | IQ17: 1490.18 | IR17: 500 | IS17: 9565.63 | IT17: 50 | IU17: 2340 | IV17: 100 | IW17: 0 | IX17: 0 | IY17: 0 | IZ17: 0 | JA17: 0 | JB17: 153356.37 | JC17: 0 | JD17: 153356.37 | JF17: 1838340.08 | JG17: 7550 | JH17: 1845890.08 | JJ17: 16/2022-SE | JK17: 2022-01-01 | JL17: 2022-12-31 | JM17: 1257691.18 | JN17: 22/2022-SE | JO17: Primeiro | JP17: 2022-09-26 | JQ17: 2022-12-31 | JR17: 54324.5 | JS17: 201/2023-SE | JT17: Segundo | JU17: 2023-01-01 | JV17: 2023-12-31 | JW17: 1696502.88 | JX17: =VLOOKUP($B17,'[1]BD MALA_DIRETA'!$B:$R,14,0) -> 240/2023-SE | JY17: =VLOOKUP($B17,'[1]BD MALA_DIRETA'!$B:$R,15,0) -> Terceiro | JZ17: =VLOOKUP($B17,'[1]BD MALA_DIRETA'!$B:$R,17,0) -> 2023-07-27 | KA17: 2023-12-31 | KB17: 149387.2
A18: 17 | B18: Congregação de São João Batista | C18: Casa das Crianças Menino Jesus | D18: 17.257.510/0007-37 | E18: Rua Dr. José Ória, nº 444 | F18: Planalto | G18: S.B.Campo | H18: 09890-030 | I18: 4341-6006 / 995740270 | J18: ccmj@csjbbrasil.org.br | K18: creche.batista@emeb.saobernardo.sp.gov.br | L18: SB.075441/2021-67 | M18: SB.075555/2021-54 | O18: 17/2022-SE | Q18: =VLOOKUP(B18,'[1]BD MALA_DIRETA'!$B:$R,14,0) -> 241/2023-SE | R18: =VLOOKUP(B18,'[1]BD MALA_DIRETA'!$B:$R,17,0) -> 2023-07-27 | S18: =VLOOKUP(B18,'[1]BD MALA_DIRETA'!$B:$R,15,0) -> Terceiro | T18: 1470109.24 | AF18: 1265808.22 | AG18: 4800 | AH18: 27475.38 | AI18: 7947.6 | AJ18: 15895.2 | AK18: 6885.24 | AL18: 81000 | AM18: 6000 | AN18: 0 | AO18: 1800 | AP18: 0 | AQ18: 34000 | AR18: 3000 | AS18: 3000 | AT18: 12497.6 | AU18: 1470109.24 | AW18: 98676.86 | AX18: 400 | AY18: 2300 | AZ18: 0 | BA18: 1324.6 | BB18: 573.77 | BC18: 550 | BD18: 550 | BE18: 0 | BF18: 150 | BG18: 0 | BH18: 17000 | BI18: 0 | BJ18: 0 | BK18: 5212.3 | BL18: 121525.23 | BM18: 5212.3 | BN18: 126737.53 | BO18: 98676.86 | BP18: 400 | BQ18: 2300 | BR18: 0 | BS18: 1324.6 | BT18: 573.77 | BU18: 550 | BV18: 550 | BW18: 0 | BX18: 150 | BY18: 0 | BZ18: 17000 | CA18: 0 | CB18: 0 | CC18: 662.3 | CD18: 121525.23 | CE18: 662.3 | CF18: 122187.53 | CG18: 98676.86 | CH18: 400 | CI18: 2300 | CJ18: 7947.6 | CK18: 1324.6 | CL18: 573.77 | CM18: 550 | CN18: 550 | CO18: 0 | CP18: 150 | CQ18: 0 | CR18: 0 | CS18: 0 | CT18: 0 | CU18: 662.3 | CV18: 112472.83 | CW18: 662.3 | CX18: 113135.13 | CY18: 98676.86 | CZ18: 400 | DA18: 2300 | DB18: 0 | DC18: 1324.6 | DD18: 573.77 | DE18: 550 | DF18: 550 | DG18: 0 | DH18: 150 | DI18: 0 | DJ18: 0 | DK18: 0 | DL18: 0 | DM18: 662.3 | DN18: 104525.23 | DO18: 662.3 | DP18: 105187.53 | DQ18: 98676.86 | DR18: 400 | DS18: 2300 | DT18: 0 | DU18: 1324.6 | DV18: 573.77 | DW18: 550 | DX18: 550 | DY18: 0 | DZ18: 150 | EA18: 0 | EB18: 0 | EC18: 3000 | ED18: 3000 | EE18: 662.3 | EF18: 107525.23 | EG18: 3662.3 | EH18: 111187.53 | EI18: 98676.86 | EJ18: 400 | EK18: 2300 | EL18: 0 | EM18: 1324.6 | EN18: 573.77 | EO18: 550 | EP18: 550 | EQ18: 0 | ER18: 150 | ES18: 0 | ET18: 0 | EU18: 0 | EV18: 0 | EW18: 662.3 | EX18: 104525.23 | EY18: 662.3 | EZ18: 105187.53 | FA18: 133180.51 | FB18: 400 | FC18: 2279.23 | FD18: 0 | FE18: 1324.6 | FF18: 573.77 | FG18: 30450 | FH18: 450 | FI18: 0 | FJ18: 150 | FK18: 0 | FL18: 0 | FM18: 0 | FN18: 0 | FO18: 662.3 | FP18: 168808.11 | FQ18: 662.3 | FR18: 169470.41 | FS18: 108113.31 | FT18: 400 | FU18: 2279.23 | FV18: 0 | FW18: 1324.6 | FX18: 573.77 | FY18: 9450 | FZ18: 450 | GA18: 0 | GB18: 150 | GC18: 0 | GD18: 0 | GE18: 0 | GF18: 0 | GG18: 662.3 | GH18: 122740.91 | GI18: 662.3 | GJ18: 123403.21 | GK18: 108113.31 | GL18: 400 | GM18: 2279.23 | GN18: 0 | GO18: 1324.6 | GP18: 573.77 | GQ18: 9450 | GR18: 450 | GS18: 0 | GT18: 150 | GU18: 0 | GV18: 0 | GW18: 0 | GX18: 0 | GY18: 662.3 | GZ18: 122740.91 | HA18: 662.3 | HB18: 123403.21 | HC18: 108113.31 | HD18: 400 | HE18: 2279.23 | HF18: 0 | HG18: 1324.6 | HH18: 573.77 | HI18: 9450 | HJ18: 450 | HK18: 0 | HL18: 150 | HM18: 0 | HN18: 0 | HO18: 0 | HP18: 0 | HQ18: 662.3 | HR18: 122740.91 | HS18: 662.3 | HT18: 123403.21 | HU18: 108113.31 | HV18: 400 | HW18: 2279.23 | HX18: 0 | HY18: 1324.6 | HZ18: 573.77 | IA18: 9450 | IB18: 450 | IC18: 0 | ID18: 150 | IE18: 0 | IF18: 0 | IG18: 0 | IH18: 0 | II18: 662.3 | IJ18: 122740.91 | IK18: 662.3 | IL18: 123403.21 | IM18: 108113.31 | IN18: 400 | IO18: 2279.23 | IP18: 0 | IQ18: 1324.6 | IR18: 573.77 | IS18: 9450 | IT18: 450 | IU18: 0 | IV18: 150 | IW18: 0 | IX18: 0 | IY18: 0 | IZ18: 0 | JA18: 662.3 | JB18: 122740.91 | JC18: 662.3 | JD18: 123403.21 | JF18: 1454611.64 | JG18: 15497.6 | JH18: 1470109.24 | JJ18: 17/2022-SE | JK18: 2022-01-01 | JL18: 2022-12-31 | JM18: 1069787.1 | JN18: 23/2022-SE | JO18: Primeiro | JP18: 2022-09-26 | JQ18: 2022-12-31 | JR18: 42340.8 | JS18: 202/2023-SE | JT18: Segundo | JU18: 2023-01-01 | JV18: 2023-12-31 | JW18: 1314747.96 | JX18: =VLOOKUP($B18,'[1]BD MALA_DIRETA'!$B:$R,14,0) -> 241/2023-SE | JY18: =VLOOKUP($B18,'[1]BD MALA_DIRETA'!$B:$R,15,0) -> Terceiro | JZ18: =VLOOKUP($B18,'[1]BD MALA_DIRETA'!$B:$R,17,0) -> 2023-07-27 | KA18: 2023-12-31 | KB18: 155361.28
A19: 18 | B19: Creche Jesus de Nazareth I | D19: 00.444.286/0001-02 | E19: Rua Rita Mendes de Oliveira, nº 419 | F19: Jardim das Orquídeas | G19: S.B.Campo | H19: 09854-310 | I19: 4358-3006 e 4358-2298 | J19: crechejesusdenazarethum@gmail.com | K19: creche.nazareth1@emeb.saobernardo.sp.gov.br | L19: SB.075442/2021-28 | M19: SB.075561/2021-46 | O19: 18/2022-SE | Q19: =VLOOKUP(B19,'[1]BD MALA_DIRETA'!$B:$R,14,0) -> 242/2023-SE | R19: =VLOOKUP(B19,'[1]BD MALA_DIRETA'!$B:$R,17,0) -> 2023-07-27 | S19: =VLOOKUP(B19,'[1]BD MALA_DIRETA'!$B:$R,15,0) -> Terceiro | T19: 1601557.6 | AF19: 1375961.16 | AG19: 4800 | AH19: 39600 | AI19: 7440 | AJ19: 18000 | AK19: 4336.44 | AL19: 76800 | AM19: 1800 | AN19: 25920 | AO19: 1800 | AP19: 0 | AQ19: 34000 | AR19: 3000 | AS19: 3000 | AT19: 5100 | AU19: 1601557.6 | AW19: 109345.58 | AX19: 400 | AY19: 3300 | AZ19: 0 | BA19: 1500 | BB19: 361.37 | BC19: 150 | BD19: 150 | BE19: 2160 | BF19: 150 | BG19: 0 | BH19: 17000 | BI19: 0 | BJ19: 0 | BK19: 4000 | BL19: 134516.95 | BM19: 4000 | BN19: 138516.95 | BO19: 109345.58 | BP19: 400 | BQ19: 3300 | BR19: 0 | BS19: 1500 | BT19: 361.37 | BU19: 150 | BV19: 150 | BW19: 2160 | BX19: 150 | BY19: 0 | BZ19: 17000 | CA19: 0 | CB19: 0 | CC19: 100 | CD19: 134516.95 | CE19: 100 | CF19: 134616.95 | CG19: 109345.58 | CH19: 400 | CI19: 3300 | CJ19: 7440 | CK19: 1500 | CL19: 361.37 | CM19: 150 | CN19: 150 | CO19: 2160 | CP19: 150 | CQ19: 0 | CR19: 0 | CS19: 0 | CT19: 0 | CU19: 100 | CV19: 124956.95 | CW19: 100 | CX19: 125056.95 | CY19: 109345.58 | CZ19: 400 | DA19: 3300 | DB19: 0 | DC19: 1500 | DD19: 361.37 | DE19: 150 | DF19: 150 | DG19: 2160 | DH19: 150 | DI19: 0 | DJ19: 0 | DK19: 0 | DL19: 0 | DM19: 100 | DN19: 117516.95 | DO19: 100 | DP19: 117616.95 | DQ19: 109345.58 | DR19: 400 | DS19: 3300 | DT19: 0 | DU19: 1500 | DV19: 361.37 | DW19: 150 | DX19: 150 | DY19: 2160 | DZ19: 150 | EA19: 0 | EB19: 0 | EC19: 3000 | ED19: 3000 | EE19: 100 | EF19: 120516.95 | EG19: 3100 | EH19: 123616.95 | EI19: 109345.58 | EJ19: 400 | EK19: 3300 | EL19: 0 | EM19: 1500 | EN19: 361.37 | EO19: 150 | EP19: 150 | EQ19: 2160 | ER19: 150 | ES19: 0 | ET19: 0 | EU19: 0 | EV19: 0 | EW19: 100 | EX19: 117516.95 | EY19: 100 | EZ19: 117616.95 | FA19: 141252.68 | FB19: 400 | FC19: 3300 | FD19: 0 | FE19: 1500 | FF19: 361.37 | FG19: 30150 | FH19: 150 | FI19: 2160 | FJ19: 150 | FK19: 0 | FL19: 0 | FM19: 0 | FN19: 0 | FO19: 100 | FP19: 179424.05 | FQ19: 100 | FR19: 179524.05 | FS19: 115727 | FT19: 400 | FU19: 3300 | FV19: 0 | FW19: 1500 | FX19: 361.37 | FY19: 9150 | FZ19: 150 | GA19: 2160 | GB19: 150 | GC19: 0 | GD19: 0 | GE19: 0 | GF19: 0 | GG19: 100 | GH19: 132898.37 | GI19: 100 | GJ19: 132998.37 | GK19: 115727 | GL19: 400 | GM19: 3300 | GN19: 0 | GO19: 1500 | GP19: 361.37 | GQ19: 9150 | GR19: 150 | GS19: 2160 | GT19: 150 | GU19: 0 | GV19: 0 | GW19: 0 | GX19: 0 | GY19: 100 | GZ19: 132898.37 | HA19: 100 | HB19: 132998.37 | HC19: 115727 | HD19: 400 | HE19: 3300 | HF19: 0 | HG19: 1500 | HH19: 361.37 | HI19: 9150 | HJ19: 150 | HK19: 2160 | HL19: 150 | HM19: 0 | HN19: 0 | HO19: 0 | HP19: 0 | HQ19: 100 | HR19: 132898.37 | HS19: 100 | HT19: 132998.37 | HU19: 115727 | HV19: 400 | HW19: 3300 | HX19: 0 | HY19: 1500 | HZ19: 361.37 | IA19: 9150 | IB19: 150 | IC19: 2160 | ID19: 150 | IE19: 0 | IF19: 0 | IG19: 0 | IH19: 0 | II19: 100 | IJ19: 132898.37 | IK19: 100 | IL19: 132998.37 | IM19: 115727 | IN19: 400 | IO19: 3300 | IP19: 0 | IQ19: 1500 | IR19: 361.37 | IS19: 9150 | IT19: 150 | IU19: 2160 | IV19: 150 | IW19: 0 | IX19: 0 | IY19: 0 | IZ19: 0 | JA19: 100 | JB19: 132898.37 | JC19: 100 | JD19: 132998.37 | JF19: 1593457.6 | JG19: 8100 | JH19: 1601557.6 | JJ19: 18/2022-SE | JK19: 2022-01-01 | JL19: 2022-12-31 | JM19: 1143444.18 | JN19: 24/2022-SE | JO19: Primeiro | JP19: 2022-09-26 | JQ19: 2022-12-31 | JR19: 52324.3 | JS19: 203/2023-SE | JT19: Segundo | JU19: 2023-01-01 | JV19: 2023-12-31 | JW19: 1462743.4 | JX19: =VLOOKUP($B19,'[1]BD MALA_DIRETA'!$B:$R,14,0) -> 242/2023-SE | JY19: =VLOOKUP($B19,'[1]BD MALA_DIRETA'!$B:$R,15,0) -> Terceiro | JZ19: =VLOOKUP($B19,'[1]BD MALA_DIRETA'!$B:$R,17,0) -> 2023-07-27 | KA19: 2023-12-31 | KB19: 138814.2
A20: 19 | B20: Creche Jesus de Nazareth II | D20: 00.444.286/0002-85 | E20: Rua Elizabeth Lobo Garcia, 1315 | F20: Jardim Las Palmas | G20: S.B.Campo | H20: 09850-130 | I20: 4357-9481 | J20: crechenazarethdois@gmail.com | K20: creche.nazareth2@emeb.saobernardo.sp.gov.br | L20: SB.075444/2021-40 | M20: SB.075565/2021-80 | O20: 19/2022-SE | Q20: =VLOOKUP(B20,'[1]BD MALA_DIRETA'!$B:$R,14,0) -> 243/2023-SE | R20: 2023-07-31 | S20: =VLOOKUP(B20,'[1]BD MALA_DIRETA'!$B:$R,15,0) -> Terceiro | T20: 2048232.04 | AF20: 1792933.72 | AG20: =SUM(AX20,BP20,CH20,CZ20,DR20,EJ20,FB20,FT20,GL20,HD20,HV20,IN20) -> 10800 | AH20: 49800 | AI20: 10680 | AJ20: 21600 | AK20: 6028.32 | AL20: 76200 | AM20: 3000 | AN20: 28440 | AO20: 1800 | AP20: 0 | AQ20: 34000 | AR20: 3000 | AS20: 3000 | AT20: 6950 | AU20: 2048232.04 | AW20: 142113.11 | AX20: 900 | AY20: 4150 | AZ20: 0 | BA20: 1800 | BB20: 502.36 | BC20: 100 | BD20: 250 | BE20: 2370 | BF20: 150 | BG20: 0 | BH20: 17000 | BI20: 0 | BJ20: 0 | BK20: 4750 | BL20: 169335.47 | BM20: 4750 | BN20: 174085.47 | BO20: 142113.11 | BP20: 900 | BQ20: 4150 | BR20: 0 | BS20: 1800 | BT20: 502.36 | BU20: 100 | BV20: 250 | BW20: 2370 | BX20: 150 | BY20: 0 | BZ20: 17000 | CA20: 0 | CB20: 0 | CC20: 200 | CD20: 169335.47 | CE20: 200 | CF20: 169535.47 | CG20: 142113.11 | CH20: 900 | CI20: 4150 | CJ20: 10680 | CK20: 1800 | CL20: 502.36 | CM20: 100 | CN20: 250 | CO20: 2370 | CP20: 150 | CQ20: 0 | CR20: 0 | CS20: 0 | CT20: 0 | CU20: 200 | CV20: 163015.47 | CW20: 200 | CX20: 163215.47 | CY20: 142113.11 | CZ20: 900 | DA20: 4150 | DB20: 0 | DC20: 1800 | DD20: 502.36 | DE20: 100 | DF20: 250 | DG20: 2370 | DH20: 150 | DI20: 0 | DJ20: 0 | DK20: 0 | DL20: 0 | DM20: 200 | DN20: 152335.47 | DO20: 200 | DP20: 152535.47 | DQ20: 142113.11 | DR20: 900 | DS20: 4150 | DT20: 0 | DU20: 1800 | DV20: 502.36 | DW20: 100 | DX20: 250 | DY20: 2370 | DZ20: 150 | EA20: 0 | EB20: 0 | EC20: 3000 | ED20: 3000 | EE20: 200 | EF20: 155335.47 | EG20: 3200 | EH20: 158535.47 | EI20: 142113.11 | EJ20: 900 | EK20: 4150 | EL20: 0 | EM20: 1800 | EN20: 502.36 | EO20: 100 | EP20: 250 | EQ20: 2370 | ER20: 150 | ES20: 0 | ET20: 0 | EU20: 0 | EV20: 0 | EW20: 200 | EX20: 152335.47 | EY20: 200 | EZ20: 152535.47 | FA20: 185901.31 | FB20: 900 | FC20: 4150 | FD20: 0 | FE20: 1800 | FF20: 502.36 | FG20: 30100 | FH20: 250 | FI20: 2370 | FJ20: 150 | FK20: 0 | FL20: 0 | FM20: 0 | FN20: 0 | FO20: 200 | FP20: 226123.67 | FQ20: 200 | FR20: 226323.67 | FS20: 150870.75 | FT20: 900 | FU20: 4150 | FV20: 0 | FW20: 1800 | FX20: 502.36 | FY20: 9100 | FZ20: 250 | GA20: 2370 | GB20: 150 | GC20: 0 | GD20: 0 | GE20: 0 | GF20: 0 | GG20: 200 | GH20: 170093.11 | GI20: 200 | GJ20: 170293.11 | GK20: 150870.75 | GL20: 900 | GM20: 4150 | GN20: 0 | GO20: 1800 | GP20: 502.36 | GQ20: 9100 | GR20: 250 | GS20: 2370 | GT20: 150 | GU20: 0 | GV20: 0 | GW20: 0 | GX20: 0 | GY20: 200 | GZ20: 170093.11 | HA20: 200 | HB20: 170293.11 | HC20: 150870.75 | HD20: 900 | HE20: 4150 | HF20: 0 | HG20: 1800 | HH20: 502.36 | HI20: 9100 | HJ20: 250 | HK20: 2370 | HL20: 150 | HM20: 0 | HN20: 0 | HO20: 0 | HP20: 0 | HQ20: 200 | HR20: 170093.11 | HS20: 200 | HT20: 170293.11 | HU20: 150870.75 | HV20: 900 | HW20: 4150 | HX20: 0 | HY20: 1800 | HZ20: 502.36 | IA20: 9100 | IB20: 250 | IC20: 2370 | ID20: 150 | IE20: 0 | IF20: 0 | IG20: 0 | IH20: 0 | II20: 200 | IJ20: 170093.11 | IK20: 200 | IL20: 170293.11 | IM20: 150870.75 | IN20: 900 | IO20: 4150 | IP20: 0 | IQ20: 1800 | IR20: 502.36 | IS20: 9100 | IT20: 250 | IU20: 2370 | IV20: 150 | IW20: 0 | IX20: 0 | IY20: 0 | IZ20: 0 | JA20: 200 | JB20: 170093.11 | JC20: 200 | JD20: 170293.11 | JF20: 2038282.04 | JG20: 9950 | JH20: 2048232.04 | JJ20: 19/2022-SE | JK20: 2022-01-01 | JL20: 2022-12-31 | JM20: 1433785.44 | JN20: 25/2022-SE | JO20: Primeiro | JP20: 2022-09-26 | JQ20: 2022-12-31 | JR20: 64870.8 | JS20: 204/2023-SE | JT20: Segundo | JU20: 2023-01-01 | JV20: 2023-12-31 | JW20: 1885655.64 | JX20: =VLOOKUP($B20,'[1]BD MALA_DIRETA'!$B:$R,14,0) -> 243/2023-SE | JY20: =VLOOKUP($B20,'[1]BD MALA_DIRETA'!$B:$R,15,0) -> Terceiro | JZ20: 2023-07-31 | KA20: 2023-12-31 | KB20: 162576.4
A21: 20 | B21: Espaço Solidário Associação Assistencial I | D21: 03.048.749/0006-01 | E21: Avenida Barão de Mauá (Ch. Inglesa), nº 523 | F21: Centro | G21: S.B.Campo | H21: 09726-000 | I21: 4103-5974 | J21: espaço.solidario@uol.com.br | K21: espaco.solidario1@emeb.saobernardo.sp.gov.br | L21: SB.099024/2021-06 | M21: SB.099323/2021-06 | O21: 20/2022-SE | Q21: =VLOOKUP(B21,'[1]BD MALA_DIRETA'!$B:$R,14,0) -> 244/2023-SE | R21: =VLOOKUP(B21,'[1]BD MALA_DIRETA'!$B:$R,17,0) -> 2023-07-27 | S21: =VLOOKUP(B21,'[1]BD MALA_DIRETA'!$B:$R,15,0) -> Terceiro | T21: 1496956.6 | AF21: =SUM(AW21,BO21,CG21,CY21,DQ21,EI21,FA21,FS21,GK21,HC21,HU21,IM21) -> 1190048.72 | AG21: 18000 | AH21: 28800 | AI21: 5298.36 | AJ21: 10596.72 | AK21: 2072.04 | AL21: 81402.12 | AM21: 2064 | AN21: 24264 | AO21: 1800 | AP21: 89360.64 | AQ21: 34000 | AR21: 3000 | AS21: 3000 | AT21: 3250 | AU21: 1496956.6 | AW21: 94581.86 | AX21: 1500 | AY21: 2400 | AZ21: 0 | BA21: 883.06 | BB21: 172.67 | BC21: 346.01 | BD21: 172 | BE21: 2022 | BF21: 150 | BG21: 7446.72 | BH21: 17000 | BI21: 0 | BJ21: 0 | BK21: 3250 | BL21: 126674.32 | BM21: 3250 | BN21: 129924.32 | BO21: 94581.86 | BP21: 1500 | BQ21: 2400 | BR21: 0 | BS21: 883.06 | BT21: 172.67 | BU21: 346.01 | BV21: 172 | BW21: 2022 | BX21: 150 | BY21: 7446.72 | BZ21: 17000 | CA21: 0 | CB21: 0 | CC21: 0 | CD21: 126674.32 | CE21: 0 | CF21: 126674.32 | CG21: 94581.86 | CH21: 1500 | CI21: 2400 | CJ21: 5298.36 | CK21: 883.06 | CL21: 172.67 | CM21: 346.01 | CN21: 172 | CO21: 2022 | CP21: 150 | CQ21: 7446.72 | CR21: 0 | CS21: 0 | CT21: 0 | CU21: 0 | CV21: 114972.68 | CW21: 0 | CX21: 114972.68 | CY21: 94581.86 | CZ21: 1500 | DA21: 2400 | DB21: 0 | DC21: 883.06 | DD21: 172.67 | DE21: 346.01 | DF21: 172 | DG21: 2022 | DH21: 150 | DI21: 7446.72 | DJ21: 0 | DK21: 0 | DL21: 0 | DM21: 0 | DN21: 109674.32 | DO21: 0 | DP21: 109674.32 | DQ21: 94581.86 | DR21: 1500 | DS21: 2400 | DT21: 0 | DU21: 883.06 | DV21: 172.67 | DW21: 346.01 | DX21: 172 | DY21: 2022 | DZ21: 150 | EA21: 7446.72 | EB21: 0 | EC21: 3000 | ED21: 3000 | EE21: 0 | EF21: 112674.32 | EG21: 3000 | EH21: 115674.32 | EI21: 94581.86 | EJ21: 1500 | EK21: 2400 | EL21: 0 | EM21: 883.06 | EN21: 172.67 | EO21: 346.01 | EP21: 172 | EQ21: 2022 | ER21: 150 | ES21: 7446.72 | ET21: 0 | EU21: 0 | EV21: 0 | EW21: 0 | EX21: 109674.32 | EY21: 0 | EZ21: 109674.32 | FA21: 122115.06 | FB21: 1500 | FC21: 2400 | FD21: 0 | FE21: 883.06 | FF21: 172.67 | FG21: 30346.01 | FH21: 172 | FI21: 2022 | FJ21: 150 | FK21: 7446.72 | FL21: 0 | FM21: 0 | FN21: 0 | FO21: 0 | FP21: 167207.52 | FQ21: 0 | FR21: 167207.52 | FS21: 100088.5 | FT21: 1500 | FU21: 2400 | FV21: 0 | FW21: 883.06 | FX21: 172.67 | FY21: 9346.01 | FZ21: 172 | GA21: 2022 | GB21: 150 | GC21: 7446.72 | GD21: 0 | GE21: 0 | GF21: 0 | GG21: 0 | GH21: 124180.96 | GI21: 0 | GJ21: 124180.96 | GK21: 100088.5 | GL21: 1500 | GM21: 2400 | GN21: 0 | GO21: 883.06 | GP21: 172.67 | GQ21: 9346.01 | GR21: 172 | GS21: 2022 | GT21: 150 | GU21: 7446.72 | GV21: 0 | GW21: 0 | GX21: 0 | GY21: 0 | GZ21: 124180.96 | HA21: 0 | HB21: 124180.96 | HC21: 100088.5 | HD21: 1500 | HE21: 2400 | HF21: 0 | HG21: 883.06 | HH21: 172.67 | HI21: 9346.01 | HJ21: 172 | HK21: 2022 | HL21: 150 | HM21: 7446.72 | HN21: 0 | HO21: 0 | HP21: 0 | HQ21: 0 | HR21: 124180.96 | HS21: 0 | HT21: 124180.96 | HU21: 100088.5 | HV21: 1500 | HW21: 2400 | HX21: 0 | HY21: 883.06 | HZ21: 172.67 | IA21: 9346.01 | IB21: 172 | IC21: 2022 | ID21: 150 | IE21: 7446.72 | IF21: 0 | IG21: 0 | IH21: 0 | II21: 0 | IJ21: 124180.96 | IK21: 0 | IL21: 124180.96 | IM21: 100088.5 | IN21: 1500 | IO21: 2400 | IP21: 0 | IQ21: 883.06 | IR21: 172.67 | IS21: 11596.01 | IT21: 172 | IU21: 2022 | IV21: 150 | IW21: 7446.72 | IX21: 0 | IY21: 0 | IZ21: 0 | JA21: 0 | JB21: 126430.96 | JC21: 0 | JD21: 126430.96 | JF21: 1490706.6 | JG21: 6250 | JH21: 1496956.6 | JJ21: 20/2022-SE | JK21: 2022-01-01 | JL21: 2022-12-31 | JM21: 987880.6 | JN21: 26/2022-SE | JO21: Primeiro | JP21: 2022-09-26 | JQ21: 2022-12-31 | JR21: 39340.9 | JS21: 205/2023-SE | JT21: Segundo | JU21: 2023-01-01 | JV21: 2023-12-31 | JW21: 1364640.2 | JX21: =VLOOKUP($B21,'[1]BD MALA_DIRETA'!$B:$R,14,0) -> 244/2023-SE | JY21: =VLOOKUP($B21,'[1]BD MALA_DIRETA'!$B:$R,15,0) -> Terceiro | JZ21: =VLOOKUP($B21,'[1]BD MALA_DIRETA'!$B:$R,17,0) -> 2023-07-27 | KA21: 2023-12-31 | KB21: 132316.4
A22: 21 | B22: Espaço Solidário Associação Assistencial II | D22: 03.048.749/0007-92 | E22: Rua dos Vianas, 413 | F22: Baeta Neves | G22: S.B.Campo | H22: 09760-280 | I22: 2598-7022 | J22: espaço.solidario@uol.com.br | K22: espaco.solidario2@emeb.saobernardo.sp.gov.br | L22: SB.099027/2021-89 | M22: SB.099326/2021-89 | O22: 21/2022-SE | Q22: =VLOOKUP(B22,'[1]BD MALA_DIRETA'!$B:$R,14,0) -> 245/2023-SE | R22: =VLOOKUP(B22,'[1]BD MALA_DIRETA'!$B:$R,17,0) -> 2023-07-27 | S22: =VLOOKUP(B22,'[1]BD MALA_DIRETA'!$B:$R,15,0) -> Quarto | T22: 1938813.13 | AF22: 1516914.13 | AG22: 24000 | AH22: 41708.28 | AI22: 8278.8 | AJ22: 16557.48 | AK22: 2520 | AL22: 82160.76 | AM22: 2520 | AN22: 27144 | AO22: 1800 | AP22: 170659.68 | AQ22: 34000 | AR22: 3000 | AS22: 3000 | AT22: 4550 | AU22: 1938813.13 | AW22: 125123.42 | AX22: 2000 | AY22: 4000 | AZ22: 0 | BA22: 1379.79 | BB22: 210 | BC22: 409.23 | BD22: 210 | BE22: 2262 | BF22: 150 | BG22: 14221.64 | BH22: 17000 | BI22: 0 | BJ22: 0 | BK22: 4550 | BL22: 166966.08 | BM22: 4550 | BN22: 171516.08 | BO22: 125123.42 | BP22: 2000 | BQ22: 4000 | BR22: 0 | BS22: 1379.79 | BT22: 210 | BU22: 409.23 | BV22: 210 | BW22: 2262 | BX22: 150 | BY22: 14221.64 | BZ22: 17000 | CA22: 0 | CB22: 0 | CC22: 0 | CD22: 166966.08 | CE22: 0 | CF22: 166966.08 | CG22: 125123.42 | CH22: 2000 | CI22: 4000 | CJ22: 8278.8 | CK22: 1379.79 | CL22: 210 | CM22: 409.23 | CN22: 210 | CO22: 2262 | CP22: 150 | CQ22: 14221.64 | CR22: 0 | CS22: 0 | CT22: 0 | CU22: 0 | CV22: 158244.88 | CW22: 0 | CX22: 158244.88 | CY22: 125123.42 | CZ22: 2000 | DA22: 4000 | DB22: 0 | DC22: 1379.79 | DD22: 210 | DE22: 409.23 | DF22: 210 | DG22: 2262 | DH22: 150 | DI22: 14221.64 | DJ22: 0 | DK22: 0 | DL22: 0 | DM22: 0 | DN22: 149966.08 | DO22: 0 | DP22: 149966.08 | DQ22: 125123.42 | DR22: 2000 | DS22: 4000 | DT22: 0 | DU22: 1379.79 | DV22: 210 | DW22: 409.23 | DX22: 210 | DY22: 2262 | DZ22: 150 | EA22: 14221.64 | EB22: 0 | EC22: 3000 | ED22: 3000 | EE22: 0 | EF22: 152966.08 | EG22: 3000 | EH22: 155966.08 | EI22: 125123.42 | EJ22: 2000 | EK22: 4000 | EL22: 0 | EM22: 1379.79 | EN22: 210 | EO22: 409.23 | EP22: 210 | EQ22: 2262 | ER22: 150 | ES22: 14221.64 | ET22: 0 | EU22: 0 | EV22: 0 | EW22: 0 | EX22: 149966.08 | EY22: 0 | EZ22: 149966.08 | FA22: 166489.86 | FB22: 2000 | FC22: 2951.38 | FD22: 0 | FE22: 1379.79 | FF22: 210 | FG22: 30409.23 | FH22: 210 | FI22: 2262 | FJ22: 150 | FK22: 14221.64 | FL22: 0 | FM22: 0 | FN22: 0 | FO22: 0 | FP22: 220283.9 | FQ22: 0 | FR22: 220283.9 | FS22: 119936.75 | FT22: 2000 | FU22: 2951.38 | FV22: 0 | FW22: 1379.79 | FX22: 210 | FY22: 9409.23 | FZ22: 210 | GA22: 2262 | GB22: 150 | GC22: 14221.64 | GD22: 0 | GE22: 0 | GF22: 0 | GG22: 0 | GH22: 152730.79 | GI22: 0 | GJ22: 152730.79 | GK22: 119936.75 | GL22: 2000 | GM22: 2951.38 | GN22: 0 | GO22: 1379.79 | GP22: 210 | GQ22: 9409.23 | GR22: 210 | GS22: 2262 | GT22: 150 | GU22: 14221.64 | GV22: 0 | GW22: 0 | GX22: 0 | GY22: 0 | GZ22: 152730.79 | HA22: 0 | HB22: 152730.79 | HC22: 119936.75 | HD22: 2000 | HE22: 2951.38 | HF22: 0 | HG22: 1379.79 | HH22: 210 | HI22: 9409.23 | HJ22: 210 | HK22: 2262 | HL22: 150 | HM22: 14221.64 | HN22: 0 | HO22: 0 | HP22: 0 | HQ22: 0 | HR22: 152730.79 | HS22: 0 | HT22: 152730.79 | HU22: 119936.75 | HV22: 2000 | HW22: 2951.38 | HX22: 0 | HY22: 1379.79 | HZ22: 210 | IA22: 9409.23 | IB22: 210 | IC22: 2262 | ID22: 150 | IE22: 14221.64 | IF22: 0 | IG22: 0 | IH22: 0 | II22: 0 | IJ22: 152730.79 | IK22: 0 | IL22: 152730.79 | IM22: 119936.75 | IN22: 2000 | IO22: 2951.38 | IP22: 0 | IQ22: 1379.79 | IR22: 210 | IS22: 11659.23 | IT22: 210 | IU22: 2262 | IV22: 150 | IW22: 14221.64 | IX22: 0 | IY22: 0 | IZ22: 0 | JA22: 0 | JB22: 154980.79 | JC22: 0 | JD22: 154980.79 | JF22: 1931263.13 | JG22: 7550 | JH22: 1938813.13 | JJ22: 21/2022-SE | JK22: 2022-01-01 | JL22: 2022-12-31 | JM22: 1554878.93 | JN22: 1/2022-SE | JO22: Primeiro | JP22: 2022-05-03 | JQ22: 2022-12-31 | JR22: -210688.67 | JS22: 27/2022-SE | JT22: Segundo | JU22: 2022-09-26 | JV22: 2022-12-31 | JW22: 54304.5 | JX22: 206/2023-SE | JY22: Terceiro | JZ22: 2023-01-01 | KA22: 2023-12-31 | KB22: 1852421.76 | KC22: =VLOOKUP($B22,'[1]BD MALA_DIRETA'!$B:$R,14,0) -> 245/2023-SE | KD22: =VLOOKUP($B22,'[1]BD MALA_DIRETA'!$B:$R,15,0) -> Quarto | KE22: =VLOOKUP($B22,'[1]BD MALA_DIRETA'!$B:$R,17,0) -> 2023-07-27 | KF22: 2023-12-31 | KG22: =VLOOKUP($B22,'[1]BD MALA_DIRETA'!$B:$GW,196,0) -> 86391.37
A23: 22 | B23: Espaço Solidário Associação Assistencial III | D23: 03.048.749/0008-73 | E23: Rua Dom Vasco Mascarenhas, 163 | F23: Jardim Silvina | G23: S.B.Campo | H23: 09791-140 | I23: 4339-7779 | J23: espaço.solidario@uol.com.br | K23: espaco.solidario3@emeb.saobernardo.sp.gov.br | L23: SB.099028/2021-40 | M23: SB.099328/2021-01 | O23: 22/2022-SE | Q23: =VLOOKUP(B23,'[1]BD MALA_DIRETA'!$B:$R,14,0) -> 246/2023-SE | R23: =VLOOKUP(B23,'[1]BD MALA_DIRETA'!$B:$R,17,0) -> 2023-07-27 | S23: =VLOOKUP(B23,'[1]BD MALA_DIRETA'!$B:$R,15,0) -> Terceiro | T23: 1537133.16 | AF23: 1204314.16 | AG23: 18000 | AH23: 28800 | AI23: 5695.8 | AJ23: 11391.6 | AK23: 2772 | AL23: 82764.36 | AM23: 2784 | AN23: 24264 | AO23: 1800 | AP23: 111297.24 | AQ23: 34000 | AR23: 3000 | AS23: 3000 | AT23: 3250 | AU23: 1537133.16 | AW23: 95718.43 | AX23: 1500 | AY23: 2400 | AZ23: 0 | BA23: 949.3 | BB23: 231 | BC23: 459.53 | BD23: 232 | BE23: 2022 | BF23: 150 | BG23: 9274.77 | BH23: 17000 | BI23: 0 | BJ23: 0 | BK23: 3250 | BL23: 129937.03 | BM23: 3250 | BN23: 133187.03 | BO23: 95718.43 | BP23: 1500 | BQ23: 2400 | BR23: 0 | BS23: 949.3 | BT23: 231 | BU23: 459.53 | BV23: 232 | BW23: 2022 | BX23: 150 | BY23: 9274.77 | BZ23: 17000 | CA23: 0 | CB23: 0 | CC23: 0 | CD23: 129937.03 | CE23: 0 | CF23: 129937.03 | CG23: 95718.43 | CH23: 1500 | CI23: 2400 | CJ23: 5695.8 | CK23: 949.3 | CL23: 231 | CM23: 459.53 | CN23: 232 | CO23: 2022 | CP23: 150 | CQ23: 9274.77 | CR23: 0 | CS23: 0 | CT23: 0 | CU23: 0 | CV23: 118632.83 | CW23: 0 | CX23: 118632.83 | CY23: 95718.43 | CZ23: 1500 | DA23: 2400 | DB23: 0 | DC23: 949.3 | DD23: 231 | DE23: 459.53 | DF23: 232 | DG23: 2022 | DH23: 150 | DI23: 9274.77 | DJ23: 0 | DK23: 0 | DL23: 0 | DM23: 0 | DN23: 112937.03 | DO23: 0 | DP23: 112937.03 | DQ23: 95718.43 | DR23: 1500 | DS23: 2400 | DT23: 0 | DU23: 949.3 | DV23: 231 | DW23: 459.53 | DX23: 232 | DY23: 2022 | DZ23: 150 | EA23: 9274.77 | EB23: 0 | EC23: 3000 | ED23: 3000 | EE23: 0 | EF23: 115937.03 | EG23: 3000 | EH23: 118937.03 | EI23: 95718.43 | EJ23: 1500 | EK23: 2400 | EL23: 0 | EM23: 949.3 | EN23: 231 | EO23: 459.53 | EP23: 232 | EQ23: 2022 | ER23: 150 | ES23: 9274.77 | ET23: 0 | EU23: 0 | EV23: 0 | EW23: 0 | EX23: 112937.03 | EY23: 0 | EZ23: 112937.03 | FA23: 123564.93 | FB23: 1500 | FC23: 2400 | FD23: 0 | FE23: 949.3 | FF23: 231 | FG23: 30459.53 | FH23: 232 | FI23: 2022 | FJ23: 150 | FK23: 9274.77 | FL23: 0 | FM23: 0 | FN23: 0 | FO23: 0 | FP23: 170783.53 | FQ23: 0 | FR23: 170783.53 | FS23: 101287.73 | FT23: 1500 | FU23: 2400 | FV23: 0 | FW23: 949.3 | FX23: 231 | FY23: 9459.53 | FZ23: 232 | GA23: 2022 | GB23: 150 | GC23: 9274.77 | GD23: 0 | GE23: 0 | GF23: 0 | GG23: 0 | GH23: 127506.33 | GI23: 0 | GJ23: 127506.33 | GK23: 101287.73 | GL23: 1500 | GM23: 2400 | GN23: 0 | GO23: 949.3 | GP23: 231 | GQ23: 9459.53 | GR23: 232 | GS23: 2022 | GT23: 150 | GU23: 9274.77 | GV23: 0 | GW23: 0 | GX23: 0 | GY23: 0 | GZ23: 127506.33 | HA23: 0 | HB23: 127506.33 | HC23: 101287.73 | HD23: 1500 | HE23: 2400 | HF23: 0 | HG23: 949.3 | HH23: 231 | HI23: 9459.53 | HJ23: 232 | HK23: 2022 | HL23: 150 | HM23: 9274.77 | HN23: 0 | HO23: 0 | HP23: 0 | HQ23: 0 | HR23: 127506.33 | HS23: 0 | HT23: 127506.33 | HU23: 101287.73 | HV23: 1500 | HW23: 2400 | HX23: 0 | HY23: 949.3 | HZ23: 231 | IA23: 9459.53 | IB23: 232 | IC23: 2022 | ID23: 150 | IE23: 9274.77 | IF23: 0 | IG23: 0 | IH23: 0 | II23: 0 | IJ23: 127506.33 | IK23: 0 | IL23: 127506.33 | IM23: 101287.73 | IN23: 1500 | IO23: 2400 | IP23: 0 | IQ23: 949.3 | IR23: 231 | IS23: 11709.53 | IT23: 232 | IU23: 2022 | IV23: 150 | IW23: 9274.77 | IX23: 0 | IY23: 0 | IZ23: 0 | JA23: 0 | JB23: 129756.33 | JC23: 0 | JD23: 129756.33 | JF23: 1530883.16 | JG23: 6250 | JH23: 1537133.16 | JJ23: 22/2022-SE | JK23: 2022-01-01 | JL23: 2022-12-31 | JM23: 1031174.78 | JN23: 28/2022-SE | JO23: Primeiro | JP23: 2022-09-28 | JQ23: 2022-12-31 | JR23: 39967 | JS23: 207/2023-SE | JT23: Segundo | JU23: 2023-01-01 | JV23: 2023-12-31 | JW23: 1404190.16 | JX23: =VLOOKUP($B23,'[1]BD MALA_DIRETA'!$B:$R,14,0) -> 246/2023-SE | JY23: =VLOOKUP($B23,'[1]BD MALA_DIRETA'!$B:$R,15,0) -> Terceiro | JZ23: =VLOOKUP($B23,'[1]BD MALA_DIRETA'!$B:$R,17,0) -> 2023-07-27 | KA23: 2023-12-31 | KB23: 132943
A24: 23 | B24: Instituição Assistencial e Educacional Jardim de Esperança | C24: Jardim de Esperança | D24: 02.732.586/0001-04 | E24: Rua Eugênia Sá Vitale, nº 1120 | F24: Taboão | G24: S.B.Campo | H24: 09665-000 | I24: 4173-3230 | J24: presidencia@jardimdeesperanca.org.br | K24: jardim.esperanca@emeb.saobernardo.sp.gov.br | L24: SB.075447/2021-23 | M24: SB.075567/2021-02 | O24: 25/2022-SE | Q24: =VLOOKUP(B24,'[1]BD MALA_DIRETA'!$B:$R,14,0) -> 247/2023-SE | R24: =VLOOKUP(B24,'[1]BD MALA_DIRETA'!$B:$R,17,0) -> 2023-07-27 | S24: =VLOOKUP(B24,'[1]BD MALA_DIRETA'!$B:$R,15,0) -> Terceiro | T24: 1953947.12 | AF24: 1725187.48 | AG24: 3600 | AH24: 36000 | AI24: 7956 | AJ24: 15900 | AK24: 3635.64 | AL24: 81000 | AM24: 3984 | AN24: 24984 | AO24: 1800 | AP24: 0 | AQ24: 34000 | AR24: 3000 | AS24: 3000 | AT24: 9900 | AU24: 1953947.12 | AW24: 137162.69 | AX24: 300 | AY24: 3000 | AZ24: 0 | BA24: 1325 | BB24: 302.97 | BC24: 500 | BD24: 332 | BE24: 2082 | BF24: 150 | BG24: 0 | BH24: 17000 | BI24: 0 | BJ24: 0 | BK24: 4400 | BL24: 162154.66 | BM24: 4400 | BN24: 166554.66 | BO24: 137162.69 | BP24: 300 | BQ24: 3000 | BR24: 0 | BS24: 1325 | BT24: 302.97 | BU24: 500 | BV24: 332 | BW24: 2082 | BX24: 150 | BY24: 0 | BZ24: 17000 | CA24: 0 | CB24: 0 | CC24: 500 | CD24: 162154.66 | CE24: 500 | CF24: 162654.66 | CG24: 137162.69 | CH24: 300 | CI24: 3000 | CJ24: 7956 | CK24: 1325 | CL24: 302.97 | CM24: 500 | CN24: 332 | CO24: 2082 | CP24: 150 | CQ24: 0 | CR24: 0 | CS24: 0 | CT24: 0 | CU24: 500 | CV24: 153110.66 | CW24: 500 | CX24: 153610.66 | CY24: 137162.69 | CZ24: 300 | DA24: 3000 | DB24: 0 | DC24: 1325 | DD24: 302.97 | DE24: 500 | DF24: 332 | DG24: 2082 | DH24: 150 | DI24: 0 | DJ24: 0 | DK24: 0 | DL24: 0 | DM24: 500 | DN24: 145154.66 | DO24: 500 | DP24: 145654.66 | DQ24: 137162.69 | DR24: 300 | DS24: 3000 | DT24: 0 | DU24: 1325 | DV24: 302.97 | DW24: 500 | DX24: 332 | DY24: 2082 | DZ24: 150 | EA24: 0 | EB24: 0 | EC24: 3000 | ED24: 3000 | EE24: 500 | EF24: 148154.66 | EG24: 3500 | EH24: 151654.66 | EI24: 137162.69 | EJ24: 300 | EK24: 3000 | EL24: 0 | EM24: 1325 | EN24: 302.97 | EO24: 500 | EP24: 332 | EQ24: 2082 | ER24: 150 | ES24: 0 | ET24: 0 | EU24: 0 | EV24: 0 | EW24: 500 | EX24: 145154.66 | EY24: 500 | EZ24: 145654.66 | FA24: 176780.29 | FB24: 300 | FC24: 3000 | FD24: 0 | FE24: 1325 | FF24: 302.97 | FG24: 30500 | FH24: 332 | FI24: 2082 | FJ24: 150 | FK24: 0 | FL24: 0 | FM24: 0 | FN24: 0 | FO24: 500 | FP24: 214772.26 | FQ24: 500 | FR24: 215272.26 | FS24: 145086.21 | FT24: 300 | FU24: 3000 | FV24: 0 | FW24: 1325 | FX24: 302.97 | FY24: 9500 | FZ24: 332 | GA24: 2082 | GB24: 150 | GC24: 0 | GD24: 0 | GE24: 0 | GF24: 0 | GG24: 500 | GH24: 162078.18 | GI24: 500 | GJ24: 162578.18 | GK24: 145086.21 | GL24: 300 | GM24: 3000 | GN24: 0 | GO24: 1325 | GP24: 302.97 | GQ24: 9500 | GR24: 332 | GS24: 2082 | GT24: 150 | GU24: 0 | GV24: 0 | GW24: 0 | GX24: 0 | GY24: 500 | GZ24: 162078.18 | HA24: 500 | HB24: 162578.18 | HC24: 145086.21 | HD24: 300 | HE24: 3000 | HF24: 0 | HG24: 1325 | HH24: 302.97 | HI24: 9500 | HJ24: 332 | HK24: 2082 | HL24: 150 | HM24: 0 | HN24: 0 | HO24: 0 | HP24: 0 | HQ24: 500 | HR24: 162078.18 | HS24: 500 | HT24: 162578.18 | HU24: 145086.21 | HV24: 300 | HW24: 3000 | HX24: 0 | HY24: 1325 | HZ24: 302.97 | IA24: 9500 | IB24: 332 | IC24: 2082 | ID24: 150 | IE24: 0 | IF24: 0 | IG24: 0 | IH24: 0 | II24: 500 | IJ24: 162078.18 | IK24: 500 | IL24: 162578.18 | IM24: 145086.21 | IN24: 300 | IO24: 3000 | IP24: 0 | IQ24: 1325 | IR24: 302.97 | IS24: 9500 | IT24: 332 | IU24: 2082 | IV24: 150 | IW24: 0 | IX24: 0 | IY24: 0 | IZ24: 0 | JA24: 500 | JB24: 162078.18 | JC24: 500 | JD24: 162578.18 | JF24: 1941047.12 | JG24: 12900 | JH24: 1953947.12 | JJ24: 25/2022-SE | JK24: 2022-01-01 | JL24: 2022-12-31 | JM24: 1267083.02 | JN24: 31/2022-SE | JO24: Primeiro | JP24: 2022-10-25 | JQ24: 2022-12-31 | JR24: 54885.8 | JS24: 208/2023-SE | JT24: Segundo | JU24: 2023-01-01 | JV24: 2023-12-31 | JW24: 1799711.92 | JX24: =VLOOKUP($B24,'[1]BD MALA_DIRETA'!$B:$R,14,0) -> 247/2023-SE | JY24: =VLOOKUP($B24,'[1]BD MALA_DIRETA'!$B:$R,15,0) -> Terceiro | JZ24: =VLOOKUP($B24,'[1]BD MALA_DIRETA'!$B:$R,17,0) -> 2023-07-27 | KA24: 2023-12-31 | KB24: 154235.2
A25: 24 | B25: Instituto Dom Décio Pereira I | C25: Creche Angela Baso Agostin | D25: 02.588.425/0002-70 | E25: Av. General Barreto de Menezes, 366 | F25: Jd. Silvina | G25: S.B.Campo | H25: 09791-150 | I25: 4338-3737 / 2786-8661 / 4941-5935 | J25: diretoria@institutodomdecio.org.br; crecheangela@institutodomdecio.org.br | K25: creche.domdecio1@emeb.saobernardo.sp.gov.br | L25: SB.075448/2021-84 | M25: SB.075572/2021-33 | O25: 26/2022-SE | Q25: =VLOOKUP(B25,'[1]BD MALA_DIRETA'!$B:$R,14,0) -> 272/2023-SE | R25: =VLOOKUP(B25,'[1]BD MALA_DIRETA'!$B:$R,17,0) -> 2023-07-27 | S25: =VLOOKUP(B25,'[1]BD MALA_DIRETA'!$B:$R,15,0) -> Quarto | T25: 3244616.71 | AF25: 2672881.33 | AG25: 39000 | AH25: 37900 | AI25: 14200 | AJ25: 27300 | AK25: 14600 | AL25: 163088.3 | AM25: 9600 | AN25: 49590 | AO25: 3000 | AP25: 99500 | AQ25: 68000 | AR25: 6000 | AS25: 6000 | AT25: 33957.08 | AU25: 3244616.71 | AW25: 205199.01 | AX25: 1500 | AY25: 3100 | AZ25: 0 | BA25: 2100 | BB25: 1100 | BC25: 900 | BD25: 800 | BE25: 4080 | BF25: 250 | BG25: 8000 | BH25: 34000 | BI25: 0 | BJ25: 0 | BK25: 7017.26 | BL25: 261029.01 | BM25: 7017.26 | BN25: 268046.27 | BO25: 205199.01 | BP25: 1500 | BQ25: 3100 | BR25: 0 | BS25: 2100 | BT25: 1100 | BU25: 900 | BV25: 800 | BW25: 4080 | BX25: 250 | BY25: 8000 | BZ25: 34000 | CA25: 0 | CB25: 0 | CC25: 517.26 | CD25: 261029.01 | CE25: 517.26 | CF25: 261546.27 | CG25: 205199.01 | CH25: 1500 | CI25: 3100 | CJ25: 13200 | CK25: 2100 | CL25: 1100 | CM25: 900 | CN25: 800 | CO25: 4080 | CP25: 250 | CQ25: 8000 | CR25: 0 | CS25: 0 | CT25: 0 | CU25: 517.26 | CV25: 240229.01 | CW25: 517.26 | CX25: 240746.27 | CY25: 205199.01 | CZ25: 1500 | DA25: 3100 | DB25: 0 | DC25: 2100 | DD25: 1100 | DE25: 900 | DF25: 800 | DG25: 4080 | DH25: 250 | DI25: 8000 | DJ25: 0 | DK25: 0 | DL25: 0 | DM25: 517.26 | DN25: 227029.01 | DO25: 517.26 | DP25: 227546.27 | DQ25: 205199.01 | DR25: 1500 | DS25: 3100 | DT25: 0 | DU25: 2100 | DV25: 1100 | DW25: 900 | DX25: 800 | DY25: 4080 | DZ25: 250 | EA25: 8000 | EB25: 0 | EC25: 6000 | ED25: 6000 | EE25: 517.26 | EF25: 233029.01 | EG25: 6517.26 | EH25: 239546.27 | EI25: 267011.08 | EJ25: 4500 | EK25: 3200 | EL25: 1000 | EM25: 2400 | EN25: 1300 | EO25: 15988.3 | EP25: 800 | EQ25: 4170 | ER25: 250 | ES25: 8500 | ET25: 0 | EU25: 0 | EV25: 0 | EW25: 18723.78 | EX25: =SUM(EI25:EU25) -> 309119.38 | EY25: =SUM(EV25:EW25) -> 18723.78 | EZ25: =SUM(EX25:EY25) -> 327843.16 | FA25: 229979.2 | FB25: 4500 | FC25: 3200 | FD25: 0 | FE25: 2400 | FF25: 1300 | FG25: 33100 | FH25: 800 | FI25: 4170 | FJ25: 250 | FK25: 8500 | FL25: 0 | FM25: 0 | FN25: 0 | FO25: 1024.5 | FP25: 288199.2 | FQ25: 1024.5 | FR25: 289223.7 | FS25: 229979.2 | FT25: 4500 | FU25: 3200 | FV25: 0 | FW25: 2400 | FX25: 1300 | FY25: 33100 | FZ25: 800 | GA25: 4170 | GB25: 250 | GC25: 8500 | GD25: 0 | GE25: 0 | GF25: 0 | GG25: 1024.5 | GH25: 288199.2 | GI25: 1024.5 | GJ25: 289223.7 | GK25: 229979.2 | GL25: 4500 | GM25: 3200 | GN25: 0 | GO25: 2400 | GP25: 1300 | GQ25: 19100 | GR25: 800 | GS25: 4170 | GT25: 250 | GU25: 8500 | GV25: 0 | GW25: 0 | GX25: 0 | GY25: 1024.5 | GZ25: 274199.2 | HA25: 1024.5 | HB25: 275223.7 | HC25: 229979.2 | HD25: 4500 | HE25: 3200 | HF25: 0 | HG25: 2400 | HH25: 1300 | HI25: 19100 | HJ25: 800 | HK25: 4170 | HL25: 250 | HM25: 8500 | HN25: 0 | HO25: 0 | HP25: 0 | HQ25: 1024.5 | HR25: 274199.2 | HS25: 1024.5 | HT25: 275223.7 | HU25: 229979.2 | HV25: 4500 | HW25: 3200 | HX25: 0 | HY25: 2400 | HZ25: 1300 | IA25: 19100 | IB25: 800 | IC25: 4170 | ID25: 250 | IE25: 8500 | IF25: 0 | IG25: 0 | IH25: 0 | II25: 1024.5 | IJ25: 274199.2 | IK25: 1024.5 | IL25: 275223.7 | IM25: 229979.2 | IN25: 4500 | IO25: 3200 | IP25: 0 | IQ25: 2400 | IR25: 1300 | IS25: 19100 | IT25: 800 | IU25: 4170 | IV25: 250 | IW25: 8500 | IX25: 0 | IY25: 0 | IZ25: 0 | JA25: 1024.5 | JB25: 274199.2 | JC25: 1024.5 | JD25: 275223.7 | JF25: 3204659.63 | JG25: 39957.08 | JH25: 3244616.71 | JJ25: 26/2022-SE | JK25: 2022-01-01 | JL25: 2022-12-31 | JM25: 931872.48 | JN25: 32/2022-SE | JO25: Primeiro | JP25: 2022-12-07 | JQ25: 2022-12-31 | JR25: 25243.3 | JS25: 209/2023-SE | JT25: Segundo | JU25: 2023-01-01 | JV25: 2023-12-31 | JW25: 2830255.24 | JX25: =VLOOKUP($B25,'[1]BD MALA_DIRETA'!$B:$R,10,0) -> 223/2023-SE | JY25: =VLOOKUP($B25,'[1]BD MALA_DIRETA'!$B:$R,11,0) -> Terceiro | JZ25: 2023-06-20 | KA25: 2023-12-31 | KB25: 306361.47 | KC25: =VLOOKUP($B25,'[1]BD MALA_DIRETA'!$B:$R,14,0) -> 272/2023-SE | KD25: =VLOOKUP($B25,'[1]BD MALA_DIRETA'!$B:$R,15,0) -> Quarto | KE25: =VLOOKUP($B25,'[1]BD MALA_DIRETA'!$B:$R,17,0) -> 2023-07-27 | KF25: 2023-12-31 | KG25: 108000
A26: 25 | B26: Instituto Dom Décio Pereira II | C26: Creche Los Angeles | D26: 02.588.425/0003-50 | E26: R. João Saldanha, 662 | F26: Pq. Los Angeles | G26: S.B.Campo | H26: 09842-200 | I26: 4342-1770 | J26: diretoria@institutodomdecio.org.br; crechelosangeles@institutodomdecio.org.br | K26: creche.domdecio2@emeb.saobernardo.sp.gov.br | L26: SB.075449/2021-45 | M26: SB.075573/2021-94 | O26: 27/2022-SE | Q26: =VLOOKUP(B26,'[1]BD MALA_DIRETA'!$B:$R,14,0) -> 248/2023-SE | R26: =VLOOKUP(B26,'[1]BD MALA_DIRETA'!$B:$R,17,0) -> 2023-07-27 | S26: =VLOOKUP(B26,'[1]BD MALA_DIRETA'!$B:$R,15,0) -> Terceiro | T26: 1169021.88 | AF26: 920501.36 | AG26: 6000 | AH26: 19200 | AI26: 5040 | AJ26: 10320 | AK26: 3480 | AL26: 77304 | AM26: 2042.52 | AN26: 21384 | AO26: 600 | AP26: 61200 | AQ26: 34000 | AR26: 3000 | AS26: 3000 | AT26: 1950 | AU26: 1169021.88 | AW26: 73783.23 | AX26: 500 | AY26: 1600 | AZ26: 0 | BA26: 860 | BB26: 290 | BC26: 192 | BD26: 170.21 | BE26: 1782 | BF26: 50 | BG26: 5100 | BH26: 17000 | BI26: 0 | BJ26: 0 | BK26: 1950 | BL26: 101327.44 | BM26: 1950 | BN26: 103277.44 | BO26: 73783.23 | BP26: 500 | BQ26: 1600 | BR26: 0 | BS26: 860 | BT26: 290 | BU26: 192 | BV26: 170.21 | BW26: 1782 | BX26: 50 | BY26: 5100 | BZ26: 17000 | CA26: 0 | CB26: 0 | CC26: 0 | CD26: 101327.44 | CE26: 0 | CF26: 101327.44 | CG26: 73783.23 | CH26: 500 | CI26: 1600 | CJ26: 5040 | CK26: 860 | CL26: 290 | CM26: 192 | CN26: 170.21 | CO26: 1782 | CP26: 50 | CQ26: 5100 | CR26: 0 | CS26: 0 | CT26: 0 | CU26: 0 | CV26: 89367.44 | CW26: 0 | CX26: 89367.44 | CY26: 73783.23 | CZ26: 500 | DA26: 1600 | DB26: 0 | DC26: 860 | DD26: 290 | DE26: 192 | DF26: 170.21 | DG26: 1782 | DH26: 50 | DI26: 5100 | DJ26: 0 | DK26: 0 | DL26: 0 | DM26: 0 | DN26: 84327.44 | DO26: 0 | DP26: 84327.44 | DQ26: 73783.23 | DR26: 500 | DS26: 1600 | DT26: 0 | DU26: 860 | DV26: 290 | DW26: 192 | DX26: 170.21 | DY26: 1782 | DZ26: 50 | EA26: 5100 | EB26: 0 | EC26: 3000 | ED26: 3000 | EE26: 0 | EF26: 87327.44 | EG26: 3000 | EH26: 90327.44 | EI26: 73783.23 | EJ26: 500 | EK26: 1600 | EL26: 0 | EM26: 860 | EN26: 290 | EO26: 192 | EP26: 170.21 | EQ26: 1782 | ER26: 50 | ES26: 5100 | ET26: 0 | EU26: 0 | EV26: 0 | EW26: 0 | EX26: 84327.44 | EY26: 0 | EZ26: 84327.44 | FA26: 91334.53 | FB26: 500 | FC26: 1600 | FD26: 0 | FE26: 860 | FF26: 290 | FG26: 30192 | FH26: 170.21 | FI26: 1782 | FJ26: 50 | FK26: 5100 | FL26: 0 | FM26: 0 | FN26: 0 | FO26: 0 | FP26: 131878.74 | FQ26: 0 | FR26: 131878.74 | FS26: 77293.49 | FT26: 500 | FU26: 1600 | FV26: 0 | FW26: 860 | FX26: 290 | FY26: 9192 | FZ26: 170.21 | GA26: 1782 | GB26: 50 | GC26: 5100 | GD26: 0 | GE26: 0 | GF26: 0 | GG26: 0 | GH26: 96837.7 | GI26: 0 | GJ26: 96837.7 | GK26: 77293.49 | GL26: 500 | GM26: 1600 | GN26: 0 | GO26: 860 | GP26: 290 | GQ26: 9192 | GR26: 170.21 | GS26: 1782 | GT26: 50 | GU26: 5100 | GV26: 0 | GW26: 0 | GX26: 0 | GY26: 0 | GZ26: 96837.7 | HA26: 0 | HB26: 96837.7 | HC26: 77293.49 | HD26: 500 | HE26: 1600 | HF26: 0 | HG26: 860 | HH26: 290 | HI26: 9192 | HJ26: 170.21 | HK26: 1782 | HL26: 50 | HM26: 5100 | HN26: 0 | HO26: 0 | HP26: 0 | HQ26: 0 | HR26: 96837.7 | HS26: 0 | HT26: 96837.7 | HU26: 77293.49 | HV26: 500 | HW26: 1600 | HX26: 0 | HY26: 860 | HZ26: 290 | IA26: 9192 | IB26: 170.21 | IC26: 1782 | ID26: 50 | IE26: 5100 | IF26: 0 | IG26: 0 | IH26: 0 | II26: 0 | IJ26: 96837.7 | IK26: 0 | IL26: 96837.7 | IM26: 77293.49 | IN26: 500 | IO26: 1600 | IP26: 0 | IQ26: 860 | IR26: 290 | IS26: 9192 | IT26: 170.21 | IU26: 1782 | IV26: 50 | IW26: 5100 | IX26: 0 | IY26: 0 | IZ26: 0 | JA26: 0 | JB26: 96837.7 | JC26: 0 | JD26: 96837.7 | JF26: 1164071.88 | JG26: 4950 | JH26: 1169021.88 | JJ26: 27/2022-SE | JK26: 2022-01-01 | JL26: 2022-12-31 | JM26: 773324.82 | JN26: 33/2022-SE | JO26: Primeiro | JP26: 2022-09-28 | JQ26: 2022-12-31 | JR26: 21122.2 | JS26: 210/2023-SE | JT26: Segundo | JU26: 2023-01-01 | JV26: 2023-12-31 | JW26: 1058919.28 | JX26: =VLOOKUP($B26,'[1]BD MALA_DIRETA'!$B:$R,14,0) -> 248/2023-SE | JY26: =VLOOKUP($B26,'[1]BD MALA_DIRETA'!$B:$R,15,0) -> Terceiro | JZ26: =VLOOKUP($B26,'[1]BD MALA_DIRETA'!$B:$R,17,0) -> 2023-07-27 | KA26: 2023-12-31 | KB26: 110102.6
A27: 26 | B27: Instituto Dom Décio Pereira III | C27: Creche Santa Clara | D27: 02.588.425/0007-84 | E27: Rua Sétimo Guazzelli, nº 113 | F27: Baeta Neves | G27: S.B.Campo | H27: 09760-600 | I27: 4330-5148 | J27: crechesantaclara@institutodomdecio.org.br | K27: creche.domdecio3@emeb.saobernardo.sp.gov.br | L27: SB.099031/2021-59 | M27: SB.099357/2021-38 | O27: 28/2022-SE | Q27: =VLOOKUP(B27,'[1]BD MALA_DIRETA'!$B:$R,14,0) -> 249/2023-SE | R27: =VLOOKUP(B27,'[1]BD MALA_DIRETA'!$B:$R,17,0) -> 2023-07-27 | S27: =VLOOKUP(B27,'[1]BD MALA_DIRETA'!$B:$R,15,0) -> Terceiro | T27: 2231006.84 | AF27: 1972683.28 | AG27: 10800 | AH27: 42000 | AI27: 10200 | AJ27: 23280 | AK27: 5400 | AL27: 81600 | AM27: 5617.56 | AN27: 29376 | AO27: 600 | AP27: 0 | AQ27: 34000 | AR27: 3000 | AS27: 3000 | AT27: 9450 | AU27: 2231006.84 | AW27: 158110.84 | AX27: 900 | AY27: 3500 | AZ27: 0 | BA27: 1940 | BB27: 450 | BC27: 550 | BD27: 468.13 | BE27: 2448 | BF27: 50 | BG27: 0 | BH27: 17000 | BI27: 0 | BJ27: 0 | BK27: 6150 | BL27: 185416.97 | BM27: 6150 | BN27: 191566.97 | BO27: 158110.84 | BP27: 900 | BQ27: 3500 | BR27: 0 | BS27: 1940 | BT27: 450 | BU27: 550 | BV27: 468.13 | BW27: 2448 | BX27: 50 | BY27: 0 | BZ27: 17000 | CA27: 0 | CB27: 0 | CC27: 300 | CD27: 185416.97 | CE27: 300 | CF27: 185716.97 | CG27: 158110.84 | CH27: 900 | CI27: 3500 | CJ27: 10200 | CK27: 1940 | CL27: 450 | CM27: 550 | CN27: 468.13 | CO27: 2448 | CP27: 50 | CQ27: 0 | CR27: 0 | CS27: 0 | CT27: 0 | CU27: 300 | CV27: 178616.97 | CW27: 300 | CX27: 178916.97 | CY27: 158110.84 | CZ27: 900 | DA27: 3500 | DB27: 0 | DC27: 1940 | DD27: 450 | DE27: 550 | DF27: 468.13 | DG27: 2448 | DH27: 50 | DI27: 0 | DJ27: 0 | DK27: 0 | DL27: 0 | DM27: 300 | DN27: 168416.97 | DO27: 300 | DP27: 168716.97 | DQ27: 158110.84 | DR27: 900 | DS27: 3500 | DT27: 0 | DU27: 1940 | DV27: 450 | DW27: 550 | DX27: 468.13 | DY27: 2448 | DZ27: 50 | EA27: 0 | EB27: 0 | EC27: 3000 | ED27: 3000 | EE27: 300 | EF27: 171416.97 | EG27: 3300 | EH27: 174716.97 | EI27: 158110.84 | EJ27: 900 | EK27: 3500 | EL27: 0 | EM27: 1940 | EN27: 450 | EO27: 550 | EP27: 468.13 | EQ27: 2448 | ER27: 50 | ES27: 0 | ET27: 0 | EU27: 0 | EV27: 0 | EW27: 300 | EX27: 168416.97 | EY27: 300 | EZ27: 168716.97 | FA27: 195787.44 | FB27: 900 | FC27: 3500 | FD27: 0 | FE27: 1940 | FF27: 450 | FG27: 30550 | FH27: 468.13 | FI27: 2448 | FJ27: 50 | FK27: 0 | FL27: 0 | FM27: 0 | FN27: 0 | FO27: 300 | FP27: 236093.57 | FQ27: 300 | FR27: 236393.57 | FS27: 165646.16 | FT27: 900 | FU27: 3500 | FV27: 0 | FW27: 1940 | FX27: 450 | FY27: 9550 | FZ27: 468.13 | GA27: 2448 | GB27: 50 | GC27: 0 | GD27: 0 | GE27: 0 | GF27: 0 | GG27: 300 | GH27: 184952.29 | GI27: 300 | GJ27: 185252.29 | GK27: 165646.16 | GL27: 900 | GM27: 3500 | GN27: 0 | GO27: 1940 | GP27: 450 | GQ27: 9550 | GR27: 468.13 | GS27: 2448 | GT27: 50 | GU27: 0 | GV27: 0 | GW27: 0 | GX27: 0 | GY27: 300 | GZ27: 184952.29 | HA27: 300 | HB27: 185252.29 | HC27: 165646.16 | HD27: 900 | HE27: 3500 | HF27: 0 | HG27: 1940 | HH27: 450 | HI27: 9550 | HJ27: 468.13 | HK27: 2448 | HL27: 50 | HM27: 0 | HN27: 0 | HO27: 0 | HP27: 0 | HQ27: 300 | HR27: 184952.29 | HS27: 300 | HT27: 185252.29 | HU27: 165646.16 | HV27: 900 | HW27: 3500 | HX27: 0 | HY27: 1940 | HZ27: 450 | IA27: 9550 | IB27: 468.13 | IC27: 2448 | ID27: 50 | IE27: 0 | IF27: 0 | IG27: 0 | IH27: 0 | II27: 300 | IJ27: 184952.29 | IK27: 300 | IL27: 185252.29 | IM27: 165646.16 | IN27: 900 | IO27: 3500 | IP27: 0 | IQ27: 1940 | IR27: 450 | IS27: 9550 | IT27: 468.13 | IU27: 2448 | IV27: 50 | IW27: 0 | IX27: 0 | IY27: 0 | IZ27: 0 | JA27: 300 | JB27: 184952.29 | JC27: 300 | JD27: 185252.29 | JF27: 2218556.84 | JG27: 12450 | JH27: 2231006.84 | JJ27: 28/2022-SE | JK27: 2022-01-01 | JL27: 2022-12-31 | JM27: 1487970.76 | JN27: 34/2022-SE | JO27: Primeiro | JP27: 2022-09-28 | JQ27: 2022-12-31 | JR27: 45354.5 | JS27: 211/2023-SE | JT27: Segundo | JU27: 2023-01-01 | JV27: 2023-12-31 | JW27: 2080653.64 | JX27: =VLOOKUP($B27,'[1]BD MALA_DIRETA'!$B:$R,14,0) -> 249/2023-SE | JY27: =VLOOKUP($B27,'[1]BD MALA_DIRETA'!$B:$R,15,0) -> Terceiro | JZ27: =VLOOKUP($B27,'[1]BD MALA_DIRETA'!$B:$R,17,0) -> 2023-07-27 | KA27: 2023-12-31 | KB27: 150353.2
A28: 27 | B28: Lar da Criança Emmanuel | C28: Lar da Criança Emmanuel | D28: 59.122.721/0001-17 | E28: Avenida Humberto de Alencar Castelo Branco, nº 2955 | F28: Alves Dias | G28: S.B.Campo | H28: 09851-000 | I28: 4109-8938 / 4109-8775 | J28: lardacriancaemmanuel@terra.com.br | K28: lar.emmanuel@emeb.saobernardo.sp.gov.br | L28: SB.075450/2021-32 | M28: SB.075576/2021-77 | O28: 29/2022-SE | Q28: =VLOOKUP(B28,'[1]BD MALA_DIRETA'!$B:$R,14,0) -> 250/2023-SE | R28: =VLOOKUP(B28,'[1]BD MALA_DIRETA'!$B:$R,17,0) -> 2023-07-27 | S28: =VLOOKUP(B28,'[1]BD MALA_DIRETA'!$B:$R,15,0) -> Terceiro | T28: 2293102.8 | AF28: 2006611.32 | AG28: 14400 | AH28: 72000 | AI28: 11855.16 | AJ28: 23710.32 | AK28: 10986 | AL28: 75000 | AM28: 0 | AN28: 32040 | AO28: 0 | AP28: 0 | AQ28: 34000 | AR28: 3000 | AS28: 3000 | AT28: 6500 | AU28: 2293102.8 | AW28: 178611.59 | AX28: 1200 | AY28: 6000 | AZ28: 0 | BA28: 1975.86 | BB28: 915.5 | BC28: 0 | BD28: 0 | BE28: 2670 | BF28: 0 | BG28: 0 | BH28: 17000 | BI28: 0 | BJ28: 0 | BK28: 6500 | BL28: 208372.95 | BM28: 6500 | BN28: 214872.95 | BO28: 151638.93 | BP28: 1200 | BQ28: 6000 | BR28: 0 | BS28: 1975.86 | BT28: 915.5 | BU28: 0 | BV28: 0 | BW28: 2670 | BX28: 0 | BY28: 0 | BZ28: 17000 | CA28: 0 | CB28: 0 | CC28: 0 | CD28: 181400.29 | CE28: 0 | CF28: 181400.29 | CG28: 151638.93 | CH28: 1200 | CI28: 6000 | CJ28: 11855.16 | CK28: 1975.86 | CL28: 915.5 | CM28: 0 | CN28: 0 | CO28: 2670 | CP28: 0 | CQ28: 0 | CR28: 0 | CS28: 0 | CT28: 0 | CU28: 0 | CV28: 176255.45 | CW28: 0 | CX28: 176255.45 | CY28: 151638.93 | CZ28: 1200 | DA28: 6000 | DB28: 0 | DC28: 1975.86 | DD28: 915.5 | DE28: 0 | DF28: 0 | DG28: 2670 | DH28: 0 | DI28: 0 | DJ28: 0 | DK28: 0 | DL28: 0 | DM28: 0 | DN28: 164400.29 | DO28: 0 | DP28: 164400.29 | DQ28: 151638.93 | DR28: 1200 | DS28: 6000 | DT28: 0 | DU28: 1975.86 | DV28: 915.5 | DW28: 0 | DX28: 0 | DY28: 2670 | DZ28: 0 | EA28: 0 | EB28: 0 | EC28: 3000 | ED28: 3000 | EE28: 0 | EF28: 167400.29 | EG28: 3000 | EH28: 170400.29 | EI28: 151638.93 | EJ28: 1200 | EK28: 6000 | EL28: 0 | EM28: 1975.86 | EN28: 915.5 | EO28: 0 | EP28: 0 | EQ28: 2670 | ER28: 0 | ES28: 0 | ET28: 0 | EU28: 0 | EV28: 0 | EW28: 0 | EX28: 164400.29 | EY28: 0 | EZ28: 164400.29 | FA28: 259151.18 | FB28: 1200 | FC28: 6000 | FD28: 0 | FE28: 1975.86 | FF28: 915.5 | FG28: 30000 | FH28: 0 | FI28: 2670 | FJ28: 0 | FK28: 0 | FL28: 0 | FM28: 0 | FN28: 0 | FO28: 0 | FP28: 301912.54 | FQ28: 0 | FR28: 301912.54 | FS28: 162130.78 | FT28: 1200 | FU28: 6000 | FV28: 0 | FW28: 1975.86 | FX28: 915.5 | FY28: 9000 | FZ28: 0 | GA28: 2670 | GB28: 0 | GC28: 0 | GD28: 0 | GE28: 0 | GF28: 0 | GG28: 0 | GH28: 183892.14 | GI28: 0 | GJ28: 183892.14 | GK28: 162130.78 | GL28: 1200 | GM28: 6000 | GN28: 0 | GO28: 1975.86 | GP28: 915.5 | GQ28: 9000 | GR28: 0 | GS28: 2670 | GT28: 0 | GU28: 0 | GV28: 0 | GW28: 0 | GX28: 0 | GY28: 0 | GZ28: 183892.14 | HA28: 0 | HB28: 183892.14 | HC28: 162130.78 | HD28: 1200 | HE28: 6000 | HF28: 0 | HG28: 1975.86 | HH28: 915.5 | HI28: 9000 | HJ28: 0 | HK28: 2670 | HL28: 0 | HM28: 0 | HN28: 0 | HO28: 0 | HP28: 0 | HQ28: 0 | HR28: 183892.14 | HS28: 0 | HT28: 183892.14 | HU28: 162130.78 | HV28: 1200 | HW28: 6000 | HX28: 0 | HY28: 1975.86 | HZ28: 915.5 | IA28: 9000 | IB28: 0 | IC28: 2670 | ID28: 0 | IE28: 0 | IF28: 0 | IG28: 0 | IH28: 0 | II28: 0 | IJ28: 183892.14 | IK28: 0 | IL28: 183892.14 | IM28: 162130.78 | IN28: 1200 | IO28: 6000 | IP28: 0 | IQ28: 1975.86 | IR28: 915.5 | IS28: 9000 | IT28: 0 | IU28: 2670 | IV28: 0 | IW28: 0 | IX28: 0 | IY28: 0 | IZ28: 0 | JA28: 0 | JB28: 183892.14 | JC28: 0 | JD28: 183892.14 | JF28: 2283602.8 | JG28: 9500 | JH28: 2293102.8 | JJ28: 29/2022-SE | JK28: 2022-01-01 | JL28: 2022-12-31 | JM28: 1506895.04 | JN28: 35/2022-SE | JO28: Primeiro | JP28: 2022-09-28 | JQ28: 2022-12-31 | JR28: 64904 | JS28: 212/2023-SE | JT28: Segundo | JU28: 2023-01-01 | JV28: 2023-12-31 | JW28: 2058131.3 | JX28: =VLOOKUP($B28,'[1]BD MALA_DIRETA'!$B:$R,14,0) -> 250/2023-SE | JY28: =VLOOKUP($B28,'[1]BD MALA_DIRETA'!$B:$R,15,0) -> Terceiro | JZ28: =VLOOKUP($B28,'[1]BD MALA_DIRETA'!$B:$R,17,0) -> 2023-07-27 | KA28: 2023-12-31 | KB28: 234971.5
A29: 28 | B29: Lar Escola Jêsue Frantz I | C29: Instituto Jesuê Educação Infantil - S I | D29: 55.062.111/0001-14 | E29: Rua Camargo, 184 | F29: Paulicéia | G29: S.B.Campo | H29: 09682-100 | I29: 4178-4422 | J29: 0 | K29: lar.jesue1@emeb.saobernardo.sp.gov.br | L29: SB.075452/2021-54 | M29: SB.075577/2021-38 | O29: 30/2022-SE | Q29: =VLOOKUP(B29,'[1]BD MALA_DIRETA'!$B:$R,14,0) -> 251/2023-SE | R29: =VLOOKUP(B29,'[1]BD MALA_DIRETA'!$B:$R,17,0) -> 2023-07-27 | S29: =VLOOKUP(B29,'[1]BD MALA_DIRETA'!$B:$R,15,0) -> Terceiro | T29: 1619698.72 | AF29: 1261339.76 | AG29: 21600 | AH29: 27600 | AI29: 6624 | AJ29: 15684.96 | AK29: 10200 | AL29: 77760 | AM29: 1200 | AN29: 24480 | AO29: 1800 | AP29: 126000 | AQ29: 34000 | AR29: 3000 | AS29: 3000 | AT29: 5410 | AU29: 1619698.72 | AW29: 100249.23 | AX29: 1800 | AY29: 2300 | AZ29: 0 | BA29: 1307.08 | BB29: 850 | BC29: 230 | BD29: 100 | BE29: 2040 | BF29: 150 | BG29: 10500 | BH29: 17000 | BI29: 0 | BJ29: 0 | BK29: 3430 | BL29: 136526.31 | BM29: 3430 | BN29: 139956.31 | BO29: 100249.23 | BP29: 1800 | BQ29: 2300 | BR29: 0 | BS29: 1307.08 | BT29: 850 | BU29: 230 | BV29: 100 | BW29: 2040 | BX29: 150 | BY29: 10500 | BZ29: 17000 | CA29: 0 | CB29: 0 | CC29: 180 | CD29: 136526.31 | CE29: 180 | CF29: 136706.31 | CG29: 100249.23 | CH29: 1800 | CI29: 2300 | CJ29: 6624 | CK29: 1307.08 | CL29: 850 | CM29: 230 | CN29: 100 | CO29: 2040 | CP29: 150 | CQ29: 10500 | CR29: 0 | CS29: 0 | CT29: 0 | CU29: 180 | CV29: 126150.31 | CW29: 180 | CX29: 126330.31 | CY29: 100249.23 | CZ29: 1800 | DA29: 2300 | DB29: 0 | DC29: 1307.08 | DD29: 850 | DE29: 230 | DF29: 100 | DG29: 2040 | DH29: 150 | DI29: 10500 | DJ29: 0 | DK29: 0 | DL29: 0 | DM29: 180 | DN29: 119526.31 | DO29: 180 | DP29: 119706.31 | DQ29: 100249.23 | DR29: 1800 | DS29: 2300 | DT29: 0 | DU29: 1307.08 | DV29: 850 | DW29: 230 | DX29: 100 | DY29: 2040 | DZ29: 150 | EA29: 10500 | EB29: 0 | EC29: 3000 | ED29: 3000 | EE29: 180 | EF29: 122526.31 | EG29: 3180 | EH29: 125706.31 | EI29: 100249.23 | EJ29: 1800 | EK29: 2300 | EL29: 0 | EM29: 1307.08 | EN29: 850 | EO29: 230 | EP29: 100 | EQ29: 2040 | ER29: 150 | ES29: 10500 | ET29: 0 | EU29: 0 | EV29: 0 | EW29: 180 | EX29: 119526.31 | EY29: 180 | EZ29: 119706.31 | FA29: 129423.73 | FB29: 1800 | FC29: 2300 | FD29: 0 | FE29: 1307.08 | FF29: 850 | FG29: 30230 | FH29: 100 | FI29: 2040 | FJ29: 150 | FK29: 10500 | FL29: 0 | FM29: 0 | FN29: 0 | FO29: 180 | FP29: 178700.81 | FQ29: 180 | FR29: 178880.81 | FS29: 106084.13 | FT29: 1800 | FU29: 2300 | FV29: 0 | FW29: 1307.08 | FX29: 850 | FY29: 9230 | FZ29: 100 | GA29: 2040 | GB29: 150 | GC29: 10500 | GD29: 0 | GE29: 0 | GF29: 0 | GG29: 180 | GH29: 134361.21 | GI29: 180 | GJ29: 134541.21 | GK29: 106084.13 | GL29: 1800 | GM29: 2300 | GN29: 0 | GO29: 1307.08 | GP29: 850 | GQ29: 9230 | GR29: 100 | GS29: 2040 | GT29: 150 | GU29: 10500 | GV29: 0 | GW29: 0 | GX29: 0 | GY29: 180 | GZ29: 134361.21 | HA29: 180 | HB29: 134541.21 | HC29: 106084.13 | HD29: 1800 | HE29: 2300 | HF29: 0 | HG29: 1307.08 | HH29: 850 | HI29: 9230 | HJ29: 100 | HK29: 2040 | HL29: 150 | HM29: 10500 | HN29: 0 | HO29: 0 | HP29: 0 | HQ29: 180 | HR29: 134361.21 | HS29: 180 | HT29: 134541.21 | HU29: 106084.13 | HV29: 1800 | HW29: 2300 | HX29: 0 | HY29: 1307.08 | HZ29: 850 | IA29: 9230 | IB29: 100 | IC29: 2040 | ID29: 150 | IE29: 10500 | IF29: 0 | IG29: 0 | IH29: 0 | II29: 180 | IJ29: 134361.21 | IK29: 180 | IL29: 134541.21 | IM29: 106084.13 | IN29: 1800 | IO29: 2300 | IP29: 0 | IQ29: 1307.08 | IR29: 850 | IS29: 9230 | IT29: 100 | IU29: 2040 | IV29: 150 | IW29: 10500 | IX29: 0 | IY29: 0 | IZ29: 0 | JA29: 180 | JB29: 134361.21 | JC29: 180 | JD29: 134541.21 | JF29: 1611288.72 | JG29: 8410 | JH29: 1619698.72 | JJ29: 30/2022-SE | JK29: 2022-01-01 | JL29: 2022-12-31 | JM29: 915643.08 | JN29: 36/2022-SE | JO29: Primeiro | JP29: 2022-09-26 | JQ29: 2022-12-31 | JR29: 28504.7 | JS29: 213/2023-SE | JT29: Segundo | JU29: 2023-01-01 | JV29: 2023-12-31 | JW29: 1486349.72 | JX29: =VLOOKUP($B29,'[1]BD MALA_DIRETA'!$B:$R,14,0) -> 251/2023-SE | JY29: =VLOOKUP($B29,'[1]BD MALA_DIRETA'!$B:$R,15,0) -> Terceiro | JZ29: =VLOOKUP($B29,'[1]BD MALA_DIRETA'!$B:$R,17,0) -> 2023-07-27 | KA29: 2023-12-31 | KB29: 133349
A30: 29 | B30: Lar Escola Jêsue Frantz II | D30: 55.062.111/0008-90 | E30: Rua Benedito Luiz Rodrigues, nº 864 | F30: Jardim Palermo | G30: S.B.Campo | H30: 09780-420 | I30: 4057-1107 | K30: lar.jesue2@emeb.saobernardo.sp.gov.br | L30: SB.099238/2021-10 | M30: SB.099374/2021-17 | O30: 31/2022-SE | Q30: =VLOOKUP(B30,'[1]BD MALA_DIRETA'!$B:$R,14,0) -> 252/2023-SE | R30: =VLOOKUP(B30,'[1]BD MALA_DIRETA'!$B:$R,17,0) -> 2023-07-27 | S30: =VLOOKUP(B30,'[1]BD MALA_DIRETA'!$B:$R,15,0) -> Terceiro | T30: 1517903.6 | AF30: 1264131.48 | AG30: 1800 | AH30: 19200 | AI30: 6600 | AJ30: 16800 | AK30: 10200 | AL30: 80400 | AM30: 1800 | AN30: 24480 | AO30: 1800 | AP30: 43200 | AQ30: 34000 | AR30: 3000 | AS30: 3000 | AT30: 7492.12 | AU30: 1517903.6 | AW30: 100460.54 | AX30: 150 | AY30: 1600 | AZ30: 0 | BA30: 1400 | BB30: 850 | BC30: 450 | BD30: 150 | BE30: 2040 | BF30: 150 | BG30: 3600 | BH30: 17000 | BI30: 0 | BJ30: 0 | BK30: 3603.51 | BL30: 127850.54 | BM30: 3603.51 | BN30: 131454.05 | BO30: 100460.54 | BP30: 150 | BQ30: 1600 | BR30: 0 | BS30: 1400 | BT30: 850 | BU30: 450 | BV30: 150 | BW30: 2040 | BX30: 150 | BY30: 3600 | BZ30: 17000 | CA30: 0 | CB30: 0 | CC30: 353.51 | CD30: 127850.54 | CE30: 353.51 | CF30: 128204.05 | CG30: 100460.54 | CH30: 150 | CI30: 1600 | CJ30: 6600 | CK30: 1400 | CL30: 850 | CM30: 450 | CN30: 150 | CO30: 2040 | CP30: 150 | CQ30: 3600 | CR30: 0 | CS30: 0 | CT30: 0 | CU30: 353.51 | CV30: 117450.54 | CW30: 353.51 | CX30: 117804.05 | CY30: 100460.54 | CZ30: 150 | DA30: 1600 | DB30: 0 | DC30: 1400 | DD30: 850 | DE30: 450 | DF30: 150 | DG30: 2040 | DH30: 150 | DI30: 3600 | DJ30: 0 | DK30: 0 | DL30: 0 | DM30: 353.51 | DN30: 110850.54 | DO30: 353.51 | DP30: 111204.05 | DQ30: 100460.54 | DR30: 150 | DS30: 1600 | DT30: 0 | DU30: 1400 | DV30: 850 | DW30: 450 | DX30: 150 | DY30: 2040 | DZ30: 150 | EA30: 3600 | EB30: 0 | EC30: 3000 | ED30: 3000 | EE30: 353.51 | EF30: 113850.54 | EG30: 3353.51 | EH30: 117204.05 | EI30: 100460.54 | EJ30: 150 | EK30: 1600 | EL30: 0 | EM30: 1400 | EN30: 850 | EO30: 450 | EP30: 150 | EQ30: 2040 | ER30: 150 | ES30: 3600 | ET30: 0 | EU30: 0 | EV30: 0 | EW30: 353.51 | EX30: 110850.54 | EY30: 353.51 | EZ30: 111204.05 | FA30: 129763.04 | FB30: 150 | FC30: 1600 | FD30: 0 | FE30: 1400 | FF30: 850 | FG30: 30450 | FH30: 150 | FI30: 2040 | FJ30: 150 | FK30: 3600 | FL30: 0 | FM30: 0 | FN30: 0 | FO30: 353.51 | FP30: 170153.04 | FQ30: 353.51 | FR30: 170506.55 | FS30: 106321.04 | FT30: 150 | FU30: 1600 | FV30: 0 | FW30: 1400 | FX30: 850 | FY30: 9450 | FZ30: 150 | GA30: 2040 | GB30: 150 | GC30: 3600 | GD30: 0 | GE30: 0 | GF30: 0 | GG30: 353.51 | GH30: 125711.04 | GI30: 353.51 | GJ30: 126064.55 | GK30: 106321.04 | GL30: 150 | GM30: 1600 | GN30: 0 | GO30: 1400 | GP30: 850 | GQ30: 9450 | GR30: 150 | GS30: 2040 | GT30: 150 | GU30: 3600 | GV30: 0 | GW30: 0 | GX30: 0 | GY30: 353.51 | GZ30: 125711.04 | HA30: 353.51 | HB30: 126064.55 | HC30: 106321.04 | HD30: 150 | HE30: 1600 | HF30: 0 | HG30: 1400 | HH30: 850 | HI30: 9450 | HJ30: 150 | HK30: 2040 | HL30: 150 | HM30: 3600 | HN30: 0 | HO30: 0 | HP30: 0 | HQ30: 353.51 | HR30: 125711.04 | HS30: 353.51 | HT30: 126064.55 | HU30: 106321.04 | HV30: 150 | HW30: 1600 | HX30: 0 | HY30: 1400 | HZ30: 850 | IA30: 9450 | IB30: 150 | IC30: 2040 | ID30: 150 | IE30: 3600 | IF30: 0 | IG30: 0 | IH30: 0 | II30: 353.51 | IJ30: 125711.04 | IK30: 353.51 | IL30: 126064.55 | IM30: 106321.04 | IN30: 150 | IO30: 1600 | IP30: 0 | IQ30: 1400 | IR30: 850 | IS30: 9450 | IT30: 150 | IU30: 2040 | IV30: 150 | IW30: 3600 | IX30: 0 | IY30: 0 | IZ30: 0 | JA30: 353.51 | JB30: 125711.04 | JC30: 353.51 | JD30: 126064.55 | JF30: 1507411.48 | JG30: 10492.12 | JH30: 1517903.6 | JJ30: 31/2022-SE | JK30: 2022-01-01 | JL30: 2022-12-31 | JM30: 945425.22 | JN30: 37/2022-SE | JO30: Primeiro | JP30: 2022-09-26 | JQ30: 2022-12-31 | JR30: 28736.9 | JS30: 214/2023-SE | JT30: Segundo | JU30: 2023-01-01 | JV30: 2023-12-31 | JW30: 1384298.6 | JX30: =VLOOKUP($B30,'[1]BD MALA_DIRETA'!$B:$R,14,0) -> 252/2023-SE | JY30: =VLOOKUP($B30,'[1]BD MALA_DIRETA'!$B:$R,15,0) -> Terceiro | JZ30: =VLOOKUP($B30,'[1]BD MALA_DIRETA'!$B:$R,17,0) -> 2023-07-27 | KA30: 2023-12-31 | KB30: 133605
A31: 30 | B31: Lar Escola Jêsue Frantz III | D31: 55.062.111/0009-71 | E31: Rua Tiradentes, nº 398 | F31: Santa Terezinha | G31: S.B.Campo | H31: 09780-000 | I31: 4317-2704 | K31: lar.jesue3@emeb.saobernardo.sp.gov.br | L31: SB.099243/2021-41 | M31: SB.099376/2021-39 | O31: 32/2022-SE | Q31: =VLOOKUP(B31,'[1]BD MALA_DIRETA'!$B:$R,14,0) -> 253/2023-SE | R31: 2023-08-01 | S31: =VLOOKUP(B31,'[1]BD MALA_DIRETA'!$B:$R,15,0) -> Terceiro | T31: 1711133.48 | AF31: 1423831.36 | AG31: 1800 | AH31: 19200 | AI31: 6600 | AJ31: 16842.12 | AK31: 10200 | AL31: 80400 | AM31: 1800 | AN31: 25560 | AO31: 1800 | AP31: 75000 | AQ31: 34000 | AR31: 3000 | AS31: 3000 | AT31: 8100 | AU31: 1711133.48 | AW31: 113154.48 | AX31: 150 | AY31: 1600 | AZ31: 0 | BA31: 1403.51 | BB31: 850 | BC31: 450 | BD31: 150 | BE31: 2130 | BF31: 150 | BG31: 6250 | BH31: 17000 | BI31: 0 | BJ31: 0 | BK31: 4250 | BL31: 143287.99 | BM31: 4250 | BN31: 147537.99 | BO31: 113154.48 | BP31: 150 | BQ31: 1600 | BR31: 0 | BS31: 1403.51 | BT31: 850 | BU31: 450 | BV31: 150 | BW31: 2130 | BX31: 150 | BY31: 6250 | BZ31: 17000 | CA31: 0 | CB31: 0 | CC31: 350 | CD31: 143287.99 | CE31: 350 | CF31: 143637.99 | CG31: 113154.48 | CH31: 150 | CI31: 1600 | CJ31: 6600 | CK31: 1403.51 | CL31: 850 | CM31: 450 | CN31: 150 | CO31: 2130 | CP31: 150 | CQ31: 6250 | CR31: 0 | CS31: 0 | CT31: 0 | CU31: 350 | CV31: 132887.99 | CW31: 350 | CX31: 133237.99 | CY31: 113154.48 | CZ31: 150 | DA31: 1600 | DB31: 0 | DC31: 1403.51 | DD31: 850 | DE31: 450 | DF31: 150 | DG31: 2130 | DH31: 150 | DI31: 6250 | DJ31: 0 | DK31: 0 | DL31: 0 | DM31: 350 | DN31: 126287.99 | DO31: 350 | DP31: 126637.99 | DQ31: 113154.48 | DR31: 150 | DS31: 1600 | DT31: 0 | DU31: 1403.51 | DV31: 850 | DW31: 450 | DX31: 150 | DY31: 2130 | DZ31: 150 | EA31: 6250 | EB31: 0 | EC31: 3000 | ED31: 3000 | EE31: 350 | EF31: 129287.99 | EG31: 3350 | EH31: 132637.99 | EI31: 113154.48 | EJ31: 150 | EK31: 1600 | EL31: 0 | EM31: 1403.51 | EN31: 850 | EO31: 450 | EP31: 150 | EQ31: 2130 | ER31: 150 | ES31: 6250 | ET31: 0 | EU31: 0 | EV31: 0 | EW31: 350 | EX31: 126287.99 | EY31: 350 | EZ31: 126637.99 | FA31: 146143.28 | FB31: 150 | FC31: 1600 | FD31: 0 | FE31: 1403.51 | FF31: 850 | FG31: 30450 | FH31: 150 | FI31: 2130 | FJ31: 150 | FK31: 6250 | FL31: 0 | FM31: 0 | FN31: 0 | FO31: 350 | FP31: 189276.79 | FQ31: 350 | FR31: 189626.79 | FS31: 119752.24 | FT31: 150 | FU31: 1600 | FV31: 0 | FW31: 1403.51 | FX31: 850 | FY31: 9450 | FZ31: 150 | GA31: 2130 | GB31: 150 | GC31: 6250 | GD31: 0 | GE31: 0 | GF31: 0 | GG31: 350 | GH31: 141885.75 | GI31: 350 | GJ31: 142235.75 | GK31: 119752.24 | GL31: 150 | GM31: 1600 | GN31: 0 | GO31: 1403.51 | GP31: 850 | GQ31: 9450 | GR31: 150 | GS31: 2130 | GT31: 150 | GU31: 6250 | GV31: 0 | GW31: 0 | GX31: 0 | GY31: 350 | GZ31: 141885.75 | HA31: 350 | HB31: 142235.75 | HC31: 119752.24 | HD31: 150 | HE31: 1600 | HF31: 0 | HG31: 1403.51 | HH31: 850 | HI31: 9450 | HJ31: 150 | HK31: 2130 | HL31: 150 | HM31: 6250 | HN31: 0 | HO31: 0 | HP31: 0 | HQ31: 350 | HR31: 141885.75 | HS31: 350 | HT31: 142235.75 | HU31: 119752.24 | HV31: 150 | HW31: 1600 | HX31: 0 | HY31: 1403.51 | HZ31: 850 | IA31: 9450 | IB31: 150 | IC31: 2130 | ID31: 150 | IE31: 6250 | IF31: 0 | IG31: 0 | IH31: 0 | II31: 350 | IJ31: 141885.75 | IK31: 350 | IL31: 142235.75 | IM31: 119752.24 | IN31: 150 | IO31: 1600 | IP31: 0 | IQ31: 1403.51 | IR31: 850 | IS31: 9450 | IT31: 150 | IU31: 2130 | IV31: 150 | IW31: 6250 | IX31: 0 | IY31: 0 | IZ31: 0 | JA31: 350 | JB31: 141885.75 | JC31: 350 | JD31: 142235.75 | JF31: 1700033.48 | JG31: 11100 | JH31: 1711133.48 | JJ31: 32/2022-SE | JK31: 2022-01-01 | JL31: 2022-12-31 | JM31: 1064647.04 | JN31: 38/2022-SE | JO31: Primeiro | JP31: 2022-09-28 | JQ31: 2022-12-31 | JR31: 33987.4 | JS31: 215/2023-SE | JT31: Segundo | JU31: 2023-01-01 | JV31: 2023-12-31 | JW31: 1570155.88 | JX31: =VLOOKUP($B31,'[1]BD MALA_DIRETA'!$B:$R,14,0) -> 253/2023-SE | JY31: =VLOOKUP($B31,'[1]BD MALA_DIRETA'!$B:$R,15,0) -> Terceiro | JZ31: 2023-08-01 | KA31: 2023-12-31 | KB31: 140977.6
A32: 31 | B32: Lar Escola Jêsue Frantz IV | D32: 55.062.111/0010-05 | E32: Rua Capitão Alberto Mendes Junior, 96 | F32: Jardim Beatriz | G32: S.B.Campo | H32: 09895-050 | I32: 4178-4422 | K32: lar.jesue4@emeb.saobernardo.sp.gov.br | L32: SB.099245/2021-63 | M32: SB.099382/2021-21 | O32: 33/2022-SE | Q32: =VLOOKUP(B32,'[1]BD MALA_DIRETA'!$B:$R,14,0) -> 254/2023-SE | R32: =VLOOKUP(B32,'[1]BD MALA_DIRETA'!$B:$R,17,0) -> 2023-07-27 | S32: =VLOOKUP(B32,'[1]BD MALA_DIRETA'!$B:$R,15,0) -> Terceiro | T32: 1276014.3 | AF32: 1072353.54 | AG32: 17400 | AH32: 8400 | AI32: 4560 | AJ32: 12752.76 | AK32: 10200 | AL32: 77400 | AM32: 1200 | AN32: 23148 | AO32: 1800 | AP32: 0 | AQ32: 34000 | AR32: 3000 | AS32: 3000 | AT32: 6800 | AU32: 1276014.3 | AW32: 85221.72 | AX32: 1450 | AY32: 700 | AZ32: 0 | BA32: 1062.73 | BB32: 850 | BC32: 200 | BD32: 100 | BE32: 1929 | BF32: 150 | BG32: 0 | BH32: 17000 | BI32: 0 | BJ32: 0 | BK32: 2950 | BL32: 108663.45 | BM32: 2950 | BN32: 111613.45 | BO32: 85221.72 | BP32: 1450 | BQ32: 700 | BR32: 0 | BS32: 1062.73 | BT32: 850 | BU32: 200 | BV32: 100 | BW32: 1929 | BX32: 150 | BY32: 0 | BZ32: 17000 | CA32: 0 | CB32: 0 | CC32: 350 | CD32: 108663.45 | CE32: 350 | CF32: 109013.45 | CG32: 85221.72 | CH32: 1450 | CI32: 700 | CJ32: 4560 | CK32: 1062.73 | CL32: 850 | CM32: 200 | CN32: 100 | CO32: 1929 | CP32: 150 | CQ32: 0 | CR32: 0 | CS32: 0 | CT32: 0 | CU32: 350 | CV32: 96223.45 | CW32: 350 | CX32: 96573.45 | CY32: 85221.72 | CZ32: 1450 | DA32: 700 | DB32: 0 | DC32: 1062.73 | DD32: 850 | DE32: 200 | DF32: 100 | DG32: 1929 | DH32: 150 | DI32: 0 | DJ32: 0 | DK32: 0 | DL32: 0 | DM32: 350 | DN32: 91663.45 | DO32: 350 | DP32: 92013.45 | DQ32: 85221.72 | DR32: 1450 | DS32: 700 | DT32: 0 | DU32: 1062.73 | DV32: 850 | DW32: 200 | DX32: 100 | DY32: 1929 | DZ32: 150 | EA32: 0 | EB32: 0 | EC32: 3000 | ED32: 3000 | EE32: 350 | EF32: 94663.45 | EG32: 3350 | EH32: 98013.45 | EI32: 85221.72 | EJ32: 1450 | EK32: 700 | EL32: 0 | EM32: 1062.73 | EN32: 850 | EO32: 200 | EP32: 100 | EQ32: 1929 | ER32: 150 | ES32: 0 | ET32: 0 | EU32: 0 | EV32: 0 | EW32: 350 | EX32: 91663.45 | EY32: 350 | EZ32: 92013.45 | FA32: 110068.17 | FB32: 1450 | FC32: 700 | FD32: 0 | FE32: 1062.73 | FF32: 850 | FG32: 30200 | FH32: 100 | FI32: 1929 | FJ32: 150 | FK32: 0 | FL32: 0 | FM32: 0 | FN32: 0 | FO32: 350 | FP32: 146509.9 | FQ32: 350 | FR32: 146859.9 | FS32: 90191.01 | FT32: 1450 | FU32: 700 | FV32: 0 | FW32: 1062.73 | FX32: 850 | FY32: 9200 | FZ32: 100 | GA32: 1929 | GB32: 150 | GC32: 0 | GD32: 0 | GE32: 0 | GF32: 0 | GG32: 350 | GH32: 105632.74 | GI32: 350 | GJ32: 105982.74 | GK32: 90191.01 | GL32: 1450 | GM32: 700 | GN32: 0 | GO32: 1062.73 | GP32: 850 | GQ32: 9200 | GR32: 100 | GS32: 1929 | GT32: 150 | GU32: 0 | GV32: 0 | GW32: 0 | GX32: 0 | GY32: 350 | GZ32: 105632.74 | HA32: 350 | HB32: 105982.74 | HC32: 90191.01 | HD32: 1450 | HE32: 700 | HF32: 0 | HG32: 1062.73 | HH32: 850 | HI32: 9200 | HJ32: 100 | HK32: 1929 | HL32: 150 | HM32: 0 | HN32: 0 | HO32: 0 | HP32: 0 | HQ32: 350 | HR32: 105632.74 | HS32: 350 | HT32: 105982.74 | HU32: 90191.01 | HV32: 1450 | HW32: 700 | HX32: 0 | HY32: 1062.73 | HZ32: 850 | IA32: 9200 | IB32: 100 | IC32: 1929 | ID32: 150 | IE32: 0 | IF32: 0 | IG32: 0 | IH32: 0 | II32: 350 | IJ32: 105632.74 | IK32: 350 | IL32: 105982.74 | IM32: 90191.01 | IN32: 1450 | IO32: 700 | IP32: 0 | IQ32: 1062.73 | IR32: 850 | IS32: 9200 | IT32: 100 | IU32: 1929 | IV32: 150 | IW32: 0 | IX32: 0 | IY32: 0 | IZ32: 0 | JA32: 350 | JB32: 105632.74 | JC32: 350 | JD32: 105982.74 | JF32: 1266214.3 | JG32: 9800 | JH32: 1276014.3 | JJ32: 33/2022-SE | JK32: 2022-01-01 | JL32: 2022-12-31 | JM32: 765812.58 | JN32: 39/2022-SE | JO32: Primeiro | JP32: 2022-09-26 | JQ32: 2022-12-31 | JR32: 24367.2 | JS32: 216/2023-SE | JT32: Segundo | JU32: 2023-01-01 | JV32: 2023-12-31 | JW32: 1151321.4 | JX32: =VLOOKUP($B32,'[1]BD MALA_DIRETA'!$B:$R,14,0) -> 254/2023-SE | JY32: =VLOOKUP($B32,'[1]BD MALA_DIRETA'!$B:$R,15,0) -> Terceiro | JZ32: =VLOOKUP($B32,'[1]BD MALA_DIRETA'!$B:$R,17,0) -> 2023-07-27 | KA32: 2023-12-31 | KB32: 124692.9
A33: 32 | B33: Lar Maria Amélia Associação Assistencial | C33: Creche Lar Maria Amélia | D33: 44.379.667/0001-12 | E33: Avenida Humberto de Alencar Castelo Branco, nº 2295 | F33: Jardim Belita | G33: S.B.Campo | H33: 09850-300 | I33: 4343-4848 e 2356-6308 | J33: crechelarmariaamelia@gmail.com | K33: lar.maria@emeb.saobernardo.sp.gov.br | L33: SB.075453/2021-15 | M33: SB.075579/2021-50 | O33: 34/2022-SE | Q33: =VLOOKUP(B33,'[1]BD MALA_DIRETA'!$B:$R,14,0) -> 255/2023-SE | R33: =VLOOKUP(B33,'[1]BD MALA_DIRETA'!$B:$R,17,0) -> 2023-07-27 | S33: =VLOOKUP(B33,'[1]BD MALA_DIRETA'!$B:$R,15,0) -> Terceiro | T33: 2421655.16 | AF33: 2136755.88 | AG33: 4800 | AH33: 57600 | AI33: 18000 | AJ33: 28925.28 | AK33: 7200 | AL33: 81000 | AM33: 2400 | AN33: 33624 | AO33: 1800 | AP33: 0 | AQ33: 34000 | AR33: 3000 | AS33: 3000 | AT33: 9550 | AU33: 2421655.16 | AW33: 169764.74 | AX33: 400 | AY33: 4800 | AZ33: 0 | BA33: 2410.44 | BB33: 600 | BC33: 500 | BD33: 200 | BE33: 2802 | BF33: 150 | BG33: 0 | BH33: 17000 | BI33: 0 | BJ33: 0 | BK33: 7350 | BL33: 198627.18 | BM33: 7350 | BN33: 205977.18 | BO33: 169764.74 | BP33: 400 | BQ33: 4800 | BR33: 0 | BS33: 2410.44 | BT33: 600 | BU33: 500 | BV33: 200 | BW33: 2802 | BX33: 150 | BY33: 0 | BZ33: 17000 | CA33: 0 | CB33: 0 | CC33: 200 | CD33: 198627.18 | CE33: 200 | CF33: 198827.18 | CG33: 169764.74 | CH33: 400 | CI33: 4800 | CJ33: 18000 | CK33: 2410.44 | CL33: 600 | CM33: 500 | CN33: 200 | CO33: 2802 | CP33: 150 | CQ33: 0 | CR33: 0 | CS33: 0 | CT33: 0 | CU33: 200 | CV33: 199627.18 | CW33: 200 | CX33: 199827.18 | CY33: 169764.74 | CZ33: 400 | DA33: 4800 | DB33: 0 | DC33: 2410.44 | DD33: 600 | DE33: 500 | DF33: 200 | DG33: 2802 | DH33: 150 | DI33: 0 | DJ33: 0 | DK33: 0 | DL33: 0 | DM33: 200 | DN33: 181627.18 | DO33: 200 | DP33: 181827.18 | DQ33: 169764.74 | DR33: 400 | DS33: 4800 | DT33: 0 | DU33: 2410.44 | DV33: 600 | DW33: 500 | DX33: 200 | DY33: 2802 | DZ33: 150 | EA33: 0 | EB33: 0 | EC33: 3000 | ED33: 3000 | EE33: 200 | EF33: 184627.18 | EG33: 3200 | EH33: 187827.18 | EI33: 169764.74 | EJ33: 400 | EK33: 4800 | EL33: 0 | EM33: 2410.44 | EN33: 600 | EO33: 500 | EP33: 200 | EQ33: 2802 | ER33: 150 | ES33: 0 | ET33: 0 | EU33: 0 | EV33: 0 | EW33: 200 | EX33: 181627.18 | EY33: 200 | EZ33: 181827.18 | FA33: 219554.24 | FB33: 400 | FC33: 4800 | FD33: 0 | FE33: 2410.44 | FF33: 600 | FG33: 30500 | FH33: 200 | FI33: 2802 | FJ33: 150 | FK33: 0 | FL33: 0 | FM33: 0 | FN33: 0 | FO33: 200 | FP33: 261416.68 | FQ33: 200 | FR33: 261616.68 | FS33: 179722.64 | FT33: 400 | FU33: 4800 | FV33: 0 | FW33: 2410.44 | FX33: 600 | FY33: 9500 | FZ33: 200 | GA33: 2802 | GB33: 150 | GC33: 0 | GD33: 0 | GE33: 0 | GF33: 0 | GG33: 200 | GH33: 200585.08 | GI33: 200 | GJ33: 200785.08 | GK33: 179722.64 | GL33: 400 | GM33: 4800 | GN33: 0 | GO33: 2410.44 | GP33: 600 | GQ33: 9500 | GR33: 200 | GS33: 2802 | GT33: 150 | GU33: 0 | GV33: 0 | GW33: 0 | GX33: 0 | GY33: 200 | GZ33: 200585.08 | HA33: 200 | HB33: 200785.08 | HC33: 179722.64 | HD33: 400 | HE33: 4800 | HF33: 0 | HG33: 2410.44 | HH33: 600 | HI33: 9500 | HJ33: 200 | HK33: 2802 | HL33: 150 | HM33: 0 | HN33: 0 | HO33: 0 | HP33: 0 | HQ33: 200 | HR33: 200585.08 | HS33: 200 | HT33: 200785.08 | HU33: 179722.64 | HV33: 400 | HW33: 4800 | HX33: 0 | HY33: 2410.44 | HZ33: 600 | IA33: 9500 | IB33: 200 | IC33: 2802 | ID33: 150 | IE33: 0 | IF33: 0 | IG33: 0 | IH33: 0 | II33: 200 | IJ33: 200585.08 | IK33: 200 | IL33: 200785.08 | IM33: 179722.64 | IN33: 400 | IO33: 4800 | IP33: 0 | IQ33: 2410.44 | IR33: 600 | IS33: 9500 | IT33: 200 | IU33: 2802 | IV33: 150 | IW33: 0 | IX33: 0 | IY33: 0 | IZ33: 0 | JA33: 200 | JB33: 200585.08 | JC33: 200 | JD33: 200785.08 | JF33: 2409105.16 | JG33: 12550 | JH33: 2421655.16 | JJ33: 34/2022-SE | JK33: 2022-01-01 | JL33: 2022-12-31 | JM33: 1737504.08 | JN33: 40/2022-SE | JO33: Primeiro | JP33: 2022-10-07 | JQ33: 2022-12-31 | JR33: 80588.8 | JS33: 217/2023-SE | JT33: Segundo | JU33: 2023-01-01 | JV33: 2023-12-31 | JW33: 2247076.16 | JX33: =VLOOKUP($B33,'[1]BD MALA_DIRETA'!$B:$R,14,0) -> 255/2023-SE | JY33: =VLOOKUP($B33,'[1]BD MALA_DIRETA'!$B:$R,15,0) -> Terceiro | JZ33: =VLOOKUP($B33,'[1]BD MALA_DIRETA'!$B:$R,17,0) -> 2023-07-27 | KA33: 2023-12-31 | KB33: 174579
A34: 33 | B34: Obras Sociais São Pedro Apóstolo I | C34: Creche São José | D34: 43.322.189/0001-41 | E34: Rua Ana Maria, nº 123 | F34: Taboão | G34: S.B.Campo | H34: 09669-060 | I34: 4178-3736 | J34: osspasaojose@gmail.com | K34: creche.saopedro@emeb.saobernardo.sp.gov.br | L34: SB.075454/2021-76 | M34: SB.075580/2021-47 | O34: 35/2022-SE | Q34: =VLOOKUP(B34,'[1]BD MALA_DIRETA'!$B:$R,14,0) -> 256/2023-SE | R34: =VLOOKUP(B34,'[1]BD MALA_DIRETA'!$B:$R,17,0) -> 2023-07-27 | S34: =VLOOKUP(B34,'[1]BD MALA_DIRETA'!$B:$R,15,0) -> Terceiro | T34: 1597610.22 | AF34: 1355486.38 | AG34: 36000 | AH34: 33000 | AI34: 6180 | AJ34: 12600 | AK34: 5040 | AL34: 77853.84 | AM34: 960 | AN34: 24480 | AO34: 1800 | AP34: 0 | AQ34: 34000 | AR34: 3000 | AS34: 3000 | AT34: 4210 | AU34: 1597610.22 | AW34: 107751.14 | AX34: 3000 | AY34: 2750 | AZ34: 0 | BA34: 1050 | BB34: 420 | BC34: 237.82 | BD34: 80 | BE34: 2040 | BF34: 150 | BG34: 0 | BH34: 17000 | BI34: 0 | BJ34: 0 | BK34: 3330 | BL34: 134478.96 | BM34: 3330 | BN34: 137808.96 | BO34: 107751.14 | BP34: 3000 | BQ34: 2750 | BR34: 0 | BS34: 1050 | BT34: 420 | BU34: 237.82 | BV34: 80 | BW34: 2040 | BX34: 150 | BY34: 0 | BZ34: 17000 | CA34: 0 | CB34: 0 | CC34: 80 | CD34: 134478.96 | CE34: 80 | CF34: 134558.96 | CG34: 107751.14 | CH34: 3000 | CI34: 2750 | CJ34: 6180 | CK34: 1050 | CL34: 420 | CM34: 237.82 | CN34: 80 | CO34: 2040 | CP34: 150 | CQ34: 0 | CR34: 0 | CS34: 0 | CT34: 0 | CU34: 80 | CV34: 123658.96 | CW34: 80 | CX34: 123738.96 | CY34: 107751.14 | CZ34: 3000 | DA34: 2750 | DB34: 0 | DC34: 1050 | DD34: 420 | DE34: 237.82 | DF34: 80 | DG34: 2040 | DH34: 150 | DI34: 0 | DJ34: 0 | DK34: 0 | DL34: 0 | DM34: 80 | DN34: 117478.96 | DO34: 80 | DP34: 117558.96 | DQ34: 107751.14 | DR34: 3000 | DS34: 2750 | DT34: 0 | DU34: 1050 | DV34: 420 | DW34: 237.82 | DX34: 80 | DY34: 2040 | DZ34: 150 | EA34: 0 | EB34: 0 | EC34: 3000 | ED34: 3000 | EE34: 80 | EF34: 120478.96 | EG34: 3080 | EH34: 123558.96 | EI34: 107751.14 | EJ34: 3000 | EK34: 2750 | EL34: 0 | EM34: 1050 | EN34: 420 | EO34: 237.82 | EP34: 80 | EQ34: 2040 | ER34: 150 | ES34: 0 | ET34: 0 | EU34: 0 | EV34: 0 | EW34: 80 | EX34: 117478.96 | EY34: 80 | EZ34: 117558.96 | FA34: 138987.49 | FB34: 3000 | FC34: 2750 | FD34: 0 | FE34: 1050 | FF34: 420 | FG34: 30237.82 | FH34: 80 | FI34: 2040 | FJ34: 150 | FK34: 0 | FL34: 0 | FM34: 0 | FN34: 0 | FO34: 80 | FP34: 178715.31 | FQ34: 80 | FR34: 178795.31 | FS34: 113998.41 | FT34: 3000 | FU34: 2750 | FV34: 0 | FW34: 1050 | FX34: 420 | FY34: 9237.82 | FZ34: 80 | GA34: 2040 | GB34: 150 | GC34: 0 | GD34: 0 | GE34: 0 | GF34: 0 | GG34: 80 | GH34: 132726.23 | GI34: 80 | GJ34: 132806.23 | GK34: 113998.41 | GL34: 3000 | GM34: 2750 | GN34: 0 | GO34: 1050 | GP34: 420 | GQ34: 9237.82 | GR34: 80 | GS34: 2040 | GT34: 150 | GU34: 0 | GV34: 0 | GW34: 0 | GX34: 0 | GY34: 80 | GZ34: 132726.23 | HA34: 80 | HB34: 132806.23 | HC34: 113998.41 | HD34: 3000 | HE34: 2750 | HF34: 0 | HG34: 1050 | HH34: 420 | HI34: 9237.82 | HJ34: 80 | HK34: 2040 | HL34: 150 | HM34: 0 | HN34: 0 | HO34: 0 | HP34: 0 | HQ34: 80 | HR34: 132726.23 | HS34: 80 | HT34: 132806.23 | HU34: 113998.41 | HV34: 3000 | HW34: 2750 | HX34: 0 | HY34: 1050 | HZ34: 420 | IA34: 9237.82 | IB34: 80 | IC34: 2040 | ID34: 150 | IE34: 0 | IF34: 0 | IG34: 0 | IH34: 0 | II34: 80 | IJ34: 132726.23 | IK34: 80 | IL34: 132806.23 | IM34: 113998.41 | IN34: 3000 | IO34: 2750 | IP34: 0 | IQ34: 1050 | IR34: 420 | IS34: 9237.82 | IT34: 80 | IU34: 2040 | IV34: 150 | IW34: 0 | IX34: 0 | IY34: 0 | IZ34: 0 | JA34: 80 | JB34: 132726.23 | JC34: 80 | JD34: 132806.23 | JF34: 1590400.22 | JG34: 7210 | JH34: 1597610.22 | JJ34: 35/2022-SE | JK34: 2022-01-01 | JL34: 2022-12-31 | JM34: 956390.38 | JN34: 41/2022-SE | JO34: Primeiro | JP34: 2022-09-28 | JQ34: 2022-12-31 | JR34: 41999.8 | JS34: 218/2023-SE | JT34: Segundo | JU34: 2023-01-01 | JV34: 2023-12-31 | JW34: 1460137.52 | JX34: =VLOOKUP($B34,'[1]BD MALA_DIRETA'!$B:$R,14,0) -> 256/2023-SE | JY34: =VLOOKUP($B34,'[1]BD MALA_DIRETA'!$B:$R,15,0) -> Terceiro | JZ34: =VLOOKUP($B34,'[1]BD MALA_DIRETA'!$B:$R,17,0) -> 2023-07-27 | KA34: 2023-12-31 | KB34: 137472.7
A35: 34 | B35: Obras Sociais São Pedro Apóstolo II | C35: Creche Maria Imaculada | D35: 43.322.189/0005-75 | E35: Rua Leonardo Martins Neto, 1060 | F35: Bairro dos Casa | G35: S.B.Campo | H35: 09850-020 | I35: 4358-3311 | J35: osspamariaimaculada@gmail.com | K35: creche.mariaimaculada@emeb.saobernardo.sp.gov.br | L35: SB.099262/2021-42 | M35: SB.099383/2021-82 | O35: 36/2022-SE | Q35: =VLOOKUP(B35,'[1]BD MALA_DIRETA'!$B:$R,14,0) -> 257/2023-SE | R35: =VLOOKUP(B35,'[1]BD MALA_DIRETA'!$B:$R,17,0) -> 2023-07-27 | S35: =VLOOKUP(B35,'[1]BD MALA_DIRETA'!$B:$R,15,0) -> Terceiro | T35: 2163045 | AF35: 1910662.72 | AG35: 4800 | AH35: 18000 | AI35: 15000 | AJ35: 21000 | AK35: 9600 | AL35: 89400 | AM35: 8294.28 | AN35: 28224 | AO35: 1800 | AP35: 0 | AQ35: 34000 | AR35: 3000 | AS35: 3000 | AT35: 16264 | AU35: 2163045 | AW35: 151872.36 | AX35: 400 | AY35: 1500 | AZ35: 0 | BA35: 1750 | BB35: 800 | BC35: 1200 | BD35: 691.19 | BE35: 2352 | BF35: 150 | BG35: 0 | BH35: 17000 | BI35: 0 | BJ35: 0 | BK35: 6122 | BL35: 177715.55 | BM35: 6122 | BN35: 183837.55 | BO35: 151872.36 | BP35: 400 | BQ35: 1500 | BR35: 0 | BS35: 1750 | BT35: 800 | BU35: 1200 | BV35: 691.19 | BW35: 2352 | BX35: 150 | BY35: 0 | BZ35: 17000 | CA35: 0 | CB35: 0 | CC35: 922 | CD35: 177715.55 | CE35: 922 | CF35: 178637.55 | CG35: 151872.36 | CH35: 400 | CI35: 1500 | CJ35: 15000 | CK35: 1750 | CL35: 800 | CM35: 1200 | CN35: 691.19 | CO35: 2352 | CP35: 150 | CQ35: 0 | CR35: 0 | CS35: 0 | CT35: 0 | CU35: 922 | CV35: 175715.55 | CW35: 922 | CX35: 176637.55 | CY35: 151872.36 | CZ35: 400 | DA35: 1500 | DB35: 0 | DC35: 1750 | DD35: 800 | DE35: 1200 | DF35: 691.19 | DG35: 2352 | DH35: 150 | DI35: 0 | DJ35: 0 | DK35: 0 | DL35: 0 | DM35: 922 | DN35: 160715.55 | DO35: 922 | DP35: 161637.55 | DQ35: 151872.36 | DR35: 400 | DS35: 1500 | DT35: 0 | DU35: 1750 | DV35: 800 | DW35: 1200 | DX35: 691.19 | DY35: 2352 | DZ35: 150 | EA35: 0 | EB35: 0 | EC35: 3000 | ED35: 3000 | EE35: 922 | EF35: 163715.55 | EG35: 3922 | EH35: 167637.55 | EI35: 151872.36 | EJ35: 400 | EK35: 1500 | EL35: 0 | EM35: 1750 | EN35: 800 | EO35: 1200 | EP35: 691.19 | EQ35: 2352 | ER35: 150 | ES35: 0 | ET35: 0 | EU35: 0 | EV35: 0 | EW35: 922 | EX35: 160715.55 | EY35: 922 | EZ35: 161637.55 | FA35: 195969.56 | FB35: 400 | FC35: 1500 | FD35: 0 | FE35: 1750 | FF35: 800 | FG35: 31200 | FH35: 691.19 | FI35: 2352 | FJ35: 150 | FK35: 0 | FL35: 0 | FM35: 0 | FN35: 0 | FO35: 922 | FP35: 234812.75 | FQ35: 922 | FR35: 235734.75 | FS35: 160691.8 | FT35: 400 | FU35: 1500 | FV35: 0 | FW35: 1750 | FX35: 800 | FY35: 10200 | FZ35: 691.19 | GA35: 2352 | GB35: 150 | GC35: 0 | GD35: 0 | GE35: 0 | GF35: 0 | GG35: 922 | GH35: 178534.99 | GI35: 922 | GJ35: 179456.99 | GK35: 160691.8 | GL35: 400 | GM35: 1500 | GN35: 0 | GO35: 1750 | GP35: 800 | GQ35: 10200 | GR35: 691.19 | GS35: 2352 | GT35: 150 | GU35: 0 | GV35: 0 | GW35: 0 | GX35: 0 | GY35: 922 | GZ35: 178534.99 | HA35: 922 | HB35: 179456.99 | HC35: 160691.8 | HD35: 400 | HE35: 1500 | HF35: 0 | HG35: 1750 | HH35: 800 | HI35: 10200 | HJ35: 691.19 | HK35: 2352 | HL35: 150 | HM35: 0 | HN35: 0 | HO35: 0 | HP35: 0 | HQ35: 922 | HR35: 178534.99 | HS35: 922 | HT35: 179456.99 | HU35: 160691.8 | HV35: 400 | HW35: 1500 | HX35: 0 | HY35: 1750 | HZ35: 800 | IA35: 10200 | IB35: 691.19 | IC35: 2352 | ID35: 150 | IE35: 0 | IF35: 0 | IG35: 0 | IH35: 0 | II35: 922 | IJ35: 178534.99 | IK35: 922 | IL35: 179456.99 | IM35: 160691.8 | IN35: 400 | IO35: 1500 | IP35: 0 | IQ35: 1750 | IR35: 800 | IS35: 10200 | IT35: 691.19 | IU35: 2352 | IV35: 150 | IW35: 0 | IX35: 0 | IY35: 0 | IZ35: 0 | JA35: 922 | JB35: 178534.99 | JC35: 922 | JD35: 179456.99 | JF35: 2143781 | JG35: 19264 | JH35: 2163045 | JJ35: 36/2022-SE | JK35: 2022-01-01 | JL35: 2022-12-31 | JM35: 1342460.88 | JN35: 42/2022-SE | JO35: Primeiro | JP35: 2022-09-28 | JQ35: 2022-12-31 | JR35: 59028.3 | JS35: 219/2023-SE | JT35: Segundo | JU35: 2023-01-01 | JV35: 2023-12-31 | JW35: 1999850.6 | JX35: =VLOOKUP($B35,'[1]BD MALA_DIRETA'!$B:$R,14,0) -> 257/2023-SE | JY35: =VLOOKUP($B35,'[1]BD MALA_DIRETA'!$B:$R,15,0) -> Terceiro | JZ35: =VLOOKUP($B35,'[1]BD MALA_DIRETA'!$B:$R,17,0) -> 2023-07-27 | KA35: 2023-12-31 | KB35: 163194.4
A36: 35 | B36: Obras Sociais São Pedro Apóstolo III | C36: Creche Jesus Bambino | D36: 43.322.189/0006-56 | E36: Rua Dom Oscar Romério, nº 114 | F36: Jardim das Orquídeas | G36: S.B.Campo | H36: 09854-350 | I36: 4357-7335 | K36: creche.jesusbambino@emeb.saobernardo.sp.gov.br | L36: SB.099264/2021-64 | M36: SB.099386/2021-65 | O36: 37/2022-SE | Q36: =VLOOKUP(B36,'[1]BD MALA_DIRETA'!$B:$R,14,0) -> 258/2023-SE | R36: =VLOOKUP(B36,'[1]BD MALA_DIRETA'!$B:$R,17,0) -> 2023-07-27 | S36: =VLOOKUP(B36,'[1]BD MALA_DIRETA'!$B:$R,15,0) -> Terceiro | T36: 1452011.68 | AF36: 1145746.48 | AG36: 18000 | AH36: 29400 | AI36: 5436 | AJ36: 10861.56 | AK36: 4200 | AL36: 78600 | AM36: 810.24 | AN36: 22824 | AO36: 1800 | AP36: 91733.4 | AQ36: 34000 | AR36: 3000 | AS36: 3000 | AT36: 2600 | AU36: 1452011.68 | AW36: 91080.99 | AX36: 1500 | AY36: 2450 | AZ36: 0 | BA36: 905.13 | BB36: 350 | BC36: 300 | BD36: 67.52 | BE36: 1902 | BF36: 150 | BG36: 7644.45 | BH36: 17000 | BI36: 0 | BJ36: 0 | BK36: 2600 | BL36: 123350.09 | BM36: 2600 | BN36: 125950.09 | BO36: 91080.99 | BP36: 1500 | BQ36: 2450 | BR36: 0 | BS36: 905.13 | BT36: 350 | BU36: 300 | BV36: 67.52 | BW36: 1902 | BX36: 150 | BY36: 7644.45 | BZ36: 17000 | CA36: 0 | CB36: 0 | CC36: 0 | CD36: 123350.09 | CE36: 0 | CF36: 123350.09 | CG36: 91080.99 | CH36: 1500 | CI36: 2450 | CJ36: 5436 | CK36: 905.13 | CL36: 350 | CM36: 300 | CN36: 67.52 | CO36: 1902 | CP36: 150 | CQ36: 7644.45 | CR36: 0 | CS36: 0 | CT36: 0 | CU36: 0 | CV36: 111786.09 | CW36: 0 | CX36: 111786.09 | CY36: 91080.99 | CZ36: 1500 | DA36: 2450 | DB36: 0 | DC36: 905.13 | DD36: 350 | DE36: 300 | DF36: 67.52 | DG36: 1902 | DH36: 150 | DI36: 7644.45 | DJ36: 0 | DK36: 0 | DL36: 0 | DM36: 0 | DN36: 106350.09 | DO36: 0 | DP36: 106350.09 | DQ36: 91080.99 | DR36: 1500 | DS36: 2450 | DT36: 0 | DU36: 905.13 | DV36: 350 | DW36: 300 | DX36: 67.52 | DY36: 1902 | DZ36: 150 | EA36: 7644.45 | EB36: 0 | EC36: 3000 | ED36: 3000 | EE36: 0 | EF36: 109350.09 | EG36: 3000 | EH36: 112350.09 | EI36: 91080.99 | EJ36: 1500 | EK36: 2450 | EL36: 0 | EM36: 905.13 | EN36: 350 | EO36: 300 | EP36: 67.52 | EQ36: 1902 | ER36: 150 | ES36: 7644.45 | ET36: 0 | EU36: 0 | EV36: 0 | EW36: 0 | EX36: 106350.09 | EY36: 0 | EZ36: 106350.09 | FA36: 117468.29 | FB36: 1500 | FC36: 2450 | FD36: 0 | FE36: 905.13 | FF36: 350 | FG36: 30300 | FH36: 67.52 | FI36: 1902 | FJ36: 150 | FK36: 7644.45 | FL36: 0 | FM36: 0 | FN36: 0 | FO36: 0 | FP36: 162737.39 | FQ36: 0 | FR36: 162737.39 | FS36: 96358.45 | FT36: 1500 | FU36: 2450 | FV36: 0 | FW36: 905.13 | FX36: 350 | FY36: 9300 | FZ36: 67.52 | GA36: 1902 | GB36: 150 | GC36: 7644.45 | GD36: 0 | GE36: 0 | GF36: 0 | GG36: 0 | GH36: 120627.55 | GI36: 0 | GJ36: 120627.55 | GK36: 96358.45 | GL36: 1500 | GM36: 2450 | GN36: 0 | GO36: 905.13 | GP36: 350 | GQ36: 9300 | GR36: 67.52 | GS36: 1902 | GT36: 150 | GU36: 7644.45 | GV36: 0 | GW36: 0 | GX36: 0 | GY36: 0 | GZ36: 120627.55 | HA36: 0 | HB36: 120627.55 | HC36: 96358.45 | HD36: 1500 | HE36: 2450 | HF36: 0 | HG36: 905.13 | HH36: 350 | HI36: 9300 | HJ36: 67.52 | HK36: 1902 | HL36: 150 | HM36: 7644.45 | HN36: 0 | HO36: 0 | HP36: 0 | HQ36: 0 | HR36: 120627.55 | HS36: 0 | HT36: 120627.55 | HU36: 96358.45 | HV36: 1500 | HW36: 2450 | HX36: 0 | HY36: 905.13 | HZ36: 350 | IA36: 9300 | IB36: 67.52 | IC36: 1902 | ID36: 150 | IE36: 7644.45 | IF36: 0 | IG36: 0 | IH36: 0 | II36: 0 | IJ36: 120627.55 | IK36: 0 | IL36: 120627.55 | IM36: 96358.45 | IN36: 1500 | IO36: 2450 | IP36: 0 | IQ36: 905.13 | IR36: 350 | IS36: 9300 | IT36: 67.52 | IU36: 1902 | IV36: 150 | IW36: 7644.45 | IX36: 0 | IY36: 0 | IZ36: 0 | JA36: 0 | JB36: 120627.55 | JC36: 0 | JD36: 120627.55 | JF36: 1446411.68 | JG36: 5600 | JH36: 1452011.68 | JJ36: 37/2022-SE | JK36: 2022-01-01 | JL36: 2022-12-31 | JM36: 922790.44 | JN36: 43/2022-SE | JO36: Primeiro | JP36: 2022-09-28 | JQ36: 2022-12-31 | JR36: 36494.9 | JS36: 220/2023-SE | JT36: Segundo | JU36: 2023-01-01 | JV36: 2023-12-31 | JW36: 1324237.08 | JX36: =VLOOKUP($B36,'[1]BD MALA_DIRETA'!$B:$R,14,0) -> 258/2023-SE | JY36: =VLOOKUP($B36,'[1]BD MALA_DIRETA'!$B:$R,15,0) -> Terceiro | JZ36: =VLOOKUP($B36,'[1]BD MALA_DIRETA'!$B:$R,17,0) -> 2023-07-27 | KA36: 2023-12-31 | KB36: 127774.6
A37: 36 | B37: Sociedade "Fraternitas" de São Bernardo do Campo | C37: Creche Pelicano | D37: 05.634.011/0001-47 | E37: Rua Giacinto Tognato, nº 293 | F37: Baeta Neves | G37: S.B.Campo | H37: 09760-370 | I37: 4337-5995 | J37: fraternitas@terra.com.br | K37: creche.pelicano@emeb.saobernardo.sp.gov.br | L37: SB.075455/2021-37 | M37: SB.075581/2021-08 | O37: 38/2022-SE | Q37: =VLOOKUP(B37,'[1]BD MALA_DIRETA'!$B:$R,14,0) -> 259/2023-SE | R37: =VLOOKUP(B37,'[1]BD MALA_DIRETA'!$B:$R,17,0) -> 2023-07-27 | S37: =VLOOKUP(B37,'[1]BD MALA_DIRETA'!$B:$R,15,0) -> Terceiro | T37: 1650757.62 | AF37: 1418873.18 | AG37: 11400 | AH37: 26400 | AI37: 7440 | AJ37: 15600 | AK37: 10800 | AL37: 81000 | AM37: 7936.44 | AN37: 25608 | AO37: 1800 | AP37: 0 | AQ37: 34000 | AR37: 3000 | AS37: 3000 | AT37: 3900 | AU37: 1650757.62 | AW37: 112773.84 | AX37: 950 | AY37: 2200 | AZ37: 0 | BA37: 1300 | BB37: 900 | BC37: 500 | BD37: 661.37 | BE37: 2134 | BF37: 150 | BG37: 0 | BH37: 17000 | BI37: 0 | BJ37: 0 | BK37: 3900 | BL37: 138569.21 | BM37: 3900 | BN37: 142469.21 | BO37: 112773.84 | BP37: 950 | BQ37: 2200 | BR37: 0 | BS37: 1300 | BT37: 900 | BU37: 500 | BV37: 661.37 | BW37: 2134 | BX37: 150 | BY37: 0 | BZ37: 17000 | CA37: 0 | CB37: 0 | CC37: 0 | CD37: 138569.21 | CE37: 0 | CF37: 138569.21 | CG37: 112773.84 | CH37: 950 | CI37: 2200 | CJ37: 7440 | CK37: 1300 | CL37: 900 | CM37: 500 | CN37: 661.37 | CO37: 2134 | CP37: 150 | CQ37: 0 | CR37: 0 | CS37: 0 | CT37: 0 | CU37: 0 | CV37: 129009.21 | CW37: 0 | CX37: 129009.21 | CY37: 112773.84 | CZ37: 950 | DA37: 2200 | DB37: 0 | DC37: 1300 | DD37: 900 | DE37: 500 | DF37: 661.37 | DG37: 2134 | DH37: 150 | DI37: 0 | DJ37: 0 | DK37: 0 | DL37: 0 | DM37: 0 | DN37: 121569.21 | DO37: 0 | DP37: 121569.21 | DQ37: 112773.84 | DR37: 950 | DS37: 2200 | DT37: 0 | DU37: 1300 | DV37: 900 | DW37: 500 | DX37: 661.37 | DY37: 2134 | DZ37: 150 | EA37: 0 | EB37: 0 | EC37: 3000 | ED37: 3000 | EE37: 0 | EF37: 124569.21 | EG37: 3000 | EH37: 127569.21 | EI37: 112773.84 | EJ37: 950 | EK37: 2200 | EL37: 0 | EM37: 1300 | EN37: 900 | EO37: 500 | EP37: 661.37 | EQ37: 2134 | ER37: 150 | ES37: 0 | ET37: 0 | EU37: 0 | EV37: 0 | EW37: 0 | EX37: 121569.21 | EY37: 0 | EZ37: 121569.21 | FA37: 145567.39 | FB37: 950 | FC37: 2200 | FD37: 0 | FE37: 1300 | FF37: 900 | FG37: 30500 | FH37: 661.37 | FI37: 2134 | FJ37: 150 | FK37: 0 | FL37: 0 | FM37: 0 | FN37: 0 | FO37: 0 | FP37: 184362.76 | FQ37: 0 | FR37: 184362.76 | FS37: 119332.55 | FT37: 950 | FU37: 2200 | FV37: 0 | FW37: 1300 | FX37: 900 | FY37: 9500 | FZ37: 661.37 | GA37: 2134 | GB37: 150 | GC37: 0 | GD37: 0 | GE37: 0 | GF37: 0 | GG37: 0 | GH37: 137127.92 | GI37: 0 | GJ37: 137127.92 | GK37: 119332.55 | GL37: 950 | GM37: 2200 | GN37: 0 | GO37: 1300 | GP37: 900 | GQ37: 9500 | GR37: 661.37 | GS37: 2134 | GT37: 150 | GU37: 0 | GV37: 0 | GW37: 0 | GX37: 0 | GY37: 0 | GZ37: 137127.92 | HA37: 0 | HB37: 137127.92 | HC37: 119332.55 | HD37: 950 | HE37: 2200 | HF37: 0 | HG37: 1300 | HH37: 900 | HI37: 9500 | HJ37: 661.37 | HK37: 2134 | HL37: 150 | HM37: 0 | HN37: 0 | HO37: 0 | HP37: 0 | HQ37: 0 | HR37: 137127.92 | HS37: 0 | HT37: 137127.92 | HU37: 119332.55 | HV37: 950 | HW37: 2200 | HX37: 0 | HY37: 1300 | HZ37: 900 | IA37: 9500 | IB37: 661.37 | IC37: 2134 | ID37: 150 | IE37: 0 | IF37: 0 | IG37: 0 | IH37: 0 | II37: 0 | IJ37: 137127.92 | IK37: 0 | IL37: 137127.92 | IM37: 119332.55 | IN37: 950 | IO37: 2200 | IP37: 0 | IQ37: 1300 | IR37: 900 | IS37: 9500 | IT37: 661.37 | IU37: 2134 | IV37: 150 | IW37: 0 | IX37: 0 | IY37: 0 | IZ37: 0 | JA37: 0 | JB37: 137127.92 | JC37: 0 | JD37: 137127.92 | JF37: 1643857.62 | JG37: 6900 | JH37: 1650757.62 | JJ37: 38/2022-SE | JK37: 2022-01-01 | JL37: 2022-12-31 | JM37: 1127218.66 | JN37: 44/2022-SE | JO37: Primeiro | JP37: 2022-09-28 | JQ37: 2022-12-31 | JR37: 48069.3 | JS37: 221/2023-SE | JT37: Segundo | JU37: 2023-01-01 | JV37: 2023-12-31 | JW37: 1510170.52 | JX37: =VLOOKUP($B37,'[1]BD MALA_DIRETA'!$B:$R,14,0) -> 259/2023-SE | JY37: =VLOOKUP($B37,'[1]BD MALA_DIRETA'!$B:$R,15,0) -> Terceiro | JZ37: =VLOOKUP($B37,'[1]BD MALA_DIRETA'!$B:$R,17,0) -> 2023-07-27 | KA37: 2023-12-31 | KB37: 140587.1
JF38: =SUM(JF2:JF37) -> 73028176.98 | JG38: =SUM(JG2:JG37) -> 501492.7 | JH38: 73529669.68
A40: 1 | B40: 2 | C40: 3 | D40: 4 | E40: 5 | F40: 6 | G40: 7 | H40: 8 | I40: 9 | J40: 10 | K40: 11 | L40: 12 | M40: 13 | N40: 14 | O40: 15 | P40: 16 | Q40: 17 | R40: 18 | S40: 19 | T40: 20 | U40: 21 | V40: 22 | W40: 23 | X40: 24 | Y40: 25 | Z40: 26 | AA40: 27 | AB40: 28 | AC40: 29 | AD40: 30 | AE40: 31 | AF40: 32 | AG40: 33 | AH40: 34 | AI40: 35 | AJ40: 36 | AK40: 37 | AL40: 38 | AM40: 39 | AN40: 40 | AO40: 41 | AP40: 42 | AQ40: 43 | AR40: 44 | AS40: 45 | AT40: 46 | AU40: 47 | AV40: 48 | AW40: 49 | AX40: 50 | AY40: 51 | AZ40: 52 | BA40: 53 | BB40: 54 | BC40: 55 | BD40: 56 | BE40: 57 | BF40: 58 | BG40: 59 | BH40: 60 | BI40: 61 | BJ40: 62 | BK40: 63 | BL40: 64 | BM40: 65 | BN40: 66 | BO40: 67 | BP40: 68 | BQ40: 69 | BR40: 70 | BS40: 71 | BT40: 72 | BU40: 73 | BV40: 74 | BW40: 75 | BX40: 76 | BY40: 77 | BZ40: 78 | CA40: 79 | CB40: 80 | CC40: 81 | CD40: 82 | CE40: 83 | CF40: 84 | CG40: 85 | CH40: 86 | CI40: 87 | CJ40: 88 | CK40: 89 | CL40: 90 | CM40: 91 | CN40: 92 | CO40: 93 | CP40: 94 | CQ40: 95 | CR40: 96 | CS40: 97 | CT40: 98 | CU40: 99 | CV40: 100 | CW40: 101 | CX40: 102 | CY40: 103 | CZ40: 104 | DA40: 105 | DB40: 106 | DC40: 107 | DD40: 108 | DE40: 109 | DF40: 110 | DG40: 111 | DH40: 112 | DI40: 113 | DJ40: 114 | DK40: 115 | DL40: 116 | DM40: 117 | DN40: 118 | DO40: 119 | DP40: 120 | DQ40: 121 | DR40: 122 | DS40: 123 | DT40: 124 | DU40: 125 | DV40: 126 | DW40: 127 | DX40: 128 | DY40: 129 | DZ40: 130 | EA40: 131 | EB40: 132 | EC40: 133 | ED40: 134 | EE40: 135 | EF40: 136 | EG40: 137 | EH40: 138 | EI40: 139 | EJ40: 140 | EK40: 141 | EL40: 142 | EM40: 143 | EN40: 144 | EO40: 145 | EP40: 146 | EQ40: 147 | ER40: 148 | ES40: 149 | ET40: 150 | EU40: 151 | EV40: 152 | EW40: 153 | EX40: 154 | EY40: 155 | EZ40: 156 | FA40: 157 | FB40: 158 | FC40: 159 | FD40: 160 | FE40: 161 | FF40: 162 | FG40: 163 | FH40: 164 | FI40: 165 | FJ40: 166 | FK40: 167 | FL40: 168 | FM40: 169 | FN40: 170 | FO40: 171 | FP40: 172 | FQ40: 173 | FR40: 174 | FS40: 175 | FT40: 176 | FU40: 177 | FV40: 178 | FW40: 179 | FX40: 180 | FY40: 181 | FZ40: 182 | GA40: 183 | GB40: 184 | GC40: 185 | GD40: 186 | GE40: 187 | GF40: 188 | GG40: 189 | GH40: 190 | GI40: 191 | GJ40: 192 | GK40: 193 | GL40: 194 | GM40: 195 | GN40: 196 | GO40: 197 | GP40: 198 | GQ40: 199 | GR40: 200 | GS40: 201 | GT40: 202 | GU40: 203 | GV40: 204 | GW40: 205 | GX40: 206 | GY40: 207 | GZ40: 208 | HA40: 209 | HB40: 210 | HC40: 211 | HD40: 212 | HE40: 213 | HF40: 214 | HG40: 215 | HH40: 216 | HI40: 217 | HJ40: 218 | HK40: 219 | HL40: 220 | HM40: 221 | HN40: 222 | HO40: 223 | HP40: 224 | HQ40: 225 | HR40: 226 | HS40: 227 | HT40: 228 | HU40: 229 | HV40: 230 | HW40: 231 | HX40: 232 | HY40: 233 | HZ40: 234 | IA40: 235 | IB40: 236 | IC40: 237 | ID40: 238 | IE40: 239 | IF40: 240 | IG40: 241 | IH40: 242 | II40: 243 | IJ40: 244 | IK40: 245 | IL40: 246 | IM40: 247 | IN40: 248 | IO40: 249 | IP40: 250 | IQ40: 251 | IR40: 252 | IS40: 253 | IT40: 254 | IU40: 255 | IV40: 256 | IW40: 257 | IX40: 258 | IY40: 259 | IZ40: 260 | JA40: 261 | JB40: 262 | JC40: 263 | JD40: 264 | JE40: 265 | JF40: 266 | JG40: 267 | JH40: 268 | JI40: 269 | JJ40: 270 | JK40: 271 | JL40: 272 | JM40: 273 | JN40: 274 | JO40: 275 | JP40: 276 | JQ40: 277 | JR40: 278 | JS40: 279 | JT40: 280 | JU40: 281 | JV40: 282 | JW40: 283 | JX40: 284 | JY40: 285 | JZ40: 286 | KA40: 287 | KB40: 288 | KC40: 289 | KD40: 290 | KE40: 291 | KF40: 292 | KG40: 293 | KH40: 294 | KI40: 295 | KJ40: 296 | KK40: 297 | KL40: 298 | KM40: 299 | KN40: 300 | KO40: 301 | KP40: 302 | KQ40: 303 | KR40: 304 | KS40: 305 | KT40: 306 | KU40: 307 | KV40: 308 | KW40: 309 | KX40: 310 | KY40: 311 | KZ40: 312 | LA40: 313 | LB40: 314 | LC40: 315 | LD40: 316 | LE40: 317 | LF40: 318 | LG40: 319 | LH40: 320 | LI40: 321 | LJ40: 322 | LK40: 323
Z41: PER CAPITA | AA41: 772.54 | AB41: 617.98
LL42: 350 | LM42: 351

Sheet Dados (hidden)
C1: QUADRIMESTRES | D1: FINAL DO PERÍODO | E1: ANO VIGENTE | H1: OCORRÊNCIAS | J1: 1º Quadrimestre | K1: Salários e Encargos Sociais | L1: C
A2: CATEGORIAS | C2: 1º QUADRIMESTRE | D2: ="30/04/"&$E$2 -> 30/04/2023 | E2: 2023 | H2: Pagamento a maior | I2: D | J2: 2º Quadrimestre | K2: EPI e Exames Médicos | L2: C
A3: Custeio Geral | C3: 2º QUADRIMESTRE | D3: ="31/08/"&$E$2 -> 31/08/2023 | H3: Pagamento indevido | I3: D | J3: 3º Quadrimestre | K3: Despesas Mensais e de Consumo | L3: C
A4: Despesas com pessoal | C4: 3º QUADRIMESTRE | D4: ="31/12/"&$E$2 -> 31/12/2023 | H4: Despesa bancária indevida | I4: D | K4: Ampliação Cultural / Estudo do Meio | L4: C
A5: Despesas mensais | H5: Despesa indevida | I5: D | K5: Material Pedagógico / Livros / Jogos / Brinquedos | L5: C
A6: Manutenção do imóvel | H6: Juros / Multas | I6: D | K6: Custeio Administrativo | L6: C
A7: Locação de imóvel | H7: Devolução de recursos ao Município | I7: D | K7: Despesas com Conservação e Limpeza do Imóvel | L7: C
A8: Bens Permanentes | H8: Despesa a ser apresentada no próximo período | I8: D | K8: Manutenção de Bens Patrimoniais | L8: C
A9: Educação Maker | H9: Outras ocorrências de natureza devedora | I9: D | K9: Contabilidade | L9: C
H10: Pagamento em trânsito | I10: C | K10: Combustível para Deslocamentos à SE | L10: C
A11: Custeio Geral | B11: Despesas com pessoal | C11: Despesas mensais | D11: Manutenção do imóvel | E11: Locação de imóvel | F11: Bens Permanentes | G11: Educação Maker | H11: Ressarcimento/ Estorno | I11: C | K11: Locação do Imóvel | L11: C
A12: Combustível | B12: 13º salário | C12: Consumo de água | D12: Aquisição de material | E12: Aluguel | F12: Aquisição de equipamento | G12: Aquis. Equipamento - Educação Maker | H12: Depósito recursos próprios | I12: C | K12: Programa Escola Linda | L12: C
A13: Contratação Espetáculo Artístico / Cultural | B13: Assistência Médica | C13: Consumo de energia elétrica | D13: DARF ref. NFS Manutenção | E13: IPTU | F13: Aquisição de mobiliário | G13: Aquis. Mobiliário - Educação Maker | H13: Saldo do exercício anterior a devolver | I13: C | K13: Educação Maker - Custeio | L13: C
A14: Despesas com EPIs | B14: Auxílio-creche | C14: Consumo de gás | D14: INSS/ISS ref. NFS de Manutenção | G14: INSS/ISS ref. NFS - Ed. Maker | H14: Outras ocorrências de natureza credora | I14: C | K14: Educação Maker - Capital | L14: K
A15: Ingressos | B15: Cesta Básica | C15: Conta de telefone/internet | D15: INSS/ISS ref. RPA de Manutenção | G15: INSS/ISS ref. RPA - Ed. Maker | K15: Bem Permanente | L15: K
A16: INSS/ISS ref. Contrat. Esp. Artístico / Cultural | B16: Contribuição Sindical | C16: Contador | D16: Seguro predial | G16: Material para Educação Maker
A17: INSS/ISS ref. NFS de Prest. Serv. | B17: Encargos trabalhistas | C17: Locação de copiadora | D17: Serviços de Manutenção - PJ | G17: Prest. de Serviços Ed. Maker - PJ
A18: INSS ou ISS ref. RPA - Prest. Serv. | B18: Exames médicos | C18: Outros serviços contratados | D18: Serviços de Manutenção - RPA | G18: Prest. de Serviços Ed. Maker - RPA
A19: INSS/ISS ref. NFS de Manutenção de BP | B19: Férias | C19: Tributos
A20: INSS/ISS ref. RPA de Manutenção de BP | B20: Pagamento mensal
A21: INSS/ISS ref. NFS de Serv. de Transporte | B21: Pensão alimentícia
A22: INSS/ISS ref. RPA de Serv. de Transporte | B22: Rescisão de Trabalho
A23: Itens de cama / mesa / banho | B23: Seguro de Vida
A24: Locação de brinquedos | B24: Vale-alimentação
A25: Mat. Ed. Física e recreação | B25: Vale-refeição
A26: Mat. Limpeza / Higiene / Primeiros Socorros | B26: Vale-transporte
A27: Mat. p/ manutenção de equipamento
A28: Material para Manutenção de BP
A29: Materiais de escritório
A30: Materiais didáticos
A31: Materiais para biblioteca
A32: Prest. de Serviços - PJ
A33: Prest. de Serviços - RPA
A34: Prest. de Serviços para Manutenção BP
A35: Prest. de Serviços RPA para Manutenção BP
A36: Serviços de Transporte - PJ
A37: Serviços de Transporte - RPA
A38: Serviços de Vigilância e Segurança
A39: Transporte em passeios
A41: 13º salário | B41: Item I | C41: Despesas com pessoal | D41: Salários e Encargos Sociais
A42: Aluguel | B42: Item IX | C42: Locação de imóvel | D42: Locação do Imóvel
A43: Aquis. Equipamento - Educação Maker | B43: Item XIII | C43: Educação Maker | D43: Educação Maker - Capital
A44: Aquis. Mobiliário - Educação Maker | B44: Item XIII | C44: Educação Maker | D44: Educação Maker - Capital
A45: Aquisição de equipamento | B45: Item XIII | C45: Bens Permanentes | D45: Bem Permanente
A46: Aquisição de mobiliário | B46: Item XIII | C46: Bens Permanentes | D46: Bem Permanente
A47: Aquisição de material | B47: Item VI | C47: Manutenção do imóvel | D47: Programa Escola Linda
A48: Assistência Médica | B48: Item I | C48: Despesas com pessoal | D48: Salários e Encargos Sociais
A49: Auxílio-creche | B49: Item I | C49: Despesas com pessoal | D49: Salários e Encargos Sociais
A50: Cesta Básica | B50: Item I | C50: Despesas com pessoal | D50: Salários e Encargos Sociais
A51: Combustível | B51: Item XII | C51: Custeio Geral | D51: Combustível para Deslocamentos à SE
A52: Consumo de água | B52: Item XI | C52: Despesas mensais | D52: Despesas Mensais e de Consumo
A53: Consumo de energia elétrica | B53: Item XI | C53: Despesas mensais | D53: Despesas Mensais e de Consumo
A54: Consumo de gás | B54: Item XI | C54: Despesas mensais | D54: Despesas Mensais e de Consumo
A55: Conta de telefone/internet | B55: Item XI | C55: Despesas mensais | D55: Despesas Mensais e de Consumo
A56: Contador | B56: Item VIII | C56: Despesas mensais | D56: Contabilidade
A57: Contratação Espetáculo Artístico / Cultural | B57: Item VIII | C57: Custeio Geral | D57: Ampliação Cultural / Estudo do Meio
A58: Contribuição Sindical | B58: Item I | C58: Despesas com pessoal | D58: Salários e Encargos Sociais
A59: DARF ref. NFS Manutenção | B59: Item VIII | C59: Manutenção do imóvel | D59: Programa Escola Linda
A60: Despesas com EPIs | B60: Item VI | C60: Custeio Geral | D60: EPI e Exames Médicos
A61: Encargos trabalhistas | B61: Item I | C61: Despesas com pessoal | D61: Salários e Encargos Sociais
A62: Exames médicos | B62: Item I | C62: Despesas com pessoal | D62: EPI e Exames Médicos | E62: Tipo de Documento
A63: Férias | B63: Item I | C63: Despesas com pessoal | D63: Salários e Encargos Sociais | E63: Boleto Bancário
A64: Ingressos | B64: Item VIII | C64: Custeio Geral | D64: Ampliação Cultural / Estudo do Meio | E64: CF-e
A65: INSS/ISS ref. Contrat. Esp. Artístico / Cultural | B65: Item VIII | C65: Custeio Geral | D65: Ampliação Cultural / Estudo do Meio | E65: DACTe OS
A66: INSS/ISS ref. NFS de Prest. Serv. | B66: Item VIII | C66: Custeio Geral | D66: Custeio Administrativo | E66: DANFE
A67: INSS/ISS ref. RPA de Prest. Serv. | B67: Item II | C67: Custeio Geral | D67: Custeio Administrativo | E67: DARF
A68: INSS/ISS ref. NFS de Manutenção | B68: Item VIII | C68: Manutenção do imóvel | D68: Programa Escola Linda | E68: DARF
A69: INSS/ISS ref. RPA de Manutenção | B69: Item II | C69: Manutenção do imóvel | D69: Programa Escola Linda | E69: DARF
A70: INSS/ISS ref. NFS - Ed. Maker | B70: Item VIII | C70: Educação Maker | D70: Educação Maker - Custeio | E70: Fatura
A71: INSS/ISS ref. RPA - Ed. Maker | B71: Item II | C71: Educação Maker | D71: Educação Maker - Custeio | E71: FGTS
A72: INSS/ISS ref. NFS de Manutenção de BP | B72: Item VIII | C72: Custeio Geral | D72: Manutenção de Bens Patrimoniais | E72: GPS
A73: INSS/ISS ref. RPA de Manutenção de BP | B73: Item II | C73: Custeio Geral | D73: Manutenção de Bens Patrimoniais | E73: Holerite
A74: INSS/ISS ref. NFS de Serv. de Transporte | B74: Item VIII | C74: Custeio Geral | D74: Despesas com Conservação e Limpeza do Imóvel | E74: ISS
A75: INSS/ISS ref. RPA de Serv. de Transporte | B75: Item II | C75: Custeio Geral | D75: Despesas com Conservação e Limpeza do Imóvel | E75: Nota Fiscal
A76: IPTU | B76: Item XI | C76: Locação de imóvel | D76: Locação do Imóvel | E76: NF de Serviço
A77: Itens de cama / mesa / banho | B77: Item VI | C77: Custeio Geral | D77: Despesas com Conservação e Limpeza do Imóvel | E77: NF-e
A78: Locação de copiadora | B78: Item X | C78: Despesas mensais | D78: Despesas Mensais e de Consumo
A79: Locação de brinquedos | B79: Item X | C79: Custeio Geral | D79: Material Pedagógico / Livros / Jogos / Brinquedos
A80: Mat. Ed. Física e recreação | B80: Item VI | C80: Custeio Geral | D80: Material Pedagógico / Livros / Jogos / Brinquedos
A81: Mat. Limpeza / Higiene / Primeiros Socorros | B81: Item VI | C81: Custeio Geral | D81: Despesas com Conservação e Limpeza do Imóvel
A82: Mat. p/ manutenção de equipamento | B82: Item VI | C82: Custeio Geral | D82: Custeio Administrativo
A83: Material para Manutenção de BP | B83: Item VI | C83: Custeio Geral | D83: Manutenção de Bens Patrimoniais
A84: Materiais de escritório | B84: Item VI | C84: Custeio Geral | D84: Custeio Administrativo
A85: Materiais didáticos | B85: Item VI | C85: Custeio Geral | D85: Material Pedagógico / Livros / Jogos / Brinquedos
A86: Materiais para biblioteca | B86: Item VI | C86: Custeio Geral | D86: Material Pedagógico / Livros / Jogos / Brinquedos
A87: Material para Educação Maker | B87: Item VI | C87: Educação Maker | D87: Educação Maker - Custeio
A88: Outros serviços contratados | B88: Item VIII | C88: Despesas mensais | D88: Despesas Mensais e de Consumo
A89: Pagamento mensal | B89: Item I | C89: Despesas com pessoal | D89: Salários e Encargos Sociais
A90: Pensão alimentícia | B90: Item I | C90: Despesas com pessoal | D90: Salários e Encargos Sociais
A91: Prest. de Serviços - PJ | B91: Item VIII | C91: Custeio Geral | D91: Despesas Mensais e de Consumo
A92: Prest. de Serviços - RPA | B92: Item II | C92: Custeio Geral | D92: Despesas Mensais e de Consumo
A93: Prest. de Serviços Ed. Maker - PJ | B93: Item VIII | C93: Educação Maker | D93: Educação Maker - Custeio
A94: Prest. de Serviços Ed. Maker - RPA | B94: Item II | C94: Educação Maker | D94: Educação Maker - Custeio
A95: Prest. de Serviços para Manutenção BP | B95: Item VIII | C95: Custeio Geral | D95: Manutenção de Bens Patrimoniais
A96: Prest. de Serviços RPA para Manutenção BP | B96: Item II | C96: Custeio Geral | D96: Manutenção de Bens Patrimoniais
A97: Rescisão de Trabalho | B97: Item I | C97: Despesas com pessoal | D97: Salários e Encargos Sociais
A98: Seguro de Vida | B98: Item I | C98: Despesas com pessoal | D98: Salários e Encargos Sociais
A99: Seguro predial | B99: Item VIII | C99: Manutenção do imóvel | D99: Programa Escola Linda
A100: Serviços de Manutenção - PJ | B100: Item VIII | C100: Manutenção do imóvel | D100: Programa Escola Linda
A101: Serviços de Manutenção - RPA | B101: Item II | C101: Manutenção do imóvel | D101: Programa Escola Linda
A102: Serviços de Transporte - PJ | B102: Item VIII | C102: Custeio Geral | D102: Despesas com Conservação e Limpeza do Imóvel
A103: Serviços de Transporte - RPA | B103: Item II | C103: Custeio Geral | D103: Despesas com Conservação e Limpeza do Imóvel
A104: Serviços de Vigilância e Segurança | B104: Item VIII | C104: Custeio Geral | D104: Despesas com Conservação e Limpeza do Imóvel
A105: Transporte em passeios | B105: Item VIII | C105: Custeio Geral | D105: Ampliação Cultural / Estudo do Meio
A106: Tributos | B106: Item XI | C106: Despesas mensais | D106: Despesas Mensais e de Consumo
A107: Vale-alimentação | B107: Item I | C107: Despesas com pessoal | D107: Salários e Encargos Sociais
A108: Vale-refeição | B108: Item I | C108: Despesas com pessoal | D108: Salários e Encargos Sociais
A109: Vale-transporte | B109: Item I | C109: Despesas com pessoal | D109: Salários e Encargos Sociais
F114: =$B$119 -> 2
A115: UNIDADE | B115: Endereço | C115: Termo de Colaboração nº | D115: Processo Parceria | E115: Processo de Prestação de Contas | F115: CNPJ | G115: Processo Pagamento
A116: =UPPER(C119) -> SOCIEDADE "FRATERNITAS" DE SÃO BERNARDO DO CAMPO | B116: =$C$122&" - "&$C$123&" - "&$C$124&" - SP - CEP: "&$C$125 -> Rua Giacinto Tognato, nº 293 - Baeta Neves - S.B.Campo - SP - CEP: 09760-370 | C116: =$C$132 -> 38/2022-SE | D116: =$C$129 -> SB.075455/2021-37 | E116: =$C$131 -> 0 | F116: =$C$121 -> 05.634.011/0001-47 | G116: =C$130 -> SB.075581/2021-08
A118: Nº | B118: 1 | C118: =Início!N1 -> 36
A119: ENTIDADE | B119: 2 | C119: =INDEX(BD_23,MATCH($C$118,BD_2023!$A$2:$A$39,0),MATCH(Dados!$B119,BD_2023!$B$40:$LK$40,0)) -> Sociedade "Fraternitas" de São Bernardo do Campo
A120: NOME CRECHE | B120: 3 | C120: =INDEX(BD_23,MATCH($C$118,BD_2023!$A$2:$A$39,0),MATCH(Dados!$B120,BD_2023!$B$40:$LK$40,0)) -> Creche Pelicano | E120: 1 | F120: 2 | G120: 3 | H120: 4 | I120: 5 | J120: 6 | K120: 7 | L120: 8 | M120: 9 | N120: 10 | O120: 11 | P120: 12
A121: CNPJ | B121: 4 | C121: =INDEX(BD_23,MATCH($C$118,BD_2023!$A$2:$A$39,0),MATCH(Dados!$B121,BD_2023!$B$40:$LK$40,0)) -> 05.634.011/0001-47 | D121: Repasse | E121: Janeiro | F121: Fevereiro | G121: Março | H121: Abril | I121: Maio | J121: Junho | K121: Julho | L121: Agosto | M121: Setembro | N121: Outubro | O121: Novembro | P121: Dezembro | Q121: Total Repasse | R121: Previsão Inicial | S121: Complementação/Supressão
A122: ENDEREÇO | B122: 5 | C122: =INDEX(BD_23,MATCH($C$118,BD_2023!$A$2:$A$39,0),MATCH(Dados!$B122,BD_2023!$B$40:$LK$40,0)) -> Rua Giacinto Tognato, nº 293 | D122: DESPESAS DE PESSOAL | E122: =$C166 -> 112773.84 | F122: =$C184 -> 112773.84 | G122: =$C202 -> 112773.84 | H122: =$C220 -> 112773.84 | I122: =$C238 -> 112773.84 | J122: =$C256 -> 112773.84 | K122: =$C274 -> 145567.39 | L122: =$C292 -> 119332.55 | M122: =$C310 -> 119332.55 | N122: =$C328 -> 119332.55 | O122: =$C346 -> 119332.55 | P122: =$C364 -> 119332.55 | Q122: =SUM(E122:P122) -> 1418873.18 | R122: =$C149 -> 1418873.18 | S122: =Q122-R122 -> 0
A123: BAIRRO | B123: 6 | C123: =INDEX(BD_23,MATCH($C$118,BD_2023!$A$2:$A$39,0),MATCH(Dados!$B123,BD_2023!$B$40:$LK$40,0)) -> Baeta Neves | D123: EPIs E EXAMES PERIÓDICOS | E123: =$C167 -> 950 | F123: =$C185 -> 950 | G123: =$C203 -> 950 | H123: =$C221 -> 950 | I123: =$C239 -> 950 | J123: =$C257 -> 950 | K123: =$C275 -> 950 | L123: =$C293 -> 950 | M123: =$C311 -> 950 | N123: =$C329 -> 950 | O123: =$C347 -> 950 | P123: =$C365 -> 950 | Q123: =SUM(E123:P123) -> 11400 | R123: =$C150 -> 11400 | S123: =Q123-R123 -> 0
A124: MUNICÍPIO | B124: 7 | C124: =INDEX(BD_23,MATCH($C$118,BD_2023!$A$2:$A$39,0),MATCH(Dados!$B124,BD_2023!$B$40:$LK$40,0)) -> S.B.Campo | D124: DESPESAS DE CONSUMO | E124: =$C168 -> 2200 | F124: 2200 | G124: 2200 | H124: 2200 | I124: 2200 | J124: 2200 | K124: 2200 | L124: 2200 | M124: 2200 | N124: 2200 | O124: 2200 | P124: 2200 | Q124: 26400 | R124: 26400 | S124: 0
A125: CEP | B125: 8 | C125: =INDEX(BD_23,MATCH($C$118,BD_2023!$A$2:$A$39,0),MATCH(Dados!$B125,BD_2023!$B$40:$LK$40,0)) -> 09760-370 | D125: ESTUDO DO MEIO | E125: =$C169 -> 0 | F125: 0 | G125: 7440 | H125: 0 | I125: 0 | J125: 0 | K125: 0 | L125: 0 | M125: 0 | N125: 0 | O125: 0 | P125: 0 | Q125: 7440 | R125: 7440 | S125: 0
A126: TELEFONE | B126: 9 | C126: =INDEX(BD_23,MATCH($C$118,BD_2023!$A$2:$A$39,0),MATCH(Dados!$B126,BD_2023!$B$40:$LK$40,0)) -> 4337-5995 | D126: MATERIAIS PEDAGÓGICO | E126: 1300 | F126: 1300 | G126: 1300 | H126: 1300 | I126: 1300 | J126: 1300 | K126: 1300 | L126: 1300 | M126: 1300 | N126: 1300 | O126: 1300 | P126: 1300 | Q126: 15600 | R126: 15600 | S126: 0
A127: E-MAIL INSTITUCIONAL | B127: 10 | C127: =INDEX(BD_23,MATCH($C$118,BD_2023!$A$2:$A$39,0),MATCH(Dados!$B127,BD_2023!$B$40:$LK$40,0)) -> fraternitas@terra.com.br | D127: CUSTEIO ADMINISTRATIVO | E127: 900 | F127: 900 | G127: 900 | H127: 900 | I127: 900 | J127: 900 | K127: 900 | L127: 900 | M127: 900 | N127: 900 | O127: 900 | P127: 900 | Q127: 10800 | R127: 10800 | S127: 0
A128: E-MAIL (@emeb) | B128: 11 | C128: =INDEX(BD_23,MATCH($C$118,BD_2023!$A$2:$A$39,0),MATCH(Dados!$B128,BD_2023!$B$40:$LK$40,0)) -> creche.pelicano@emeb.saobernardo.sp.gov.br | D128: CONS. E LIMPEZA DO IMÓVEL | E128: 500 | F128: 500 | G128: 500 | H128: 500 | I128: 500 | J128: 500 | K128: 30500 | L128: 9500 | M128: 9500 | N128: 9500 | O128: 9500 | P128: 9500 | Q128: 81000 | R128: 81000 | S128: 0
A129: Nº PROCESSO PARCERIA | B129: 12 | C129: =INDEX(BD_23,MATCH($C$118,BD_2023!$A$2:$A$39,0),MATCH(Dados!$B129,BD_2023!$B$40:$LK$40,0)) -> SB.075455/2021-37 | D129: MANUT. BP | E129: 661.37 | F129: 661.37 | G129: 661.37 | H129: 661.37 | I129: 661.37 | J129: 661.37 | K129: 661.37 | L129: 661.37 | M129: 661.37 | N129: 661.37 | O129: 661.37 | P129: 661.37 | Q129: 7936.44 | R129: 7936.44 | S129: 0
A130: Nº PROCESSO PAGAMENTO | B130: 13 | C130: =INDEX(BD_23,MATCH($C$118,BD_2023!$A$2:$A$39,0),MATCH(Dados!$B130,BD_2023!$B$40:$LK$40,0)) -> SB.075581/2021-08 | D130: CONTABILIDADE | E130: 2134 | F130: 2134 | G130: 2134 | H130: 2134 | I130: 2134 | J130: 2134 | K130: 2134 | L130: 2134 | M130: 2134 | N130: 2134 | O130: 2134 | P130: 2134 | Q130: 25608 | R130: 25608 | S130: 0
A131: Nº PROCESSO PREST. CONTAS | B131: 14 | C131: =INDEX(BD_23,MATCH($C$118,BD_2023!$A$2:$A$39,0),MATCH(Dados!$B131,BD_2023!$B$40:$LK$40,0)) -> 0 | D131: COMBUSTÍVEL PARA DESLICAMENTOS À SE | E131: 150 | F131: 150 | G131: 150 | H131: 150 | I131: 150 | J131: 150 | K131: 150 | L131: 150 | M131: 150 | N131: 150 | O131: 150 | P131: 150 | Q131: 1800 | R131: 1800 | S131: 0
A132: TERMO DE COLABORAÇÃO Nº | B132: 15 | C132: =INDEX(BD_23,MATCH($C$118,BD_2023!$A$2:$A$39,0),MATCH(Dados!$B132,BD_2023!$B$40:$LK$40,0)) -> 38/2022-SE | D132: LOCAÇÃO DO IMÓVEL | E132: 0 | F132: 0 | G132: 0 | H132: 0 | I132: 0 | J132: 0 | K132: 0 | L132: 0 | M132: 0 | N132: 0 | O132: 0 | P132: 0 | Q132: 0 | R132: 0 | S132: 0
A133: DATA ASSINATURA TC | B133: 16 | C133: =INDEX(BD_23,MATCH($C$118,BD_2023!$A$2:$A$39,0),MATCH(Dados!$B133,BD_2023!$B$40:$LK$40,0)) -> 0 | D133: PROGRAMA ESCOLA LINDA | E133: 17000 | F133: 17000 | G133: 0 | H133: 0 | I133: 0 | J133: 0 | K133: 0 | L133: 0 | M133: 0 | N133: 0 | O133: 0 | P133: 0 | Q133: 34000 | R133: 34000 | S133: 0
A134: TERMO ADITAMENTO Nº | B134: 17 | C134: =INDEX(BD_23,MATCH($C$118,BD_2023!$A$2:$A$39,0),MATCH(Dados!$B134,BD_2023!$B$40:$LK$40,0)) -> 259/2023-SE | D134: EDUCAÇÃO MAKER - CUSTEIO | E134: 0 | F134: 0 | G134: 0 | H134: 0 | I134: 3000 | J134: 0 | K134: 0 | L134: 0 | M134: 0 | N134: 0 | O134: 0 | P134: 0 | Q134: 3000 | R134: 3000 | S134: 0
A135: DATA ASSINATURA TA | B135: 18 | C135: =INDEX(BD_23,MATCH($C$118,BD_2023!$A$2:$A$39,0),MATCH(Dados!$B135,BD_2023!$B$40:$LK$40,0)) -> 45134 | D135: EDUCAÇÃO MAKER - CAPITAL | E135: 0 | F135: 0 | G135: 0 | H135: 0 | I135: 3000 | J135: 0 | K135: 0 | L135: 0 | M135: 0 | N135: 0 | O135: 0 | P135: 0 | Q135: 3000 | R135: 3000 | S135: 0
A136: SEQUÊNCIA TA | B136: 19 | C136: =INDEX(BD_23,MATCH($C$118,BD_2023!$A$2:$A$39,0),MATCH(Dados!$B136,BD_2023!$B$40:$LK$40,0)) -> Terceiro | D136: BENS PERMANENTES | E136: 3900 | F136: 0 | G136: 0 | H136: 0 | I136: 0 | J136: 0 | K136: 0 | L136: 0 | M136: 0 | N136: 0 | O136: 0 | P136: 0 | Q136: 3900 | R136: 3900 | S136: 0
A137: VALOR TA | B137: 20 | C137: =INDEX(BD_23,MATCH($C$118,BD_2023!$A$2:$A$39,0),MATCH(Dados!$B137,BD_2023!$B$40:$LK$40,0)) -> 1650757.62 | D137: CUSTEIO | E137: =SUM(E122:E134) -> 138569.21 | F137: 138569.21 | G137: 129009.21 | H137: 121569.21 | I137: 124569.21 | J137: 121569.21 | K137: 184362.76 | L137: 137127.92 | M137: 137127.92 | N137: 137127.92 | O137: 137127.92 | P137: 137127.92 | Q137: 1643857.62 | R137: =SUM(R122:R134) -> 1643857.62 | S137: 0
A138: BERÇÁRIO I ALUNOS | B138: 21 | C138: =INDEX(BD_23,MATCH($C$118,BD_2023!$A$2:$A$39,0),MATCH(Dados!$B138,BD_2023!$B$40:$LK$40,0)) -> 0 | D138: CAPITAL | E138: =SUM(E135:E136) -> 3900 | F138: 0 | G138: 0 | H138: 0 | I138: 3000 | J138: 0 | K138: 0 | L138: 0 | M138: 0 | N138: 0 | O138: 0 | P138: 0 | Q138: 6900 | R138: =SUM(R135:R136) -> 6900 | S138: 0
A139: BERÇÁRIO I TURMAS | B139: 22 | C139: =INDEX(BD_23,MATCH($C$118,BD_2023!$A$2:$A$39,0),MATCH(Dados!$B139,BD_2023!$B$40:$LK$40,0)) -> 0 | D139: TOTAL | E139: =SUM(E137:E138) -> 142469.21 | F139: 138569.21 | G139: 129009.21 | H139: 121569.21 | I139: 127569.21 | J139: 121569.21 | K139: 184362.76 | L139: 137127.92 | M139: 137127.92 | N139: 137127.92 | O139: 137127.92 | P139: 137127.92 | Q139: 1650757.62 | R139: =SUM(R137:R138) -> 1650757.62 | S139: 0
A140: INFANTIL I E II ALUNOS | B140: 23 | C140: =INDEX(BD_23,MATCH($C$118,BD_2023!$A$2:$A$39,0),MATCH(Dados!$B140,BD_2023!$B$40:$LK$40,0)) -> 0
A141: INFANTIL I E II TURMAS | B141: 24 | C141: =INDEX(BD_23,MATCH($C$118,BD_2023!$A$2:$A$39,0),MATCH(Dados!$B141,BD_2023!$B$40:$LK$40,0)) -> 0
A142: TOTAL ALUNOS | B142: 25 | C142: =INDEX(BD_23,MATCH($C$118,BD_2023!$A$2:$A$39,0),MATCH(Dados!$B142,BD_2023!$B$40:$LK$40,0)) -> 0
A143: TOTAL TURMAS | B143: 26 | C143: =INDEX(BD_23,MATCH($C$118,BD_2023!$A$2:$A$39,0),MATCH(Dados!$B143,BD_2023!$B$40:$LK$40,0)) -> 0
A144: VPC BERÇÁRIO | B144: 27 | C144: =INDEX(BD_23,MATCH($C$118,BD_2023!$A$2:$A$39,0),MATCH(Dados!$B144,BD_2023!$B$40:$LK$40,0)) -> 0
A145: VPC INFANTIL | B145: 28 | C145: =INDEX(BD_23,MATCH($C$118,BD_2023!$A$2:$A$39,0),MATCH(Dados!$B145,BD_2023!$B$40:$LK$40,0)) -> 0
A146: TOTAL PER CAPITA | B146: 29 | C146: =INDEX(BD_23,MATCH($C$118,BD_2023!$A$2:$A$39,0),MATCH(Dados!$B146,BD_2023!$B$40:$LK$40,0)) -> 0
A147: TOTAL PER CAPITA ANUAL | B147: 30 | C147: =INDEX(BD_23,MATCH($C$118,BD_2023!$A$2:$A$39,0),MATCH(Dados!$B147,BD_2023!$B$40:$LK$40,0)) -> 0
B148: 31 | C148: =INDEX(BD_23,MATCH($C$118,BD_2023!$A$2:$A$39,0),MATCH(Dados!$B148,BD_2023!$B$40:$LK$40,0)) -> 0
A149: DESPESAS DE PESSOAL | B149: 32 | C149: =INDEX(BD_23,MATCH($C$118,BD_2023!$A$2:$A$39,0),MATCH(Dados!$B149,BD_2023!$B$40:$LK$40,0)) -> 1418873.18
A150: EPIs E EXAMES PERIÓDICOS | B150: 33 | C150: =INDEX(BD_23,MATCH($C$118,BD_2023!$A$2:$A$39,0),MATCH(Dados!$B150,BD_2023!$B$40:$LK$40,0)) -> 11400
A151: DESPESAS DE CONSUMO | B151: 34 | C151: =INDEX(BD_23,MATCH($C$118,BD_2023!$A$2:$A$39,0),MATCH(Dados!$B151,BD_2023!$B$40:$LK$40,0)) -> 26400
A152: ESTUDO DO MEIO | B152: 35 | C152: =INDEX(BD_23,MATCH($C$118,BD_2023!$A$2:$A$39,0),MATCH(Dados!$B152,BD_2023!$B$40:$LK$40,0)) -> 7440
A153: MATERIAIS PEDAGÓGICO | B153: 36 | C153: =INDEX(BD_23,MATCH($C$118,BD_2023!$A$2:$A$39,0),MATCH(Dados!$B153,BD_2023!$B$40:$LK$40,0)) -> 15600
A154: CUSTEIO ADMINISTRATIVO | B154: 37 | C154: =INDEX(BD_23,MATCH($C$118,BD_2023!$A$2:$A$39,0),MATCH(Dados!$B154,BD_2023!$B$40:$LK$40,0)) -> 10800
A155: CONS. E LIMPEZA DO IMÓVEL | B155: 38 | C155: =INDEX(BD_23,MATCH($C$118,BD_2023!$A$2:$A$39,0),MATCH(Dados!$B155,BD_2023!$B$40:$LK$40,0)) -> 81000
A156: MANUT. BP | B156: 39 | C156: =INDEX(BD_23,MATCH($C$118,BD_2023!$A$2:$A$39,0),MATCH(Dados!$B156,BD_2023!$B$40:$LK$40,0)) -> 7936.44
A157: CONTABILIDADE | B157: 40 | C157: =INDEX(BD_23,MATCH($C$118,BD_2023!$A$2:$A$39,0),MATCH(Dados!$B157,BD_2023!$B$40:$LK$40,0)) -> 25608
A158: COMBUSTÍVEL PARA DESLICAMENTOS À SE | B158: 41 | C158: =INDEX(BD_23,MATCH($C$118,BD_2023!$A$2:$A$39,0),MATCH(Dados!$B158,BD_2023!$B$40:$LK$40,0)) -> 1800
A159: LOCAÇÃO DO IMÓVEL | B159: 42 | C159: =INDEX(BD_23,MATCH($C$118,BD_2023!$A$2:$A$39,0),MATCH(Dados!$B159,BD_2023!$B$40:$LK$40,0)) -> 0
A160: PROGRAMA ESCOLA LINDA | B160: 43 | C160: =INDEX(BD_23,MATCH($C$118,BD_2023!$A$2:$A$39,0),MATCH(Dados!$B160,BD_2023!$B$40:$LK$40,0)) -> 34000
A161: EDUCAÇÃO MAKER - CUSTEIO | B161: 44 | C161: =INDEX(BD_23,MATCH($C$118,BD_2023!$A$2:$A$39,0),MATCH(Dados!$B161,BD_2023!$B$40:$LK$40,0)) -> 3000
A162: EDUCAÇÃO MAKER - CAPITAL | B162: 45 | C162: =INDEX(BD_23,MATCH($C$118,BD_2023!$A$2:$A$39,0),MATCH(Dados!$B162,BD_2023!$B$40:$LK$40,0)) -> 3000
A163: BENS PERMANENTES | B163: 46 | C163: =INDEX(BD_23,MATCH($C$118,BD_2023!$A$2:$A$39,0),MATCH(Dados!$B163,BD_2023!$B$40:$LK$40,0)) -> 3900
A164: TOTAL PLANO DE TRABALHO | B164: 47 | C164: =INDEX(BD_23,MATCH($C$118,BD_2023!$A$2:$A$39,0),MATCH(Dados!$B164,BD_2023!$B$40:$LK$40,0)) -> 1650757.62
A165: Valores por mês => | B165: 48 | C165: =INDEX(BD_23,MATCH($C$118,BD_2023!$A$2:$A$39,0),MATCH(Dados!$B165,BD_2023!$B$40:$LK$40,0)) -> 0
A166: DESPESAS DE PESSOAL | B166: 49 | C166: =INDEX(BD_23,MATCH($C$118,BD_2023!$A$2:$A$39,0),MATCH(Dados!$B166,BD_2023!$B$40:$LK$40,0)) -> 112773.84
A167: EPIs E EXAMES PERIÓDICOS | B167: 50 | C167: =INDEX(BD_23,MATCH($C$118,BD_2023!$A$2:$A$39,0),MATCH(Dados!$B167,BD_2023!$B$40:$LK$40,0)) -> 950
A168: DESPESAS DE CONSUMO | B168: 51 | C168: =INDEX(BD_23,MATCH($C$118,BD_2023!$A$2:$A$39,0),MATCH(Dados!$B168,BD_2023!$B$40:$LK$40,0)) -> 2200
A169: ESTUDO DO MEIO | B169: 52 | C169: =INDEX(BD_23,MATCH($C$118,BD_2023!$A$2:$A$39,0),MATCH(Dados!$B169,BD_2023!$B$40:$LK$40,0)) -> 0
A170: MATERIAIS PEDAGÓGICO | B170: 53 | C170: =INDEX(BD_23,MATCH($C$118,BD_2023!$A$2:$A$39,0),MATCH(Dados!$B170,BD_2023!$B$40:$LK$40,0)) -> 1300
A171: CUSTEIO ADMINISTRATIVO | B171: 54 | C171: =INDEX(BD_23,MATCH($C$118,BD_2023!$A$2:$A$39,0),MATCH(Dados!$B171,BD_2023!$B$40:$LK$40,0)) -> 900
A172: CONS. E LIMPEZA DO IMÓVEL | B172: 55 | C172: =INDEX(BD_23,MATCH($C$118,BD_2023!$A$2:$A$39,0),MATCH(Dados!$B172,BD_2023!$B$40:$LK$40,0)) -> 500
A173: MANUT. BP | B173: 56 | C173: =INDEX(BD_23,MATCH($C$118,BD_2023!$A$2:$A$39,0),MATCH(Dados!$B173,BD_2023!$B$40:$LK$40,0)) -> 661.37
A174: CONTABILIDADE | B174: 57 | C174: =INDEX(BD_23,MATCH($C$118,BD_2023!$A$2:$A$39,0),MATCH(Dados!$B174,BD_2023!$B$40:$LK$40,0)) -> 2134
A175: COMBUSTÍVEL PARA DESLICAMENTOS À SE | B175: 58 | C175: =INDEX(BD_23,MATCH($C$118,BD_2023!$A$2:$A$39,0),MATCH(Dados!$B175,BD_2023!$B$40:$LK$40,0)) -> 150
A176: LOCAÇÃO DO IMÓVEL | B176: 59 | C176: =INDEX(BD_23,MATCH($C$118,BD_2023!$A$2:$A$39,0),MATCH(Dados!$B176,BD_2023!$B$40:$LK$40,0)) -> 0
A177: PROGRAMA ESCOLA LINDA | B177: 60 | C177: =INDEX(BD_23,MATCH($C$118,BD_2023!$A$2:$A$39,0),MATCH(Dados!$B177,BD_2023!$B$40:$LK$40,0)) -> 17000
A178: EDUCAÇÃO MAKER - CUSTEIO | B178: 61 | C178: =INDEX(BD_23,MATCH($C$118,BD_2023!$A$2:$A$39,0),MATCH(Dados!$B178,BD_2023!$B$40:$LK$40,0)) -> 0
A179: EDUCAÇÃO MAKER - CAPITAL | B179: 62 | C179: =INDEX(BD_23,MATCH($C$118,BD_2023!$A$2:$A$39,0),MATCH(Dados!$B179,BD_2023!$B$40:$LK$40,0)) -> 0
A180: BENS PERMANENTES | B180: 63 | C180: =INDEX(BD_23,MATCH($C$118,BD_2023!$A$2:$A$39,0),MATCH(Dados!$B180,BD_2023!$B$40:$LK$40,0)) -> 3900
A181: CUSTEIO JANEIRO | B181: 64 | C181: =INDEX(BD_23,MATCH($C$118,BD_2023!$A$2:$A$39,0),MATCH(Dados!$B181,BD_2023!$B$40:$LK$40,0)) -> 138569.21
A182: CAPITAL JANEIRO | B182: 65 | C182: =INDEX(BD_23,MATCH($C$118,BD_2023!$A$2:$A$39,0),MATCH(Dados!$B182,BD_2023!$B$40:$LK$40,0)) -> 3900
A183: TOTAL JANEIRO | B183: 66 | C183: =INDEX(BD_23,MATCH($C$118,BD_2023!$A$2:$A$39,0),MATCH(Dados!$B183,BD_2023!$B$40:$LK$40,0)) -> 142469.21
A184: DESPESAS DE PESSOAL | B184: 67 | C184: =INDEX(BD_23,MATCH($C$118,BD_2023!$A$2:$A$39,0),MATCH(Dados!$B184,BD_2023!$B$40:$LK$40,0)) -> 112773.84
A185: EPIs E EXAMES PERIÓDICOS | B185: 68 | C185: =INDEX(BD_23,MATCH($C$118,BD_2023!$A$2:$A$39,0),MATCH(Dados!$B185,BD_2023!$B$40:$LK$40,0)) -> 950
A186: DESPESAS DE CONSUMO | B186: 69 | C186: =INDEX(BD_23,MATCH($C$118,BD_2023!$A$2:$A$39,0),MATCH(Dados!$B186,BD_2023!$B$40:$LK$40,0)) -> 2200
A187: ESTUDO DO MEIO | B187: 70 | C187: =INDEX(BD_23,MATCH($C$118,BD_2023!$A$2:$A$39,0),MATCH(Dados!$B187,BD_2023!$B$40:$LK$40,0)) -> 0
A188: MATERIAIS PEDAGÓGICO | B188: 71 | C188: =INDEX(BD_23,MATCH($C$118,BD_2023!$A$2:$A$39,0),MATCH(Dados!$B188,BD_2023!$B$40:$LK$40,0)) -> 1300
A189: CUSTEIO ADMINISTRATIVO | B189: 72 | C189: =INDEX(BD_23,MATCH($C$118,BD_2023!$A$2:$A$39,0),MATCH(Dados!$B189,BD_2023!$B$40:$LK$40,0)) -> 900
A190: CONS. E LIMPEZA DO IMÓVEL | B190: 73 | C190: =INDEX(BD_23,MATCH($C$118,BD_2023!$A$2:$A$39,0),MATCH(Dados!$B190,BD_2023!$B$40:$LK$40,0)) -> 500
A191: MANUT. BP | B191: 74 | C191: =INDEX(BD_23,MATCH($C$118,BD_2023!$A$2:$A$39,0),MATCH(Dados!$B191,BD_2023!$B$40:$LK$40,0)) -> 661.37
A192: CONTABILIDADE | B192: 75 | C192: =INDEX(BD_23,MATCH($C$118,BD_2023!$A$2:$A$39,0),MATCH(Dados!$B192,BD_2023!$B$40:$LK$40,0)) -> 2134
A193: COMBUSTÍVEL PARA DESLICAMENTOS À SE | B193: 76 | C193: =INDEX(BD_23,MATCH($C$118,BD_2023!$A$2:$A$39,0),MATCH(Dados!$B193,BD_2023!$B$40:$LK$40,0)) -> 150
A194: LOCAÇÃO DO IMÓVEL | B194: 77 | C194: =INDEX(BD_23,MATCH($C$118,BD_2023!$A$2:$A$39,0),MATCH(Dados!$B194,BD_2023!$B$40:$LK$40,0)) -> 0
A195: PROGRAMA ESCOLA LINDA | B195: 78 | C195: =INDEX(BD_23,MATCH($C$118,BD_2023!$A$2:$A$39,0),MATCH(Dados!$B195,BD_2023!$B$40:$LK$40,0)) -> 17000
A196: EDUCAÇÃO MAKER - CUSTEIO | B196: 79 | C196: =INDEX(BD_23,MATCH($C$118,BD_2023!$A$2:$A$39,0),MATCH(Dados!$B196,BD_2023!$B$40:$LK$40,0)) -> 0
A197: EDUCAÇÃO MAKER - CAPITAL | B197: 80 | C197: =INDEX(BD_23,MATCH($C$118,BD_2023!$A$2:$A$39,0),MATCH(Dados!$B197,BD_2023!$B$40:$LK$40,0)) -> 0
A198: BENS PERMANENTES | B198: 81 | C198: =INDEX(BD_23,MATCH($C$118,BD_2023!$A$2:$A$39,0),MATCH(Dados!$B198,BD_2023!$B$40:$LK$40,0)) -> 0
A199: CUSTEIO FEVEREIRO | B199: 82 | C199: =INDEX(BD_23,MATCH($C$118,BD_2023!$A$2:$A$39,0),MATCH(Dados!$B199,BD_2023!$B$40:$LK$40,0)) -> 138569.21
A200: CAPITAL FEVEREIRO | B200: 83 | C200: =INDEX(BD_23,MATCH($C$118,BD_2023!$A$2:$A$39,0),MATCH(Dados!$B200,BD_2023!$B$40:$LK$40,0)) -> 0
A201: TOTAL FEVEREIRO | B201: 84 | C201: =INDEX(BD_23,MATCH($C$118,BD_2023!$A$2:$A$39,0),MATCH(Dados!$B201,BD_2023!$B$40:$LK$40,0)) -> 138569.21
A202: DESPESAS DE PESSOAL | B202: 85 | C202: =INDEX(BD_23,MATCH($C$118,BD_2023!$A$2:$A$39,0),MATCH(Dados!$B202,BD_2023!$B$40:$LK$40,0)) -> 112773.84
A203: EPIs E EXAMES PERIÓDICOS | B203: 86 | C203: =INDEX(BD_23,MATCH($C$118,BD_2023!$A$2:$A$39,0),MATCH(Dados!$B203,BD_2023!$B$40:$LK$40,0)) -> 950
A204: DESPESAS DE CONSUMO | B204: 87 | C204: =INDEX(BD_23,MATCH($C$118,BD_2023!$A$2:$A$39,0),MATCH(Dados!$B204,BD_2023!$B$40:$LK$40,0)) -> 2200
A205: ESTUDO DO MEIO | B205: 88 | C205: =INDEX(BD_23,MATCH($C$118,BD_2023!$A$2:$A$39,0),MATCH(Dados!$B205,BD_2023!$B$40:$LK$40,0)) -> 7440
A206: MATERIAIS PEDAGÓGICO | B206: 89 | C206: =INDEX(BD_23,MATCH($C$118,BD_2023!$A$2:$A$39,0),MATCH(Dados!$B206,BD_2023!$B$40:$LK$40,0)) -> 1300
... 234 more rows

Sheet Início
A1: PLANILHA DE GESTÃO 2023 | N1: 36 | O1: 1
A3: Organização da Sociedade Civil: | C3: =Dados!$A$116 -> SOCIEDADE "FRATERNITAS" DE SÃO BERNARDO DO CAMPO | G3: CNPJ: | H3: =Dados!F116 -> 05.634.011/0001-47 | N3: =C3 -> SOCIEDADE "FRATERNITAS" DE SÃO BERNARDO DO CAMPO
A4: Endereço: | C4: =Dados!$B$116 -> Rua Giacinto Tognato, nº 293 - Baeta Neves - S.B.Campo - SP - CEP: 09760-370
A5: Termo de Colaboração nº | C5: =Dados!C116 -> 38/2022-SE | E5: =IF(Dados!C134<>0,"Termo de Aditamento ("&Dados!C136&") nº","") -> Termo de Aditamento (Terceiro) nº | H5: =IF(Dados!C134<>0,Dados!C134,"") -> 259/2023-SE
A6: Processo Convênio: | C6: =Dados!D116 -> SB.075455/2021-37 | E6: Processo Prestação de Contas: | H6: =Dados!E116 -> 0
A7: Valor da Parceria: | C7: =Dados!Q139 -> 1650757.62
A10: Presidente | B10: MANUEL SABOR GONZALVES | G10: Contador | H10: RITA SUELY ROCHA DURIGUELLO
A11: CPF | B11: 008.859.828-43 | G11: CRC | H11: 1SP 284016/O-7
A13: RECURSOS REPASSADOS | G13: PRESTAÇÃO DE CONTAS
A14: CUSTEIO | G14: PERÍODO | H14: DATA PREVISTA PARA ENTREGA | I14: DATA DE ENTREGA
A15: DATA PREVISTA PARA O REPASSE | B15: VALOR PREVISTO (R$) | C15: Nº DOC DE CRÉDITO | D15: DATA DO REPASSE | E15: VALOR REPASSADO | G15: 1º quadrimestre | H15: 2023-05-15
G16: 2º quadrimestre | H16: 2023-09-15
A17: 2023-01-27 | B17: =Dados!$E$137 -> 138569.21 | C17: 1 | D17: 2023-01-31 | E17: 138569.21 | G17: 3º quadrimestre | H17: 2024-02-05
A18: 2023-02-28 | B18: =Dados!$F$137 -> 138569.21 | C18: 1 | D18: 2023-03-02 | E18: 138569.21
A19: 2023-03-28 | B19: =Dados!$G$137 -> 129009.21 | C19: 1 | D19: 2023-03-28 | E19: 129009.21
A20: 2023-04-28 | B20: =Dados!$H$137 -> 121569.21 | C20: 1 | D20: 2023-04-28 | E20: 121569.21
A21: 2023-05-26 | B21: =Dados!$I$137 -> 124569.21 | C21: 1 | D21: 2023-05-26 | E21: 124569.21
A22: 2023-06-28 | B22: =Dados!$J$137 -> 121569.21 | C22: 1 | D22: 2023-06-29 | E22: 121569.21
A23: 2023-07-28 | B23: =Dados!$K$137 -> 184362.76 | C23: 1 | D23: 2023-07-31 | E23: 121569.21
A24: 2023-08-28 | B24: =Dados!$L$137 -> 137127.92 | C24: 1 | D24: 09 e 28/08/2023 | E24: 199921.47
A25: 2023-09-28 | B25: =Dados!$M$137 -> 137127.92 | C25: 1 | D25: 2023-10-02 | E25: =121569.21+15558.71 -> 137127.92
A26: 2023-10-27 | B26: =Dados!$N$137 -> 137127.92 | C26: 1 | D26: 2023-10-30 | E26: =121569.21+15558.71 -> 137127.92
A27: 2023-11-28 | B27: =Dados!$O$137 -> 137127.92 | C27: 1 | D27: 2023-11-30 | E27: =15558.71+121569.21 -> 137127.92
A28: 2023-11-28 | B28: =Dados!$P$137 -> 137127.92 | C28: 1 | D28: 2023-12-06 | E28: =121569.21+15558.71 -> 137127.92
A30: CAPITAL
A31: DATA PREVISTA PARA O REPASSE | B31: VALOR PREVISTO (R$) | C31: Nº DOC DE CRÉDITO | D31: DATA DO REPASSE | E31: VALOR REPASSADO
A32: 2023-01-27 | B32: =Dados!$E$138 -> 3900 | C32: 1 | D32: 2023-01-31 | E32: 3900
A33: 2023-02-28 | B33: =Dados!$F$138 -> 0
A34: 2023-03-28 | B34: =Dados!$G$138 -> 0
A35: 2023-04-28 | B35: =Dados!$H$138 -> 0
A36: 2023-05-26 | B36: =Dados!$I$138 -> 3000 | C36: 1 | D36: 2023-05-26 | E36: 3000
A37: 2023-06-28 | B37: =Dados!$J$138 -> 0
A38: 2023-07-28 | B38: =Dados!$K$138 -> 0
A39: 2023-08-28 | B39: =Dados!$L$138 -> 0
A40: 2023-09-28 | B40: =Dados!$M$138 -> 0
A41: 2023-10-27 | B41: =Dados!$N$138 -> 0
A42: 2023-11-28 | B42: =Dados!$O$138 -> 0
A43: 2023-11-28 | B43: =Dados!$P$138 -> 0
A45: Acesse as guias da Planilha de Gestão

Sheet QUADRO
A1: QUADRO RESUMO | N1: 2023 | O1: 3 | AD1: 1
A3: Organização da Sociedade Civil: | B3: =Dados!A116 -> SOCIEDADE "FRATERNITAS" DE SÃO BERNARDO DO CAMPO | N3: =IF(O1=4,"EXERCÍCIO",O1&"º QUADRIMESTRE") -> 3º QUADRIMESTRE
A4: Endereço: | B4: =Dados!$B$116 -> Rua Giacinto Tognato, nº 293 - Baeta Neves - S.B.Campo - SP - CEP: 09760-370 | N4: =IFERROR(VLOOKUP(N3,Dados!C2:D4,2,0),"31/12/2023") -> 31/12/2023 | P4: 2023-01-01
A6: Termo de Colaboração nº | B6: =Dados!$C$116 -> 38/2022-SE | G6: =Início!E5 -> Termo de Aditamento (Terceiro) nº | H6: =Início!H5 -> 259/2023-SE | P6: 2023-04-30
A8: ="RESUMO DO "&$N$3&" DE "&$N$1 -> RESUMO DO 3º QUADRIMESTRE DE 2023 | T8: Saldo Inicial | Z8: Repasse Quadrimestre | AF8: Recursos Próprios | AL8: Rentabilidade | AR8: Remanejamento | AX8: Valor Utilizado | BD8: Saldo Remanescente | BJ8: Glosas | BP8: Saldo Final
A9: SEGMENTO | B9: SALDO INICIAL | C9: REPASSE QUADRIMESTRE | D9: RECURSOS PRÓPRIOS | E9: RENTABILIDADE | F9: REMANEJAMENTO | G9: VALOR UTILIZADO | H9: SALDO REMANESCENTE | I9: DESPESAS GLOSADAS | J9: SALDO FINAL | T9: 1 | U9: 2 | V9: 3 | W9: 4 | Z9: 1 | AA9: 2 | AB9: 3 | AC9: 4 | AF9: 1 | AG9: 2 | AH9: 3 | AI9: 4 | AL9: 1 | AM9: 2 | AN9: 3 | AO9: 4 | AR9: 1 | AS9: 2 | AT9: 3 | AU9: 4 | AX9: 1 | AY9: 2 | AZ9: 3 | BA9: 4 | BD9: 1 | BE9: 2 | BF9: 3 | BG9: 4 | BJ9: 1 | BK9: 2 | BL9: 3 | BM9: 4 | BP9: 1 | BQ9: 2 | BR9: 3 | BS9: 4 | BV9: 1 | BW9: 2 | BX9: 3 | BY9: 4
A10: Salários e Encargos Sociais | B10: =INDEX(saldoInicial,MATCH($A10,$S$10:$S$26,0),MATCH($O$1,$T$9:$W$9,0)) -> 270122.18 | C10: =INDEX(repasse22,MATCH($A10,$Y$10:$Y$26,0),MATCH($O$1,$Z$9:$AC$9,0)) -> 477330.2 | D10: =INDEX(recprop22,MATCH($A10,$AE$10:$AE$26,0),MATCH($O$1,$AF$9:$AI$9,0)) -> 0 | E10: =INDEX(rentab22,MATCH($A10,$AK$10:$AK$26,0),MATCH($O$1,$AL$9:$AO$9,0)) -> 0 | F10: =INDEX(reman22,MATCH($A10,$AQ$10:$AQ$26,0),MATCH($O$1,$AR$9:$AU$9,0)) -> 0 | G10: =INDEX(utiliz22,MATCH($A10,$AW$10:$AW$26,0),MATCH($O$1,$AX$9:$BA$9,0)) -> 623396.01 | H10: =B10+C10+D10+E10+F10-G10 -> 124056.37 | I10: =INDEX($BJ$10:$BM$26,MATCH($A10,$BI$10:$BI$26,0),MATCH($O$1,$BJ$9:$BM$9,0)) -> 0 | J10: =H10+I10 -> 124056.37 | S10: Salários e Encargos Sociais | T10: 50704.17 | U10: =BP10 -> 211800.32 | V10: =BQ10 -> 270122.18 | W10: =T10 -> 50704.17 | Y10: Salários e Encargos Sociais | Z10: =SUM(Dados!E122:H122) -> 451095.36 | AA10: =SUM(Dados!I122:L122) -> 490447.62 | AB10: =SUM(Dados!M122:P122) -> 477330.2 | AC10: =SUM(Z10:AB10) -> 1418873.18 | AE10: Salários e Encargos Sociais | AG10: 0 | AH10: 0 | AI10: =SUM(AF10:AH10) -> 0 | AK10: Salários e Encargos Sociais | AN10: 0 | AO10: =SUM(AL10:AN10) -> 0 | AQ10: Salários e Encargos Sociais | AR10: 0 | AS10: 0 | AT10: 0 | AU10: =SUM(AR10:AT10) -> 0 | AW10: Salários e Encargos Sociais | AX10: =SUMIFS('RELATÓRIO CIRCUNSTANCIADO'!Val_doc,'RELATÓRIO CIRCUNSTANCIADO'!$AM$13:$AM$2112,QUADRO!AX$9,'RELATÓRIO CIRCUNSTANCIADO'!Segmento_1,QUADRO!$AW10) -> 289999.21 | AY10: =SUMIFS('RELATÓRIO CIRCUNSTANCIADO'!Val_doc,'RELATÓRIO CIRCUNSTANCIADO'!$AM$13:$AM$2112,QUADRO!AY$9,'RELATÓRIO CIRCUNSTANCIADO'!Segmento_1,QUADRO!$AW10) -> 432125.76 | AZ10: =SUMIFS('RELATÓRIO CIRCUNSTANCIADO'!Val_doc,'RELATÓRIO CIRCUNSTANCIADO'!$AM$13:$AM$2112,QUADRO!AZ$9,'RELATÓRIO CIRCUNSTANCIADO'!Segmento_1,QUADRO!$AW10) -> 623396.01 | BA10: =SUM(AX10:AZ10) -> 1345520.98 | BC10: Salários e Encargos Sociais | BD10: =T10+Z10+AF10+AL10+AR10-AX10 -> 211800.32 | BE10: =U10+AA10+AG10+AM10+AS10-AY10 -> 270122.18 | BF10: =V10+AB10+AH10+AN10+AT10-AZ10 -> 124056.37 | BG10: =SUM(BD10:BF10) -> 605978.87 | BI10: Salários e Encargos Sociais | BJ10: =SUMIFS('RELATÓRIO CIRCUNSTANCIADO'!Val_Total,'RELATÓRIO CIRCUNSTANCIADO'!$AK$13:$AK$2112,QUADRO!$BI10,'RELATÓRIO CIRCUNSTANCIADO'!$AM$13:$AM$2112,QUADRO!BJ$9)+SUMIFS('RELATÓRIO CIRCUNSTANCIADO'!Val_Parcial,'RELATÓRIO CIRCUNSTANCIADO'!$AK$13:$AK$2112,QUADRO!$BI10,'RELATÓRIO CIRCUNSTANCIADO'!$AM$13:$AM$2112,QUADRO!BJ$9) -> 0 | BK10: =SUMIFS('RELATÓRIO CIRCUNSTANCIADO'!Val_Total,'RELATÓRIO CIRCUNSTANCIADO'!$AK$13:$AK$2112,QUADRO!$BI10,'RELATÓRIO CIRCUNSTANCIADO'!$AM$13:$AM$2112,QUADRO!BK$9)+SUMIFS('RELATÓRIO CIRCUNSTANCIADO'!Val_Parcial,'RELATÓRIO CIRCUNSTANCIADO'!$AK$13:$AK$2112,QUADRO!$BI10,'RELATÓRIO CIRCUNSTANCIADO'!$AM$13:$AM$2112,QUADRO!BK$9) -> 0 | BL10: =SUMIFS('RELATÓRIO CIRCUNSTANCIADO'!Val_Total,'RELATÓRIO CIRCUNSTANCIADO'!$AK$13:$AK$2112,QUADRO!$BI10,'RELATÓRIO CIRCUNSTANCIADO'!$AM$13:$AM$2112,QUADRO!BL$9)+SUMIFS('RELATÓRIO CIRCUNSTANCIADO'!Val_Parcial,'RELATÓRIO CIRCUNSTANCIADO'!$AK$13:$AK$2112,QUADRO!$BI10,'RELATÓRIO CIRCUNSTANCIADO'!$AM$13:$AM$2112,QUADRO!BL$9) -> 0 | BM10: =SUM(BJ10:BL10) -> 0 | BO10: Salários e Encargos Sociais | BP10: =BD10+BJ10 -> 211800.32 | BQ10: =BE10+BK10 -> 270122.18 | BR10: =BF10+BL10 -> 124056.37 | BS10: =BR10 -> 124056.37 | BU10: Salários e Encargos Sociais | BV10: 0 | BW10: 0 | BX10: 0 | BY10: =SUM(BV10:BX10) -> 0
A11: EPI e Exames Médicos | B11: 9619.5 | C11: 3800 | D11: 0 | E11: 0 | F11: -13093.5 | G11: 326 | H11: =B11+C11+D11+E11+F11-G11 -> 0 | I11: 0 | J11: 0 | S11: EPI e Exames Médicos | T11: 2578.5 | U11: =BP11 -> 5972.5 | V11: =BQ11 -> 9619.5 | W11: =T11 -> 2578.5 | Y11: EPI e Exames Médicos | Z11: =SUM(Dados!E123:H123) -> 3800 | AA11: =SUM(Dados!I123:L123) -> 3800 | AB11: =SUM(Dados!M123:P123) -> 3800 | AC11: =SUM(Z11:AB11) -> 11400 | AE11: EPI e Exames Médicos | AG11: 0 | AH11: 0 | AI11: =SUM(AF11:AH11) -> 0 | AK11: EPI e Exames Médicos | AN11: 0 | AO11: =SUM(AL11:AN11) -> 0 | AQ11: EPI e Exames Médicos | AR11: 0 | AS11: 0 | AT11: -13093.5 | AU11: =SUM(AR11:AT11) -> -13093.5 | AW11: EPI e Exames Médicos | AX11: =SUMIFS('RELATÓRIO CIRCUNSTANCIADO'!Val_doc,'RELATÓRIO CIRCUNSTANCIADO'!$AM$13:$AM$2112,QUADRO!AX$9,'RELATÓRIO CIRCUNSTANCIADO'!Segmento_1,QUADRO!$AW11) -> 406 | AY11: =SUMIFS('RELATÓRIO CIRCUNSTANCIADO'!Val_doc,'RELATÓRIO CIRCUNSTANCIADO'!$AM$13:$AM$2112,QUADRO!AY$9,'RELATÓRIO CIRCUNSTANCIADO'!Segmento_1,QUADRO!$AW11) -> 153 | AZ11: =SUMIFS('RELATÓRIO CIRCUNSTANCIADO'!Val_doc,'RELATÓRIO CIRCUNSTANCIADO'!$AM$13:$AM$2112,QUADRO!AZ$9,'RELATÓRIO CIRCUNSTANCIADO'!Segmento_1,QUADRO!$AW11) -> 326 | BA11: =SUM(AX11:AZ11) -> 885 | BC11: EPI e Exames Médicos | BD11: 5972.5 | BE11: 9619.5 | BF11: 0 | BG11: =SUM(BD11:BF11) -> 15592 | BI11: EPI e Exames Médicos | BJ11: =SUMIFS('RELATÓRIO CIRCUNSTANCIADO'!Val_Total,'RELATÓRIO CIRCUNSTANCIADO'!$AK$13:$AK$2112,QUADRO!$BI11,'RELATÓRIO CIRCUNSTANCIADO'!$AM$13:$AM$2112,QUADRO!BJ$9)+SUMIFS('RELATÓRIO CIRCUNSTANCIADO'!Val_Parcial,'RELATÓRIO CIRCUNSTANCIADO'!$AK$13:$AK$2112,QUADRO!$BI11,'RELATÓRIO CIRCUNSTANCIADO'!$AM$13:$AM$2112,QUADRO!BJ$9) -> 0 | BK11: =SUMIFS('RELATÓRIO CIRCUNSTANCIADO'!Val_Total,'RELATÓRIO CIRCUNSTANCIADO'!$AK$13:$AK$2112,QUADRO!$BI11,'RELATÓRIO CIRCUNSTANCIADO'!$AM$13:$AM$2112,QUADRO!BK$9)+SUMIFS('RELATÓRIO CIRCUNSTANCIADO'!Val_Parcial,'RELATÓRIO CIRCUNSTANCIADO'!$AK$13:$AK$2112,QUADRO!$BI11,'RELATÓRIO CIRCUNSTANCIADO'!$AM$13:$AM$2112,QUADRO!BK$9) -> 0 | BL11: =SUMIFS('RELATÓRIO CIRCUNSTANCIADO'!Val_Total,'RELATÓRIO CIRCUNSTANCIADO'!$AK$13:$AK$2112,QUADRO!$BI11,'RELATÓRIO CIRCUNSTANCIADO'!$AM$13:$AM$2112,QUADRO!BL$9)+SUMIFS('RELATÓRIO CIRCUNSTANCIADO'!Val_Parcial,'RELATÓRIO CIRCUNSTANCIADO'!$AK$13:$AK$2112,QUADRO!$BI11,'RELATÓRIO CIRCUNSTANCIADO'!$AM$13:$AM$2112,QUADRO!BL$9) -> 0 | BM11: =SUM(BJ11:BL11) -> 0 | BO11: EPI e Exames Médicos | BP11: =BD11+BJ11 -> 5972.5 | BQ11: 9619.5 | BR11: 0 | BS11: =BR11 -> 0 | BU11: EPI e Exames Médicos | BV11: 0 | BW11: 0 | BX11: 0 | BY11: =SUM(BV11:BX11) -> 0
A12: Despesas Mensais e de Consumo | B12: 11052.39 | C12: 8800 | D12: 0 | E12: 0 | F12: -3995.67 | G12: 15856.72 | H12: 0 | I12: 0 | J12: 0 | S12: Despesas Mensais e de Consumo | T12: 5475.86 | U12: 9601.69 | V12: 11052.39 | W12: 5475.86 | Y12: Despesas Mensais e de Consumo | Z12: =SUM(Dados!E124:H124) -> 8800 | AA12: =SUM(Dados!I124:L124) -> 8800 | AB12: =SUM(Dados!M124:P124) -> 8800 | AC12: 26400 | AE12: Despesas Mensais e de Consumo | AG12: 0 | AH12: 0 | AI12: 0 | AK12: Despesas Mensais e de Consumo | AL12: 411.8 | AM12: 1363.74 | AN12: 0 | AO12: 1775.54 | AQ12: Despesas Mensais e de Consumo | AR12: 0 | AS12: 0 | AT12: -3995.67 | AU12: -3995.67 | AW12: Despesas Mensais e de Consumo | AX12: =SUMIFS('RELATÓRIO CIRCUNSTANCIADO'!Val_doc,'RELATÓRIO CIRCUNSTANCIADO'!$AM$13:$AM$2112,QUADRO!AX$9,'RELATÓRIO CIRCUNSTANCIADO'!Segmento_1,QUADRO!$AW12) -> 5085.97 | AY12: =SUMIFS('RELATÓRIO CIRCUNSTANCIADO'!Val_doc,'RELATÓRIO CIRCUNSTANCIADO'!$AM$13:$AM$2112,QUADRO!AY$9,'RELATÓRIO CIRCUNSTANCIADO'!Segmento_1,QUADRO!$AW12) -> 8742.18 | AZ12: =SUMIFS('RELATÓRIO CIRCUNSTANCIADO'!Val_doc,'RELATÓRIO CIRCUNSTANCIADO'!$AM$13:$AM$2112,QUADRO!AZ$9,'RELATÓRIO CIRCUNSTANCIADO'!Segmento_1,QUADRO!$AW12) -> 15856.72 | BA12: 29684.87 | BC12: Despesas Mensais e de Consumo | BD12: 9601.69 | BE12: 11023.25 | BF12: 0 | BG12: 20624.94 | BI12: Despesas Mensais e de Consumo | BJ12: =SUMIFS('RELATÓRIO CIRCUNSTANCIADO'!Val_Total,'RELATÓRIO CIRCUNSTANCIADO'!$AK$13:$AK$2112,QUADRO!$BI12,'RELATÓRIO CIRCUNSTANCIADO'!$AM$13:$AM$2112,QUADRO!BJ$9)+SUMIFS('RELATÓRIO CIRCUNSTANCIADO'!Val_Parcial,'RELATÓRIO CIRCUNSTANCIADO'!$AK$13:$AK$2112,QUADRO!$BI12,'RELATÓRIO CIRCUNSTANCIADO'!$AM$13:$AM$2112,QUADRO!BJ$9) -> 0 | BK12: =SUMIFS('RELATÓRIO CIRCUNSTANCIADO'!Val_Total,'RELATÓRIO CIRCUNSTANCIADO'!$AK$13:$AK$2112,QUADRO!$BI12,'RELATÓRIO CIRCUNSTANCIADO'!$AM$13:$AM$2112,QUADRO!BK$9)+SUMIFS('RELATÓRIO CIRCUNSTANCIADO'!Val_Parcial,'RELATÓRIO CIRCUNSTANCIADO'!$AK$13:$AK$2112,QUADRO!$BI12,'RELATÓRIO CIRCUNSTANCIADO'!$AM$13:$AM$2112,QUADRO!BK$9) -> 29.14 | BL12: =SUMIFS('RELATÓRIO CIRCUNSTANCIADO'!Val_Total,'RELATÓRIO CIRCUNSTANCIADO'!$AK$13:$AK$2112,QUADRO!$BI12,'RELATÓRIO CIRCUNSTANCIADO'!$AM$13:$AM$2112,QUADRO!BL$9)+SUMIFS('RELATÓRIO CIRCUNSTANCIADO'!Val_Parcial,'RELATÓRIO CIRCUNSTANCIADO'!$AK$13:$AK$2112,QUADRO!$BI12,'RELATÓRIO CIRCUNSTANCIADO'!$AM$13:$AM$2112,QUADRO!BL$9) -> 0 | BM12: 29.14 | BO12: Despesas Mensais e de Consumo | BP12: 9601.69 | BQ12: 11052.39 | BR12: 0 | BS12: 0 | BU12: Despesas Mensais e de Consumo | BV12: 0 | BW12: 0 | BX12: 0 | BY12: 0
A13: Ampliação Cultural / Estudo do Meio | B13: 8440.68 | C13: 0 | D13: 0 | E13: 0 | F13: -4390.68 | G13: 4050 | H13: 0 | I13: 0 | J13: 0 | S13: Ampliação Cultural / Estudo do Meio | T13: 279.95 | U13: 8051.38 | V13: 8440.68 | W13: 279.95 | Y13: Ampliação Cultural / Estudo do Meio | Z13: =SUM(Dados!E125:H125) -> 7440 | AA13: =SUM(Dados!I125:L125) -> 0 | AB13: =SUM(Dados!M125:P125) -> 0 | AC13: 7440 | AE13: Ampliação Cultural / Estudo do Meio | AG13: 0 | AH13: 0 | AI13: 0 | AK13: Ampliação Cultural / Estudo do Meio | AL13: 331.43 | AM13: 1589.3 | AN13: 0 | AO13: 1920.73 | AQ13: Ampliação Cultural / Estudo do Meio | AR13: 0 | AS13: 0 | AT13: -4390.68 | AU13: -4390.68 | AW13: Ampliação Cultural / Estudo do Meio | AX13: =SUMIFS('RELATÓRIO CIRCUNSTANCIADO'!Val_doc,'RELATÓRIO CIRCUNSTANCIADO'!$AM$13:$AM$2112,QUADRO!AX$9,'RELATÓRIO CIRCUNSTANCIADO'!Segmento_1,QUADRO!$AW13) -> 0 | AY13: =SUMIFS('RELATÓRIO CIRCUNSTANCIADO'!Val_doc,'RELATÓRIO CIRCUNSTANCIADO'!$AM$13:$AM$2112,QUADRO!AY$9,'RELATÓRIO CIRCUNSTANCIADO'!Segmento_1,QUADRO!$AW13) -> 1200 | AZ13: =SUMIFS('RELATÓRIO CIRCUNSTANCIADO'!Val_doc,'RELATÓRIO CIRCUNSTANCIADO'!$AM$13:$AM$2112,QUADRO!AZ$9,'RELATÓRIO CIRCUNSTANCIADO'!Segmento_1,QUADRO!$AW13) -> 4050 | BA13: 5250 | BC13: Ampliação Cultural / Estudo do Meio | BD13: 8051.38 | BE13: 8440.68 | BF13: 0 | BG13: 16492.06 | BI13: Ampliação Cultural / Estudo do Meio | BJ13: =SUMIFS('RELATÓRIO CIRCUNSTANCIADO'!Val_Total,'RELATÓRIO CIRCUNSTANCIADO'!$AK$13:$AK$2112,QUADRO!$BI13,'RELATÓRIO CIRCUNSTANCIADO'!$AM$13:$AM$2112,QUADRO!BJ$9)+SUMIFS('RELATÓRIO CIRCUNSTANCIADO'!Val_Parcial,'RELATÓRIO CIRCUNSTANCIADO'!$AK$13:$AK$2112,QUADRO!$BI13,'RELATÓRIO CIRCUNSTANCIADO'!$AM$13:$AM$2112,QUADRO!BJ$9) -> 0 | BK13: =SUMIFS('RELATÓRIO CIRCUNSTANCIADO'!Val_Total,'RELATÓRIO CIRCUNSTANCIADO'!$AK$13:$AK$2112,QUADRO!$BI13,'RELATÓRIO CIRCUNSTANCIADO'!$AM$13:$AM$2112,QUADRO!BK$9)+SUMIFS('RELATÓRIO CIRCUNSTANCIADO'!Val_Parcial,'RELATÓRIO CIRCUNSTANCIADO'!$AK$13:$AK$2112,QUADRO!$BI13,'RELATÓRIO CIRCUNSTANCIADO'!$AM$13:$AM$2112,QUADRO!BK$9) -> 0 | BL13: =SUMIFS('RELATÓRIO CIRCUNSTANCIADO'!Val_Total,'RELATÓRIO CIRCUNSTANCIADO'!$AK$13:$AK$2112,QUADRO!$BI13,'RELATÓRIO CIRCUNSTANCIADO'!$AM$13:$AM$2112,QUADRO!BL$9)+SUMIFS('RELATÓRIO CIRCUNSTANCIADO'!Val_Parcial,'RELATÓRIO CIRCUNSTANCIADO'!$AK$13:$AK$2112,QUADRO!$BI13,'RELATÓRIO CIRCUNSTANCIADO'!$AM$13:$AM$2112,QUADRO!BL$9) -> 0 | BM13: 0 | BO13: Ampliação Cultural / Estudo do Meio | BP13: 8051.38 | BQ13: 8440.68 | BR13: 0 | BS13: 0 | BU13: Ampliação Cultural / Estudo do Meio | BV13: 0 | BW13: 0 | BX13: 0 | BY13: 0
A14: Material Pedagógico / Livros / Jogos / Brinquedos | B14: 8949.12 | C14: 5200 | D14: 0 | E14: 2508.83 | F14: 0 | G14: 16657.95 | H14: 0 | I14: 0 | J14: 0 | S14: Material Pedagógico / Livros / Jogos / Brinquedos | T14: 0 | U14: =BP14 -> 5756.48 | V14: 8949.12 | W14: 0 | Y14: Material Pedagógico / Livros / Jogos / Brinquedos | Z14: =SUM(Dados!E126:H126) -> 5200 | AA14: =SUM(Dados!I126:L126) -> 5200 | AB14: =SUM(Dados!M126:P126) -> 5200 | AC14: 15600 | AE14: Material Pedagógico / Livros / Jogos / Brinquedos | AG14: 0 | AH14: 0 | AI14: 0 | AK14: Material Pedagógico / Livros / Jogos / Brinquedos | AL14: 1204.59 | AN14: 2508.83 | AO14: 3713.42 | AQ14: Material Pedagógico / Livros / Jogos / Brinquedos | AR14: 0 | AS14: 0 | AT14: 0 | AU14: 0 | AW14: Material Pedagógico / Livros / Jogos / Brinquedos | AX14: =SUMIFS('RELATÓRIO CIRCUNSTANCIADO'!Val_doc,'RELATÓRIO CIRCUNSTANCIADO'!$AM$13:$AM$2112,QUADRO!AX$9,'RELATÓRIO CIRCUNSTANCIADO'!Segmento_1,QUADRO!$AW14) -> 648.11 | AY14: =SUMIFS('RELATÓRIO CIRCUNSTANCIADO'!Val_doc,'RELATÓRIO CIRCUNSTANCIADO'!$AM$13:$AM$2112,QUADRO!AY$9,'RELATÓRIO CIRCUNSTANCIADO'!Segmento_1,QUADRO!$AW14) -> 2007.36 | AZ14: =SUMIFS('RELATÓRIO CIRCUNSTANCIADO'!Val_doc,'RELATÓRIO CIRCUNSTANCIADO'!$AM$13:$AM$2112,QUADRO!AZ$9,'RELATÓRIO CIRCUNSTANCIADO'!Segmento_1,QUADRO!$AW14) -> 16657.95 | BA14: 19313.42 | BC14: Material Pedagógico / Livros / Jogos / Brinquedos | BD14: =T14+Z14+AF14+AL14+AR14-AX14 -> 5756.48 | BE14: 8949.12 | BF14: 0 | BG14: 14705.6 | BI14: Material Pedagógico / Livros / Jogos / Brinquedos | BJ14: =SUMIFS('RELATÓRIO CIRCUNSTANCIADO'!Val_Total,'RELATÓRIO CIRCUNSTANCIADO'!$AK$13:$AK$2112,QUADRO!$BI14,'RELATÓRIO CIRCUNSTANCIADO'!$AM$13:$AM$2112,QUADRO!BJ$9)+SUMIFS('RELATÓRIO CIRCUNSTANCIADO'!Val_Parcial,'RELATÓRIO CIRCUNSTANCIADO'!$AK$13:$AK$2112,QUADRO!$BI14,'RELATÓRIO CIRCUNSTANCIADO'!$AM$13:$AM$2112,QUADRO!BJ$9) -> 0 | BK14: =SUMIFS('RELATÓRIO CIRCUNSTANCIADO'!Val_Total,'RELATÓRIO CIRCUNSTANCIADO'!$AK$13:$AK$2112,QUADRO!$BI14,'RELATÓRIO CIRCUNSTANCIADO'!$AM$13:$AM$2112,QUADRO!BK$9)+SUMIFS('RELATÓRIO CIRCUNSTANCIADO'!Val_Parcial,'RELATÓRIO CIRCUNSTANCIADO'!$AK$13:$AK$2112,QUADRO!$BI14,'RELATÓRIO CIRCUNSTANCIADO'!$AM$13:$AM$2112,QUADRO!BK$9) -> 0 | BL14: =SUMIFS('RELATÓRIO CIRCUNSTANCIADO'!Val_Total,'RELATÓRIO CIRCUNSTANCIADO'!$AK$13:$AK$2112,QUADRO!$BI14,'RELATÓRIO CIRCUNSTANCIADO'!$AM$13:$AM$2112,QUADRO!BL$9)+SUMIFS('RELATÓRIO CIRCUNSTANCIADO'!Val_Parcial,'RELATÓRIO CIRCUNSTANCIADO'!$AK$13:$AK$2112,QUADRO!$BI14,'RELATÓRIO CIRCUNSTANCIADO'!$AM$13:$AM$2112,QUADRO!BL$9) -> 0 | BM14: 0 | BO14: Material Pedagógico / Livros / Jogos / Brinquedos | BP14: =BD14+BJ14 -> 5756.48 | BQ14: 8949.12 | BR14: 0 | BS14: 0 | BU14: Material Pedagógico / Livros / Jogos / Brinquedos | BV14: 0 | BW14: 0 | BX14: 0 | BY14: 0
A15: Custeio Administrativo | B15: 6855.76 | C15: 3600 | D15: 0 | E15: 0 | F15: 0 | G15: 4676.03 | H15: 5779.73 | I15: 0 | J15: 5779.73 | S15: Custeio Administrativo | T15: 2750.06 | U15: 5866.86 | V15: 6855.76 | W15: 2750.06 | Y15: Custeio Administrativo | Z15: =SUM(Dados!E127:H127) -> 3600 | AA15: =SUM(Dados!I127:L127) -> 3600 | AB15: =SUM(Dados!M127:P127) -> 3600 | AC15: 10800 | AE15: Custeio Administrativo | AG15: 0 | AH15: 0 | AI15: 0 | AK15: Custeio Administrativo | AL15: 1268.46 | AN15: 0 | AO15: 1268.46 | AQ15: Custeio Administrativo | AR15: 0 | AS15: 0 | AT15: 0 | AU15: 0 | AW15: Custeio Administrativo | AX15: =SUMIFS('RELATÓRIO CIRCUNSTANCIADO'!Val_doc,'RELATÓRIO CIRCUNSTANCIADO'!$AM$13:$AM$2112,QUADRO!AX$9,'RELATÓRIO CIRCUNSTANCIADO'!Segmento_1,QUADRO!$AW15) -> 1751.66 | AY15: =SUMIFS('RELATÓRIO CIRCUNSTANCIADO'!Val_doc,'RELATÓRIO CIRCUNSTANCIADO'!$AM$13:$AM$2112,QUADRO!AY$9,'RELATÓRIO CIRCUNSTANCIADO'!Segmento_1,QUADRO!$AW15) -> 2611.1 | AZ15: =SUMIFS('RELATÓRIO CIRCUNSTANCIADO'!Val_doc,'RELATÓRIO CIRCUNSTANCIADO'!$AM$13:$AM$2112,QUADRO!AZ$9,'RELATÓRIO CIRCUNSTANCIADO'!Segmento_1,QUADRO!$AW15) -> 4676.03 | BA15: 9038.79 | BC15: Custeio Administrativo | BD15: 5866.86 | BE15: 6855.76 | BF15: 5779.73 | BG15: 18502.35 | BI15: Custeio Administrativo | BJ15: =SUMIFS('RELATÓRIO CIRCUNSTANCIADO'!Val_Total,'RELATÓRIO CIRCUNSTANCIADO'!$AK$13:$AK$2112,QUADRO!$BI15,'RELATÓRIO CIRCUNSTANCIADO'!$AM$13:$AM$2112,QUADRO!BJ$9)+SUMIFS('RELATÓRIO CIRCUNSTANCIADO'!Val_Parcial,'RELATÓRIO CIRCUNSTANCIADO'!$AK$13:$AK$2112,QUADRO!$BI15,'RELATÓRIO CIRCUNSTANCIADO'!$AM$13:$AM$2112,QUADRO!BJ$9) -> 0 | BK15: =SUMIFS('RELATÓRIO CIRCUNSTANCIADO'!Val_Total,'RELATÓRIO CIRCUNSTANCIADO'!$AK$13:$AK$2112,QUADRO!$BI15,'RELATÓRIO CIRCUNSTANCIADO'!$AM$13:$AM$2112,QUADRO!BK$9)+SUMIFS('RELATÓRIO CIRCUNSTANCIADO'!Val_Parcial,'RELATÓRIO CIRCUNSTANCIADO'!$AK$13:$AK$2112,QUADRO!$BI15,'RELATÓRIO CIRCUNSTANCIADO'!$AM$13:$AM$2112,QUADRO!BK$9) -> 0 | BL15: =SUMIFS('RELATÓRIO CIRCUNSTANCIADO'!Val_Total,'RELATÓRIO CIRCUNSTANCIADO'!$AK$13:$AK$2112,QUADRO!$BI15,'RELATÓRIO CIRCUNSTANCIADO'!$AM$13:$AM$2112,QUADRO!BL$9)+SUMIFS('RELATÓRIO CIRCUNSTANCIADO'!Val_Parcial,'RELATÓRIO CIRCUNSTANCIADO'!$AK$13:$AK$2112,QUADRO!$BI15,'RELATÓRIO CIRCUNSTANCIADO'!$AM$13:$AM$2112,QUADRO!BL$9) -> 0 | BM15: 0 | BO15: Custeio Administrativo | BP15: 5866.86 | BQ15: 6855.76 | BR15: 5779.73 | BS15: 5779.73 | BU15: Custeio Administrativo | BV15: 0 | BW15: 0 | BX15: 0 | BY15: 0
A16: Despesas com Conservação e Limpeza do Imóvel | B16: 21760.3 | C16: 38000 | D16: 0 | E16: 0 | F16: 0 | G16: 43625.9 | H16: 16134.4 | I16: 0 | J16: 16134.4 | S16: Despesas com Conservação e Limpeza do Imóvel | T16: 0 | U16: 1790.5 | V16: 21760.3 | W16: 0 | Y16: Despesas com Conservação e Limpeza do Imóvel | Z16: =SUM(Dados!E128:H128) -> 2000 | AA16: =SUM(Dados!I128:L128) -> 41000 | AB16: =SUM(Dados!M128:P128) -> 38000 | AC16: 81000 | AE16: Despesas com Conservação e Limpeza do Imóvel | AG16: 0 | AH16: 0 | AI16: 0 | AK16: Despesas com Conservação e Limpeza do Imóvel | AN16: 0 | AO16: 0 | AQ16: Despesas com Conservação e Limpeza do Imóvel | AR16: 0 | AS16: 0 | AT16: 0 | AU16: 0 | AW16: Despesas com Conservação e Limpeza do Imóvel | AX16: =SUMIFS('RELATÓRIO CIRCUNSTANCIADO'!Val_doc,'RELATÓRIO CIRCUNSTANCIADO'!$AM$13:$AM$2112,QUADRO!AX$9,'RELATÓRIO CIRCUNSTANCIADO'!Segmento_1,QUADRO!$AW16) -> 209.5 | AY16: =SUMIFS('RELATÓRIO CIRCUNSTANCIADO'!Val_doc,'RELATÓRIO CIRCUNSTANCIADO'!$AM$13:$AM$2112,QUADRO!AY$9,'RELATÓRIO CIRCUNSTANCIADO'!Segmento_1,QUADRO!$AW16) -> 21030.2 | AZ16: =SUMIFS('RELATÓRIO CIRCUNSTANCIADO'!Val_doc,'RELATÓRIO CIRCUNSTANCIADO'!$AM$13:$AM$2112,QUADRO!AZ$9,'RELATÓRIO CIRCUNSTANCIADO'!Segmento_1,QUADRO!$AW16) -> 43625.9 | BA16: 64865.6 | BC16: Despesas com Conservação e Limpeza do Imóvel | BD16: 1790.5 | BE16: 21760.3 | BF16: 16134.4 | BG16: 39685.2 | BI16: Despesas com Conservação e Limpeza do Imóvel | BJ16: =SUMIFS('RELATÓRIO CIRCUNSTANCIADO'!Val_Total,'RELATÓRIO CIRCUNSTANCIADO'!$AK$13:$AK$2112,QUADRO!$BI16,'RELATÓRIO CIRCUNSTANCIADO'!$AM$13:$AM$2112,QUADRO!BJ$9)+SUMIFS('RELATÓRIO CIRCUNSTANCIADO'!Val_Parcial,'RELATÓRIO CIRCUNSTANCIADO'!$AK$13:$AK$2112,QUADRO!$BI16,'RELATÓRIO CIRCUNSTANCIADO'!$AM$13:$AM$2112,QUADRO!BJ$9) -> 0 | BK16: =SUMIFS('RELATÓRIO CIRCUNSTANCIADO'!Val_Total,'RELATÓRIO CIRCUNSTANCIADO'!$AK$13:$AK$2112,QUADRO!$BI16,'RELATÓRIO CIRCUNSTANCIADO'!$AM$13:$AM$2112,QUADRO!BK$9)+SUMIFS('RELATÓRIO CIRCUNSTANCIADO'!Val_Parcial,'RELATÓRIO CIRCUNSTANCIADO'!$AK$13:$AK$2112,QUADRO!$BI16,'RELATÓRIO CIRCUNSTANCIADO'!$AM$13:$AM$2112,QUADRO!BK$9) -> 0 | BL16: =SUMIFS('RELATÓRIO CIRCUNSTANCIADO'!Val_Total,'RELATÓRIO CIRCUNSTANCIADO'!$AK$13:$AK$2112,QUADRO!$BI16,'RELATÓRIO CIRCUNSTANCIADO'!$AM$13:$AM$2112,QUADRO!BL$9)+SUMIFS('RELATÓRIO CIRCUNSTANCIADO'!Val_Parcial,'RELATÓRIO CIRCUNSTANCIADO'!$AK$13:$AK$2112,QUADRO!$BI16,'RELATÓRIO CIRCUNSTANCIADO'!$AM$13:$AM$2112,QUADRO!BL$9) -> 0 | BM16: 0 | BO16: Despesas com Conservação e Limpeza do Imóvel | BP16: 1790.5 | BQ16: 21760.3 | BR16: 16134.4 | BS16: 16134.4 | BU16: Despesas com Conservação e Limpeza do Imóvel | BV16: 0 | BW16: 0 | BX16: 0 | BY16: 0
A17: Manutenção de Bens Patrimoniais | B17: 5090.96 | C17: 2645.48 | D17: 0 | E17: 0 | F17: 0 | G17: 240 | H17: 7496.44 | I17: 0 | J17: 7496.44 | S17: Manutenção de Bens Patrimoniais | T17: 0 | U17: 2645.48 | V17: 5090.96 | W17: 0 | Y17: Manutenção de Bens Patrimoniais | Z17: =SUM(Dados!E129:H129) -> 2645.48 | AA17: =SUM(Dados!I129:L129) -> 2645.48 | AB17: =SUM(Dados!M129:P129) -> 2645.48 | AC17: 7936.44 | AE17: Manutenção de Bens Patrimoniais | AG17: 0 | AH17: 0 | AI17: 0 | AK17: Manutenção de Bens Patrimoniais | AN17: 0 | AO17: 0 | AQ17: Manutenção de Bens Patrimoniais | AR17: 0 | AS17: 0 | AT17: 0 | AU17: 0 | AW17: Manutenção de Bens Patrimoniais | AX17: =SUMIFS('RELATÓRIO CIRCUNSTANCIADO'!Val_doc,'RELATÓRIO CIRCUNSTANCIADO'!$AM$13:$AM$2112,QUADRO!AX$9,'RELATÓRIO CIRCUNSTANCIADO'!Segmento_1,QUADRO!$AW17) -> 0 | AY17: =SUMIFS('RELATÓRIO CIRCUNSTANCIADO'!Val_doc,'RELATÓRIO CIRCUNSTANCIADO'!$AM$13:$AM$2112,QUADRO!AY$9,'RELATÓRIO CIRCUNSTANCIADO'!Segmento_1,QUADRO!$AW17) -> 200 | AZ17: =SUMIFS('RELATÓRIO CIRCUNSTANCIADO'!Val_doc,'RELATÓRIO CIRCUNSTANCIADO'!$AM$13:$AM$2112,QUADRO!AZ$9,'RELATÓRIO CIRCUNSTANCIADO'!Segmento_1,QUADRO!$AW17) -> 240 | BA17: 440 | BC17: Manutenção de Bens Patrimoniais | BD17: 2645.48 | BE17: 5090.96 | BF17: 7496.44 | BG17: 15232.88 | BI17: Manutenção de Bens Patrimoniais | BJ17: =SUMIFS('RELATÓRIO CIRCUNSTANCIADO'!Val_Total,'RELATÓRIO CIRCUNSTANCIADO'!$AK$13:$AK$2112,QUADRO!$BI17,'RELATÓRIO CIRCUNSTANCIADO'!$AM$13:$AM$2112,QUADRO!BJ$9)+SUMIFS('RELATÓRIO CIRCUNSTANCIADO'!Val_Parcial,'RELATÓRIO CIRCUNSTANCIADO'!$AK$13:$AK$2112,QUADRO!$BI17,'RELATÓRIO CIRCUNSTANCIADO'!$AM$13:$AM$2112,QUADRO!BJ$9) -> 0 | BK17: =SUMIFS('RELATÓRIO CIRCUNSTANCIADO'!Val_Total,'RELATÓRIO CIRCUNSTANCIADO'!$AK$13:$AK$2112,QUADRO!$BI17,'RELATÓRIO CIRCUNSTANCIADO'!$AM$13:$AM$2112,QUADRO!BK$9)+SUMIFS('RELATÓRIO CIRCUNSTANCIADO'!Val_Parcial,'RELATÓRIO CIRCUNSTANCIADO'!$AK$13:$AK$2112,QUADRO!$BI17,'RELATÓRIO CIRCUNSTANCIADO'!$AM$13:$AM$2112,QUADRO!BK$9) -> 0 | BL17: =SUMIFS('RELATÓRIO CIRCUNSTANCIADO'!Val_Total,'RELATÓRIO CIRCUNSTANCIADO'!$AK$13:$AK$2112,QUADRO!$BI17,'RELATÓRIO CIRCUNSTANCIADO'!$AM$13:$AM$2112,QUADRO!BL$9)+SUMIFS('RELATÓRIO CIRCUNSTANCIADO'!Val_Parcial,'RELATÓRIO CIRCUNSTANCIADO'!$AK$13:$AK$2112,QUADRO!$BI17,'RELATÓRIO CIRCUNSTANCIADO'!$AM$13:$AM$2112,QUADRO!BL$9) -> 0 | BM17: 0 | BO17: Manutenção de Bens Patrimoniais | BP17: 2645.48 | BQ17: 5090.96 | BR17: 7496.44 | BS17: 7496.44 | BU17: Manutenção de Bens Patrimoniais | BV17: 0 | BW17: 0 | BX17: 0 | BY17: 0
A18: Contabilidade | B18: 2590 | C18: 8536 | D18: 0 | E18: 0 | F18: -10.37 | G18: 10670 | H18: 445.63 | I18: 0 | J18: 445.63 | S18: Contabilidade | T18: 456 | U18: 2590 | V18: 2590 | W18: 456 | Y18: Contabilidade | Z18: =SUM(Dados!E130:H130) -> 8536 | AA18: =SUM(Dados!I130:L130) -> 8536 | AB18: =SUM(Dados!M130:P130) -> 8536 | AC18: 25608 | AE18: Contabilidade | AG18: 0 | AH18: 0 | AI18: 0 | AK18: Contabilidade | AN18: 0 | AO18: 0 | AQ18: Contabilidade | AR18: 0 | AS18: 0 | AT18: -10.37 | AU18: -10.37 | AW18: Contabilidade | AX18: =SUMIFS('RELATÓRIO CIRCUNSTANCIADO'!Val_doc,'RELATÓRIO CIRCUNSTANCIADO'!$AM$13:$AM$2112,QUADRO!AX$9,'RELATÓRIO CIRCUNSTANCIADO'!Segmento_1,QUADRO!$AW18) -> 6402 | AY18: =SUMIFS('RELATÓRIO CIRCUNSTANCIADO'!Val_doc,'RELATÓRIO CIRCUNSTANCIADO'!$AM$13:$AM$2112,QUADRO!AY$9,'RELATÓRIO CIRCUNSTANCIADO'!Segmento_1,QUADRO!$AW18) -> 8536 | AZ18: =SUMIFS('RELATÓRIO CIRCUNSTANCIADO'!Val_doc,'RELATÓRIO CIRCUNSTANCIADO'!$AM$13:$AM$2112,QUADRO!AZ$9,'RELATÓRIO CIRCUNSTANCIADO'!Segmento_1,QUADRO!$AW18) -> 10670 | BA18: 25608 | BC18: Contabilidade | BD18: 2590 | BE18: 2590 | BF18: 445.63 | BG18: 5625.63 | BI18: Contabilidade | BJ18: =SUMIFS('RELATÓRIO CIRCUNSTANCIADO'!Val_Total,'RELATÓRIO CIRCUNSTANCIADO'!$AK$13:$AK$2112,QUADRO!$BI18,'RELATÓRIO CIRCUNSTANCIADO'!$AM$13:$AM$2112,QUADRO!BJ$9)+SUMIFS('RELATÓRIO CIRCUNSTANCIADO'!Val_Parcial,'RELATÓRIO CIRCUNSTANCIADO'!$AK$13:$AK$2112,QUADRO!$BI18,'RELATÓRIO CIRCUNSTANCIADO'!$AM$13:$AM$2112,QUADRO!BJ$9) -> 0 | BK18: =SUMIFS('RELATÓRIO CIRCUNSTANCIADO'!Val_Total,'RELATÓRIO CIRCUNSTANCIADO'!$AK$13:$AK$2112,QUADRO!$BI18,'RELATÓRIO CIRCUNSTANCIADO'!$AM$13:$AM$2112,QUADRO!BK$9)+SUMIFS('RELATÓRIO CIRCUNSTANCIADO'!Val_Parcial,'RELATÓRIO CIRCUNSTANCIADO'!$AK$13:$AK$2112,QUADRO!$BI18,'RELATÓRIO CIRCUNSTANCIADO'!$AM$13:$AM$2112,QUADRO!BK$9) -> 0 | BL18: =SUMIFS('RELATÓRIO CIRCUNSTANCIADO'!Val_Total,'RELATÓRIO CIRCUNSTANCIADO'!$AK$13:$AK$2112,QUADRO!$BI18,'RELATÓRIO CIRCUNSTANCIADO'!$AM$13:$AM$2112,QUADRO!BL$9)+SUMIFS('RELATÓRIO CIRCUNSTANCIADO'!Val_Parcial,'RELATÓRIO CIRCUNSTANCIADO'!$AK$13:$AK$2112,QUADRO!$BI18,'RELATÓRIO CIRCUNSTANCIADO'!$AM$13:$AM$2112,QUADRO!BL$9) -> 0 | BM18: 0 | BO18: Contabilidade | BP18: 2590 | BQ18: 2590 | BR18: 445.63 | BS18: 445.63 | BU18: Contabilidade | BV18: 0 | BW18: 0 | BX18: 0 | BY18: 0
A19: Combustível para Deslocamentos à SE | B19: 0 | C19: 600 | D19: 0 | E19: 0 | F19: 0 | G19: 600 | H19: 0 | I19: 0 | J19: 0 | S19: Combustível para Deslocamentos à SE | T19: 0 | U19: 0 | V19: 0 | W19: 0 | Y19: Combustível para Deslocamentos à SE | Z19: =SUM(Dados!E131:H131) -> 600 | AA19: =SUM(Dados!I131:L131) -> 600 | AB19: =SUM(Dados!M131:P131) -> 600 | AC19: 1800 | AE19: Combustível para Deslocamentos à SE | AG19: 0 | AH19: 0 | AI19: 0 | AK19: Combustível para Deslocamentos à SE | AN19: 0 | AO19: 0 | AQ19: Combustível para Deslocamentos à SE | AR19: 0 | AS19: 0 | AT19: 0 | AU19: 0 | AW19: Combustível para Deslocamentos à SE | AX19: =SUMIFS('RELATÓRIO CIRCUNSTANCIADO'!Val_doc,'RELATÓRIO CIRCUNSTANCIADO'!$AM$13:$AM$2112,QUADRO!AX$9,'RELATÓRIO CIRCUNSTANCIADO'!Segmento_1,QUADRO!$AW19) -> 600 | AY19: =SUMIFS('RELATÓRIO CIRCUNSTANCIADO'!Val_doc,'RELATÓRIO CIRCUNSTANCIADO'!$AM$13:$AM$2112,QUADRO!AY$9,'RELATÓRIO CIRCUNSTANCIADO'!Segmento_1,QUADRO!$AW19) -> 600 | AZ19: =SUMIFS('RELATÓRIO CIRCUNSTANCIADO'!Val_doc,'RELATÓRIO CIRCUNSTANCIADO'!$AM$13:$AM$2112,QUADRO!AZ$9,'RELATÓRIO CIRCUNSTANCIADO'!Segmento_1,QUADRO!$AW19) -> 600 | BA19: 1800 | BC19: Combustível para Deslocamentos à SE | BD19: 0 | BE19: 0 | BF19: 0 | BG19: 0 | BI19: Combustível para Deslocamentos à SE | BJ19: =SUMIFS('RELATÓRIO CIRCUNSTANCIADO'!Val_Total,'RELATÓRIO CIRCUNSTANCIADO'!$AK$13:$AK$2112,QUADRO!$BI19,'RELATÓRIO CIRCUNSTANCIADO'!$AM$13:$AM$2112,QUADRO!BJ$9)+SUMIFS('RELATÓRIO CIRCUNSTANCIADO'!Val_Parcial,'RELATÓRIO CIRCUNSTANCIADO'!$AK$13:$AK$2112,QUADRO!$BI19,'RELATÓRIO CIRCUNSTANCIADO'!$AM$13:$AM$2112,QUADRO!BJ$9) -> 0 | BK19: =SUMIFS('RELATÓRIO CIRCUNSTANCIADO'!Val_Total,'RELATÓRIO CIRCUNSTANCIADO'!$AK$13:$AK$2112,QUADRO!$BI19,'RELATÓRIO CIRCUNSTANCIADO'!$AM$13:$AM$2112,QUADRO!BK$9)+SUMIFS('RELATÓRIO CIRCUNSTANCIADO'!Val_Parcial,'RELATÓRIO CIRCUNSTANCIADO'!$AK$13:$AK$2112,QUADRO!$BI19,'RELATÓRIO CIRCUNSTANCIADO'!$AM$13:$AM$2112,QUADRO!BK$9) -> 0 | BL19: =SUMIFS('RELATÓRIO CIRCUNSTANCIADO'!Val_Total,'RELATÓRIO CIRCUNSTANCIADO'!$AK$13:$AK$2112,QUADRO!$BI19,'RELATÓRIO CIRCUNSTANCIADO'!$AM$13:$AM$2112,QUADRO!BL$9)+SUMIFS('RELATÓRIO CIRCUNSTANCIADO'!Val_Parcial,'RELATÓRIO CIRCUNSTANCIADO'!$AK$13:$AK$2112,QUADRO!$BI19,'RELATÓRIO CIRCUNSTANCIADO'!$AM$13:$AM$2112,QUADRO!BL$9) -> 0 | BM19: 0 | BO19: Combustível para Deslocamentos à SE | BP19: 0 | BQ19: 0 | BR19: 0 | BS19: 0 | BU19: Combustível para Deslocamentos à SE | BV19: 0 | BW19: 0 | BX19: 0 | BY19: 0
A20: Locação do Imóvel | B20: 0 | C20: 0 | D20: 0 | E20: 0 | F20: 0 | G20: 0 | H20: 0 | I20: 0 | J20: 0 | S20: Locação do Imóvel | T20: 0 | U20: 0 | V20: 0 | W20: 0 | Y20: Locação do Imóvel | Z20: =SUM(Dados!E132:H132) -> 0 | AA20: =SUM(Dados!I132:L132) -> 0 | AB20: =SUM(Dados!M132:P132) -> 0 | AC20: 0 | AE20: Locação do Imóvel | AG20: 0 | AH20: 0 | AI20: 0 | AK20: Locação do Imóvel | AN20: 0 | AO20: 0 | AQ20: Locação do Imóvel | AR20: 0 | AS20: 0 | AT20: 0 | AU20: 0 | AW20: Locação do Imóvel | AX20: =SUMIFS('RELATÓRIO CIRCUNSTANCIADO'!Val_doc,'RELATÓRIO CIRCUNSTANCIADO'!$AM$13:$AM$2112,QUADRO!AX$9,'RELATÓRIO CIRCUNSTANCIADO'!Segmento_1,QUADRO!$AW20) -> 0 | AY20: =SUMIFS('RELATÓRIO CIRCUNSTANCIADO'!Val_doc,'RELATÓRIO CIRCUNSTANCIADO'!$AM$13:$AM$2112,QUADRO!AY$9,'RELATÓRIO CIRCUNSTANCIADO'!Segmento_1,QUADRO!$AW20) -> 0 | AZ20: =SUMIFS('RELATÓRIO CIRCUNSTANCIADO'!Val_doc,'RELATÓRIO CIRCUNSTANCIADO'!$AM$13:$AM$2112,QUADRO!AZ$9,'RELATÓRIO CIRCUNSTANCIADO'!Segmento_1,QUADRO!$AW20) -> 0 | BA20: 0 | BC20: Locação do Imóvel | BD20: 0 | BE20: 0 | BF20: 0 | BG20: 0 | BI20: Locação do Imóvel | BJ20: =SUMIFS('RELATÓRIO CIRCUNSTANCIADO'!Val_Total,'RELATÓRIO CIRCUNSTANCIADO'!$AK$13:$AK$2112,QUADRO!$BI20,'RELATÓRIO CIRCUNSTANCIADO'!$AM$13:$AM$2112,QUADRO!BJ$9)+SUMIFS('RELATÓRIO CIRCUNSTANCIADO'!Val_Parcial,'RELATÓRIO CIRCUNSTANCIADO'!$AK$13:$AK$2112,QUADRO!$BI20,'RELATÓRIO CIRCUNSTANCIADO'!$AM$13:$AM$2112,QUADRO!BJ$9) -> 0 | BK20: =SUMIFS('RELATÓRIO CIRCUNSTANCIADO'!Val_Total,'RELATÓRIO CIRCUNSTANCIADO'!$AK$13:$AK$2112,QUADRO!$BI20,'RELATÓRIO CIRCUNSTANCIADO'!$AM$13:$AM$2112,QUADRO!BK$9)+SUMIFS('RELATÓRIO CIRCUNSTANCIADO'!Val_Parcial,'RELATÓRIO CIRCUNSTANCIADO'!$AK$13:$AK$2112,QUADRO!$BI20,'RELATÓRIO CIRCUNSTANCIADO'!$AM$13:$AM$2112,QUADRO!BK$9) -> 0 | BL20: =SUMIFS('RELATÓRIO CIRCUNSTANCIADO'!Val_Total,'RELATÓRIO CIRCUNSTANCIADO'!$AK$13:$AK$2112,QUADRO!$BI20,'RELATÓRIO CIRCUNSTANCIADO'!$AM$13:$AM$2112,QUADRO!BL$9)+SUMIFS('RELATÓRIO CIRCUNSTANCIADO'!Val_Parcial,'RELATÓRIO CIRCUNSTANCIADO'!$AK$13:$AK$2112,QUADRO!$BI20,'RELATÓRIO CIRCUNSTANCIADO'!$AM$13:$AM$2112,QUADRO!BL$9) -> 0 | BM20: 0 | BO20: Locação do Imóvel | BP20: 0 | BQ20: 0 | BR20: 0 | BS20: 0 | BU20: Locação do Imóvel | BV20: 0 | BW20: 0 | BX20: 0 | BY20: 0
A21: Programa Escola Linda | B21: 0 | C21: 0 | D21: 0 | E21: 3453.74 | F21: 21490.22 | G21: 24943.96 | H21: 0 | I21: 0 | J21: 0 | S21: Programa Escola Linda | T21: 0 | U21: 11165.46 | V21: 0 | W21: 0 | Y21: Programa Escola Linda | Z21: =SUM(Dados!E133:H133) -> 34000 | AA21: =SUM(Dados!I133:L133) -> 0 | AB21: =SUM(Dados!M133:P133) -> 0 | AC21: 34000 | AE21: Programa Escola Linda | AG21: 0 | AH21: 0 | AI21: 0 | AK21: Programa Escola Linda | AM21: 3420.93 | AN21: 3453.74 | AO21: 6874.67 | AQ21: Programa Escola Linda | AR21: 0 | AS21: 0 | AT21: 21490.22 | AU21: 21490.22 | AW21: Programa Escola Linda | AX21: =SUMIFS('RELATÓRIO CIRCUNSTANCIADO'!Val_doc,'RELATÓRIO CIRCUNSTANCIADO'!$AM$13:$AM$2112,QUADRO!AX$9,'RELATÓRIO CIRCUNSTANCIADO'!Segmento_1,QUADRO!$AW21) -> 22834.54 | AY21: =SUMIFS('RELATÓRIO CIRCUNSTANCIADO'!Val_doc,'RELATÓRIO CIRCUNSTANCIADO'!$AM$13:$AM$2112,QUADRO!AY$9,'RELATÓRIO CIRCUNSTANCIADO'!Segmento_1,QUADRO!$AW21) -> 14586.39 | AZ21: =SUMIFS('RELATÓRIO CIRCUNSTANCIADO'!Val_doc,'RELATÓRIO CIRCUNSTANCIADO'!$AM$13:$AM$2112,QUADRO!AZ$9,'RELATÓRIO CIRCUNSTANCIADO'!Segmento_1,QUADRO!$AW21) -> 24943.96 | BA21: 62364.89 | BC21: Programa Escola Linda | BD21: 11165.46 | BE21: 0 | BF21: 0 | BG21: 11165.46 | BI21: Programa Escola Linda | BJ21: =SUMIFS('RELATÓRIO CIRCUNSTANCIADO'!Val_Total,'RELATÓRIO CIRCUNSTANCIADO'!$AK$13:$AK$2112,QUADRO!$BI21,'RELATÓRIO CIRCUNSTANCIADO'!$AM$13:$AM$2112,QUADRO!BJ$9)+SUMIFS('RELATÓRIO CIRCUNSTANCIADO'!Val_Parcial,'RELATÓRIO CIRCUNSTANCIADO'!$AK$13:$AK$2112,QUADRO!$BI21,'RELATÓRIO CIRCUNSTANCIADO'!$AM$13:$AM$2112,QUADRO!BJ$9) -> 0 | BK21: =SUMIFS('RELATÓRIO CIRCUNSTANCIADO'!Val_Total,'RELATÓRIO CIRCUNSTANCIADO'!$AK$13:$AK$2112,QUADRO!$BI21,'RELATÓRIO CIRCUNSTANCIADO'!$AM$13:$AM$2112,QUADRO!BK$9)+SUMIFS('RELATÓRIO CIRCUNSTANCIADO'!Val_Parcial,'RELATÓRIO CIRCUNSTANCIADO'!$AK$13:$AK$2112,QUADRO!$BI21,'RELATÓRIO CIRCUNSTANCIADO'!$AM$13:$AM$2112,QUADRO!BK$9) -> 0 | BL21: =SUMIFS('RELATÓRIO CIRCUNSTANCIADO'!Val_Total,'RELATÓRIO CIRCUNSTANCIADO'!$AK$13:$AK$2112,QUADRO!$BI21,'RELATÓRIO CIRCUNSTANCIADO'!$AM$13:$AM$2112,QUADRO!BL$9)+SUMIFS('RELATÓRIO CIRCUNSTANCIADO'!Val_Parcial,'RELATÓRIO CIRCUNSTANCIADO'!$AK$13:$AK$2112,QUADRO!$BI21,'RELATÓRIO CIRCUNSTANCIADO'!$AM$13:$AM$2112,QUADRO!BL$9) -> 0 | BM21: 0 | BO21: Programa Escola Linda | BP21: 11165.46 | BQ21: 0 | BR21: 0 | BS21: 0 | BU21: Programa Escola Linda | BV21: 0 | BW21: 0 | BX21: 0 | BY21: 0
A22: Educação Maker - Custeio | B22: 1110 | C22: 0 | D22: 0 | E22: 536.19 | F22: 0 | G22: 1440 | H22: 206.19 | I22: 0 | J22: 206.19 | S22: Educação Maker - Custeio | T22: 0 | U22: 0 | V22: 1110 | W22: 0 | Y22: Educação Maker - Custeio | Z22: =SUM(Dados!E134:H134) -> 0 | AA22: =SUM(Dados!I134:L134) -> 3000 | AB22: =SUM(Dados!M134:P134) -> 0 | AC22: 3000 | AE22: Educação Maker - Custeio | AG22: 0 | AH22: 0 | AI22: 0 | AK22: Educação Maker - Custeio | AN22: 536.19 | AO22: 536.19 | AQ22: Educação Maker - Custeio | AR22: 0 | AS22: 0 | AT22: 0 | AU22: 0 | AW22: Educação Maker - Custeio | AX22: =SUMIFS('RELATÓRIO CIRCUNSTANCIADO'!Val_doc,'RELATÓRIO CIRCUNSTANCIADO'!$AM$13:$AM$2112,QUADRO!AX$9,'RELATÓRIO CIRCUNSTANCIADO'!Segmento_1,QUADRO!$AW22) -> 0 | AY22: =SUMIFS('RELATÓRIO CIRCUNSTANCIADO'!Val_doc,'RELATÓRIO CIRCUNSTANCIADO'!$AM$13:$AM$2112,QUADRO!AY$9,'RELATÓRIO CIRCUNSTANCIADO'!Segmento_1,QUADRO!$AW22) -> 1890 | AZ22: =SUMIFS('RELATÓRIO CIRCUNSTANCIADO'!Val_doc,'RELATÓRIO CIRCUNSTANCIADO'!$AM$13:$AM$2112,QUADRO!AZ$9,'RELATÓRIO CIRCUNSTANCIADO'!Segmento_1,QUADRO!$AW22) -> 1440 | BA22: 3330 | BC22: Educação Maker - Custeio | BD22: 0 | BE22: 1110 | BF22: 206.19 | BG22: 1316.19 | BI22: Educação Maker - Custeio | BJ22: =SUMIFS('RELATÓRIO CIRCUNSTANCIADO'!Val_Total,'RELATÓRIO CIRCUNSTANCIADO'!$AK$13:$AK$2112,QUADRO!$BI22,'RELATÓRIO CIRCUNSTANCIADO'!$AM$13:$AM$2112,QUADRO!BJ$9)+SUMIFS('RELATÓRIO CIRCUNSTANCIADO'!Val_Parcial,'RELATÓRIO CIRCUNSTANCIADO'!$AK$13:$AK$2112,QUADRO!$BI22,'RELATÓRIO CIRCUNSTANCIADO'!$AM$13:$AM$2112,QUADRO!BJ$9) -> 0 | BK22: =SUMIFS('RELATÓRIO CIRCUNSTANCIADO'!Val_Total,'RELATÓRIO CIRCUNSTANCIADO'!$AK$13:$AK$2112,QUADRO!$BI22,'RELATÓRIO CIRCUNSTANCIADO'!$AM$13:$AM$2112,QUADRO!BK$9)+SUMIFS('RELATÓRIO CIRCUNSTANCIADO'!Val_Parcial,'RELATÓRIO CIRCUNSTANCIADO'!$AK$13:$AK$2112,QUADRO!$BI22,'RELATÓRIO CIRCUNSTANCIADO'!$AM$13:$AM$2112,QUADRO!BK$9) -> 0 | BL22: =SUMIFS('RELATÓRIO CIRCUNSTANCIADO'!Val_Total,'RELATÓRIO CIRCUNSTANCIADO'!$AK$13:$AK$2112,QUADRO!$BI22,'RELATÓRIO CIRCUNSTANCIADO'!$AM$13:$AM$2112,QUADRO!BL$9)+SUMIFS('RELATÓRIO CIRCUNSTANCIADO'!Val_Parcial,'RELATÓRIO CIRCUNSTANCIADO'!$AK$13:$AK$2112,QUADRO!$BI22,'RELATÓRIO CIRCUNSTANCIADO'!$AM$13:$AM$2112,QUADRO!BL$9) -> 0 | BM22: 0 | BO22: Educação Maker - Custeio | BP22: 0 | BQ22: 1110 | BR22: 206.19 | BS22: 206.19 | BU22: Educação Maker - Custeio | BV22: 0 | BW22: 0 | BX22: 0 | BY22: 0
A23: TOTAL CUSTEIO | B23: =SUM(B10:B22) -> 345590.89 | C23: 548511.68 | D23: 0 | E23: 6498.76 | F23: 0 | G23: 746482.57 | H23: 154118.76 | I23: 0 | J23: 154118.76 | T23: =SUM(T10:T22) -> 62244.54 | U23: =SUM(U10:U22) -> 265240.67 | V23: =SUM(V10:V22) -> 345590.89 | W23: 62244.54 | Z23: =SUM(Z10:Z22) -> 527716.84 | AA23: =SUM(AA10:AA22) -> 567629.1 | AB23: =SUM(AB10:AB22) -> 548511.68 | AC23: 1643857.62 | AF23: =SUM(AF10:AF22) -> 0 | AG23: =SUM(AG10:AG22) -> 0 | AH23: =SUM(AH10:AH22) -> 0 | AI23: 0 | AL23: =SUM(AL10:AL22) -> 3216.28 | AM23: =SUM(AM10:AM22) -> 6373.97 | AN23: =SUM(AN10:AN22) -> 6498.76 | AO23: 16089.01 | AR23: =SUM(AR10:AR22) -> 0 | AS23: =SUM(AS10:AS22) -> 0 | AT23: =SUM(AT10:AT22) -> 0 | AU23: 0 | AX23: =SUM(AX10:AX22) -> 327936.99 | AY23: =SUM(AY10:AY22) -> 493681.99 | AZ23: =SUM(AZ10:AZ22) -> 746482.57 | BA23: 1568101.55 | BD23: =SUM(BD10:BD22) -> 265240.67 | BE23: =SUM(BE10:BE22) -> 345561.75 | BF23: =SUM(BF10:BF22) -> 154118.76 | BG23: 764921.18 | BJ23: =SUM(BJ10:BJ22) -> 0 | BK23: =SUM(BK10:BK22) -> 29.14 | BL23: =SUM(BL10:BL22) -> 0 | BM23: 29.14 | BP23: =SUM(BP10:BP22) -> 265240.67 | BQ23: =SUM(BQ10:BQ22) -> 345590.89 | BR23: =SUM(BR10:BR22) -> 154118.76 | BS23: 154118.76 | BV23: =SUM(BV10:BV22) -> 0 | BW23: =SUM(BW10:BW22) -> 0 | BX23: =SUM(BX10:BX22) -> 0 | BY23: 0
A24: Educação Maker - Capital | B24: =INDEX(saldoInicial,MATCH($A24,$S$10:$S$26,0),MATCH($O$1,$T$9:$W$9,0)) -> 3000 | C24: =INDEX(repasse22,MATCH($A24,$Y$10:$Y$26,0),MATCH($O$1,$Z$9:$AC$9,0)) -> 0 | D24: =INDEX(recprop22,MATCH($A24,$AE$10:$AE$26,0),MATCH($O$1,$AF$9:$AI$9,0)) -> 0 | E24: =INDEX(rentab22,MATCH($A24,$AK$10:$AK$26,0),MATCH($O$1,$AL$9:$AO$9,0)) -> 0 | F24: =INDEX(reman22,MATCH($A24,$AQ$10:$AQ$26,0),MATCH($O$1,$AR$9:$AU$9,0)) -> -751.44 | G24: =INDEX(utiliz22,MATCH($A24,$AW$10:$AW$26,0),MATCH($O$1,$AX$9:$BA$9,0)) -> 2200 | H24: 48.56 | I24: =INDEX($BJ$10:$BM$26,MATCH($A24,$BI$10:$BI$26,0),MATCH($O$1,$BJ$9:$BM$9,0)) -> 0 | J24: =H24+I24 -> 48.56 | S24: Educação Maker - Capital | T24: 0 | U24: 0 | V24: 3000 | W24: 0 | Y24: Educação Maker - Capital | Z24: =SUM(Dados!E135:H135) -> 0 | AA24: =SUM(Dados!I135:L135) -> 3000 | AB24: =SUM(Dados!M135:P135) -> 0 | AC24: 3000 | AE24: Educação Maker - Capital | AG24: 0 | AH24: 0 | AI24: 0 | AK24: Educação Maker - Capital | AN24: 0 | AO24: 0 | AQ24: Educação Maker - Capital | AR24: 0 | AS24: 0 | AT24: -751.44 | AU24: -751.44 | AW24: Educação Maker - Capital | AX24: =SUMIFS('RELATÓRIO CIRCUNSTANCIADO'!Val_doc,'RELATÓRIO CIRCUNSTANCIADO'!$AM$13:$AM$2112,QUADRO!AX$9,'RELATÓRIO CIRCUNSTANCIADO'!Segmento_1,QUADRO!$AW24) -> 0 | AY24: =SUMIFS('RELATÓRIO CIRCUNSTANCIADO'!Val_doc,'RELATÓRIO CIRCUNSTANCIADO'!$AM$13:$AM$2112,QUADRO!AY$9,'RELATÓRIO CIRCUNSTANCIADO'!Segmento_1,QUADRO!$AW24) -> 0 | AZ24: =SUMIFS('RELATÓRIO CIRCUNSTANCIADO'!Val_doc,'RELATÓRIO CIRCUNSTANCIADO'!$AM$13:$AM$2112,QUADRO!AZ$9,'RELATÓRIO CIRCUNSTANCIADO'!Segmento_1,QUADRO!$AW24) -> 2200 | BA24: 2200 | BC24: Educação Maker - Capital | BD24: =T24+Z24+AF24+AL24+AR24-AX24 -> 0 | BE24: 3000 | BF24: 48.56 | BG24: 3048.56 | BI24: Educação Maker - Capital | BJ24: =SUMIFS('RELATÓRIO CIRCUNSTANCIADO'!Val_Total,'RELATÓRIO CIRCUNSTANCIADO'!$AK$13:$AK$2112,QUADRO!$BI24,'RELATÓRIO CIRCUNSTANCIADO'!$AM$13:$AM$2112,QUADRO!BJ$9)+SUMIFS('RELATÓRIO CIRCUNSTANCIADO'!Val_Parcial,'RELATÓRIO CIRCUNSTANCIADO'!$AK$13:$AK$2112,QUADRO!$BI24,'RELATÓRIO CIRCUNSTANCIADO'!$AM$13:$AM$2112,QUADRO!BJ$9) -> 0 | BK24: =SUMIFS('RELATÓRIO CIRCUNSTANCIADO'!Val_Total,'RELATÓRIO CIRCUNSTANCIADO'!$AK$13:$AK$2112,QUADRO!$BI24,'RELATÓRIO CIRCUNSTANCIADO'!$AM$13:$AM$2112,QUADRO!BK$9)+SUMIFS('RELATÓRIO CIRCUNSTANCIADO'!Val_Parcial,'RELATÓRIO CIRCUNSTANCIADO'!$AK$13:$AK$2112,QUADRO!$BI24,'RELATÓRIO CIRCUNSTANCIADO'!$AM$13:$AM$2112,QUADRO!BK$9) -> 0 | BL24: =SUMIFS('RELATÓRIO CIRCUNSTANCIADO'!Val_Total,'RELATÓRIO CIRCUNSTANCIADO'!$AK$13:$AK$2112,QUADRO!$BI24,'RELATÓRIO CIRCUNSTANCIADO'!$AM$13:$AM$2112,QUADRO!BL$9)+SUMIFS('RELATÓRIO CIRCUNSTANCIADO'!Val_Parcial,'RELATÓRIO CIRCUNSTANCIADO'!$AK$13:$AK$2112,QUADRO!$BI24,'RELATÓRIO CIRCUNSTANCIADO'!$AM$13:$AM$2112,QUADRO!BL$9) -> 0 | BM24: 0 | BO24: Educação Maker - Capital | BP24: 0 | BQ24: 3000 | BR24: 48.56 | BS24: 48.56 | BU24: Educação Maker - Capital | BV24: 0 | BW24: 0 | BX24: 0 | BY24: 0
A25: Bem Permanente | B25: =INDEX(saldoInicial,MATCH($A25,$S$10:$S$26,0),MATCH($O$1,$T$9:$W$9,0)) -> 2480.2 | C25: =INDEX(repasse22,MATCH($A25,$Y$10:$Y$26,0),MATCH($O$1,$Z$9:$AC$9,0)) -> 0 | D25: =INDEX(recprop22,MATCH($A25,$AE$10:$AE$26,0),MATCH($O$1,$AF$9:$AI$9,0)) -> 0 | E25: =INDEX(rentab22,MATCH($A25,$AK$10:$AK$26,0),MATCH($O$1,$AL$9:$AO$9,0)) -> 0 | F25: =INDEX(reman22,MATCH($A25,$AQ$10:$AQ$26,0),MATCH($O$1,$AR$9:$AU$9,0)) -> 751.44 | G25: =INDEX(utiliz22,MATCH($A25,$AW$10:$AW$26,0),MATCH($O$1,$AX$9:$BA$9,0)) -> 3231.643 | H25: -0.003 | I25: =INDEX($BJ$10:$BM$26,MATCH($A25,$BI$10:$BI$26,0),MATCH($O$1,$BJ$9:$BM$9,0)) -> 0 | J25: =H25+I25 -> -0.003 | S25: Bem Permanente | T25: 0 | U25: 3900 | V25: 2480.2 | W25: 0 | Y25: Bem Permanente | Z25: =SUM(Dados!E136:H136) -> 3900 | AA25: =SUM(Dados!I136:L136) -> 0 | AB25: =SUM(Dados!M136:P136) -> 0 | AC25: 3900 | AE25: Bem Permanente | AG25: 0 | AH25: 0 | AI25: 0 | AK25: Bem Permanente | AN25: 0 | AO25: 0 | AQ25: Bem Permanente | AR25: 0 | AS25: 0 | AT25: 751.44 | AU25: 751.44 | AW25: Bem Permanente | AX25: =SUMIFS('RELATÓRIO CIRCUNSTANCIADO'!Val_doc,'RELATÓRIO CIRCUNSTANCIADO'!$AM$13:$AM$2112,QUADRO!AX$9,'RELATÓRIO CIRCUNSTANCIADO'!Segmento_1,QUADRO!$AW25) -> 0 | AY25: =SUMIFS('RELATÓRIO CIRCUNSTANCIADO'!Val_doc,'RELATÓRIO CIRCUNSTANCIADO'!$AM$13:$AM$2112,QUADRO!AY$9,'RELATÓRIO CIRCUNSTANCIADO'!Segmento_1,QUADRO!$AW25) -> 1419.8 | AZ25: =SUMIFS('RELATÓRIO CIRCUNSTANCIADO'!Val_doc,'RELATÓRIO CIRCUNSTANCIADO'!$AM$13:$AM$2112,QUADRO!AZ$9,'RELATÓRIO CIRCUNSTANCIADO'!Segmento_1,QUADRO!$AW25) -> 3231.643 | BA25: 4651.443 | BC25: Bem Permanente | BD25: 3900 | BE25: 2480.2 | BF25: -0.003 | BG25: 6380.197 | BI25: Bem Permanente | BJ25: =SUMIFS('RELATÓRIO CIRCUNSTANCIADO'!Val_Total,'RELATÓRIO CIRCUNSTANCIADO'!$AK$13:$AK$2112,QUADRO!$BI25,'RELATÓRIO CIRCUNSTANCIADO'!$AM$13:$AM$2112,QUADRO!BJ$9)+SUMIFS('RELATÓRIO CIRCUNSTANCIADO'!Val_Parcial,'RELATÓRIO CIRCUNSTANCIADO'!$AK$13:$AK$2112,QUADRO!$BI25,'RELATÓRIO CIRCUNSTANCIADO'!$AM$13:$AM$2112,QUADRO!BJ$9) -> 0 | BK25: =SUMIFS('RELATÓRIO CIRCUNSTANCIADO'!Val_Total,'RELATÓRIO CIRCUNSTANCIADO'!$AK$13:$AK$2112,QUADRO!$BI25,'RELATÓRIO CIRCUNSTANCIADO'!$AM$13:$AM$2112,QUADRO!BK$9)+SUMIFS('RELATÓRIO CIRCUNSTANCIADO'!Val_Parcial,'RELATÓRIO CIRCUNSTANCIADO'!$AK$13:$AK$2112,QUADRO!$BI25,'RELATÓRIO CIRCUNSTANCIADO'!$AM$13:$AM$2112,QUADRO!BK$9) -> 0 | BL25: =SUMIFS('RELATÓRIO CIRCUNSTANCIADO'!Val_Total,'RELATÓRIO CIRCUNSTANCIADO'!$AK$13:$AK$2112,QUADRO!$BI25,'RELATÓRIO CIRCUNSTANCIADO'!$AM$13:$AM$2112,QUADRO!BL$9)+SUMIFS('RELATÓRIO CIRCUNSTANCIADO'!Val_Parcial,'RELATÓRIO CIRCUNSTANCIADO'!$AK$13:$AK$2112,QUADRO!$BI25,'RELATÓRIO CIRCUNSTANCIADO'!$AM$13:$AM$2112,QUADRO!BL$9) -> 0 | BM25: 0 | BO25: Bem Permanente | BP25: =BD25+BJ25 -> 3900 | BQ25: =BE25+BK25 -> 2480.2 | BR25: =BF25+BL25 -> -0.003 | BS25: -0.003 | BU25: Bem Permanente | BV25: 0 | BW25: 0 | BX25: 0 | BY25: 0
A26: TOTAL BEM PERMANENTE | B26: =SUM(B24:B25) -> 5480.2 | C26: 0 | D26: =SUM(D24:D25) -> 0 | E26: 0 | F26: 0 | G26: 5431.643 | H26: 48.557 | I26: 0 | J26: 48.557 | T26: =SUM(T24:T25) -> 0 | U26: =SUM(U24:U25) -> 3900 | V26: =SUM(V24:V25) -> 5480.2 | W26: 0 | Z26: =SUM(Z24:Z25) -> 3900 | AA26: =SUM(AA24:AA25) -> 3000 | AB26: =SUM(AB24:AB25) -> 0 | AC26: 6900 | AF26: =SUM(AF24:AF25) -> 0 | AG26: =SUM(AG24:AG25) -> 0 | AH26: =SUM(AH24:AH25) -> 0 | AI26: 0 | AL26: =SUM(AL24:AL25) -> 0 | AM26: =SUM(AM24:AM25) -> 0 | AN26: =SUM(AN24:AN25) -> 0 | AO26: 0 | AR26: =SUM(AR24:AR25) -> 0 | AS26: =SUM(AS24:AS25) -> 0 | AT26: =SUM(AT24:AT25) -> 0 | AU26: 0 | AX26: =SUM(AX24:AX25) -> 0 | AY26: =SUM(AY24:AY25) -> 1419.8 | AZ26: =SUM(AZ24:AZ25) -> 5431.643 | BA26: 6851.443 | BD26: =SUM(BD24:BD25) -> 3900 | BE26: =SUM(BE24:BE25) -> 5480.2 | BF26: =SUM(BF24:BF25) -> 48.557 | BG26: 9428.757 | BJ26: =SUM(BJ24:BJ25) -> 0 | BK26: =SUM(BK24:BK25) -> 0 | BL26: =SUM(BL24:BL25) -> 0 | BM26: 0 | BP26: =SUM(BP24:BP25) -> 3900 | BQ26: =SUM(BQ24:BQ25) -> 5480.2 | BR26: =SUM(BR24:BR25) -> 48.557 | BS26: 48.557 | BV26: =SUM(BV24:BV25) -> 0 | BW26: =SUM(BW24:BW25) -> 0 | BX26: =SUM(BX24:BX25) -> 0 | BY26: 0
A27: TOTAL | B27: =SUM(B26,B23) -> 351071.09 | C27: =SUM(C26,C23) -> 548511.68 | D27: =SUM(D23,D26) -> 0 | E27: =SUM(E23,E26) -> 6498.76 | F27: 0 | G27: 751914.213 | H27: 154167.317 | I27: 0 | J27: 154167.317 | BJ27: =SUM(BJ23,BJ25) -> 0 | BK27: =SUM(BK23,BK26) -> 29.14 | BL27: =SUM(BL23,BL26) -> 0 | BM27: =SUM(BM23,BM26) -> 29.14 | BP27: =SUM(BP23,BP26) -> 269140.67 | BQ27: =SUM(BQ23,BQ26) -> 351071.09 | BR27: =SUM(BR23,BR26) -> 154167.317 | BS27: =SUM(BS23,BS26) -> 154167.317

Sheet RELATÓRIO CIRCUNSTANCIADO
A1: RELATÓRIO CIRCUNSTANCIADO | N1: 2023 | O1: 3 | P1: C
A3: Organização da Sociedade Civil: | C3: =Dados!A116 -> SOCIEDADE "FRATERNITAS" DE SÃO BERNARDO DO CAMPO | N3: =IF(O1=4,"EXERCÍCIO",O1&"º QUADRIMESTRE") -> 3º QUADRIMESTRE
A4: Endereço: | C4: =Dados!$B$116 -> Rua Giacinto Tognato, nº 293 - Baeta Neves - S.B.Campo - SP - CEP: 09760-370 | N4: =VLOOKUP(N3,Dados!C2:D4,2,0) -> 31/12/2023 | P4: 2023-01-01
A6: =$N$3&" DE "&$N$1 -> 3º QUADRIMESTRE DE 2023 | AP6: DISPONÍVEL | AU6: UTILIZADO | AZ6: SALDO | BE6: GLOSAS | BJ6: SALDO FINAL
A7: SEGMENTO | C7: VALOR DISPONÍVEL | E7: VALOR UTILIZADO | G7: SALDO | H7: GLOSAS | J7: SALDO FINAL | P7: 2023-04-30 | AP7: 1 | AQ7: 2 | AR7: 3 | AS7: 4 | AU7: 1 | AV7: 2 | AW7: 3 | AX7: 4 | AZ7: 1 | BA7: 2 | BB7: 3 | BC7: 4 | BE7: 1 | BF7: 2 | BG7: 3 | BH7: 4 | BJ7: 1 | BK7: 2 | BL7: 3 | BM7: 4
A8: CUSTEIO | C8: =INDEX($AP$8:$AS$9,MATCH($A8,$AO$8:$AO$9,0),MATCH($O$1,$AP$7:$AS$7,0)) -> 900601.33 | E8: =INDEX($AU$8:$AX$9,MATCH($A8,$AO$8:$AO$9,0),MATCH($O$1,$AU$7:$AX$7,0)) -> 746482.57 | G8: =INDEX($AZ$8:$BC$9,MATCH($A8,$AO$8:$AO$9,0),MATCH($O$1,$AZ$7:$BC$7,0)) -> 154118.76 | H8: =INDEX($BE$8:$BH$9,MATCH($A8,$AO$8:$AO$9,0),MATCH($O$1,$BE$7:$BH$7,0)) -> 0 | J8: =INDEX($BJ$8:$BM$9,MATCH($A8,$AO$8:$AO$9,0),MATCH($O$1,$BJ$7:$BM$7,0)) -> 154118.76 | AO8: CUSTEIO | AP8: =QUADRO!T23+QUADRO!Z23+QUADRO!AF23+QUADRO!AL23+QUADRO!AR23 -> 593177.66 | AQ8: =QUADRO!U23+QUADRO!AA23+QUADRO!AG23+QUADRO!AM23+QUADRO!AS23 -> 839243.74 | AR8: =QUADRO!V23+QUADRO!AB23+QUADRO!AH23+QUADRO!AN23+QUADRO!AT23 -> 900601.33 | AS8: =QUADRO!W23+QUADRO!AC23+QUADRO!AI23+QUADRO!AO23+QUADRO!AU23 -> 1722191.17 | AU8: =QUADRO!AX23 -> 327936.99 | AV8: =QUADRO!AY23 -> 493681.99 | AW8: =QUADRO!AZ23 -> 746482.57 | AX8: =QUADRO!BA23 -> 1568101.55 | AZ8: =AP8-AU8 -> 265240.67 | BA8: =AQ8-AV8 -> 345561.75 | BB8: =AR8-AW8 -> 154118.76 | BC8: =AS8-AX8 -> 154089.62 | BE8: =QUADRO!BJ23 -> 0 | BF8: =QUADRO!BK23 -> 29.14 | BG8: =QUADRO!BL23 -> 0 | BH8: =QUADRO!BM23 -> 29.14 | BJ8: =AZ8+BE8 -> 265240.67 | BK8: 345590.89 | BL8: 154118.76 | BM8: 154118.76
A9: CAPITAL | C9: =INDEX($AP$8:$AS$9,MATCH($A9,$AO$8:$AO$9,0),MATCH($O$1,$AP$7:$AS$7,0)) -> 5480.2 | E9: =INDEX($AU$8:$AX$9,MATCH($A9,$AO$8:$AO$9,0),MATCH($O$1,$AU$7:$AX$7,0)) -> 5431.643 | G9: =INDEX($AZ$8:$BC$9,MATCH($A9,$AO$8:$AO$9,0),MATCH($O$1,$AZ$7:$BC$7,0)) -> 48.557 | H9: =INDEX($BE$8:$BH$9,MATCH($A9,$AO$8:$AO$9,0),MATCH($O$1,$BE$7:$BH$7,0)) -> 0 | J9: =INDEX($BJ$8:$BM$9,MATCH($A9,$AO$8:$AO$9,0),MATCH($O$1,$BJ$7:$BM$7,0)) -> 48.557 | AO9: CAPITAL | AP9: =QUADRO!T26+QUADRO!Z26+QUADRO!AF26+QUADRO!AL26+QUADRO!AR26 -> 3900 | AQ9: =QUADRO!U26+QUADRO!AA26+QUADRO!AG26+QUADRO!AM26+QUADRO!AS26 -> 6900 | AR9: =QUADRO!V26+QUADRO!AB26+QUADRO!AH26+QUADRO!AN26+QUADRO!AT26 -> 5480.2 | AS9: =QUADRO!W26+QUADRO!AC26+QUADRO!AI26+QUADRO!AO26+QUADRO!AU26 -> 6900 | AU9: =QUADRO!AX26 -> 0 | AV9: =QUADRO!AY26 -> 1419.8 | AW9: =QUADRO!AZ26 -> 5431.643 | AX9: =QUADRO!BA26 -> 6851.443 | AZ9: =AP9-AU9 -> 3900 | BA9: 5480.2 | BB9: 48.557 | BC9: 48.557 | BE9: =QUADRO!BJ26 -> 0 | BF9: =QUADRO!BK26 -> 0 | BG9: =QUADRO!BL26 -> 0 | BH9: =QUADRO!BM26 -> 0 | BJ9: 3900 | BK9: 5480.2 | BL9: 48.557 | BM9: 48.557
K11: DESPESAS GLOSADAS | Y11: For DND | AE11: =COUNTIF(AE12:AE2112,TRUE) -> 0 | AF11: =COUNTIF(AF12:AF2112,TRUE) -> 753 | AG11: =COUNTIF(AG12:AG2112,TRUE) -> 782
A12: NC | B12: CATEGORIA DA DESPESA | C12: FINALIDADE | D12: DATA | E12: TIPO DE DOCUMENTO | F12: Nº DO DOCUMENTO | G12: FORNECEDOR/EMPRESA | H12: IDENT. PGTO | I12: VALOR TOTAL | J12: JUSTIFICATIVA | K12: GLOSA | L12: VALOR GLOSA PARCIAL | M12: Documento Fiscal lançado em duplicidade Identificação do Ajuste: | O12: P/ TCESP | P12: EXISTE DESPESA | Q12: NÚMERO | R12: Glosa Total | S12: Finalidade Total | T12: Valor Total | U12: Glosa Parcial | V12: Finalidade Parcial | W12: Valor Parcial | X12: Valor Acatado | Y12: This | Z12: Item do Demonstrativo: | AA12: Tipo e Número do documento: | AB12: Nome/Razão Social da Empresa/Credor: | AC12: Identificação do Ajuste/Período: | AE12: Preenchimento Indevido | AF12: Preenchimento Incompleto | AG12: Data Incorreta | AH12: Custeio Negativo | AI12: Capital Negativo | AK12: Segmento | AL12: Mês | AM12: Quadrimestre | AO12: Filter
A13: =IF(Q13="","",Q13) -> 1 | B13: Despesas com pessoal | C13: Pagamento mensal | D13: 2023-01-05 | E13: Boleto | F13: 2051 - F01 | G13: Febes Federação de Entidades do Bem Estar Social | H13: 363210 | I13: 210.17 | J13: Contribuição a Entidade de Classe ref. 01/2023 | O13: =IFERROR(VLOOKUP($C13,iTCESP,2,0),"") -> Item I | P13: =IF(I13>0,"SIM","NÃO") -> SIM | Q13: =IF(P13="NÃO","",COUNT($Q$12)+1) -> 1 | R13: =IF($K13="Total",1,"") ->  | S13: =IF($R13=1,$B13,"") ->  | T13: =IF($R13=1,$I13,0) -> 0 | U13: =IF($K13="Parcial",1,"") ->  | V13: =IF($U13=1,$B13,"") ->  | W13: =IF($U13=1,$L13,0) -> 0 | X13: =I13-T13-W13 -> 210.17 | Y13: =IF(O13<>"",COUNTIF(O$13:$O13,O13),"") -> 1 | Z13: =O13&" - "&Y13 -> Item I - 1 | AA13: =E13&" "&F13 -> Boleto 2051 - F01 | AB13: =G13 -> Febes Federação de Entidades do Bem Estar Social | AC13: =M13 -> 0 | AE13: =IFERROR(IF(B13=VLOOKUP(C13,iTCESP,3,0),FALSE,TRUE),"") -> FALSE | AF13: =IF(I13=0,FALSE,IF(COUNTA(B13:J13)=9,FALSE,TRUE)) -> FALSE | AG13: =IF(OR(COUNTIF(D13,">"&$P$7),COUNTIF(D13,"<"&$P$4)),TRUE,FALSE) -> FALSE | AH13: =IF(AND(J8<0,J9>0),TRUE,FALSE) -> FALSE | AI13: =IF(AND(J8>0,J9<0),TRUE,FALSE) -> FALSE | AK13: =IF(I13>0,VLOOKUP(C13,iTCESP,4,0),"") -> Salários e Encargos Sociais | AL13: =IF(D13<>0,MONTH(D13),"") -> 1 | AM13: 1 | AO13: =IF(AND($O$1=4,I13>0),"Show",IF(AND($O$1=AM13,$P$1="E"),"Show",IF(AND($O$1=AM13,I13>0,$P$1="C"),"Show","Hide"))) -> Hide
A14: =IF(Q14="","",Q14) -> 2 | B14: Manutenção do imóvel | C14: Seguro predial | D14: 2023-01-12 | E14: Boleto | F14: 6108137758 | G14: Tokio Marine Seguradora S.A. | H14: 364733 | I14: 2195.37 | J14: Seguro do Imóvel ref. 2023 | O14: Item VIII | P14: SIM | Q14: =IF(P14="NÃO","",COUNT($Q$12:$Q13)+1) -> 2 | R14: =IF($K14="Total",1,"") ->  | T14: 0 | U14: =IF($K14="Parcial",1,"") ->  | W14: =IF($U14=1,$L14,0) -> 0 | X14: 2195.37 | Y14: =IF(O14<>"",COUNTIF(O$13:$O14,O14),"") -> 1 | Z14: =O14&" - "&Y14 -> Item VIII - 1 | AA14: Boleto 6108137758 | AB14: Tokio Marine Seguradora S.A. | AC14: =M14 -> 0 | AE14: FALSE | AF14: FALSE | AG14: FALSE | AK14: Programa Escola Linda | AL14: 1 | AM14: 1 | AO14: =IF(AND($O$1=4,I14>0),"Show",IF(AND($O$1=AM14,$P$1="E"),"Show",IF(AND($O$1=AM14,I14>0,$P$1="C"),"Show","Hide"))) -> Hide
A15: =IF(Q15="","",Q15) -> 3 | B15: Despesas com pessoal | C15: Cesta Básica | D15: 2023-01-03 | E15: NF de Serviço | F15: 112966 | G15: Sodexo Pass do Brasil Serviços e Comércio S.A. | H15: 671169 | I15: 3280 | J15: Cestas Básicas ref. 01/2023 - 20 cestas | O15: Item I | P15: SIM | Q15: =IF(P15="NÃO","",COUNT($Q$12:$Q14)+1) -> 3 | R15: =IF($K15="Total",1,"") ->  | T15: 0 | U15: =IF($K15="Parcial",1,"") ->  | W15: =IF($U15=1,$L15,0) -> 0 | X15: 3280 | Y15: =IF(O15<>"",COUNTIF(O$13:$O15,O15),"") -> 2 | Z15: Item I - 2 | AA15: NF de Serviço 112966 | AB15: Sodexo Pass do Brasil Serviços e Comércio S.A. | AC15: 0 | AE15: FALSE | AF15: FALSE | AG15: FALSE | AK15: Salários e Encargos Sociais | AL15: 1 | AM15: 1 | AO15: Hide
A16: =IF(Q16="","",Q16) -> 4 | B16: Custeio Geral | C16: Materiais didáticos | D16: 2023-01-05 | E16: DANFE | F16: 10514 | G16: Alessandra Detoni da Fonseca Antonino ME | H16: 647182 | I16: 473.4 | J16: Quadro de Cortiça para Avisos | O16: Item VI | P16: SIM | Q16: =IF(P16="NÃO","",COUNT($Q$12:$Q15)+1) -> 4 | R16: =IF($K16="Total",1,"") ->  | T16: 0 | U16: =IF($K16="Parcial",1,"") ->  | W16: =IF($U16=1,$L16,0) -> 0 | X16: 473.4 | Y16: =IF(O16<>"",COUNTIF(O$13:$O16,O16),"") -> 1 | Z16: Item VI - 1 | AA16: DANFE 10514 | AB16: Alessandra Detoni da Fonseca Antonino ME | AC16: 0 | AE16: FALSE | AF16: FALSE | AG16: FALSE | AK16: Material Pedagógico / Livros / Jogos / Brinquedos | AL16: 1 | AM16: 1 | AO16: Hide
A17: 5 | B17: Manutenção do imóvel | C17: Aquisição de material | D17: 2023-01-09 | E17: DANFE | F17: 111732 | G17: Comercial Lopema Materiais para Construção Ltda | H17: 90955 | I17: 169.8 | J17: Materais para Manutenção | O17: Item VI | P17: SIM | Q17: =IF(P17="NÃO","",COUNT($Q$12:$Q16)+1) -> 5 | T17: 0 | W17: 0 | X17: 169.8 | Y17: =IF(O17<>"",COUNTIF(O$13:$O17,O17),"") -> 2 | Z17: Item VI - 2 | AA17: DANFE 111732 | AB17: Comercial Lopema Materiais para Construção Ltda | AC17: 0 | AE17: FALSE | AF17: FALSE | AG17: FALSE | AK17: Programa Escola Linda | AL17: 1 | AM17: 1 | AO17: Hide
A18: 6 | B18: Despesas com pessoal | C18: Assistência Médica | D18: 2022-12-30 | E18: NF de Serviço | F18: 11017882 | G18: Santa Helena Assistencia Medica S/A | H18: 23326 | I18: 4112.34 | J18: Assistencia Medica 11/01/2023 à 10/02/2023 | O18: Item I | P18: SIM | Q18: =IF(P18="NÃO","",COUNT($Q$12:$Q17)+1) -> 6 | T18: 0 | W18: 0 | X18: 4112.34 | Y18: =IF(O18<>"",COUNTIF(O$13:$O18,O18),"") -> 3 | Z18: Item I - 3 | AA18: NF de Serviço 11017882 | AB18: Santa Helena Assistencia Medica S/A | AC18: 0 | AE18: FALSE | AF18: FALSE | AG18: TRUE | AK18: Salários e Encargos Sociais | AL18: 12 | AM18: 1 | AO18: Hide
A19: 7 | B19: Despesas mensais | C19: Conta de telefone/internet | D19: 2023-01-01 | E19: Fatura | F19: 1615586730-0 | G19: Telefonica Brasil S/A | H19: 727772 | I19: 163.42 | J19: Telefone / Vivo Fibra ref. 01/2023 | O19: Item XI | P19: SIM | Q19: =IF(P19="NÃO","",COUNT($Q$12:$Q18)+1) -> 7 | T19: 0 | W19: 0 | X19: 163.42 | Y19: =IF(O19<>"",COUNTIF(O$13:$O19,O19),"") -> 1 | Z19: Item XI - 1 | AA19: Fatura 1615586730-0 | AB19: Telefonica Brasil S/A | AC19: 0 | AE19: FALSE | AF19: FALSE | AG19: FALSE | AK19: Despesas Mensais e de Consumo | AL19: 1 | AM19: 1 | AO19: Hide
P20: NÃO | Q20: =IF(P20="NÃO","",COUNT($Q$12:$Q19)+1) ->  | T20: 0 | W20: 0 | X20: 0 | Y20: =IF(O20<>"",COUNTIF(O$13:$O20,O20),"") ->  | Z20: - | AB20: 0 | AC20: 0 | AF20: FALSE | AG20: FALSE | AM20: 1 | AO20: Hide
A21: 8 | B21: Manutenção do imóvel | C21: INSS/ISS ref. NFS de Manutenção | D21: 2023-01-12 | E21: ISS S/NFS-e | F21: 426 | G21: Prefeitura do Municipio de Sâo Bernardo do Campo | H21: 153158 | I21: 69 | J21: Guia 3975459 - ISS Retido s/NFS-e 426 - TB. Toldos de 04/12/2022 (parcial) | O21: Item VIII | P21: SIM | Q21: =IF(P21="NÃO","",COUNT($Q$12:$Q20)+1) -> 8 | T21: 0 | W21: 0 | X21: 69 | Y21: =IF(O21<>"",COUNTIF(O$13:$O21,O21),"") -> 2 | Z21: Item VIII - 2 | AA21: ISS S/NFS-e 426 | AB21: Prefeitura do Municipio de Sâo Bernardo do Campo | AC21: 0 | AE21: FALSE | AF21: FALSE | AG21: FALSE | AK21: Programa Escola Linda | AL21: 1 | AM21: 1 | AO21: Hide
A22: 9 | B22: Manutenção do imóvel | C22: Aquisição de material | D22: 2023-01-13 | E22: DANFE | F22: 2746 | G22: ARS Comércio e Indústria de Esquadrias de Alunínio Ltda EPP | H22: 198474 | I22: 1976 | J22: Porta de Giro c/ Veneziana | O22: Item VI | P22: SIM | Q22: =IF(P22="NÃO","",COUNT($Q$12:$Q21)+1) -> 9 | T22: 0 | W22: 0 | X22: 1976 | Y22: =IF(O22<>"",COUNTIF(O$13:$O22,O22),"") -> 3 | Z22: Item VI - 3 | AA22: DANFE 2746 | AB22: ARS Comércio e Indústria de Esquadrias de Alunínio Ltda EPP | AC22: 0 | AE22: FALSE | AF22: FALSE | AG22: FALSE | AK22: Programa Escola Linda | AL22: 1 | AM22: 1 | AO22: Hide
A23: 10 | B23: Custeio Geral | C23: Combustível | D23: 2023-01-18 | E23: DANFE | F23: 13122 | G23: Auto Posto São Bernardo LTDA | H23: 181415 | I23: 150 | J23: Combustível | O23: Item XII | P23: SIM | Q23: =IF(P23="NÃO","",COUNT($Q$12:$Q22)+1) -> 10 | T23: 0 | W23: 0 | X23: 150 | Y23: =IF(O23<>"",COUNTIF(O$13:$O23,O23),"") -> 1 | Z23: Item XII - 1 | AA23: DANFE 13122 | AB23: Auto Posto São Bernardo LTDA | AC23: 0 | AE23: FALSE | AF23: FALSE | AG23: FALSE | AK23: Combustível para Deslocamentos à SE | AL23: 1 | AM23: 1 | AO23: Hide
A24: 11 | B24: Despesas com pessoal | C24: Seguro de Vida | D24: 2023-01-13 | E24: Fatura | F24: 5620790 | G24: Clube Pasi de Seguros | H24: 306785 | I24: 270.8 | J24: Seguro de Vida ref. 01/2023 - 20 vidas | O24: Item I | P24: SIM | Q24: =IF(P24="NÃO","",COUNT($Q$12:$Q23)+1) -> 11 | T24: 0 | W24: 0 | X24: 270.8 | Y24: =IF(O24<>"",COUNTIF(O$13:$O24,O24),"") -> 4 | Z24: Item I - 4 | AA24: Fatura 5620790 | AB24: Clube Pasi de Seguros | AC24: 0 | AE24: FALSE | AF24: FALSE | AG24: FALSE | AK24: Salários e Encargos Sociais | AL24: 1 | AM24: 1 | AO24: Hide
A25: 12 | B25: Manutenção do imóvel | C25: Serviços de manutenção - PJ | D25: 2023-01-19 | E25: NF de Serviço | F25: 29620 | G25: Rudgentulho Ambiental Ltda | H25: 191059 | I25: 266 | J25: Locação de Caçamba | O25: Item VIII | P25: SIM | Q25: =IF(P25="NÃO","",COUNT($Q$12:$Q24)+1) -> 12 | T25: 0 | W25: 0 | X25: 266 | Y25: =IF(O25<>"",COUNTIF(O$13:$O25,O25),"") -> 3 | Z25: Item VIII - 3 | AA25: NF de Serviço 29620 | AB25: Rudgentulho Ambiental Ltda | AC25: 0 | AE25: FALSE | AF25: FALSE | AG25: FALSE | AK25: Programa Escola Linda | AL25: 1 | AM25: 1 | AO25: Hide
A26: 13 | B26: Despesas com pessoal | C26: Pagamento mensal | D26: 2023-01-19 | E26: Holerite | G26: Adriana Rodrigues de Sousa | H26: 191551 | I26: 152 | J26: Adiantamento de Salário ref. 01/2023 | O26: Item I | P26: SIM | Q26: =IF(P26="NÃO","",COUNT($Q$12:$Q25)+1) -> 13 | T26: 0 | W26: 0 | X26: 152 | Y26: =IF(O26<>"",COUNTIF(O$13:$O26,O26),"") -> 5 | Z26: Item I - 5 | AA26: Holerite | AB26: Adriana Rodrigues de Sousa | AC26: 0 | AE26: FALSE | AF26: TRUE | AG26: FALSE | AK26: Salários e Encargos Sociais | AL26: 1 | AM26: 1 | AO26: Hide
A27: 14 | B27: Despesas com pessoal | C27: Pagamento mensal | D27: 2023-01-19 | E27: Holerite | G27: Bruna Prado da Silva | H27: 191552 | I27: 152 | J27: Adiantamento de Salário ref. 01/2023 | O27: Item I | P27: SIM | Q27: =IF(P27="NÃO","",COUNT($Q$12:$Q26)+1) -> 14 | T27: 0 | W27: 0 | X27: 152 | Y27: =IF(O27<>"",COUNTIF(O$13:$O27,O27),"") -> 6 | Z27: Item I - 6 | AA27: Holerite | AB27: Bruna Prado da Silva | AC27: 0 | AE27: FALSE | AF27: TRUE | AG27: FALSE | AK27: Salários e Encargos Sociais | AL27: 1 | AM27: 1 | AO27: Hide
A28: 15 | B28: Despesas com pessoal | C28: Pagamento mensal | D28: 2023-01-19 | E28: Holerite | G28: Celia Maria dos Santos Casa | H28: 191552 | I28: 152 | J28: Adiantamento de Salário ref. 01/2023 | O28: Item I | P28: SIM | Q28: =IF(P28="NÃO","",COUNT($Q$12:$Q27)+1) -> 15 | T28: 0 | W28: 0 | X28: 152 | Y28: =IF(O28<>"",COUNTIF(O$13:$O28,O28),"") -> 7 | Z28: Item I - 7 | AA28: Holerite | AB28: Celia Maria dos Santos Casa | AC28: 0 | AE28: FALSE | AF28: TRUE | AG28: FALSE | AK28: Salários e Encargos Sociais | AL28: 1 | AM28: 1 | AO28: Hide
A29: 16 | B29: Despesas com pessoal | C29: Pagamento mensal | D29: 2023-01-19 | E29: Holerite | G29: Claudia Zanutio Nobre | H29: 191553 | I29: 236 | J29: Adiantamento de Salário ref. 01/2023 | O29: Item I | P29: SIM | Q29: =IF(P29="NÃO","",COUNT($Q$12:$Q28)+1) -> 16 | T29: 0 | W29: 0 | X29: 236 | Y29: =IF(O29<>"",COUNTIF(O$13:$O29,O29),"") -> 8 | Z29: Item I - 8 | AA29: Holerite | AB29: Claudia Zanutio Nobre | AC29: 0 | AE29: FALSE | AF29: TRUE | AG29: FALSE | AK29: Salários e Encargos Sociais | AL29: 1 | AM29: 1 | AO29: Hide
A30: 17 | B30: Despesas com pessoal | C30: Pagamento mensal | D30: 2023-01-19 | E30: Holerite | G30: Deuseli Aparecida Franciscon Rodrigues | H30: 191554 | I30: 130 | J30: Adiantamento de Salário ref. 01/2023 | O30: Item I | P30: SIM | Q30: =IF(P30="NÃO","",COUNT($Q$12:$Q29)+1) -> 17 | T30: 0 | W30: 0 | X30: 130 | Y30: =IF(O30<>"",COUNTIF(O$13:$O30,O30),"") -> 9 | Z30: Item I - 9 | AA30: Holerite | AB30: Deuseli Aparecida Franciscon Rodrigues | AC30: 0 | AE30: FALSE | AF30: TRUE | AG30: FALSE | AK30: Salários e Encargos Sociais | AL30: 1 | AM30: 1 | AO30: Hide
A31: 18 | B31: Despesas com pessoal | C31: Pagamento mensal | D31: 2023-01-19 | E31: Holerite | G31: Creuza Maria dos Santos Pessoni | H31: 191554 | I31: 473 | J31: Adiantamento de Salário ref. 01/2023 | O31: Item I | P31: SIM | Q31: =IF(P31="NÃO","",COUNT($Q$12:$Q30)+1) -> 18 | T31: 0 | W31: 0 | X31: 473 | Y31: =IF(O31<>"",COUNTIF(O$13:$O31,O31),"") -> 10 | Z31: Item I - 10 | AA31: Holerite | AB31: Creuza Maria dos Santos Pessoni | AC31: 0 | AE31: FALSE | AF31: TRUE | AG31: FALSE | AK31: Salários e Encargos Sociais | AL31: 1 | AM31: 1 | AO31: Hide
A32: 19 | B32: Despesas com pessoal | C32: Pagamento mensal | D32: 2023-01-19 | E32: Holerite | G32: Dominique Mirella do Amaral Jesus | H32: 191555 | I32: 236 | J32: Adiantamento de Salário ref. 01/2023 | O32: Item I | P32: SIM | Q32: =IF(P32="NÃO","",COUNT($Q$12:$Q31)+1) -> 19 | T32: 0 | W32: 0 | X32: 236 | Y32: =IF(O32<>"",COUNTIF(O$13:$O32,O32),"") -> 11 | Z32: Item I - 11 | AA32: Holerite | AB32: Dominique Mirella do Amaral Jesus | AC32: 0 | AE32: FALSE | AF32: TRUE | AG32: FALSE | AK32: Salários e Encargos Sociais | AL32: 1 | AM32: 1 | AO32: Hide
A33: 20 | B33: Despesas com pessoal | C33: Pagamento mensal | D33: 2023-01-19 | E33: Holerite | G33: Eliane Novais da Silva | H33: 191556 | I33: 236 | J33: Adiantamento de Salário ref. 01/2023 | O33: Item I | P33: SIM | Q33: =IF(P33="NÃO","",COUNT($Q$12:$Q32)+1) -> 20 | T33: 0 | W33: 0 | X33: 236 | Y33: =IF(O33<>"",COUNTIF(O$13:$O33,O33),"") -> 12 | Z33: Item I - 12 | AA33: Holerite | AB33: Eliane Novais da Silva | AC33: 0 | AE33: FALSE | AF33: TRUE | AG33: FALSE | AK33: Salários e Encargos Sociais | AL33: 1 | AM33: 1 | AO33: Hide
A34: 21 | B34: Despesas com pessoal | C34: Pagamento mensal | D34: 2023-01-19 | E34: Holerite | G34: Fernanda Godoi Barbosa | H34: 191556 | I34: 236 | J34: Adiantamento de Salário ref. 01/2023 | O34: Item I | P34: SIM | Q34: =IF(P34="NÃO","",COUNT($Q$12:$Q33)+1) -> 21 | T34: 0 | W34: 0 | X34: 236 | Y34: =IF(O34<>"",COUNTIF(O$13:$O34,O34),"") -> 13 | Z34: Item I - 13 | AA34: Holerite | AB34: Fernanda Godoi Barbosa | AC34: 0 | AE34: FALSE | AF34: TRUE | AG34: FALSE | AK34: Salários e Encargos Sociais | AL34: 1 | AM34: 1 | AO34: Hide
A35: 22 | B35: Despesas com pessoal | C35: Pagamento mensal | D35: 2023-01-19 | E35: Holerite | G35: Geane da Silva Sousa | H35: 191557 | I35: 236 | J35: Adiantamento de Salário ref. 01/2023 | O35: Item I | P35: SIM | Q35: =IF(P35="NÃO","",COUNT($Q$12:$Q34)+1) -> 22 | T35: 0 | W35: 0 | X35: 236 | Y35: =IF(O35<>"",COUNTIF(O$13:$O35,O35),"") -> 14 | Z35: Item I - 14 | AA35: Holerite | AB35: Geane da Silva Sousa | AC35: 0 | AE35: FALSE | AF35: TRUE | AG35: FALSE | AK35: Salários e Encargos Sociais | AL35: 1 | AM35: 1 | AO35: Hide
A36: 23 | B36: Despesas com pessoal | C36: Pagamento mensal | D36: 2023-01-19 | E36: Holerite | G36: Marleide Monetiro de Freitas | H36: 191558 | I36: 236 | J36: Adiantamento de Salário ref. 01/2023 | O36: Item I | P36: SIM | Q36: =IF(P36="NÃO","",COUNT($Q$12:$Q35)+1) -> 23 | T36: 0 | W36: 0 | X36: 236 | Y36: =IF(O36<>"",COUNTIF(O$13:$O36,O36),"") -> 15 | Z36: Item I - 15 | AA36: Holerite | AB36: Marleide Monetiro de Freitas | AC36: 0 | AE36: FALSE | AF36: TRUE | AG36: FALSE | AK36: Salários e Encargos Sociais | AL36: 1 | AM36: 1 | AO36: Hide
A37: 24 | B37: Despesas com pessoal | C37: Pagamento mensal | D37: 2023-01-19 | E37: Holerite | G37: Luiza Natalia Fernandes Candido | H37: 191558 | I37: 152 | J37: Adiantamento de Salário ref. 01/2023 | O37: Item I | P37: SIM | Q37: =IF(P37="NÃO","",COUNT($Q$12:$Q36)+1) -> 24 | T37: 0 | W37: 0 | X37: 152 | Y37: =IF(O37<>"",COUNTIF(O$13:$O37,O37),"") -> 16 | Z37: Item I - 16 | AA37: Holerite | AB37: Luiza Natalia Fernandes Candido | AC37: 0 | AE37: FALSE | AF37: TRUE | AG37: FALSE | AK37: Salários e Encargos Sociais | AL37: 1 | AM37: 1 | AO37: Hide
A38: 25 | B38: Despesas com pessoal | C38: Pagamento mensal | D38: 2023-01-19 | E38: Holerite | G38: Marlene Vidal de Castro | H38: 191559 | I38: 201 | J38: Adiantamento de Salário ref. 01/2023 | O38: Item I | P38: SIM | Q38: =IF(P38="NÃO","",COUNT($Q$12:$Q37)+1) -> 25 | T38: 0 | W38: 0 | X38: 201 | Y38: =IF(O38<>"",COUNTIF(O$13:$O38,O38),"") -> 17 | Z38: Item I - 17 | AA38: Holerite | AB38: Marlene Vidal de Castro | AC38: 0 | AE38: FALSE | AF38: TRUE | AG38: FALSE | AK38: Salários e Encargos Sociais | AL38: 1 | AM38: 1 | AO38: Hide
A39: 26 | B39: Despesas com pessoal | C39: Pagamento mensal | D39: 2023-01-19 | E39: Holerite | G39: Rosa Maria da Silva Santos | H39: 191600 | I39: 130 | J39: Adiantamento de Salário ref. 01/2023 | O39: Item I | P39: SIM | Q39: =IF(P39="NÃO","",COUNT($Q$12:$Q38)+1) -> 26 | T39: 0 | W39: 0 | X39: 130 | Y39: =IF(O39<>"",COUNTIF(O$13:$O39,O39),"") -> 18 | Z39: Item I - 18 | AA39: Holerite | AB39: Rosa Maria da Silva Santos | AC39: 0 | AE39: FALSE | AF39: TRUE | AG39: FALSE | AK39: Salários e Encargos Sociais | AL39: 1 | AM39: 1 | AO39: Hide
A40: 27 | B40: Despesas com pessoal | C40: Pagamento mensal | D40: 2023-01-19 | E40: Holerite | G40: Regiane Aparecida das Chagas | H40: 191600 | I40: 152 | J40: Adiantamento de Salário ref. 01/2023 | O40: Item I | P40: SIM | Q40: =IF(P40="NÃO","",COUNT($Q$12:$Q39)+1) -> 27 | T40: 0 | W40: 0 | X40: 152 | Y40: =IF(O40<>"",COUNTIF(O$13:$O40,O40),"") -> 19 | Z40: Item I - 19 | AA40: Holerite | AB40: Regiane Aparecida das Chagas | AC40: 0 | AE40: FALSE | AF40: TRUE | AG40: FALSE | AK40: Salários e Encargos Sociais | AL40: 1 | AM40: 1 | AO40: Hide
A41: 28 | B41: Despesas com pessoal | C41: Pagamento mensal | D41: 2023-01-19 | E41: Holerite | G41: Rosiane Sousa Pereira | H41: 191601 | I41: 153 | J41: Adiantamento de Salário ref. 01/2023 | O41: Item I | P41: SIM | Q41: =IF(P41="NÃO","",COUNT($Q$12:$Q40)+1) -> 28 | T41: 0 | W41: 0 | X41: 153 | Y41: =IF(O41<>"",COUNTIF(O$13:$O41,O41),"") -> 20 | Z41: Item I - 20 | AA41: Holerite | AB41: Rosiane Sousa Pereira | AC41: 0 | AE41: FALSE | AF41: TRUE | AG41: FALSE | AK41: Salários e Encargos Sociais | AL41: 1 | AM41: 1 | AO41: Hide
A42: 29 | B42: Despesas com pessoal | C42: Pagamento mensal | D42: 2023-01-19 | E42: Holerite | G42: Shirley Santos Lazaro | H42: 191602 | I42: 152 | J42: Adiantamento de Salário ref. 01/2023 | O42: Item I | P42: SIM | Q42: =IF(P42="NÃO","",COUNT($Q$12:$Q41)+1) -> 29 | T42: 0 | W42: 0 | X42: 152 | Y42: =IF(O42<>"",COUNTIF(O$13:$O42,O42),"") -> 21 | Z42: Item I - 21 | AA42: Holerite | AB42: Shirley Santos Lazaro | AC42: 0 | AE42: FALSE | AF42: TRUE | AG42: FALSE | AK42: Salários e Encargos Sociais | AL42: 1 | AM42: 1 | AO42: Hide
A43: 30 | B43: Despesas com pessoal | C43: Pagamento mensal | D43: 2023-01-19 | E43: Holerite | G43: Valdriene Kellory Barboza de Oliveira | H43: 191603 | I43: 152 | J43: Adiantamento de Salário ref. 01/2023 | O43: Item I | P43: SIM | Q43: =IF(P43="NÃO","",COUNT($Q$12:$Q42)+1) -> 30 | T43: 0 | W43: 0 | X43: 152 | Y43: =IF(O43<>"",COUNTIF(O$13:$O43,O43),"") -> 22 | Z43: Item I - 22 | AA43: Holerite | AB43: Valdriene Kellory Barboza de Oliveira | AC43: 0 | AE43: FALSE | AF43: TRUE | AG43: FALSE | AK43: Salários e Encargos Sociais | AL43: 1 | AM43: 1 | AO43: Hide
A44: 31 | B44: Despesas com pessoal | C44: Pagamento mensal | D44: 2023-01-19 | E44: Holerite | G44: Valdinez Vieira Bezerra | H44: 191603 | I44: 236 | J44: Adiantamento de Salário ref. 01/2023 | O44: Item I | P44: SIM | Q44: =IF(P44="NÃO","",COUNT($Q$12:$Q43)+1) -> 31 | T44: 0 | W44: 0 | X44: 236 | Y44: =IF(O44<>"",COUNTIF(O$13:$O44,O44),"") -> 23 | Z44: Item I - 23 | AA44: Holerite | AB44: Valdinez Vieira Bezerra | AC44: 0 | AE44: FALSE | AF44: TRUE | AG44: FALSE | AK44: Salários e Encargos Sociais | AL44: 1 | AM44: 1 | AO44: Hide
A45: 32 | B45: Despesas mensais | C45: Outros serviços contratados | D45: 2023-01-19 | E45: Extratos | G45: Caixa Economica Federal | H45: 140 | I45: 24.7 | J45: Serv. Pro. Da Folha de Pagto ref. 01/2023 | O45: Item VIII | P45: SIM | Q45: =IF(P45="NÃO","",COUNT($Q$12:$Q44)+1) -> 32 | T45: 0 | W45: 0 | X45: 24.7 | Y45: =IF(O45<>"",COUNTIF(O$13:$O45,O45),"") -> 4 | Z45: Item VIII - 4 | AA45: Extratos | AB45: Caixa Economica Federal | AC45: 0 | AE45: FALSE | AF45: TRUE | AG45: FALSE | AK45: Despesas Mensais e de Consumo | AL45: 1 | AM45: 1 | AO45: Hide
A46: 33 | B46: Despesas com pessoal | C46: Pagamento mensal | D46: 2023-01-19 | E46: Holerite | G46: Sandra Octaviano da Costa | H46: 200751 | I46: 339 | J46: Adiantamento de Salário ref. 01/2023 | O46: Item I | P46: SIM | Q46: =IF(P46="NÃO","",COUNT($Q$12:$Q45)+1) -> 33 | T46: 0 | W46: 0 | X46: 339 | Y46: =IF(O46<>"",COUNTIF(O$13:$O46,O46),"") -> 24 | Z46: Item I - 24 | AA46: Holerite | AB46: Sandra Octaviano da Costa | AC46: 0 | AE46: FALSE | AF46: TRUE | AG46: FALSE | AK46: Salários e Encargos Sociais | AL46: 1 | AM46: 1 | AO46: Hide
A47: 34 | B47: Despesas mensais | C47: Outros serviços contratados | D47: 2023-01-19 | E47: Extratos | G47: Caixa Economica Federal | H47: 140 | I47: 1.3 | J47: Serv. Pro. Da Folha de Pgto ref. 01/2023 | O47: Item VIII | P47: SIM | Q47: =IF(P47="NÃO","",COUNT($Q$12:$Q46)+1) -> 34 | T47: 0 | W47: 0 | X47: 1.3 | Y47: =IF(O47<>"",COUNTIF(O$13:$O47,O47),"") -> 5 | Z47: Item VIII - 5 | AA47: Extratos | AB47: Caixa Economica Federal | AC47: 0 | AE47: FALSE | AF47: TRUE | AG47: FALSE | AK47: Despesas Mensais e de Consumo | AL47: 1 | AM47: 1 | AO47: Hide
A48: 35 | B48: Despesas com pessoal | C48: Vale-transporte | D48: 2023-01-24 | E48: Recibo | F48: 1474034 | G48: Via Nova Serviços Eireli | H48: 162811 | I48: 204.67 | J48: Vale transporte - ref. 01/2023 - NFS-e 23021118 R$ 13,00 | O48: Item I | P48: SIM | Q48: =IF(P48="NÃO","",COUNT($Q$12:$Q47)+1) -> 35 | T48: 0 | W48: 0 | X48: 204.67 | Y48: =IF(O48<>"",COUNTIF(O$13:$O48,O48),"") -> 25 | Z48: Item I - 25 | AA48: Recibo 1474034 | AB48: Via Nova Serviços Eireli | AC48: 0 | AE48: FALSE | AF48: FALSE | AG48: FALSE | AK48: Salários e Encargos Sociais | AL48: 1 | AM48: 1 | AO48: Hide
A49: 36 | B49: Manutenção do imóvel | C49: Serviços de manutenção - PJ | D49: 2023-01-20 | E49: NF de Serviço | F49: 4 | G49: Jose Antonio do Prado | H49: 230833 | I49: 4200 | J49: Instalação de Pisos | O49: Item VIII | P49: SIM | Q49: =IF(P49="NÃO","",COUNT($Q$12:$Q48)+1) -> 36 | T49: 0 | W49: 0 | X49: 4200 | Y49: =IF(O49<>"",COUNTIF(O$13:$O49,O49),"") -> 6 | Z49: Item VIII - 6 | AA49: NF de Serviço 4 | AB49: Jose Antonio do Prado | AC49: 0 | AE49: FALSE | AF49: FALSE | AG49: FALSE | AK49: Programa Escola Linda | AL49: 1 | AM49: 1 | AO49: Hide
A50: 37 | B50: Despesas com pessoal | C50: Vale-transporte | D50: 2023-01-20 | E50: Recibo | F50: 1188140 | G50: Cartão Legal | H50: 37645 | I50: 1136.2 | J50: Vale Transporte ref. 01/2023 - NFS-e 2498 R$ 43,70 | O50: Item I | P50: SIM | Q50: =IF(P50="NÃO","",COUNT($Q$12:$Q49)+1) -> 37 | T50: 0 | W50: 0 | X50: 1136.2 | Y50: =IF(O50<>"",COUNTIF(O$13:$O50,O50),"") -> 26 | Z50: Item I - 26 | AA50: Recibo 1188140 | AB50: Cartão Legal | AC50: 0 | AE50: FALSE | AF50: FALSE | AG50: FALSE | AK50: Salários e Encargos Sociais | AL50: 1 | AM50: 1 | AO50: Hide
A51: 38 | B51: Manutenção do imóvel | C51: Aquisição de material | D51: 2023-01-24 | E51: DANFE | F51: 12038 | G51: Doval Comercio de Tintas Ltda | H51: 241105 | I51: 240 | J51: Aquisição de Tintas para Manutenção | O51: Item VI | P51: SIM | Q51: =IF(P51="NÃO","",COUNT($Q$12:$Q50)+1) -> 38 | T51: 0 | W51: 0 | X51: 240 | Y51: =IF(O51<>"",COUNTIF(O$13:$O51,O51),"") -> 4 | Z51: Item VI - 4 | AA51: DANFE 12038 | AB51: Doval Comercio de Tintas Ltda | AC51: 0 | AE51: FALSE | AF51: FALSE | AG51: FALSE | AK51: Programa Escola Linda | AL51: 1 | AM51: 1 | AO51: Hide
A52: 39 | B52: Manutenção do imóvel | C52: Aquisição de material | D52: 2023-01-24 | E52: DANFE | F52: 2758 | G52: ARS Comércio e Indústria de Esquadrias de Alunínio Ltda | H52: 38668 | I52: 1709 | J52: Porta de Giro c/ Veneziana | O52: Item VI | P52: SIM | Q52: =IF(P52="NÃO","",COUNT($Q$12:$Q51)+1) -> 39 | T52: 0 | W52: 0 | X52: 1709 | Y52: =IF(O52<>"",COUNTIF(O$13:$O52,O52),"") -> 5 | Z52: Item VI - 5 | AA52: DANFE 2758 | AB52: ARS Comércio e Indústria de Esquadrias de Alunínio Ltda | AC52: 0 | AE52: FALSE | AF52: FALSE | AG52: FALSE | AK52: Programa Escola Linda | AL52: 1 | AM52: 1 | AO52: Hide
A53: 40 | B53: Manutenção do imóvel | C53: Aquisição de material | D53: 2023-01-25 | E53: DANFE | F53: 325 | G53: Gislan Santos de Jesus | H53: 38850 | I53: 393 | J53: Aquisição material para manutenção | O53: Item VI | P53: SIM | Q53: =IF(P53="NÃO","",COUNT($Q$12:$Q52)+1) -> 40 | T53: 0 | W53: 0 | X53: 393 | Y53: =IF(O53<>"",COUNTIF(O$13:$O53,O53),"") -> 6 | Z53: Item VI - 6 | AA53: DANFE 325 | AB53: Gislan Santos de Jesus | AC53: 0 | AE53: FALSE | AF53: FALSE | AG53: FALSE | AK53: Programa Escola Linda | AL53: 1 | AM53: 1 | AO53: Hide
A54: 41 | B54: Despesas mensais | C54: Consumo de água | D54: 2023-01-18 | E54: Fatura | F54: 6638308 | G54: Sabesp | H54: 89369 | I54: 204.26 | J54: Água ref. 01/2023 | O54: Item XI | P54: SIM | Q54: =IF(P54="NÃO","",COUNT($Q$12:$Q53)+1) -> 41 | T54: 0 | W54: 0 | X54: 204.26 | Y54: =IF(O54<>"",COUNTIF(O$13:$O54,O54),"") -> 2 | Z54: Item XI - 2 | AA54: Fatura 6638308 | AB54: Sabesp | AC54: 0 | AE54: FALSE | AF54: FALSE | AG54: FALSE | AK54: Despesas Mensais e de Consumo | AL54: 1 | AM54: 1 | AO54: Hide
A55: 42 | B55: Despesas com pessoal | C55: Cesta Básica | D55: 2023-02-02 | E55: NF de Serviço | F55: 333623 | G55: Sodexo Pass do Brasil Serviços e Comércio S.A. | H55: 236590 | I55: 3280 | J55: 20 cestas Básicas ref. 02/2023 | O55: Item I | P55: SIM | Q55: =IF(P55="NÃO","",COUNT($Q$12:$Q54)+1) -> 42 | T55: 0 | W55: 0 | X55: 3280 | Y55: =IF(O55<>"",COUNTIF(O$13:$O55,O55),"") -> 27 | Z55: Item I - 27 | AA55: NF de Serviço 333623 | AB55: Sodexo Pass do Brasil Serviços e Comércio S.A. | AC55: 0 | AE55: FALSE | AF55: FALSE | AG55: FALSE | AK55: Salários e Encargos Sociais | AL55: 2 | AM55: 1 | AO55: Hide
A56: 43 | B56: Manutenção do imóvel | C56: Aquisição de material | D56: 2023-01-30 | E56: DANFE | F56: 357 | G56: Inagis Rudge Ramos Casa de Tintas Ltda | H56: 253724 | I56: 193 | J56: Aquisição de tintas e thinner | O56: Item VI | P56: SIM | Q56: =IF(P56="NÃO","",COUNT($Q$12:$Q55)+1) -> 43 | T56: 0 | W56: 0 | X56: 193 | Y56: =IF(O56<>"",COUNTIF(O$13:$O56,O56),"") -> 7 | Z56: Item VI - 7 | AA56: DANFE 357 | AB56: Inagis Rudge Ramos Casa de Tintas Ltda | AC56: 0 | AE56: FALSE | AF56: FALSE | AG56: FALSE | AK56: Programa Escola Linda | AL56: 1 | AM56: 1 | AO56: Hide
A57: 44 | B57: Despesas com pessoal | C57: Pagamento mensal | D57: 2023-01-26 | E57: Boleto | F57: 2071 - F02 | G57: Febes Federação de Entidades do Bem Estar Social | H57: 254311 | I57: 210.17 | J57: Contribuição a Entidade de Classe ref. 02/2023 | O57: Item I | P57: SIM | Q57: =IF(P57="NÃO","",COUNT($Q$12:$Q56)+1) -> 44 | T57: 0 | W57: 0 | X57: 210.17 | Y57: =IF(O57<>"",COUNTIF(O$13:$O57,O57),"") -> 28 | Z57: Item I - 28 | AA57: Boleto 2071 - F02 | AB57: Febes Federação de Entidades do Bem Estar Social | AC57: 0 | AE57: FALSE | AF57: FALSE | AG57: FALSE | AK57: Salários e Encargos Sociais | AL57: 1 | AM57: 1 | AO57: Hide
A58: 45 | B58: Despesas com pessoal | C58: Contribuição Sindical | D58: 2023-01-27 | E58: Boleto | F58: 7222 | G58: Sindbeneficente | H58: 254810 | I58: 400 | J58: Contribuição Associativa ref. 01/2023 | O58: Item I | P58: SIM | Q58: =IF(P58="NÃO","",COUNT($Q$12:$Q57)+1) -> 45 | T58: 0 | W58: 0 | X58: 400 | Y58: =IF(O58<>"",COUNTIF(O$13:$O58,O58),"") -> 29 | Z58: Item I - 29 | AA58: Boleto 7222 | AB58: Sindbeneficente | AC58: 0 | AE58: FALSE | AF58: FALSE | AG58: FALSE | AK58: Salários e Encargos Sociais | AL58: 1 | AM58: 1 | AO58: Hide
A59: 46 | B59: Despesas com pessoal | C59: Cesta Básica | D59: 2023-02-03 | E59: NF de Serviço | F59: 341995 | G59: Sodexo Pass do Brasil Serviços e Comércio S.A. | H59: 255340 | I59: 1012 | J59: Cestas Básicas ref. 02/2023 - 06 cestas | O59: Item I | P59: SIM | Q59: =IF(P59="NÃO","",COUNT($Q$12:$Q58)+1) -> 46 | T59: 0 | W59: 0 | X59: 1012 | Y59: =IF(O59<>"",COUNTIF(O$13:$O59,O59),"") -> 30 | Z59: Item I - 30 | AA59: NF de Serviço 341995 | AB59: Sodexo Pass do Brasil Serviços e Comércio S.A. | AC59: 0 | AE59: FALSE | AF59: FALSE | AG59: FALSE | AK59: Salários e Encargos Sociais | AL59: 2 | AM59: 1 | AO59: Hide
A60: 47 | B60: Despesas com pessoal | C60: Vale-transporte | D60: 2023-02-01 | E60: Recibo | F60: 1193243 | G60: Cartão Legal | H60: 255895 | I60: 908.96 | J60: Vale Transporte ref. 02/2023 - NFS-e 2510 R$ 34,96 | O60: Item I | P60: SIM | Q60: =IF(P60="NÃO","",COUNT($Q$12:$Q59)+1) -> 47 | T60: 0 | W60: 0 | X60: 908.96 | Y60: =IF(O60<>"",COUNTIF(O$13:$O60,O60),"") -> 31 | Z60: Item I - 31 | AA60: Recibo 1193243 | AB60: Cartão Legal | AC60: 0 | AE60: FALSE | AF60: FALSE | AG60: FALSE | AK60: Salários e Encargos Sociais | AL60: 2 | AM60: 1 | AO60: Hide
A61: 48 | B61: Manutenção do imóvel | C61: Serviços de manutenção - PJ | D61: 2023-01-31 | E61: NF de Serviço | F61: 17605 | G61: Special Fire Comercio e Manut. De Extintores Eirelli | H61: 256636 | I61: 334 | J61: Manutenção de Extintores | O61: Item VIII | P61: SIM | Q61: =IF(P61="NÃO","",COUNT($Q$12:$Q60)+1) -> 48 | T61: 0 | W61: 0 | X61: 334 | Y61: =IF(O61<>"",COUNTIF(O$13:$O61,O61),"") -> 7 | Z61: Item VIII - 7 | AA61: NF de Serviço 17605 | AB61: Special Fire Comercio e Manut. De Extintores Eirelli | AC61: 0 | AE61: FALSE | AF61: FALSE | AG61: FALSE | AK61: Programa Escola Linda | AL61: 1 | AM61: 1 | AO61: Hide
A62: 49 | B62: Despesas com pessoal | C62: Seguro de Vida | D62: 2023-01-31 | E62: Boleto | F62: 592072 | G62: Proagir Clube de Benefifios Sociais | H62: 257701 | I62: 310 | J62: Beneficio Social ref.02/2023 | O62: Item I | P62: SIM | Q62: =IF(P62="NÃO","",COUNT($Q$12:$Q61)+1) -> 49 | T62: 0 | W62: 0 | X62: 310 | Y62: =IF(O62<>"",COUNTIF(O$13:$O62,O62),"") -> 32 | Z62: Item I - 32 | AA62: Boleto 592072 | AB62: Proagir Clube de Benefifios Sociais | AC62: 0 | AE62: FALSE | AF62: FALSE | AG62: FALSE | AK62: Salários e Encargos Sociais | AL62: 1 | AM62: 1 | AO62: Hide
A63: 50 | B63: Despesas mensais | C63: Conta de telefone/internet | D63: 2023-01-19 | E63: Fatura | F63: 1623747463-0 | G63: Telefonica Brasil S/A | H63: 363582 | I63: 187.23 | J63: Telefone/Internet 4337-5995 ref. 01/2023 | O63: Item XI | P63: SIM | Q63: =IF(P63="NÃO","",COUNT($Q$12:$Q62)+1) -> 50 | T63: 0 | W63: 0 | X63: 187.23 | Y63: =IF(O63<>"",COUNTIF(O$13:$O63,O63),"") -> 3 | Z63: Item XI - 3 | AA63: Fatura 1623747463-0 | AB63: Telefonica Brasil S/A | AC63: 0 | AE63: FALSE | AF63: FALSE | AG63: FALSE | AK63: Despesas Mensais e de Consumo | AL63: 1 | AM63: 1 | AO63: Hide
A64: 51 | B64: Despesas com pessoal | C64: Encargos trabalhistas | D64: 2023-01-31 | E64: FGTS | F64: GRF | G64: Caixa Economica Federal | H64: 564017 | I64: 4917.75 | J64: FGTS ref. 01/2023 | O64: Item I | P64: SIM | Q64: =IF(P64="NÃO","",COUNT($Q$12:$Q63)+1) -> 51 | T64: 0 | W64: 0 | X64: 4917.75 | Y64: =IF(O64<>"",COUNTIF(O$13:$O64,O64),"") -> 33 | Z64: Item I - 33 | AA64: FGTS GRF | AB64: Caixa Economica Federal | AC64: 0 | AE64: FALSE | AF64: FALSE | AG64: FALSE | AK64: Salários e Encargos Sociais | AL64: 1 | AM64: 1 | AO64: Hide
A65: 52 | B65: Despesas com pessoal | C65: Pagamento mensal | D65: 2023-01-31 | E65: Holerite | G65: Adriana Rodrigues de Sousa | H65: 21153 | I65: 448 | J65: Salário Mensal ref. 01/2023 | O65: Item I | P65: SIM | Q65: =IF(P65="NÃO","",COUNT($Q$12:$Q64)+1) -> 52 | T65: 0 | W65: 0 | X65: 448 | Y65: =IF(O65<>"",COUNTIF(O$13:$O65,O65),"") -> 34 | Z65: Item I - 34 | AA65: Holerite | AB65: Adriana Rodrigues de Sousa | AC65: 0 | AE65: FALSE | AF65: TRUE | AG65: FALSE | AK65: Salários e Encargos Sociais | AL65: 1 | AM65: 1 | AO65: Hide
A66: 53 | B66: Despesas com pessoal | C66: Pagamento mensal | D66: 2023-01-31 | E66: Holerite | G66: Bruna Prado da Silava | H66: 21154 | I66: 685 | J66: Salário Mensal ref. 01/2023 | O66: Item I | P66: SIM | Q66: =IF(P66="NÃO","",COUNT($Q$12:$Q65)+1) -> 53 | T66: 0 | W66: 0 | X66: 685 | Y66: =IF(O66<>"",COUNTIF(O$13:$O66,O66),"") -> 35 | Z66: Item I - 35 | AA66: Holerite | AB66: Bruna Prado da Silava | AC66: 0 | AE66: FALSE | AF66: TRUE | AG66: FALSE | AK66: Salários e Encargos Sociais | AL66: 1 | AM66: 1 | AO66: Hide
A67: 54 | B67: Despesas com pessoal | C67: Pagamento mensal | D67: 2023-01-31 | E67: Holerite | G67: Celia Maria dos Santos Casa | H67: 21154 | I67: 669 | J67: Salário Mensal ref. 01/2023 | O67: Item I | P67: SIM | Q67: =IF(P67="NÃO","",COUNT($Q$12:$Q66)+1) -> 54 | T67: 0 | W67: 0 | X67: 669 | Y67: =IF(O67<>"",COUNTIF(O$13:$O67,O67),"") -> 36 | Z67: Item I - 36 | AA67: Holerite | AB67: Celia Maria dos Santos Casa | AC67: 0 | AE67: FALSE | AF67: TRUE | AG67: FALSE | AK67: Salários e Encargos Sociais | AL67: 1 | AM67: 1 | AO67: Hide
A68: 55 | B68: Despesas com pessoal | C68: Pagamento mensal | D68: 2023-01-31 | E68: Holerite | G68: Claudia Zanutio Nobre | H68: 21155 | I68: 837 | J68: Salário Mensal ref. 01/2023 | O68: Item I | P68: SIM | Q68: =IF(P68="NÃO","",COUNT($Q$12:$Q67)+1) -> 55 | T68: 0 | W68: 0 | X68: 837 | Y68: =IF(O68<>"",COUNTIF(O$13:$O68,O68),"") -> 37 | Z68: Item I - 37 | AA68: Holerite | AB68: Claudia Zanutio Nobre | AC68: 0 | AE68: FALSE | AF68: TRUE | AG68: FALSE | AK68: Salários e Encargos Sociais | AL68: 1 | AM68: 1 | AO68: Hide
A69: 56 | B69: Despesas com pessoal | C69: Pagamento mensal | D69: 2023-01-31 | E69: Holerite | G69: Creuza Maria dos Santos Pessoni | H69: 21157 | I69: 233 | J69: Salário Mensal ref. 01/2023 | O69: Item I | P69: SIM | Q69: =IF(P69="NÃO","",COUNT($Q$12:$Q68)+1) -> 56 | T69: 0 | W69: 0 | X69: 233 | Y69: =IF(O69<>"",COUNTIF(O$13:$O69,O69),"") -> 38 | Z69: Item I - 38 | AA69: Holerite | AB69: Creuza Maria dos Santos Pessoni | AC69: 0 | AE69: FALSE | AF69: TRUE | AG69: FALSE | AK69: Salários e Encargos Sociais | AL69: 1 | AM69: 1 | AO69: Hide
A70: 57 | B70: Despesas com pessoal | C70: Pagamento mensal | D70: 2023-01-31 | E70: Holerite | G70: Deuseli Aparecida Franciscon Rodrigues | H70: 21157 | I70: 709 | J70: Salário Mensal ref. 01/2023 | O70: Item I | P70: SIM | Q70: =IF(P70="NÃO","",COUNT($Q$12:$Q69)+1) -> 57 | T70: 0 | W70: 0 | X70: 709 | Y70: =IF(O70<>"",COUNTIF(O$13:$O70,O70),"") -> 39 | Z70: Item I - 39 | AA70: Holerite | AB70: Deuseli Aparecida Franciscon Rodrigues | AC70: 0 | AE70: FALSE | AF70: TRUE | AG70: FALSE | AK70: Salários e Encargos Sociais | AL70: 1 | AM70: 1 | AO70: Hide
A71: 58 | B71: Despesas com pessoal | C71: Pagamento mensal | D71: 2023-01-31 | E71: Holerite | G71: Dominique Mirella do Amaral Jesus | H71: 21158 | I71: 449 | J71: Salário Mensal ref. 01/2023 | O71: Item I | P71: SIM | Q71: =IF(P71="NÃO","",COUNT($Q$12:$Q70)+1) -> 58 | T71: 0 | W71: 0 | X71: 449 | Y71: =IF(O71<>"",COUNTIF(O$13:$O71,O71),"") -> 40 | Z71: Item I - 40 | AA71: Holerite | AB71: Dominique Mirella do Amaral Jesus | AC71: 0 | AE71: FALSE | AF71: TRUE | AG71: FALSE | AK71: Salários e Encargos Sociais | AL71: 1 | AM71: 1 | AO71: Hide
A72: 59 | B72: Despesas com pessoal | C72: Pagamento mensal | D72: 2023-01-31 | E72: Holerite | G72: Eliane Novais da Silva | H72: 21158 | I72: 966 | J72: Salário Mensal ref. 01/2023 | O72: Item I | P72: SIM | Q72: =IF(P72="NÃO","",COUNT($Q$12:$Q71)+1) -> 59 | T72: 0 | W72: 0 | X72: 966 | Y72: =IF(O72<>"",COUNTIF(O$13:$O72,O72),"") -> 41 | Z72: Item I - 41 | AA72: Holerite | AB72: Eliane Novais da Silva | AC72: 0 | AE72: FALSE | AF72: TRUE | AG72: FALSE | AK72: Salários e Encargos Sociais | AL72: 1 | AM72: 1 | AO72: Hide
A73: 60 | B73: Despesas com pessoal | C73: Pagamento mensal | D73: 2023-01-31 | E73: Holerite | G73: Fernanda Godoi Barbosa | H73: 21159 | I73: 712 | J73: Salário Mensal ref. 01/2023 | O73: Item I | P73: SIM | Q73: =IF(P73="NÃO","",COUNT($Q$12:$Q72)+1) -> 60 | T73: 0 | W73: 0 | X73: 712 | Y73: =IF(O73<>"",COUNTIF(O$13:$O73,O73),"") -> 42 | Z73: Item I - 42 | AA73: Holerite | AB73: Fernanda Godoi Barbosa | AC73: 0 | AE73: FALSE | AF73: TRUE | AG73: FALSE | AK73: Salários e Encargos Sociais | AL73: 1 | AM73: 1 | AO73: Hide
A74: 61 | B74: Despesas com pessoal | C74: Pagamento mensal | D74: 2023-01-31 | E74: Holerite | G74: Geane da Silva Sousa | H74: 21159 | I74: 960 | J74: Salário Mensal ref. 01/2023 | O74: Item I | P74: SIM | Q74: =IF(P74="NÃO","",COUNT($Q$12:$Q73)+1) -> 61 | T74: 0 | W74: 0 | X74: 960 | Y74: =IF(O74<>"",COUNTIF(O$13:$O74,O74),"") -> 43 | Z74: Item I - 43 | AA74: Holerite | AB74: Geane da Silva Sousa | AC74: 0 | AE74: FALSE | AF74: TRUE | AG74: FALSE | AK74: Salários e Encargos Sociais | AL74: 1 | AM74: 1 | AO74: Hide
A75: 62 | B75: Despesas com pessoal | C75: Pagamento mensal | D75: 2023-01-31 | E75: Holerite | G75: Luiza Natalia Fernandes Candido | H75: 21200 | I75: 1231 | J75: Salário Mensal ref. 01/2023 | O75: Item I | P75: SIM | Q75: =IF(P75="NÃO","",COUNT($Q$12:$Q74)+1) -> 62 | T75: 0 | W75: 0 | X75: 1231 | Y75: =IF(O75<>"",COUNTIF(O$13:$O75,O75),"") -> 44 | Z75: Item I - 44 | AA75: Holerite | AB75: Luiza Natalia Fernandes Candido | AC75: 0 | AE75: FALSE | AF75: TRUE | AG75: FALSE | AK75: Salários e Encargos Sociais | AL75: 1 | AM75: 1 | AO75: Hide
A76: 63 | B76: Despesas com pessoal | C76: Pagamento mensal | D76: 2023-01-31 | E76: Holerite | G76: Marleide Monetiro de Freitas | H76: 21201 | I76: 611 | J76: Salário Mensal ref. 01/2023 | O76: Item I | P76: SIM | Q76: =IF(P76="NÃO","",COUNT($Q$12:$Q75)+1) -> 63 | T76: 0 | W76: 0 | X76: 611 | Y76: =IF(O76<>"",COUNTIF(O$13:$O76,O76),"") -> 45 | Z76: Item I - 45 | AA76: Holerite | AB76: Marleide Monetiro de Freitas | AC76: 0 | AE76: FALSE | AF76: TRUE | AG76: FALSE | AK76: Salários e Encargos Sociais | AL76: 1 | AM76: 1 | AO76: Hide
A77: 64 | B77: Despesas com pessoal | C77: Pagamento mensal | D77: 2023-01-31 | E77: Holerite | G77: Marlene Vidal de Castro | H77: 21201 | I77: 86 | J77: Salário Mensal ref. 01/2023 | O77: =IFERROR(VLOOKUP($C77,iTCESP,2,0),"") -> Item I | P77: =IF(I77>0,"SIM","NÃO") -> SIM | Q77: =IF(P77="NÃO","",COUNT($Q$12:$Q76)+1) -> 64 | S77: =IF($R77=1,$B77,"") ->  | T77: =IF($R77=1,$I77,0) -> 0 | V77: =IF($U77=1,$B77,"") ->  | W77: 0 | X77: =I77-T77-W77 -> 86 | Y77: =IF(O77<>"",COUNTIF(O$13:$O77,O77),"") -> 46 | Z77: Item I - 46 | AA77: =E77&" "&F77 -> Holerite | AB77: =G77 -> Marlene Vidal de Castro | AC77: 0 | AE77: =IFERROR(IF(B77=VLOOKUP(C77,iTCESP,3,0),FALSE,TRUE),"") -> FALSE | AF77: =IF(I77=0,FALSE,IF(COUNTA(B77:J77)=9,FALSE,TRUE)) -> TRUE | AG77: =IF(OR(COUNTIF(D77,">"&$P$7),COUNTIF(D77,"<"&$P$4)),TRUE,FALSE) -> FALSE | AK77: =IF(I77>0,VLOOKUP(C77,iTCESP,4,0),"") -> Salários e Encargos Sociais | AL77: =IF(D77<>0,MONTH(D77),"") -> 1 | AM77: 1 | AO77: Hide
A78: 65 | B78: Despesas com pessoal | C78: Pagamento mensal | D78: 2023-01-31 | E78: Holerite | G78: Regiane Aparecida das Chagas | H78: 21202 | I78: 654 | J78: Salário Mensal ref. 01/2023 | O78: Item I | P78: SIM | Q78: =IF(P78="NÃO","",COUNT($Q$12:$Q77)+1) -> 65 | T78: 0 | W78: 0 | X78: 654 | Y78: =IF(O78<>"",COUNTIF(O$13:$O78,O78),"") -> 47 | Z78: =O78&" - "&Y78 -> Item I - 47 | AA78: Holerite | AB78: Regiane Aparecida das Chagas | AC78: =M78 -> 0 | AE78: FALSE | AF78: TRUE | AG78: FALSE | AK78: Salários e Encargos Sociais | AL78: 1 | AM78: 1 | AO78: =IF(AND($O$1=4,I78>0),"Show",IF(AND($O$1=AM78,$P$1="E"),"Show",IF(AND($O$1=AM78,I78>0,$P$1="C"),"Show","Hide"))) -> Hide
A79: 66 | B79: Despesas com pessoal | C79: Pagamento mensal | D79: 2023-01-31 | E79: Holerite | G79: Rosiane Sousa Pereira | H79: 21203 | I79: 743 | J79: Salário Mensal ref. 01/2023 | O79: Item I | P79: SIM | Q79: =IF(P79="NÃO","",COUNT($Q$12:$Q78)+1) -> 66 | T79: 0 | W79: 0 | X79: 743 | Y79: =IF(O79<>"",COUNTIF(O$13:$O79,O79),"") -> 48 | Z79: Item I - 48 | AA79: Holerite | AB79: Rosiane Sousa Pereira | AC79: 0 | AE79: FALSE | AF79: TRUE | AG79: FALSE | AK79: Salários e Encargos Sociais | AL79: 1 | AM79: 1 | AO79: Hide
A80: =IF(Q80="","",Q80) -> 67 | B80: Despesas com pessoal | C80: Pagamento mensal | D80: 2023-01-31 | E80: Holerite | G80: Rosa Maria da Silva Santos | H80: 21203 | I80: 763 | J80: Salário Mensal ref. 01/2023 | O80: Item I | P80: SIM | Q80: =IF(P80="NÃO","",COUNT($Q$12:$Q79)+1) -> 67 | R80: =IF($K80="Total",1,"") ->  | T80: 0 | U80: =IF($K80="Parcial",1,"") ->  | W80: =IF($U80=1,$L80,0) -> 0 | X80: 763 | Y80: =IF(O80<>"",COUNTIF(O$13:$O80,O80),"") -> 49 | Z80: Item I - 49 | AA80: Holerite | AB80: Rosa Maria da Silva Santos | AC80: 0 | AE80: FALSE | AF80: TRUE | AG80: FALSE | AK80: Salários e Encargos Sociais | AL80: 1 | AM80: 1 | AO80: Hide
A81: 68 | B81: Despesas com pessoal | C81: Pagamento mensal | D81: 2023-01-31 | E81: Holerite | G81: Sandra Octaviano da Costa | H81: 21204 | I81: 838 | J81: Salário Mensal ref. 01/2023 | O81: Item I | P81: SIM | Q81: =IF(P81="NÃO","",COUNT($Q$12:$Q80)+1) -> 68 | T81: 0 | W81: 0 | X81: 838 | Y81: =IF(O81<>"",COUNTIF(O$13:$O81,O81),"") -> 50 | Z81: Item I - 50 | AA81: Holerite | AB81: Sandra Octaviano da Costa | AC81: 0 | AE81: FALSE | AF81: TRUE | AG81: FALSE | AK81: Salários e Encargos Sociais | AL81: 1 | AM81: 1 | AO81: Hide
A82: 69 | B82: Despesas com pessoal | C82: Pagamento mensal | D82: 2023-01-31 | E82: Holerite | G82: Shirley Santos Lazaro | H82: 21205 | I82: 714 | J82: Salário Mensal ref. 01/2023 | O82: Item I | P82: SIM | Q82: =IF(P82="NÃO","",COUNT($Q$12:$Q81)+1) -> 69 | T82: 0 | W82: 0 | X82: 714 | Y82: =IF(O82<>"",COUNTIF(O$13:$O82,O82),"") -> 51 | Z82: Item I - 51 | AA82: Holerite | AB82: Shirley Santos Lazaro | AC82: 0 | AE82: FALSE | AF82: TRUE | AG82: FALSE | AK82: Salários e Encargos Sociais | AL82: 1 | AM82: 1 | AO82: Hide
A83: 70 | B83: Despesas com pessoal | C83: Pagamento mensal | D83: 2023-01-31 | E83: Holerite | G83: Valdinez Vieira Bezerra | H83: 21206 | I83: 521 | J83: Salário Mensal ref. 01/2023 | O83: Item I | P83: SIM | Q83: =IF(P83="NÃO","",COUNT($Q$12:$Q82)+1) -> 70 | T83: 0 | W83: 0 | X83: 521 | Y83: =IF(O83<>"",COUNTIF(O$13:$O83,O83),"") -> 52 | Z83: Item I - 52 | AA83: Holerite | AB83: Valdinez Vieira Bezerra | AC83: 0 | AE83: FALSE | AF83: TRUE | AG83: FALSE | AK83: Salários e Encargos Sociais | AL83: 1 | AM83: 1 | AO83: Hide
A84: 71 | B84: Despesas com pessoal | C84: Pagamento mensal | D84: 2023-01-31 | E84: Holerite | G84: Valdriene Kellory Barboza de Oliveira | H84: 21207 | I84: 704 | J84: Salário Mensal ref. 01/2023 | O84: Item I | P84: SIM | Q84: =IF(P84="NÃO","",COUNT($Q$12:$Q83)+1) -> 71 | T84: 0 | W84: 0 | X84: 704 | Y84: =IF(O84<>"",COUNTIF(O$13:$O84,O84),"") -> 53 | Z84: Item I - 53 | AA84: Holerite | AB84: Valdriene Kellory Barboza de Oliveira | AC84: 0 | AE84: FALSE | AF84: TRUE | AG84: FALSE | AK84: Salários e Encargos Sociais | AL84: 1 | AM84: 1 | AO84: Hide
A85: 72 | B85: Despesas mensais | C85: Outros serviços contratados | D85: 2023-02-13 | E85: Extratos | G85: Caixa Economica Federal | H85: 140 | I85: 26 | J85: Serv. Proc. Da Folha de Pagto - ref. 02/02/2023 | O85: Item VIII | P85: SIM | Q85: =IF(P85="NÃO","",COUNT($Q$12:$Q84)+1) -> 72 | T85: 0 | W85: 0 | X85: 26 | Y85: =IF(O85<>"",COUNTIF(O$13:$O85,O85),"") -> 8 | Z85: Item VIII - 8 | AA85: Extratos | AB85: Caixa Economica Federal | AC85: 0 | AE85: FALSE | AF85: TRUE | AG85: FALSE | AK85: Despesas Mensais e de Consumo | AL85: 2 | AM85: 1 | AO85: Hide
A86: 73 | B86: Despesas com pessoal | C86: Vale-transporte | D86: 2023-02-06 | E86: Recibo | F86: 1194632 | G86: Cartão Legal | H86: 438027 | I86: 227.24 | J86: Vale Transporte ref. 02/2023 - NFS-e 2511 R$ 8,74 | O86: Item I | P86: SIM | Q86: =IF(P86="NÃO","",COUNT($Q$12:$Q85)+1) -> 73 | T86: 0 | W86: 0 | X86: 227.24 | Y86: =IF(O86<>"",COUNTIF(O$13:$O86,O86),"") -> 54 | Z86: Item I - 54 | AA86: Recibo 1194632 | AB86: Cartão Legal | AC86: 0 | AE86: FALSE | AF86: FALSE | AG86: FALSE | AK86: Salários e Encargos Sociais | AL86: 2 | AM86: 1 | AO86: Hide
A87: 74 | B87: Manutenção do imóvel | C87: Serviços de manutenção - PJ | D87: 2023-02-03 | E87: NF de Serviço | F87: 8613 | G87: Eclipse Brasil Importação e Comercio Ltda | H87: 283130 | I87: 1070 | J87: Tratamento e Limpeza de Piso | O87: Item VIII | P87: SIM | Q87: =IF(P87="NÃO","",COUNT($Q$12:$Q86)+1) -> 74 | T87: 0 | W87: 0 | X87: 1070 | Y87: =IF(O87<>"",COUNTIF(O$13:$O87,O87),"") -> 9 | Z87: Item VIII - 9 | AA87: NF de Serviço 8613 | AB87: Eclipse Brasil Importação e Comercio Ltda | AC87: 0 | AE87: FALSE | AF87: FALSE | AG87: FALSE | AK87: Programa Escola Linda | AL87: 2 | AM87: 1 | AO87: Hide
A88: 75 | B88: Manutenção do imóvel | C88: Serviços de manutenção - PJ | D88: 2023-02-06 | E88: NF de Serviço | F88: 40 | G88: Genilson Moreira Garcia | H88: 71053 | I88: 500 | J88: Serviço de Manutenção e Pintura | O88: Item VIII | P88: SIM | Q88: =IF(P88="NÃO","",COUNT($Q$12:$Q87)+1) -> 75 | T88: 0 | W88: 0 | X88: 500 | Y88: =IF(O88<>"",COUNTIF(O$13:$O88,O88),"") -> 10 | Z88: Item VIII - 10 | AA88: NF de Serviço 40 | AB88: Genilson Moreira Garcia | AC88: 0 | AE88: FALSE | AF88: FALSE | AG88: FALSE | AK88: Programa Escola Linda | AL88: 2 | AM88: 1 | AO88: Hide
A89: 76 | B89: Manutenção do imóvel | C89: Aquisição de material | D89: 2023-02-08 | E89: DANFE | F89: 2767 | G89: ARS Comércio e Indústria de Esquadrias de Alunínio Ltda | H89: 92517 | I89: 910 | J89: Aquisição de Janelas | O89: Item VI | P89: SIM | Q89: =IF(P89="NÃO","",COUNT($Q$12:$Q88)+1) -> 76 | T89: 0 | W89: 0 | X89: 910 | Y89: =IF(O89<>"",COUNTIF(O$13:$O89,O89),"") -> 8 | Z89: Item VI - 8 | AA89: DANFE 2767 | AB89: ARS Comércio e Indústria de Esquadrias de Alunínio Ltda | AC89: 0 | AE89: FALSE | AF89: FALSE | AG89: FALSE | AK89: Programa Escola Linda | AL89: 2 | AM89: 1 | AO89: Hide
A90: 77 | B90: Manutenção do imóvel | C90: Serviços de manutenção - PJ | D90: 2023-02-08 | E90: NF de Serviço | F90: 5 | G90: Jose Antonio do Prado | H90: 90845 | I90: 1200 | J90: Manutenção de Telhados | O90: Item VIII | P90: SIM | Q90: =IF(P90="NÃO","",COUNT($Q$12:$Q89)+1) -> 77 | T90: 0 | W90: 0 | X90: 1200 | Y90: =IF(O90<>"",COUNTIF(O$13:$O90,O90),"") -> 11 | Z90: Item VIII - 11 | AA90: NF de Serviço 5 | AB90: Jose Antonio do Prado | AC90: 0 | AE90: FALSE | AF90: FALSE | AG90: FALSE | AK90: Programa Escola Linda | AL90: 2 | AM90: 1 | AO90: Hide
A91: 78 | B91: Despesas com pessoal | C91: Encargos trabalhistas | D91: 2023-01-31 | E91: DARF | F91: INSS | G91: Secretaria Receita Federal do Brasil | H91: 67928 | I91: 20771.89 | J91: INSS ref. 01/2023 | O91: Item I | P91: SIM | Q91: =IF(P91="NÃO","",COUNT($Q$12:$Q90)+1) -> 78 | T91: 0 | W91: 0 | X91: 20771.89 | Y91: =IF(O91<>"",COUNTIF(O$13:$O91,O91),"") -> 55 | Z91: Item I - 55 | AA91: DARF INSS | AB91: Secretaria Receita Federal do Brasil | AC91: 0 | AE91: FALSE | AF91: FALSE | AG91: FALSE | AK91: Salários e Encargos Sociais | AL91: 1 | AM91: 1 | AO91: Hide
A92: 79 | B92: Despesas com pessoal | C92: Encargos trabalhistas | D92: 2023-01-31 | E92: DARF | F92: IRRF | G92: Secretaria Receita Federal do Brasil | H92: 488047 | I92: 102.06 | J92: IRRF ref. 01/2023 | O92: Item I | P92: SIM | Q92: =IF(P92="NÃO","",COUNT($Q$12:$Q91)+1) -> 79 | T92: 0 | W92: 0 | X92: 102.06 | Y92: =IF(O92<>"",COUNTIF(O$13:$O92,O92),"") -> 56 | Z92: Item I - 56 | AA92: DARF IRRF | AB92: Secretaria Receita Federal do Brasil | AC92: 0 | AE92: FALSE | AF92: FALSE | AG92: FALSE | AK92: Salários e Encargos Sociais | AL92: 1 | AM92: 1 | AO92: Hide
A93: 80 | B93: Despesas com pessoal | C93: Encargos trabalhistas | D93: 2023-01-31 | E93: DARF | F93: PIS | G93: Secretaria Receita Federal do Brasil | H93: 488114 | I93: 614.72 | J93: PIS ref. 01/2023 | O93: Item I | P93: SIM | Q93: =IF(P93="NÃO","",COUNT($Q$12:$Q92)+1) -> 80 | T93: 0 | W93: 0 | X93: 614.72 | Y93: =IF(O93<>"",COUNTIF(O$13:$O93,O93),"") -> 57 | Z93: Item I - 57 | AA93: DARF PIS | AB93: Secretaria Receita Federal do Brasil | AC93: 0 | AE93: FALSE | AF93: FALSE | AG93: FALSE | AK93: Salários e Encargos Sociais | AL93: 1 | AM93: 1 | AO93: Hide
A94: 81 | B94: Manutenção do imóvel | C94: Aquisição de material | D94: 2023-01-16 | E94: DANFE | F94: 21534 | G94: Materiais para Construção Lua Cruz Ltda | H94: 516742 | I94: 1476.91 | J94: Material diversos para Manutenção | O94: Item VI | P94: SIM | Q94: =IF(P94="NÃO","",COUNT($Q$12:$Q93)+1) -> 81 | T94: 0 | W94: 0 | X94: 1476.91 | Y94: =IF(O94<>"",COUNTIF(O$13:$O94,O94),"") -> 9 | Z94: Item VI - 9 | AA94: DANFE 21534 | AB94: Materiais para Construção Lua Cruz Ltda | AC94: 0 | AE94: FALSE | AF94: FALSE | AG94: FALSE | AK94: Programa Escola Linda | AL94: 1 | AM94: 1 | AO94: Hide
A95: 82 | B95: Despesas com pessoal | C95: Assistência Médica | D95: 2023-01-30 | E95: NF de Serviço | F95: 11096260 | G95: Santa Helena Assistencia Medica S/A | H95: 517709 | I95: 4123.27 | J95: Assistencia Medica 11/02/2023 à 10/03/2023 | O95: Item I | P95: SIM | Q95: =IF(P95="NÃO","",COUNT($Q$12:$Q94)+1) -> 82 | T95: 0 | W95: 0 | X95: 4123.27 | Y95: =IF(O95<>"",COUNTIF(O$13:$O95,O95),"") -> 58 | Z95: Item I - 58 | AA95: NF de Serviço 11096260 | AB95: Santa Helena Assistencia Medica S/A | AC95: 0 | AE95: FALSE | AF95: FALSE | AG95: FALSE | AK95: Salários e Encargos Sociais | AL95: 1 | AM95: 1 | AO95: Hide
A96: 83 | B96: Despesas mensais | C96: Tributos | D96: 2023-01-30 | E96: NF de Serviço | F96: 23237 | G96: Real Assessoria Contabil Informatizada S/S LTDA | H96: 518626 | I96: 250 | J96: Alvara de Funcionamento | O96: Item XI | P96: SIM | Q96: =IF(P96="NÃO","",COUNT($Q$12:$Q95)+1) -> 83 | T96: 0 | W96: 0 | X96: 250 | Y96: =IF(O96<>"",COUNTIF(O$13:$O96,O96),"") -> 4 | Z96: Item XI - 4 | AA96: NF de Serviço 23237 | AB96: Real Assessoria Contabil Informatizada S/S LTDA | AC96: 0 | AE96: FALSE | AF96: FALSE | AG96: FALSE | AK96: Despesas Mensais e de Consumo | AL96: 1 | AM96: 1 | AO96: Hide
A97: 84 | B97: Despesas mensais | C97: Contador | D97: 2023-01-26 | E97: NF de Serviço | F97: 23219 | G97: Real Assessoria Contabil Informatizada S/S LTDA | H97: 519668 | I97: 1201.54 | J97: Honorários Contabeis ref. 01/2023 | O97: Item VIII | P97: SIM | Q97: =IF(P97="NÃO","",COUNT($Q$12:$Q96)+1) -> 84 | T97: 0 | W97: 0 | X97: 1201.54 | Y97: =IF(O97<>"",COUNTIF(O$13:$O97,O97),"") -> 12 | Z97: Item VIII - 12 | AA97: NF de Serviço 23219 | AB97: Real Assessoria Contabil Informatizada S/S LTDA | AC97: 0 | AE97: FALSE | AF97: FALSE | AG97: FALSE | AK97: Contabilidade | AL97: 1 | AM97: 1 | AO97: Hide
A98: 85 | B98: Despesas mensais | C98: Contador | D98: 2022-01-26 | E98: NF de Serviço | F98: 23220 | G98: Real Assessoria Contabil Informatizada S/S LTDA | H98: 520422 | I98: 932.46 | J98: Honorarios Contabeis ref. 01/2023 (Parcial) | O98: Item VIII | P98: SIM | Q98: =IF(P98="NÃO","",COUNT($Q$12:$Q97)+1) -> 85 | T98: 0 | W98: 0 | X98: 932.46 | Y98: =IF(O98<>"",COUNTIF(O$13:$O98,O98),"") -> 13 | Z98: Item VIII - 13 | AA98: NF de Serviço 23220 | AB98: Real Assessoria Contabil Informatizada S/S LTDA | AC98: 0 | AE98: FALSE | AF98: FALSE | AG98: TRUE | AK98: Contabilidade | AL98: 1 | AM98: 1 | AO98: Hide
A99: 86 | B99: Despesas com pessoal | C99: Seguro de Vida | D99: 2023-02-09 | E99: Fatura | F99: 5649095 | G99: Clube Pasi de Seguros | H99: 521153 | I99: 352.04 | J99: Seguro de vida - ref. 02/2023 - 26 vidas | O99: Item I | P99: SIM | Q99: =IF(P99="NÃO","",COUNT($Q$12:$Q98)+1) -> 86 | T99: 0 | W99: 0 | X99: 352.04 | Y99: =IF(O99<>"",COUNTIF(O$13:$O99,O99),"") -> 59 | Z99: Item I - 59 | AA99: Fatura 5649095 | AB99: Clube Pasi de Seguros | AC99: 0 | AE99: FALSE | AF99: FALSE | AG99: FALSE | AK99: Salários e Encargos Sociais | AL99: 2 | AM99: 1 | AO99: Hide
A100: 87 | B100: Despesas mensais | C100: Conta de telefone/internet | D100: 2022-02-01 | E100: Fatura | F100: 1630776207-0 | G100: Telefonica Brasil S/A | H100: 742786 | I100: 171.76 | J100: Telefone/Internet Vivo Fibra ref. 02/2023 | O100: Item XI | P100: SIM | Q100: =IF(P100="NÃO","",COUNT($Q$12:$Q99)+1) -> 87 | T100: 0 | W100: 0 | X100: 171.76 | Y100: =IF(O100<>"",COUNTIF(O$13:$O100,O100),"") -> 5 | Z100: Item XI - 5 | AA100: Fatura 1630776207-0 | AB100: Telefonica Brasil S/A | AC100: 0 | AE100: FALSE | AF100: FALSE | AG100: TRUE | AK100: Despesas Mensais e de Consumo | AL100: 2 | AM100: 1 | AO100: Hide
A101: 88 | B101: Manutenção do imóvel | C101: INSS/ISS ref. NFS de Manutenção | D101: 2023-02-07 | E101: ISS S/NFS-e | F101: 29620 | G101: Prefeitura do Municipio de Sâo Bernardo do Campo | H101: 744056 | I101: 14 | J101: Guia 4000862 - ISS Retido s/NFS-e 29620 - Redgentulhos de 19/01/2023 (parcial) | O101: Item VIII | P101: SIM | Q101: =IF(P101="NÃO","",COUNT($Q$12:$Q100)+1) -> 88 | T101: 0 | W101: 0 | X101: 14 | Y101: =IF(O101<>"",COUNTIF(O$13:$O101,O101),"") -> 14 | Z101: Item VIII - 14 | AA101: ISS S/NFS-e 29620 | AB101: Prefeitura do Municipio de Sâo Bernardo do Campo | AC101: 0 | AE101: FALSE | AF101: FALSE | AG101: FALSE | AK101: Programa Escola Linda | AL101: 2 | AM101: 1 | AO101: Hide
A102: 89 | B102: Custeio Geral | C102: Combustível | D102: 2023-02-14 | E102: DANFE | F102: 13188 | G102: Auto Posto São Bernardo Ltda | H102: 131801 | I102: 150 | J102: Combustível | O102: Item XII | P102: SIM | Q102: =IF(P102="NÃO","",COUNT($Q$12:$Q101)+1) -> 89 | T102: 0 | W102: 0 | X102: 150 | Y102: =IF(O102<>"",COUNTIF(O$13:$O102,O102),"") -> 2 | Z102: Item XII - 2 | AA102: DANFE 13188 | AB102: Auto Posto São Bernardo Ltda | AC102: 0 | AE102: FALSE | AF102: FALSE | AG102: FALSE | AK102: Combustível para Deslocamentos à SE | AL102: 2 | AM102: 1 | AO102: Hide
A103: 90 | B103: Despesas mensais | C103: Tributos | D103: 2023-01-11 | E103: Boleto | F103: 30500/87/1 | G103: Prefeitura do Municipio de Sâo Bernardo do Campo | H103: 212578 | I103: 788.5 | J103: Vigilancia Sanitária ref. 2023 | O103: Item XI | P103: SIM | Q103: =IF(P103="NÃO","",COUNT($Q$12:$Q102)+1) -> 90 | T103: 0 | W103: 0 | X103: 788.5 | Y103: =IF(O103<>"",COUNTIF(O$13:$O103,O103),"") -> 6 | Z103: Item XI - 6 | AA103: Boleto 30500/87/1 | AB103: Prefeitura do Municipio de Sâo Bernardo do Campo | AC103: 0 | AE103: FALSE | AF103: FALSE | AG103: FALSE | AK103: Despesas Mensais e de Consumo | AL103: 1 | AM103: 1 | AO103: Hide
A104: 91 | B104: Despesas com pessoal | C104: Pagamento mensal | D104: 2023-02-17 | E104: Holerite | G104: Adriana Rodrigues de Sousa | H104: 171042 | I104: 673 | J104: Adiantamento de Salário ref. 02/2023 | O104: Item I | P104: SIM | Q104: =IF(P104="NÃO","",COUNT($Q$12:$Q103)+1) -> 91 | T104: 0 | W104: 0 | X104: 673 | Y104: =IF(O104<>"",COUNTIF(O$13:$O104,O104),"") -> 60 | Z104: Item I - 60 | AA104: Holerite | AB104: Adriana Rodrigues de Sousa | AC104: 0 | AE104: FALSE | AF104: TRUE | AG104: FALSE | AK104: Salários e Encargos Sociais | AL104: 2 | AM104: 1 | AO104: Hide
A105: 92 | B105: Despesas com pessoal | C105: Pagamento mensal | D105: 2023-02-17 | E105: Holerite | G105: Ana Maria dos Santos Dias | H105: 171043 | I105: 782 | J105: Adiantamento de Salário ref. 02/2023 | O105: Item I | P105: SIM | Q105: =IF(P105="NÃO","",COUNT($Q$12:$Q104)+1) -> 92 | T105: 0 | W105: 0 | X105: 782 | Y105: =IF(O105<>"",COUNTIF(O$13:$O105,O105),"") -> 61 | Z105: Item I - 61 | AA105: Holerite | AB105: Ana Maria dos Santos Dias | AC105: 0 | AE105: FALSE | AF105: TRUE | AG105: FALSE | AK105: Salários e Encargos Sociais | AL105: 2 | AM105: 1 | AO105: Hide
A106: 93 | B106: Despesas com pessoal | C106: Pagamento mensal | D106: 2023-02-17 | E106: Holerite | G106: Bruna Prado da Silva | H106: 171044 | I106: 673 | J106: Adiantamento de Salário ref. 02/2023 | O106: Item I | P106: SIM | Q106: =IF(P106="NÃO","",COUNT($Q$12:$Q105)+1) -> 93 | T106: 0 | W106: 0 | X106: 673 | Y106: =IF(O106<>"",COUNTIF(O$13:$O106,O106),"") -> 62 | Z106: Item I - 62 | AA106: Holerite | AB106: Bruna Prado da Silva | AC106: 0 | AE106: FALSE | AF106: TRUE | AG106: FALSE | AK106: Salários e Encargos Sociais | AL106: 2 | AM106: 1 | AO106: Hide
A107: 94 | B107: Despesas com pessoal | C107: Pagamento mensal | D107: 2023-02-17 | E107: Holerite | G107: Celia Maria dos Santos Casa | H107: 171044 | I107: 673 | J107: Adiantamento de Salário ref. 02/2023 | O107: Item I | P107: SIM | Q107: =IF(P107="NÃO","",COUNT($Q$12:$Q106)+1) -> 94 | T107: 0 | W107: 0 | X107: 673 | Y107: =IF(O107<>"",COUNTIF(O$13:$O107,O107),"") -> 63 | Z107: Item I - 63 | AA107: Holerite | AB107: Celia Maria dos Santos Casa | AC107: 0 | AE107: FALSE | AF107: TRUE | AG107: FALSE | AK107: Salários e Encargos Sociais | AL107: 2 | AM107: 1 | AO107: Hide
A108: 95 | B108: Despesas com pessoal | C108: Pagamento mensal | D108: 2023-02-17 | E108: Holerite | G108: Creuza Maria dos Santos Pessoni | H108: 171045 | I108: 2204 | J108: Adiantamento de Salário ref. 02/2023 | O108: Item I | P108: SIM | Q108: =IF(P108="NÃO","",COUNT($Q$12:$Q107)+1) -> 95 | T108: 0 | W108: 0 | X108: 2204 | Y108: =IF(O108<>"",COUNTIF(O$13:$O108,O108),"") -> 64 | Z108: Item I - 64 | AA108: Holerite | AB108: Creuza Maria dos Santos Pessoni | AC108: 0 | AE108: FALSE | AF108: TRUE | AG108: FALSE | AK108: Salários e Encargos Sociais | AL108: 2 | AM108: 1 | AO108: Hide
A109: 96 | B109: Despesas com pessoal | C109: Pagamento mensal | D109: 2023-02-17 | E109: Holerite | G109: Claudia Zanutto Nobre | H109: 171045 | I109: 1043 | J109: Adiantamento de Salário ref. 02/2023 | O109: Item I | P109: SIM | Q109: =IF(P109="NÃO","",COUNT($Q$12:$Q108)+1) -> 96 | T109: 0 | W109: 0 | X109: 1043 | Y109: =IF(O109<>"",COUNTIF(O$13:$O109,O109),"") -> 65 | Z109: Item I - 65 | AA109: Holerite | AB109: Claudia Zanutto Nobre | AC109: 0 | AE109: FALSE | AF109: TRUE | AG109: FALSE | AK109: Salários e Encargos Sociais | AL109: 2 | AM109: 1 | AO109: Hide
